Workbook

Sheet Лист1
A1: Внимание: для работы программы должны быть включены макросы в настройках Excel
C2: ver 2.2 20/04/2020
F3: Список моделей фильтров
F4: РЕД-25 DN25 | G4: G | H4: 0.4
F5: РЕД-40 DN40 | G5: G | H5: 0.8
F6: РЕД-50 DN50 | G6: G | H6: 1.1
F7: РЕД-С-0,5-1-50 DN50 | G7: G | H7: 0.5
F8: РЕД-С-1,0-1-65 DN65 | G8: G | H8: 1
A9: Расчет пропускной способности и подбор фильтров газовых РЕД | F9: РЕД-С-1,5-1-80 DN80 | G9: G | H9: 1.5
F10: РЕД-С-2,0-1-100 DN100 | G10: G | H10: 2
A11: Название организации | B11: Ваша компания | C11: Внимание!!! Эти ячейки обязательные для заполнения | F11: РЕД-С-2,5-1-125 DN125 | G11: G | H11: 2.5
A12: ФИО | B12: Ваши ФИО | F12: РЕД-С-3,0-1-150 DN150 | G12: G | H12: 3
A13: Контакный телефон | B13: Ваш телефон | F13: РЕД-С-3,5-1-150 DN150 | G13: G | H13: 3.5
F14: РЕД-С-4-1-200 DN200 | G14: G | H14: 4
A15: Параметр | B15: Значение | C15: Примечание | F15: РЕД-С-5-1-250 DN250 | G15: G | H15: 5
A16: Максимальное давление на входе в фильтр, МПа | B16: 0.6 | C16: значение от 0 до 1,6 | F16: РЕД-С-6-1-300 DN300 | G16: G | H16: 6
A17: Минимальное давление на входе в фильтр, МПа | B17: 0.01 | C17: значение от 0,05* до 1,6, но не более чем максимальное давление на входе | F17: РЕД-С-8-1-400 DN400 | G17: G | H17: 8
A18: Допустимый перепад давления на фильтре, кПа | B18: 10 | C18: значение от 1 до 50 | F18: РЕД-С-5-2-300 DN300 | G18: G | H18: 300
A19: Требуемая пропускная способность, нм3/час | B19: 3500 | C19: значение от 1 до 347 200 | F19: РЕД-С-5-2-350 DN350 | G19: G | H19: 350
A20: Выберите типоразмер фильтра из списка | B20: РЕД-25 DN25 | C20: выберите из списка** | F20: РЕД-С-6-2-400 DN400 | G20: G | H20: 400
A21: Пропускная способность фильтра, нм3/час | B21: =IF(B25=0.5,'РЕД-1'!U10,IF(B25=1,'РЕД-1'!U28,IF(B25=1.5,'РЕД-1'!U46,IF(B25=2,'РЕД-1'!U64,IF(B25=2.5,'РЕД-1'!U82,IF(B25=4,'РЕД-1'!U136,IF(B25=3,'РЕД-1'!U100,IF(B25=3.5,'РЕД-1'!U118,B28)))))))) -> 150 | C21: =IFERROR(OR(ISNUMBER(SEARCH("#Н/Д",B21)),B21="#Н/Д")*1,"Внимание!!! Этот фильтр не может быть использован для введеных данных") -> 0 | F21: РЕД-С-8-2-500 DN500 | G21: G | H21: 500
A22: Результат: | B22: =IF(B30<1,A32,IF(B30>1.3,A33,IF(B30<=1.3,A31))) -> Этот фильтр Вам не подходит, выберите больший типоразмер
A25: Типоразмер картриджа G | B25: =IF(B20=F7,H7,IF(B20=F8,H8,IF(B20=F9,H9,IF(B20=F10,H10,IF(B20=F11,H11,IF(B20=F12,H12,IF(B20=F13,H13,IF(B20=F14,H14,B27)))))))) -> 0.4
A26: Типоразмер картриджа G | B26: =IF(B20=F4,H4,IF(B20=F5,H5,IF(B20=F6,H6,IF(B20=F15,H15,IF(B20=F16,H16,IF(B20=F17,H17,B25)))))) -> 0.4
A27: Типоразмер картриджа G | B27: =IF(B20=F18,H18,IF(B20=F19,H19,IF(B20=F20,H20,IF(B20=F21,H21,B26)))) -> 0.4
A28: Пропускная способность | B28: =IF(B25=5,'РЕД-1'!U154,IF(B25=6,'РЕД-1'!U172,IF(B25=8,'РЕД-1'!U190,IF(B25=300,'РЕД-2'!U227,IF(B25=350,'РЕД-2'!U251,IF(B25=400,'РЕД-2'!U275,IF(B25=500,'РЕД-2'!U299,B29))))))) -> 150
A29: Пропускная способность | B29: =IF(B26=0.4,'РЕД-1'!U208,IF(B26=0.8,'РЕД-1'!U226,IF(B26=1.1,'РЕД-1'!U244))) -> 150
A30: Отношение расходов В25 | B30: =B21/B19 -> 0.04285714286
A31: Этот фильтр Вам подходит | B31: 1≤ B25 ≤ 1,3
A32: Этот фильтр Вам не подходит, выберите больший типоразмер | B32: B25<1
A33: Этот фильтр Вам подходит, однако можно попробовать подобрать меньший типоразмер | B33: B25>1,3
A35: * - только для фильтра РЕД-25 доступно значение от 0,01
A36: ** - напротив каждой модели фильтра указан максимально возможный DN для данной модели. Возможно изготовления фильтров с меньшими DN, для получения информации напишите запрос изготовителю
A38: Ввод данных пользователем
B39: Результат
A40: Примечания к вводу данных | B40: Примечания к вводу данных

Sheet DIMENSIONAMENTO (hidden)
J1: =IF(H16<0.1,6,IF(H16<1,5,IF(H16<10,4,IF(H16>10,3,)))) -> 4 | K1: FL | L1: 25 | M1: 550 | N1: 29 | P1: I° APPARECCHIATURA | Q1: =VLOOKUP(C$16,L1:N8,2,FALSE) -> 550 | R1: =VLOOKUP(C$16,L1:N8,3,FALSE) -> 29 | T1: 25 | U1: 15 | V1: 1 | W1: 3 | Y1: FAG | Z1: 2 | AA1: 6 | AB1: 5 | AC1: 5 | AO1: 6
J2: =IF(H17<0.1,6,IF(H17<1,5,IF(H17<10,4,IF(H17>10,3,)))) -> 4 | L2: 40 | M2: 1400 | N2: 28 | P2: II° APPARECCHIATURA | Q2: =VLOOKUP(C$17,L1:N8,2,FALSE) -> 5200 | R2: =VLOOKUP(C$17,L1:N8,3,FALSE) -> 29 | T2: 40 | U2: 20 | V2: 10 | W2: 8 | Y2: FA-12-AP | AA2: 2 | AE2: TABELLA PER LA SCELTA DEL TIPO E DEI DIAMETRI DISPONIBILI DEI CONTATORI
J3: =IF(H18<0.1,6,IF(H18<1,5,IF(H18<10,4,IF(H18>10,3,)))) -> 4 | K3: (AP e BP) | L3: 50 | M3: 2300 | N3: 27 | P3: III° APPARECCHIATURA | Q3: =VLOOKUP(C$18,L1:N8,2,FALSE) -> 3500 | R3: =VLOOKUP(C$18,L1:N8,3,FALSE) -> 29 | T3: 50 | U3: 25 | V3: 10 | W3: 7
L4: 65 | M4: 3500 | N4: 29 | T4: 65 | U4: 32 | AE4: 65 | AF4: G/40 | AG4: 50
L5: 80 | M5: 5200 | N5: 29 | T5: 80 | U5: 40 | AE5: 100 | AF5: G/65 | AG5: 50
C6: Via P.Fabbri n°1 - 40013 - Castelmaggiore (BO) - ITALY - Tel. 051/4190611 Fax 051/4190715 | L6: 100 | M6: 8300 | N6: 27 | T6: 100 | U6: 50 | AE6: 160 | AF6: G/100 | AG6: 80 | AH6: 100
L7: 150 | M7: 17500 | N7: 28 | T7: 150 | U7: 65 | Z7: =D12/(C13+1) -> 1500 | AE7: 250 | AF7: G/160 | AG7: 80 | AH7: 100 | AO7: =(D12/1.25)/(C13+1) -> 1200 | AP7: AO7 è la cella usata per calcolare la
A8: DIMENSIONAMENTO APPARECCHIATURE TARTARINI | L8: 200 | M8: 31500 | N8: 30 | T8: 250 | U8: 80 | AE8: 400 | AF8: G/250 | AG8: 80 | AH8: 100 | AP8: Qmax del contatore con la Qero
K9: FL-SRS | L9: 25 | M9: 470 | N9: 31 | P9: I° APPARECCHIATURA | Q9: =VLOOKUP(C$16,L9:N15,2,FALSE) -> 470 | R9: =VLOOKUP(C$16,L9:N15,3,FALSE) -> 31 | U9: 100 | Z9: Z7 è la cella usata per calcolare la Qmax del contatore | AE9: 650 | AF9: G/400 | AG9: 100 | AH9: 150
A10: VELOCITA' NEL PIPING | B10: P.Monte | C10: P.Valle | D10: Q (Stmc/h) | E10: V (m/s) | F10: DN di CALCOLO | H10: DN REALE | I10: DN ESTERNA | J10: CARRO B. | L10: 40 | M10: 1200 | N10: 30 | P10: II° APPARECCHIATURA | Q10: =VLOOKUP(C$17,L9:N15,2,FALSE) -> 4250 | R10: =VLOOKUP(C$17,L9:N15,3,FALSE) -> 31 | U10: 125 | AE10: 1000 | AF10: G/650 | AG10: 150 | AH10: 200
L11: 50 | M11: 1900 | N11: 29 | P11: III° APPARECCHIATURA | Q11: =VLOOKUP(C$18,L9:N15,2,FALSE) -> 2900 | R11: =VLOOKUP(C$18,L9:N15,3,FALSE) -> 31 | T11: 25 | U11: 150 | AE11: 1600 | AF11: G/1000 | AG11: 150 | AH11: 200 | AI11: 250
A12: MONTE | B12: 2 | C12: // | D12: 3000 | E12: 30 | F12: =SQRT((345.92*D12*(1-0.002*B12)/(E12*(1+B12)))) -> 107.1659647 | G12: =SQRT((345.92*E13*(1-0.002*C13)/(F13*(1+C13)))) -> 5.475751708 | H12: =F12*0.95 -> 101.8076665 | I12: =IF(AA1=1,AE22,IF(AA1=2,AE23,IF(AA1=3,AE24,IF(AA1=4,AE25,IF(AA1=5,AE26,IF(AA1=6,AE27,IF(AA1=7,AE28,IF(AA1=8,AE29,K13)))))))) -> 150 | J12: =SQRT((345.92*D12*(1-0.002*B12)/(70*(1+B12)))) -> 70.1565922 | L12: 65 | M12: 2900 | N12: 31 | T12: 40 | U12: 200 | AE12: 2500 | AF12: G/1600 | AG12: 200 | AH12: 250 | AI12: 300
A13: VALLE | C13: 1 | D13: =D12 -> 3000 | E13: 25 | F13: =SQRT((345.92*D12*(1-0.002*C13)/(E13*(1+C13)))) -> 143.9225125 | G13: =SQRT((345.92*E14*(1-0.002*C14)/(F14*(1+C14)))) ->  | H13: =F13*0.95 -> 136.7263869 | I13: =IF((I14/1000)<((B12+1)/100),"DN OK !!","DN ERRATO !!") -> DN OK !! | J13: =SQRT((345.92*D12*(1-0.002*C13)/(70*(1+C13)))) -> 86.01015222 | K13: =IF(AA1=9,AE30,IF(AA1=10,AE31,IF(AA1=11,AE32,IF(AA1=12,AE33,IF(AA1=13,AE34))))) -> FALSE | L13: 80 | M13: 4250 | N13: 31 | T13: 50 | U13: 250 | AE13: 4000 | AF13: G/2500 | AG13: 250 | AH13: 300 | AI13: 400
I14: =1000*((B12+1)-SQRT((B12+1)^2-(29.16*30*(D12^1.82)*(1/I12^4.82)))) -> 10.0946119 | L14: 100 | M14: 6600 | N14: 29 | T14: 65 | U14: 300 | AE14: 6500 | AF14: G/4000 | AG14: 300 | AH14: 400 | AI14: 500
A15: APPARECCHIATURE | B15: TIPO | C15: DN | D15: P.Valle (Bar) | E15: Q (Stmc/h) | F15: CG | G15: C1 | H15: P.Monte (Bar) | I15: Q di CALCOLO | J15: 0.52 | L15: 150 | M15: 14000 | N15: 30 | T15: 80 | U15: 400 | AE15: 10000 | AF15: G/6500 | AG15: 400 | AH15: 500 | AI15: 600
A16: I° APPARECCHIATURA | B16: =IF(V1=1,"FL",IF(V1=2,"FL-SRS",IF(V1=3,"FL-SR",IF(V1=4,"B/249",IF(V1=5,"A/149",IF(V1=6,"CLX",IF(V1=7,"971",IF(V1=8,"MBN",Z46)))))))) -> FL | C16: =IF(W1=1,15,IF(W1=2,20,IF(W1=3,25,IF(W1=4,32,IF(W1=5,40,IF(W1=6,50,IF(W1=7,65,IF(W1=8,80,Z42)))))))) -> 25 | D16: =C13 -> 1 | E16: =D12 -> 3000 | F16: =IF(V1=1,Q1,IF(V1=2,Q9,IF(V1=3,Q17,IF(V1=4,Q25,IF(V1=5,Q29,IF(V1=6,Q33,IF(V1=7,Q38,IF(V1=8,Q41,Z50)))))))) -> 550 | G16: =IF(V1=1,R1,IF(V1=2,R9,IF(V1=3,R17,IF(V1=4,R25,IF(V1=5,R29,IF(V1=6,R33,IF(V1=7,R38,IF(V1=8,R41,Z54)))))))) -> 29 | H16: 9.49 | I16: 3000.14 | J16: =ROUND($H$16,$J$1) -> 9.49 | T16: 100 | AE16: 16000 | AF16: G/10000 | AG16: 500 | AH16: 600
A17: II° APPARECCHIATURA | B17: =IF(V2=1,"FL",IF(V2=2,"FL-SRS",IF(V2=3,"FL-SR",IF(V2=4,"B/249",IF(V2=5,"A/149",IF(V2=6,"CLX",IF(V2=7,"971",IF(V2=8,"MBN",Z47)))))))) -> BM5 | C17: =IF(W2=1,15,IF(W2=2,20,IF(W2=3,25,IF(W2=4,32,IF(W2=5,40,IF(W2=6,50,IF(W2=7,65,IF(W2=8,80,Z43)))))))) -> 80 | D17: =H16 -> 9.49 | E17: =E16 -> 3000 | F17: =IF(V2=1,Q2,IF(V2=2,Q10,IF(V2=3,Q18,IF(V2=4,Q26,IF(V2=5,Q30,IF(V2=6,Q34,IF(V2=7,Q39,IF(V2=8,Q42,Z51)))))))) -> 5408 | G17: =IF(V2=1,R2,IF(V2=2,R10,IF(V2=3,R18,IF(V2=4,R26,IF(V2=5,R30,IF(V2=6,R34,IF(V2=7,R39,IF(V2=8,R42,Z55)))))))) -> 29.7 | H17: 9.51694 | I17: 3000.554735 | J17: =ROUND($H$17,$J$2) -> 9.5169 | K17: FL-SR | L17: 25 | M17: 530 | N17: 29 | P17: I° APPARECCHIATURA | Q17: =VLOOKUP(C$16,L17:N23,2,FALSE) -> 530 | R17: =VLOOKUP(C$16,L17:N23,3,FALSE) -> 29 | T17: 150 | AE17: 25000 | AF17: G/16000 | AG17: 600
A18: III° APPARECCHIATURA | B18: =IF(V3=1,"FL",IF(V3=2,"FL-SRS",IF(V3=3,"FL-SR",IF(V3=4,"B/249",IF(V3=5,"A/149",IF(V3=6,"CLX",IF(V3=7,"971",IF(V3=8,"MBN",Z48)))))))) -> BM5 | C18: =IF(W3=1,15,IF(W3=2,20,IF(W3=3,25,IF(W3=4,32,IF(W3=5,40,IF(W3=6,50,IF(W3=7,65,IF(W3=8,80,Z44)))))))) -> 65 | D18: =H17 -> 9.51694 | E18: =E17 -> 3000 | F18: =IF(V3=1,Q3,IF(V3=2,Q11,IF(V3=3,Q19,IF(V3=4,Q27,IF(V3=5,Q31,IF(V3=6,Q35,IF(V3=7,Q40,IF(V3=8,Q43,Z52)))))))) -> 3623 | G18: =IF(V3=1,R3,IF(V3=2,R11,IF(V3=3,R19,IF(V3=4,R27,IF(V3=5,R31,IF(V3=6,R35,IF(V3=7,R40,IF(V3=8,R43,Z56)))))))) -> 28 | H18: 9.57024 | I18: 3000.440172 | J18: =ROUND($H$18,$J$3) -> 9.5702 | L18: 40 | M18: 1350 | N18: 28 | P18: II° APPARECCHIATURA | Q18: =VLOOKUP(C$17,L17:N23,2,FALSE) -> 4950 | R18: =VLOOKUP(C$17,L17:N23,3,FALSE) -> 29 | T18: 200
L19: 50 | M19: 2200 | N19: 27 | P19: III° APPARECCHIATURA | Q19: =VLOOKUP(C$18,L17:N23,2,FALSE) -> 3350 | R19: =VLOOKUP(C$18,L17:N23,3,FALSE) -> 29 | T19: 250
B20: TIPO | D20: DN Max IN/OUT | E20: DP (mbar) | F20: P.Monte (Bar) | G20: Portata | I20: =345.92*($D$12/($C$16^2))*(1-0.002*$B$12)/(1+$B$12) -> 551.258112 | J20: V sede (m/s) | L20: 65 | M20: 3350 | N20: 29 | T20: 300 | AD20: 25 | AE20: CELLE USATE PER L'ATTRIBUZIONE DEL DN ALLA VALVOLA LIMITATRICE
A21: FILTRO | B21: =IF(Z1=1,"FAG/","FA-12-AP/") -> FA-12-AP/ | C21: 150 | E21: 100 | F21: 6 | G21: =IF(Z1=1,AA38,AA40) ->  | I21: =345.92*($D$12/($C$16^2))*(1-0.002*$C$13)/(1+$C$13) -> 828.547584 | J21: V flangia uscita (m/s) | L21: 80 | M21: 4950 | N21: 29 | T21: 350 | AD21: 50
L22: 100 | M22: 8000 | N22: 27 | T22: 400 | AD22: 80 | AE22: 25 | AF22: CELLE USATE PER L'ATTRIBUZIONE DEL DN ALLA TUBAZIONE ESTERNA
E23: TIPO | F23: DN | I23: VALORI DA INSERIRE | L23: 150 | M23: 16800 | N23: 28 | AD23: 100 | AE23: 50
A24: VALVOLA DI SICUREZZA | B24: 1 | E24: =IF(B24=1,AP33,IF(B24=2,AP34,IF(B24=3,AP35))) -> CF-31-E | F24: =IF(B24=1,AQ33,IF(B24=2,AQ34,IF(B24=3,AQ35))) -> 3/4" X 1" | I24: RISULTATO | AD24: 150 | AE24: 80
K25: B/249 | L25: 40 | M25: 80 | N25: 22 | P25: I° APPARECCHIATURA | Q25: =IF(B12<0.5,80,IF(B12<3,130,100)) -> 130 | R25: 22 | AD25: 200 | AE25: 100
A26: MISURA (Qimp) | C26: VOLUMETRICA | G26: VENTURIMETRICA | L26: 40 | M26: 130 | N26: 22 | P26: II° APPARECCHIATURA | Q26: =IF(B12<0.5,80,IF(B12<3,130,100)) -> 130 | R26: 22 | AD26: 250 | AE26: 125 | AG26: 15 | AH26: CELLE USATE PER L'ATTRIBUZIONE DEL DN ALLA TUBAZIONE PER LA PERDITA DI CARICO
B27: TIPO | C27: DIAMETRI DISPONIBILI | F27: P. MISURA | G27: Q (Stmc/h) | H27: DP (mmH2O) | I27: DN TRONCO | J27: DN FORO | L27: 40 | M27: 100 | N27: 22 | P27: III° APPARECCHIATURA | Q27: =IF(B12<0.5,80,IF(B12<3,130,100)) -> 130 | R27: 22 | AD27: 300 | AE27: 150 | AG27: 25
B28: =IF(Z7<=AE4,AF4,IF(Z7<=AE5,AF5,IF(Z7<=AE6,AF6,IF(Z7<=AE7,AF7,IF(Z7<=AE8,AF8,IF(Z7<=AE9,AF9,IF(Z7<=AE10,AF10,IF(Z7<=AE11,AF11,B29)))))))) -> G/1000 | C28: =IF(Z7<=AE4,AG4,IF(Z7<=AE5,AG5,IF(Z7<=AE6,AG6,IF(Z7<=AE7,AG7,IF(Z7<=AE8,AG8,IF(Z7<=AE9,AG9,IF(Z7<=AE10,AG10,IF(Z7<=AE11,AG11,C29)))))))) -> 150 | D28: =IF(Z7<=AE4,AH4,IF(Z7<=AE5,AH5,IF(Z7<=AE6,AH6,IF(Z7<=AE7,AH7,IF(Z7<=AE8,AH8,IF(Z7<=AE9,AH9,IF(Z7<=AE10,AH10,IF(Z7<=AE11,AH11,D29)))))))) -> 200 | E28: =IF(Z7<=AE4,AI4,IF(Z7<=AE5,AI5,IF(Z7<=AE6,AI6,IF(Z7<=AE7,AI7,IF(Z7<=AE8,AI8,IF(Z7<=AE9,AI9,IF(Z7<=AE10,AI10,IF(Z7<=AE11,AI11,E29)))))))) -> 250 | F28: =C13 -> 1 | G28: =D12 -> 3000 | H28: 5000 | I28: =SQRT((112*G28)/(SQRT((H28/100)*((F28+1)*100))))/0.6 -> 96.60917831 | J28: =SQRT((G28*0.704)/(0.01252*1*0.6*SQRT(0.70145*(((F28*10000)+10265)/10333)*(1/0.9922))*SQRT(H28))) -> 58.10951455 | AE28: 200 | AG28: 32
B29: =IF(Z7<=AE12,AF12,IF(Z7<=AE13,AF13,IF(Z7<=AE14,AF14,IF(Z7<=AE15,AF15,IF(Z7<=AE16,AF16,IF(Z7<=AE17,AF17)))))) -> G/1600 | C29: =IF(Z7<=AE12,AG12,IF(Z7<=AE13,AG13,IF(Z7<=AE14,AG14,IF(Z7<=AE15,AG15,IF(Z7<=AE16,AG16,IF(Z7<=AE17,AG17,"")))))) -> 200 | D29: =IF(Z7<=AE12,AH12,IF(Z7<=AE13,AH13,IF(Z7<=AE14,AH14,IF(Z7<=AE15,AH15,IF(Z7<=AE16,AH16,IF(Z7<=AE17,AH17,"")))))) -> 250 | E29: =IF(Z7<=AE12,AI12,IF(Z7<=AE13,AI13,IF(Z7<=AE14,AI14,IF(Z7<=AE15,AI15,IF(Z7<=AE16,AI16,IF(Z7<=AE17,AI17,"")))))) -> 300 | K29: A/149 | L29: 50 | M29: 390 | N29: 28 | P29: I° APPARECCHIATURA | Q29: =IF(B12<3,390,300) -> 390 | R29: 28 | AE29: 250 | AG29: 40
C30: VALV. SICUREZZA - REMI | H30: PERDITA DI CARICO NELLA TUBAZIONE | L30: 50 | M30: 300 | N30: 28 | P30: II° APPARECCHIATURA | Q30: =IF(B12<3,390,300) -> 390 | R30: 28 | AE30: 300 | AG30: 50 | AI30: 15 | AJ30: CELLE USATE PER L'ATTRIBUZIONE DEL DN PER IL CALCOLO DELL'AREA DELLA VALVOLA DI SICUREZZA
C31: =IF(AC1=9,AI38,IF(AC1=10,AI39,IF(AC1=11,AI40,IF(AC1=12,AI41,IF(AC1=13,AI42,IF(AC1=14,AI43,IF(AC1=15,AI44,IF(AC1=16,AI45)))))))) -> FALSE | P31: III° APPARECCHIATURA | Q31: =IF(B12<3,390,300) -> 390 | R31: 28 | AE31: 350 | AG31: 65 | AI31: 25
B32: Diametro | C32: =IF(AC1=1,AI30,IF(AC1=2,AI31,IF(AC1=3,AI32,IF(AC1=4,AI33,IF(AC1=5,AI34,IF(AC1=6,AI35,IF(AC1=7,AI36,IF(AC1=8,AI37,C31)))))))) -> 50 | D32: mm | G32: Diametro | H32: =IF(AB1=1,AG26,IF(AB1=2,AG27,IF(AB1=3,AG28,IF(AB1=4,AG29,IF(AB1=5,AG30,IF(AB1=6,AG31,IF(AB1=7,AG32,IF(AB1=8,AG33,J32)))))))) -> 50 | I32: mm | J32: =IF(AB1=9,AG34,IF(AB1=10,AG35,IF(AB1=11,AG36,IF(AB1=12,AG37,IF(AB1=13,AG38,IF(AB1=14,AG39,IF(AB1=15,AG40,IF(AG41=16,AG41)))))))) -> FALSE | AE32: 400 | AG32: 80 | AI32: 32 | AN32: CELLE USATE PER IL CALCOLO DELLA VALVOLA DI SICUREZZA
B33: K (coeff.) | C33: 0.931 | G33: P.M. | H33: 6 | I33: bar | K33: CLX | L33: 25 | M33: 600 | N33: 30 | P33: I° APPARECCHIATURA | Q33: =VLOOKUP(C$16,L33:N36,2,FALSE) -> 600 | R33: =VLOOKUP(C$16,L33:N36,3,FALSE) -> 30 | AE33: 450 | AG33: 100 | AI33: 40 | AL33: SENZA MISURA | AP33: =IF(F12<=100,AL37,IF(F12<=125,AL38,IF(F12<=150,AL39,IF(F12<=200,AL40,IF(F12<=250,AL41,"NO CF"))))) -> CF-31-E | AQ33: =IF(F12<=100,AM37,IF(F12<=125,AM38,IF(F12<=150,AM39,IF(F12<=200,AM40,IF(F12<=250,AM41,"NO CF"))))) -> 3/4" X 1"
G34: Portata | H34: 560 | I34: Stmc/h | L34: 50 | M34: 1850 | N34: 30 | P34: II° APPARECCHIATURA | Q34: =VLOOKUP(C$17,L33:N36,2,FALSE) -> 3900 | R34: =VLOOKUP(C$17,L33:N36,3,FALSE) -> 30 | T34: =IF(C21=0.5,50,IF(C21=1,65,IF(C21=1.5,80,IF(C21=2,100,IF(C21=2.5,125,IF(C21=3,150,IF(C21=3.5,150,T35))))))) -> FALSE | U34: CELLA USATA PER L'ATTRIBUZIONE DEL DN DEI FAG | AE34: 500 | AG34: 125 | AI34: 50 | AL34: MISURA VOLUMETRICA | AP34: =IF(C28<=100,AL37,IF(C28=150,AL39,IF(C28=200,AL40,IF(C28=250,AL41,"NO CF")))) -> CF-31-F | AQ34: =IF(C28<=100,AM37,IF(C28<=125,AM38,IF(C28<=150,AM39,IF(C28<=200,AM40,IF(C28<=250,AM41,"NO CF"))))) -> 1" X 1" ½
B35: Area | C35: =(PI()*(C32/10)^2)/(4*C33) -> 21.09017625 | D35: mmq | G35: Lunghezza | H35: 20 | I35: metri | L35: 80 | M35: 3900 | N35: 30 | P35: III° APPARECCHIATURA | Q35: =VLOOKUP(C$18,L33:N36,2,FALSE) ->  | R35: =VLOOKUP(C$18,L33:N36,3,FALSE) ->  | T35: =IF(C21=4,200,IF(C21=5,250,IF(C21=6,300))) -> FALSE | U35: CELLA USATA PER L'ATTRIBUZIONE DEL DN DEI FAG | AG35: 150 | AI35: 65 | AL35: MISURA VENTURIMETRICA | AP35: =IF(I28<=100,AL37,IF(I28<=150,AL39,IF(I28<=200,AL40,IF(I28<=250,AL41,"NO CF")))) -> CF-31-D | AQ35: =IF(I28<=100,AM37,IF(I28<=150,AM39,IF(I28<=200,AM40,IF(I28<=250,AM41,"NO CF")))) -> ½" X 1"
L36: 100 | M36: 6500 | N36: 30 | T36: =IF(C21=50,50,IF(C21=65,65,IF(C21=80,80,IF(C21=100,100,IF(C21="100-S",100,IF(C21=150,150,IF(C21=200,200,T37))))))) -> 150 | U36: CELLA USATA PER L'ATTRIBUZIONE DEL DN DEGLI FA-12-AP | AG36: 200 | AI36: 80
C37: CALCOLO DEL CG | G37: DP | H37: =1000*((H33+1)-SQRT((H33+1)^2-(29.16*H35*(H34^1.82)*(1/H32^4.82)))) -> 27.1142875 | I37: mbar | T37: =IF(C21=250,250,IF(C21=300,300,IF(C21=350,350,IF(C21=400,400)))) -> FALSE | U37: CELLA USATA PER L'ATTRIBUZIONE DEL DN DEGLI FA-12-AP | AG37: 250 | AI37: 100 | AL37: CF-31-D | AM37: ½" X 1"
K38: 971 | L38: 250 | M38: 32500 | N38: 31 | P38: I° APPARECCHIATURA | Q38: =VLOOKUP(C$16,L38:N38,2,FALSE) ->  | R38: =VLOOKUP(C$16,L38:N38,3,FALSE) ->  | AA38: =IF(C21=0.5,'РЕД-1'!U10,IF(C21=1,'РЕД-1'!U28,IF(C21=1.5,'РЕД-1'!U46,IF(C21=2,'РЕД-1'!U64,IF(C21=2.5,'РЕД-1'!U82,IF(C21=3,'РЕД-1'!U100,IF(C21=3.5,'РЕД-1'!U118,IF(C21=4,'РЕД-1'!U136,AA39)))))))) -> FALSE | AB38: CELLA USATA PER IL CALCOLO | AG38: 300 | AI38: 125 | AL38: CF-31-E | AM38: 3/4" X 1"
B39: Portata | C39: 6250 | D39: Stmc/h | H39: CALCOLO DELLA PORTATA | P39: II° APPARECCHIATURA | Q39: =VLOOKUP(C$17,L38:N38,2,FALSE) ->  | R39: =VLOOKUP(C$17,L38:N38,3,FALSE) ->  | AA39: =IF(C21=5,'РЕД-1'!U154,IF(C21=6,'РЕД-1'!U172)) -> FALSE | AB39: DELLA PORTATA DEI FAG CON TABELLA | AG39: 350 | AI39: 150 | AL39: CF-31-F | AM39: 1" X 1" ½
B40: P. M. | C40: 35 | D40: bar | P40: III° APPARECCHIATURA | Q40: =VLOOKUP(C$18,L38:N38,2,FALSE) ->  | R40: =VLOOKUP(C$18,L38:N38,3,FALSE) ->  | W40: FL | AA40: =IF(C21=50,'РЕД-2'!U35,IF(C21=65,'РЕД-2'!U59,IF(C21=80,'РЕД-2'!U83,IF(C21=100,'РЕД-2'!U107,IF(C21="100-S",'РЕД-2'!U131,IF(C21=150,'РЕД-2'!U155,IF(C21=200,'РЕД-2'!U179,IF(C21=250,'РЕД-2'!U203,AA41)))))))) ->  | AB40: CELLA USATA PER IL CALCOLO | AG40: 400 | AI40: 200 | AL40: CF-31-G | AM40: 1"1/4 X 1" ½
B41: P. V. | C41: 30 | D41: bar | G41: CG | H41: 1850 | K41: MN/MBN | L41: 25 | M41: 390 | N41: 28 | P41: I° APPARECCHIATURA | Q41: =VLOOKUP(C$16,L41:N46,2,FALSE) -> 390 | R41: =VLOOKUP(C$16,L41:N46,3,FALSE) -> 28 | W41: FL/SRS | AA41: =IF(C21=300,'РЕД-2'!U227,IF(C21=350,'РЕД-2'!U251,IF(C21=400,'РЕД-2'!U275))) -> FALSE | AB41: DELLA PORTATA DEI FA/12-AP CON TABELLA | AG41: 500 | AI41: 250 | AL41: CF-31-H | AM41: 1" ½ X 2" ½
B42: C1 | C42: 29 | G42: C1 | H42: 28 | L42: 40 | M42: 655 | N42: 25 | P42: II° APPARECCHIATURA | Q42: =VLOOKUP(C$17,L41:N46,2,FALSE) -> 2200 | R42: =VLOOKUP(C$17,L41:N46,3,FALSE) -> 25 | W42: FL/SR | Z42: =IF(W1=9,100,IF(W1=10,125,IF(W1=11,150,IF(W1=12,200,IF(W1=13,250,IF(W1=14,300,IF(W1=15,400))))))) -> FALSE | AA42: Celle usate per il DN nel calcolo della pressione di | AI42: 300
G43: P. M. | H43: 14 | I43: bar | L43: 50 | M43: 800 | N43: 25 | P43: III° APPARECCHIATURA | Q43: =VLOOKUP(C$18,L41:N46,2,FALSE) -> 1500 | R43: =VLOOKUP(C$18,L41:N46,3,FALSE) -> 25 | W43: B/249 | Z43: =IF(W2=9,100,IF(W2=10,125,IF(W2=11,150,IF(W2=12,200,IF(W2=13,250,IF(W2=14,300,IF(W2=15,400))))))) -> FALSE | AA43: monte minima nel calcolo delle 3 apparecchiature | AI43: 350
B44: CG | C44: =IF((C41+1)<=((C40+1)/2),T57,IF((C41+1)>((C40+1)/2),T58)) -> 481.3895616 | D44: necessario | G44: P. V. | H44: 13 | I44: bar | L44: 65 | M44: 1500 | N44: 25 | W44: A/149 | Z44: =IF(W3=9,100,IF(W3=10,125,IF(W3=11,150,IF(W3=12,200,IF(W3=13,250,IF(W3=14,300,IF(W3=15,400))))))) -> FALSE | AI44: 400
L45: 80 | M45: 2200 | N45: 25 | W45: CLX | AI45: 500
G46: Tipo gas | L46: 100 | M46: 2700 | N46: 25 | W46: 971 | Z46: =IF(V1=9,"MBN+",IF(V1=10,"BM5",IF(V1=11,"BM6X",IF(V1=12,"BM7",IF(V1=13,"RP/10",IF(V1=14,"RP/011",IF(V1=15,"RP/022",IF(V1=16,"RP/033",Z58)))))))) -> FALSE | AA46: Celle usate per il tipo apparecchiatura
A47: CALCOLO DELLA RUMOROSITA' | L47: 150 | W47: MBN | Z47: =IF(V2=9,"MBN+",IF(V2=10,"BM5",IF(V2=11,"BM6X",IF(V2=12,"BM7",IF(V2=13,"RP/10",IF(V2=14,"RP/011",IF(V2=15,"RP/022",IF(V2=16,"RP/033",Z59)))))))) -> BM5 | AA47: nel calcolo pres. monte minima delle 3 app. | AE47: METANO
G48: Portata | H48: =IF(AE53=1,J48,IF(AE53=2,J48*0.63,IF(AE53=3,J48*0.55,IF(AE53=4,J48*0.79,IF(AE53=5,J48*0.78))))) -> 7541.69118 | I48: Stmc/h | J48: =IF((H44+1)<=((H43+1)/2),T60,IF((H44)+1>((H43+1)/2),T61)) -> 7541.69118 | W48: MBN+ | Z48: =IF(V3=9,"MBN+",IF(V3=10,"BM5",IF(V3=11,"BM6X",IF(V3=12,"BM7",IF(V3=13,"RP/10",IF(V3=14,"RP/011",IF(V3=15,"RP/022",IF(V3=16,"RP/033",Z60)))))))) -> BM5 | AE48: PROPANO
K49: MN/MBN+ | L49: 25 | M49: 450 | N49: 28 | P49: I° APPARECCHIATURA | Q49: =VLOOKUP(C$16,L49:N54,2,FALSE) -> 450 | R49: =VLOOKUP(C$16,L49:N54,3,FALSE) -> 28 | W49: BM5 | AE49: BUTANO | AF49: Celle usate per las celta del tipo di gas
C50: AREA VALVOLA DI SICUREZZA | H50: PORTATA VALVOLA DI SICUREZZA | L50: 40 | M50: 900 | N50: 25 | P50: II° APPARECCHIATURA | Q50: =VLOOKUP(C$17,L49:N54,2,FALSE) -> 2700 | R50: =VLOOKUP(C$17,L49:N54,3,FALSE) -> 25 | W50: BM6X | Z50: =IF(V1=9,Q49,IF(V1=10,Q57,IF(V1=11,Q65,IF(V1=12,Q74,IF(V1=13,Q82,IF(V1=14,Q86,IF(V1=15,Q90,IF(V1=16,Q94,Z74)))))))) -> FALSE | AA50: Celle usate per il CG della pressione di | AE50: AZOTO | AF50: per il calcolo della portata
B51: P. T. | C51: 6.6 | D51: bar | G51: P. T. | H51: 6.6 | I51: bar | L51: 50 | M51: 1100 | N51: 25 | P51: III° APPARECCHIATURA | Q51: =VLOOKUP(C$18,L49:N54,2,FALSE) -> 1800 | R51: =VLOOKUP(C$18,L49:N54,3,FALSE) -> 25 | W51: BM7 | Z51: =IF(V2=9,Q50,IF(V2=10,Q58,IF(V2=11,Q66,IF(V2=12,Q75,IF(V2=13,Q83,IF(V2=14,Q87,IF(V2=15,Q91,IF(V2=16,Q95,Z75)))))))) -> 5408 | AA51: monte minima nel calcolo delle 3 apparec. | AE51: ARIA
B52: Portata | C52: 523 | D52: stmc/h | G52: Area efflusso | H52: 0.865 | I52: cmq | L52: 65 | M52: 1800 | N52: 25 | W52: RP/10 | Z52: =IF(V3=9,Q51,IF(V3=10,Q59,IF(V3=11,Q67,IF(V3=12,Q76,IF(V3=13,Q84,IF(V3=14,Q88,IF(V3=15,Q92,IF(V3=16,Q96,Z76)))))))) -> 3623
B53: K (coeff.) | C53: 0.931 | G53: K (coeff.) | H53: 0.931 | L53: 80 | M53: 2700 | N53: 25 | W53: RP/011 | AE53: 1
L54: 100 | M54: 4000 | N54: 25 | W54: RP/022 | Z54: =IF(V1=9,R49,IF(V1=10,R57,IF(V1=11,R65,IF(V1=12,R74,IF(V1=13,R82,IF(V1=14,R86,IF(V1=15,R90,IF(V1=16,R94,Z90)))))))) -> FALSE | AA54: Celle usate per il C1 della pressione di
B55: Area | C55: =(C52*0.702)/(0.9*C53*260*(C51*1.1+1))*SQRT((1*(273+15)/16.04)) -> 0.8645443505 | D55: cmq | G55: Portata | H55: =(H52*0.9*H53*260*(H51*1.1+1))/(0.702*SQRT(1*(273+15)/16.04)) -> 523.2756419 | I55: stmc/h | L55: 150 | W55: RP/033 | Z55: =IF(V2=9,R50,IF(V2=10,R58,IF(V2=11,R66,IF(V2=12,R75,IF(V2=13,R83,IF(V2=14,R87,IF(V2=15,R91,IF(V2=16,R95,Z91)))))))) -> 29.7 | AA55: monte minima nel calcolo delle 3 apparec.
W56: C | Z56: =IF(V3=9,R51,IF(V3=10,R59,IF(V3=11,R67,IF(V3=12,R76,IF(V3=13,R84,IF(V3=14,R88,IF(V3=15,R92,IF(V3=16,R96,Z92)))))))) -> 28
A57: CALCOLO DEL CIRCUITO TERMICO | E57: CALCOLO DEL VASO DI ESPANSIONE | K57: BM5 | L57: 25 | M57: 525 | N57: 29.2 | P57: I° APPARECCHIATURA | Q57: =VLOOKUP(C$16,L57:N64,2,FALSE) -> 525 | R57: =VLOOKUP(C$16,L57:N64,3,FALSE) -> 29.2 | T57: =C39/((C40+1)*0.52) -> 333.8675214 | U57: CALCOLO DEL CG | W57: CB
L58: 40 | M58: 1418 | N58: 28.1 | P58: II° APPARECCHIATURA | Q58: =VLOOKUP(C$17,L57:N64,2,FALSE) -> 5408 | R58: =VLOOKUP(C$17,L57:N64,3,FALSE) -> 29.7 | T58: =C39/(0.52*(C40+1)*(SIN(RADIANS((3417/C42)*SQRT(((C40+1)-(C41+1))/(C40+1)))))) -> 481.3895616 | U58: CALCOLO DEL CG | W58: CC | Z58: =IF(V1=17,"C",IF(V1=18,"CB",IF(V1=19,"CC",IF(V1=20,"CCB",IF(V1=21,"C/SR",IF(V1=22,"CB/SR",IF(V1=23,"CC/SR",IF(V1=24,"CCB/SR",Z62)))))))) -> FALSE | AA58: Celle usate per il tipo apparecchiatura
A59: Calcolo del salto entalpico | E59: Pot. termica | F59: 140000 | G59: Kcal/h | L59: 50 | M59: 2258 | N59: 26.4 | P59: III° APPARECCHIATURA | Q59: =VLOOKUP(C$18,L57:N64,2,FALSE) -> 3623 | R59: =VLOOKUP(C$18,L57:N64,3,FALSE) -> 28 | W59: CCB | Z59: =IF(V2=17,"C",IF(V2=18,"CB",IF(V2=19,"CC",IF(V2=20,"CCB",IF(V2=21,"C/SR",IF(V2=22,"CB/SR",IF(V2=23,"CC/SR",IF(V2=24,"CCB/SR",Z63)))))))) -> FALSE | AA59: nel calcolo pres. monte minima delle 3 app.
L60: 65 | M60: 3623 | N60: 28 | T60: =0.52*H41*(H43+1) -> 14430 | U60: CALCOLO PORTATA | W60: C/SR | Z60: =IF(V3=17,"C",IF(V3=18,"CB",IF(V3=19,"CC",IF(V3=20,"CCB",IF(V3=21,"C/SR",IF(V3=22,"CB/SR",IF(V3=23,"CC/SR",IF(V3=24,"CCB/SR",Z64)))))))) -> FALSE
A61: Pressione di preriscaldo | B61: 75 | C61: Bar | E61: Capacità | F61: =F59/1500 -> 93.33333333 | G61: litri | L61: 80 | M61: 5408 | N61: 29.7 | T61: =0.52*H41*(H43+1)*SIN(RADIANS((3417/H42)*SQRT(((H43+1)-(H44+1))/(H43+1)))) -> 7541.69118 | U61: CALCOLO PORTATA | W61: CB/SR
A62: Pressione di uscita | B62: 4 | C62: Bar | L62: 100 | M62: 8715 | N62: 26.5 | W62: CC/SR | Z62: =IF(V1=25,"C/SRS",IF(V1=26,"CB/SRS",IF(V1=27,"CC/SRS",IF(V1=28,"CCB/SRS",IF(V1=29,"C all.",IF(V1=30,"CB all.",IF(V1=31,"CC all.",IF(V1=32,"CCB all.",Z66)))))))) -> FALSE | AA62: Celle usate per il tipo apparecchiatura
A63: Temperatura di ingresso | B63: 5 | C63: °C | E63: CALCOLO IMPIANTO ODORIZZANTE | L63: 150 | M63: 18600 | N63: 28 | W63: CCB/SR | Z63: =IF(V2=25,"C/SRS",IF(V2=26,"CB/SRS",IF(V2=27,"CC/SRS",IF(V2=28,"CCB/SRS",IF(V2=29,"C all.",IF(V2=30,"CB all.",IF(V2=31,"CC all.",IF(V2=32,"CCB all.",Z67)))))))) -> FALSE | AA63: nel calcolo pres. monte minima delle 3 app.
A64: Temperatura di uscita | B64: 10 | C64: °C | W64: C/SRS | Z64: =IF(V3=25,"C/SRS",IF(V3=26,"CB/SRS",IF(V3=27,"CC/SRS",IF(V3=28,"CCB/SRS",IF(V3=29,"C all.",IF(V3=30,"CB all.",IF(V3=31,"CC all.",IF(V3=32,"CCB all.",Z68)))))))) -> FALSE
E65: Portata (Qero) | F65: =D12/1.25 -> 2400 | G65: Stm3/h | K65: BM6 | L65: 150 | M65: 20250 | N65: 18 | P65: I° APPARECCHIATURA | Q65: =VLOOKUP(C$16,L65:N70,2,FALSE) ->  | R65: =VLOOKUP(C$16,L65:N70,3,FALSE) ->  | W65: CB/SRS
A66: h | B66: =(0.874*(B61-B62)+0.00123*(B61^2-B62^2)-0.00005*(B61^3-B62^3)+0.0000004*(B61^4-B62^4)-1.554*(B63-B64)-0.00381*((B61*B63)-(B62*B64))-0.0000376*((B61^2*B63)-(B62^2*B64)))/3 -> 21.98694453 | C66: Kcal/Kg | L66: 200 | M66: 36000 | N66: 18 | P66: II° APPARECCHIATURA | Q66: =VLOOKUP(C$17,L65:N70,2,FALSE) ->  | R66: =VLOOKUP(C$17,L65:N70,3,FALSE) ->  | W66: CC/SRS | Z66: =IF(V1=33,"CBS",IF(V1=34,"CCS",IF(V1=35,"CCBS",IF(V1=36,"CBS/SR",IF(V1=37,"CCS/SR",IF(V1=38,"CCBS/SR",IF(V1=39,"CBS/SRS",IF(V1=40,"CCS/SRS",Z70)))))))) -> FALSE | AA66: Celle usate per il tipo apparecchiatura
E67: Capacità | F67: =F65/100 -> 24 | G67: litri | L67: 250 | M67: 55800 | N67: 18 | P67: III° APPARECCHIATURA | Q67: =VLOOKUP(C$18,L65:N70,2,FALSE) ->  | R67: =VLOOKUP(C$18,L65:N70,3,FALSE) ->  | W67: CCB/SRS | Z67: =IF(V2=33,"CBS",IF(V2=34,"CCS",IF(V2=35,"CCBS",IF(V2=36,"CBS/SR",IF(V2=37,"CCS/SR",IF(V2=38,"CCBS/SR",IF(V2=39,"CBS/SRS",IF(V2=40,"CCS/SRS",Z71)))))))) -> FALSE | AA67: nel calcolo pres. monte minima delle 3 app.
A68: Calcolo potenzialità scambiatore | L68: 300 | M68: 81000 | N68: 18 | W68: C all. | Z68: =IF(V3=33,"CBS",IF(V3=34,"CCS",IF(V3=35,"CCBS",IF(V3=36,"CBS/SR",IF(V3=37,"CCS/SR",IF(V3=38,"CCBS/SR",IF(V3=39,"CBS/SRS",IF(V3=40,"CCS/SRS",Z72)))))))) -> FALSE
F69: Valori da inserire | L69: 400 | M69: 144000 | N69: 18 | W69: CB all.
A70: Q Gas | B70: 8000 | C70: Stmc/h | W70: CC all. | Z70: =IF(V1=41,"CCBS/SRS",IF(V1=42,"CBS all.",IF(V1=43,"CCS all.",IF(V1=44,"CCBS all.")))) -> FALSE | AA70: Celle usate per il tipo apparecchiatura
F71: Valori ottenuti | W71: CCB all. | Z71: =IF(V2=41,"CCBS/SRS",IF(V2=42,"CBS all.",IF(V2=43,"CCS all.",IF(V2=44,"CCBS all.")))) -> FALSE | AA71: nel calcolo pres. monte minima delle 3 app.
A72: C | B72: =0.78*B66*B70 -> 137198.5339 | C72: Kcal/h | W72: CBS | Z72: =IF(V3=41,"CCBS/SRS",IF(V3=42,"CBS all.",IF(V3=43,"CCS all.",IF(V3=44,"CCBS all.")))) -> FALSE
W73: CCS
A74: Calcolo potenzialità caldaia | E74: CALCOLO DEL MODULO POMPE | J74: 12 | K74: BM7 | L74: 1" ½" | M74: 170 | N74: 29 | P74: I° APPARECCHIATURA | Q74: =VLOOKUP(C$16,L74:N78,2,FALSE) ->  | R74: =VLOOKUP(C$16,L74:N78,3,FALSE) ->  | W74: CCBS | Z74: =IF(V1=17,Q98,IF(V1=18,Q102,IF(V1=19,Q106,IF(V1=20,Q110,IF(V1=21,Q114,IF(V1=22,Q118,IF(V1=23,Q122,IF(V1=24,Q126,Z78)))))))) -> FALSE | AA74: Celle usate per il CG della pressione di
L75: 2" | M75: 500 | N75: 29 | P75: II° APPARECCHIATURA | Q75: =VLOOKUP(C$17,L74:N78,2,FALSE) ->  | R75: =VLOOKUP(C$17,L74:N78,3,FALSE) ->  | W75: CBS/SR | Z75: =IF(V2=17,Q99,IF(V2=18,Q103,IF(V2=19,Q107,IF(V2=20,Q111,IF(V2=21,Q115,IF(V2=22,Q119,IF(V2=23,Q123,IF(V2=24,Q127,Z79)))))))) -> FALSE | AA75: monte minima nel calcolo delle 3 apparec.
A76: Q Gas | B76: =B70 -> 8000 | C76: Stmc/h | E76: Pot.caldaia | F76: =B78 -> 151270.1784 | G76: Kcal/h | L76: 2"F | M76: 650 | N76: 29 | P76: III° APPARECCHIATURA | Q76: =VLOOKUP(C$18,L74:N78,2,FALSE) ->  | R76: =VLOOKUP(C$18,L74:N78,3,FALSE) ->  | W76: CCS/SR | Z76: =IF(V3=17,Q100,IF(V3=18,Q104,IF(V3=19,Q108,IF(V3=20,Q112,IF(V3=21,Q116,IF(V3=22,Q120,IF(V3=23,Q124,IF(V3=24,Q128,Z80)))))))) -> FALSE
L77: 40 | M77: 170 | N77: 29 | W77: CCBS/SR
A78: B | B78: =0.86*B66*B76 -> 151270.1784 | C78: Kcal/h | E78: Necessari | F78: =F76/10000 -> 15.12701784 | G78: metri cubi | L78: 50 | M78: 650 | N78: 29 | W78: CBS/SRS | Z78: =IF(V1=25,Q130,IF(V1=26,Q134,IF(V1=27,Q138,IF(V1=28,Q142,IF(V1=29,Q146,IF(V1=30,Q150,IF(V1=31,Q154,IF(V1=32,Q158,Z82)))))))) -> FALSE | AA78: Celle usate per il CG della pressione di
W79: CCS/SRS | Z79: =IF(V2=25,Q131,IF(V2=26,Q135,IF(V2=27,Q139,IF(V2=28,Q143,IF(V2=29,Q147,IF(V2=30,Q151,IF(V2=31,Q155,IF(V2=32,Q159,Z83)))))))) -> FALSE | AA79: monte minima nel calcolo delle 3 apparec.
A80: Calcolo DN valvola a saracinesca | E80: CALCOLO VALVOLA LIMITATRICE | W80: CCBS/SRS | Z80: =IF(V3=25,Q132,IF(V3=26,Q136,IF(V3=27,Q140,IF(V3=28,Q144,IF(V3=29,Q148,IF(V3=30,Q152,IF(V3=31,Q156,IF(V3=32,Q160,Z84)))))))) -> FALSE
W81: CBS all.
A82: Velocità | B82: 0.75 | C82: m/s | E82: P. M. | F82: 5 | G82: bar | J82: 13 | K82: RP/10 | L82: 20 | M82: 70 | N82: 31 | P82: I° APPARECCHIATURA | Q82: =VLOOKUP(C$16,L82:N82,2,FALSE) ->  | R82: =VLOOKUP(C$16,L82:N82,3,FALSE) ->  | W82: CCS all. | Z82: =IF(V1=33,Q162,IF(V1=34,Q166,IF(V1=35,Q170,IF(V1=36,Q174,IF(V1=37,Q178,IF(V1=38,Q182,IF(V1=39,Q186,IF(V1=40,Q190,Z86)))))))) -> FALSE | AA82: Celle usate per il CG della pressione di
A83: Q Gas | B83: =B98 -> 13719.85339 | C83: Lt/h | E83: P. V. | F83: 4.8 | G83: bar | P83: II° APPARECCHIATURA | Q83: =VLOOKUP(C$17,L82:N82,2,FALSE) ->  | R83: =VLOOKUP(C$17,L82:N82,3,FALSE) ->  | W83: CCBS all. | Z83: =IF(V2=33,Q163,IF(V2=34,Q167,IF(V2=35,Q171,IF(V2=36,Q175,IF(V2=37,Q179,IF(V2=38,Q183,IF(V2=39,Q187,IF(V2=40,Q191,Z87)))))))) -> FALSE | AA83: monte minima nel calcolo delle 3 apparec.
E84: DN | F84: =IF(AO1=1,25,IF(AO1=2,50,IF(AO1=3,80,IF(AO1=4,100,IF(AO1=5,150,IF(AO1=6,200,IF(AO1=7,250,IF(AO1=8,300)))))))) -> 200 | P84: III° APPARECCHIATURA | Q84: =VLOOKUP(C$18,L82:N82,2,FALSE) ->  | R84: =VLOOKUP(C$18,L82:N82,3,FALSE) ->  | Z84: =IF(V3=33,Q164,IF(V3=34,Q168,IF(V3=35,Q172,IF(V3=36,Q176,IF(V3=37,Q180,IF(V3=38,Q184,IF(V3=39,Q188,IF(V3=40,Q192,Z88)))))))) -> FALSE
A85: DN di calcolo valvola saracinesca | B85: =SQRT((1/B82)*(B83/3.6)*(1/0.95)) -> 73.13597416 | C85: mm | E85: CG | F85: =IF(AO1=1,600,IF(AO1=2,2500,IF(AO1=3,4998,IF(AO1=4,8010,IF(AO1=5,16700,IF(AO1=6,19215,IF(AO1=7,32500,IF(AO1=8,37795)))))))) -> 19215
A86: DN VALVOLA A SARACINESCA | B86: =IF(B85<40,40,IF(B85<50,50,IF(B85<65,65,IF(B85<80,80,IF(B85<100,100,IF(B85<125,125,IF(B85<150,150,IF(B85<200,200,B87)))))))) -> 80 | C86: mm | E86: C1 | F86: 31 | J86: 14 | K86: RP/011 | L86: 25 | M86: 97 | N86: 25 | P86: I° APPARECCHIATURA | Q86: =VLOOKUP(C$16,L86:N86,2,FALSE) -> 97 | R86: =VLOOKUP(C$16,L86:N86,3,FALSE) -> 25 | Z86: =IF(V1=41,Q194,IF(V1=42,Q198,IF(V1=43,Q202,IF(V1=44,Q206)))) -> FALSE | AA86: Celle usate per il CG della pressione di
B87: =IF(B85<250,250) -> 250 | P87: II° APPARECCHIATURA | Q87: =VLOOKUP(C$17,L86:N86,2,FALSE) ->  | R87: =VLOOKUP(C$17,L86:N86,3,FALSE) ->  | Z87: =IF(V2=41,Q195,IF(V2=42,Q199,IF(V2=43,Q203,IF(V2=44,Q207)))) -> FALSE | AA87: monte minima nel calcolo delle 3 apparec.
A88: Calcolo velocità circuito termico | E88: Portata | F88: =IF(((F82+1)/2)>=(F83+1),(0.52*F85*(F82+1)),TRUNC((0.52*F85*(F82+1))*SIN(0.01745329252*(3417/F86)*SQRT(((F82+1)-(F83+1))/(F82+1)))+0.5)) -> 20627 | G88: Stmc/h | P88: III° APPARECCHIATURA | Q88: =VLOOKUP(C$18,L86:N86,2,FALSE) ->  | R88: =VLOOKUP(C$18,L86:N86,3,FALSE) ->  | Z88: =IF(V3=41,Q196,IF(V3=42,Q200,IF(V3=43,Q204,IF(V3=44,Q208)))) -> FALSE
A90: ACQUA | J90: 15 | K90: RP/022 | L90: 32 | M90: 235 | N90: 27 | P90: I° APPARECCHIATURA | Q90: =VLOOKUP(C$16,L90:N90,2,FALSE) ->  | R90: =VLOOKUP(C$16,L90:N90,3,FALSE) ->  | Z90: =IF(V1=17,R98,IF(V1=18,R102,IF(V1=19,R106,IF(V1=20,R110,IF(V1=21,R114,IF(V1=22,R118,IF(V1=23,R122,IF(V1=24,R126,Z94)))))))) -> FALSE | AA90: Celle usate per il C1 della pressione di
A91: Temperatura ingresso | B91: 80 | C91: °C | P91: II° APPARECCHIATURA | Q91: =VLOOKUP(C$17,L90:N90,2,FALSE) ->  | R91: =VLOOKUP(C$17,L90:N95,3,FALSE) ->  | Z91: =IF(V2=17,R99,IF(V2=18,R103,IF(V2=19,R107,IF(V2=20,R111,IF(V2=21,R115,IF(V2=22,R119,IF(V2=23,R123,IF(V2=24,R127,Z95)))))))) -> FALSE | AA91: monte minima nel calcolo delle 3 apparec.
A92: Temperatura uscita | B92: 70 | C92: °C | P92: III° APPARECCHIATURA | Q92: =VLOOKUP(C$18,L90:N90,2,FALSE) ->  | R92: =VLOOKUP(C$18,L90:N90,3,FALSE) ->  | Z92: =IF(V3=17,R100,IF(V3=18,R104,IF(V3=19,R108,IF(V3=20,R112,IF(V3=21,R116,IF(V3=22,R120,IF(V3=23,R124,IF(V3=24,R128,Z96)))))))) -> FALSE
A93: Delta T | B93: =(B91-B92) -> 10 | E93: CALCOLO DELLA VALVOLA TERMOREGOLATRICE
J94: 16 | K94: RP/033 | L94: 50 | M94: 360 | N94: 27 | P94: I° APPARECCHIATURA | Q94: =VLOOKUP(C$16,L94:N94,2,FALSE) ->  | R94: =VLOOKUP(C$16,L94:N94,3,FALSE) ->  | Z94: =IF(V1=25,R130,IF(V1=26,R134,IF(V1=27,R138,IF(V1=28,R142,IF(V1=29,R146,IF(V1=30,R150,IF(V1=31,R154,IF(V1=32,R158,Z98)))))))) -> FALSE | AA94: Celle usate per il C1 della pressione di
A95: Potenzialità scambiatore | B95: =B72 -> 137198.5339 | E95: Q | F95: =B98 -> 13719.85339 | G95: Lt/h | P95: II° APPARECCHIATURA | Q95: =VLOOKUP(C$17,L94:N94,2,FALSE) ->  | R95: =VLOOKUP(C$17,L94:N94,3,FALSE) ->  | Z95: =IF(V2=25,R131,IF(V2=26,R135,IF(V2=27,R139,IF(V2=28,R143,IF(V2=29,R147,IF(V2=30,R151,IF(V2=31,R155,IF(V2=32,R159,Z99)))))))) -> FALSE | AA95: monte minima nel calcolo delle 3 apparec.
A96: DN Circuito | B96: 80 | C96: mm | E96: Qminuto | F96: =F95/60 -> 228.6642231 | G96: Lt/minuto | P96: III° APPARECCHIATURA | Q96: =VLOOKUP(C$18,L94:N94,2,FALSE) ->  | R96: =VLOOKUP(C$18,L94:N94,3,FALSE) ->  | Z96: =IF(V3=25,R132,IF(V3=26,R136,IF(V3=27,R140,IF(V3=28,R144,IF(V3=29,R148,IF(V3=30,R152,IF(V3=31,R156,IF(V3=32,R160,Z100)))))))) -> FALSE
E97: d | F97: 1 | G97: Kg/dmc
A98: Q | B98: =B95/B93 -> 13719.85339 | C98: Lt/h | E98: Delta P | F98: 0.13 | G98: Bar | J98: 17 | K98: C | L98: 25 | M98: 550 | N98: 30 | P98: I° APPARECCHIATURA | Q98: =VLOOKUP(C$16,L98:N100,2,FALSE) -> 550 | R98: =VLOOKUP(C$16,L98:N100,3,FALSE) -> 30 | Z98: =IF(V1=33,R162,IF(V1=34,R166,IF(V1=35,R170,IF(V1=36,R174,IF(V1=37,R178,IF(V1=38,R182,IF(V1=39,R186,IF(V1=40,R190,Z102)))))))) -> FALSE | AA98: Celle usate per il C1 della pressione di
L99: 50 | M99: 2250 | N99: 29 | P99: II° APPARECCHIATURA | Q99: =VLOOKUP(C$17,L98:N100,2,FALSE) -> 5100 | R99: =VLOOKUP(C$17,L98:N100,3,FALSE) -> 29 | Z99: =IF(V2=33,R163,IF(V2=34,R167,IF(V2=35,R171,IF(V2=36,R175,IF(V2=37,R179,IF(V2=38,R183,IF(V2=39,R187,IF(V2=40,R191,Z103)))))))) -> FALSE | AA99: monte minima nel calcolo delle 3 apparec.
A100: Velocità circolo | B100: =(1/B96^2)*(B98/3.6)*(1/0.95) -> 0.6268207871 | C100: m/s | E100: Kv | F100: =F96*0.058*SQRT((F97/F98)) -> 36.78362594 | L100: 80 | M100: 5100 | N100: 29 | P100: III° APPARECCHIATURA | Q100: =VLOOKUP(C$18,L98:N100,2,FALSE) ->  | R100: =VLOOKUP(C$18,L98:N100,3,FALSE) ->  | Z100: =IF(V3=33,R164,IF(V3=34,R168,IF(V3=35,R172,IF(V3=36,R176,IF(V3=37,R180,IF(V3=38,R184,IF(V3=39,R188,IF(V3=40,R192,Z104)))))))) -> FALSE
A101: Velocità VS | B101: =(1/B86^2)*(B98/3.6)*(1/0.95) -> 0.6268207871 | C101: m/s | E101: TIPO / DN | F101: =IF(F100<2.8,"KA/15",IF(F100<4.5,"KA/20",IF(F100<9.5,"KA/25",IF(F100<16,"KA/32",IF(F100<23,"KA/40",IF(F100<33,"KA/50",IF(F100<50,"M2F/65",F102))))))) -> M2F/65
F102: =IF(F100<80,"M2F/80",IF(F100<125,"M2F/100",IF(F100<215,"M2F/125",IF(F100<310,"M2F/150")))) -> M2F/80 | J102: 18 | K102: CB | L102: 25 | M102: 510 | N102: 30.5 | P102: I° APPARECCHIATURA | Q102: =VLOOKUP(C$16,L102:N104,2,FALSE) -> 510 | R102: =VLOOKUP(C$16,L102:N104,3,FALSE) -> 30.5 | Z102: =IF(V1=41,R194,IF(V1=42,R198,IF(V1=43,R202,IF(V1=44,R206)))) -> FALSE | AA102: Celle usate per il C1 della pressione di
L103: 50 | M103: 2080 | N103: 30 | P103: II° APPARECCHIATURA | Q103: =VLOOKUP(C$17,L102:N104,2,FALSE) -> 4800 | R103: =VLOOKUP(C$17,L102:N104,3,FALSE) -> 30 | Z103: =IF(V2=41,R195,IF(V2=42,R199,IF(V2=43,R203,IF(V2=44,R207)))) -> FALSE | AA103: monte minima nel calcolo delle 3 apparec.
L104: 80 | M104: 4800 | N104: 30 | P104: III° APPARECCHIATURA | Q104: =VLOOKUP(C$18,L102:N104,2,FALSE) ->  | R104: =VLOOKUP(C$18,L102:N104,3,FALSE) ->  | Z104: =IF(V3=41,R196,IF(V3=42,R200,IF(V3=43,R204,IF(V3=44,R208)))) -> FALSE
J106: 19 | K106: CC | L106: 25 | M106: 510 | N106: 30.5 | P106: I° APPARECCHIATURA | Q106: =VLOOKUP(C$16,L106:N108,2,FALSE) -> 510 | R106: =VLOOKUP(C$16,L106:N108,3,FALSE) -> 30.5
L107: 50 | M107: 2080 | N107: 30 | P107: II° APPARECCHIATURA | Q107: =VLOOKUP(C$17,L106:N108,2,FALSE) -> 4800 | R107: =VLOOKUP(C$17,L106:N108,3,FALSE) -> 30
L108: 80 | M108: 4800 | N108: 30 | P108: III° APPARECCHIATURA | Q108: =VLOOKUP(C$18,L106:N108,2,FALSE) ->  | R108: =VLOOKUP(C$18,L106:N108,3,FALSE) -> 
J110: 20 | K110: CCB | L110: 25 | M110: 500 | N110: 31 | P110: I° APPARECCHIATURA | Q110: =VLOOKUP(C$16,L110:N112,2,FALSE) -> 500 | R110: =VLOOKUP(C$16,L110:N112,3,FALSE) -> 31
L111: 50 | M111: 2050 | N111: 30.5 | P111: II° APPARECCHIATURA | Q111: =VLOOKUP(C$17,L110:N112,2,FALSE) -> 4700 | R111: =VLOOKUP(C$17,L110:N112,3,FALSE) -> 31
L112: 80 | M112: 4700 | N112: 31 | P112: III° APPARECCHIATURA | Q112: =VLOOKUP(C$18,L110:N112,2,FALSE) ->  | R112: =VLOOKUP(C$18,L110:N112,3,FALSE) -> 
J114: 21 | K114: C/SR | L114: 25 | M114: 540 | N114: 30 | P114: I° APPARECCHIATURA | Q114: =VLOOKUP(C$16,L114:N116,2,FALSE) -> 540 | R114: =VLOOKUP(C$16,L114:N116,3,FALSE) -> 30
L115: 50 | M115: 2200 | N115: 29 | P115: II° APPARECCHIATURA | Q115: =VLOOKUP(C$17,L114:N116,2,FALSE) -> 5000 | R115: =VLOOKUP(C$17,L114:N116,3,FALSE) -> 29
L116: 80 | M116: 5000 | N116: 29 | P116: III° APPARECCHIATURA | Q116: =VLOOKUP(C$18,L114:N116,2,FALSE) ->  | R116: =VLOOKUP(C$18,L114:N116,3,FALSE) -> 
J118: 22 | K118: CB/SR | L118: 25 | M118: 500 | N118: 30.5 | P118: I° APPARECCHIATURA | Q118: =VLOOKUP(C$16,L118:N120,2,FALSE) -> 500 | R118: =VLOOKUP(C$16,L118:N120,3,FALSE) -> 30.5
L119: 50 | M119: 2030 | N119: 30 | P119: II° APPARECCHIATURA | Q119: =VLOOKUP(C$17,L118:N120,2,FALSE) -> 4700 | R119: =VLOOKUP(C$17,L118:N120,3,FALSE) -> 30
L120: 80 | M120: 4700 | N120: 30 | P120: III° APPARECCHIATURA | Q120: =VLOOKUP(C$18,L118:N120,2,FALSE) ->  | R120: =VLOOKUP(C$18,L118:N120,3,FALSE) -> 
J122: 23 | K122: CC/SR | L122: 25 | M122: 500 | N122: 30.5 | P122: I° APPARECCHIATURA | Q122: =VLOOKUP(C$16,L122:N124,2,FALSE) -> 500 | R122: =VLOOKUP(C$16,L122:N124,3,FALSE) -> 30.5
L123: 50 | M123: 2030 | N123: 30 | P123: II° APPARECCHIATURA | Q123: =VLOOKUP(C$17,L122:N124,2,FALSE) -> 4700 | R123: =VLOOKUP(C$17,L122:N124,3,FALSE) -> 30
L124: 80 | M124: 4700 | N124: 30 | P124: III° APPARECCHIATURA | Q124: =VLOOKUP(C$18,L122:N124,2,FALSE) ->  | R124: =VLOOKUP(C$18,L122:N124,3,FALSE) -> 
J126: 24 | K126: CCB/SR | L126: 25 | M126: 490 | N126: 31 | P126: I° APPARECCHIATURA | Q126: =VLOOKUP(C$16,L126:N128,2,FALSE) -> 490 | R126: =VLOOKUP(C$16,L126:N128,3,FALSE) -> 31
L127: 50 | M127: 2000 | N127: 31 | P127: II° APPARECCHIATURA | Q127: =VLOOKUP(C$17,L126:N128,2,FALSE) -> 4600 | R127: =VLOOKUP(C$17,L126:N128,3,FALSE) -> 31
L128: 80 | M128: 4600 | N128: 31 | P128: III° APPARECCHIATURA | Q128: =VLOOKUP(C$18,L126:N128,2,FALSE) ->  | R128: =VLOOKUP(C$18,L126:N128,3,FALSE) -> 
J130: 25 | K130: C/SRS | L130: 25 | M130: 500 | N130: 33 | P130: I° APPARECCHIATURA | Q130: =VLOOKUP(C$16,L130:N132,2,FALSE) -> 500 | R130: =VLOOKUP(C$16,L130:N132,3,FALSE) -> 33
L131: 50 | M131: 1900 | N131: 32 | P131: II° APPARECCHIATURA | Q131: =VLOOKUP(C$17,L130:N132,2,FALSE) -> 4200 | R131: =VLOOKUP(C$17,L130:N132,3,FALSE) -> 32
L132: 80 | M132: 4200 | N132: 32 | P132: III° APPARECCHIATURA | Q132: =VLOOKUP(C$18,L130:N132,2,FALSE) ->  | R132: =VLOOKUP(C$18,L130:N132,3,FALSE) -> 
J134: 26 | K134: CB/SRS | L134: 25 | M134: 460 | N134: 33.5 | P134: I° APPARECCHIATURA | Q134: =VLOOKUP(C$16,L134:N136,2,FALSE) -> 460 | R134: =VLOOKUP(C$16,L134:N136,3,FALSE) -> 33.5
L135: 50 | M135: 1780 | N135: 33 | P135: II° APPARECCHIATURA | Q135: =VLOOKUP(C$17,L134:N136,2,FALSE) -> 4000 | R135: =VLOOKUP(C$17,L134:N136,3,FALSE) -> 33
L136: 80 | M136: 4000 | N136: 33 | P136: III° APPARECCHIATURA | Q136: =VLOOKUP(C$18,L134:N136,2,FALSE) ->  | R136: =VLOOKUP(C$18,L134:N136,3,FALSE) -> 
J138: 27 | K138: CC/SRS | L138: 25 | M138: 460 | N138: 33.5 | P138: I° APPARECCHIATURA | Q138: =VLOOKUP(C$16,L138:N140,2,FALSE) -> 460 | R138: =VLOOKUP(C$16,L138:N140,3,FALSE) -> 33.5
L139: 50 | M139: 1780 | N139: 33 | P139: II° APPARECCHIATURA | Q139: =VLOOKUP(C$17,L138:N140,2,FALSE) -> 4000 | R139: =VLOOKUP(C$17,L138:N140,3,FALSE) -> 33
L140: 80 | M140: 4000 | N140: 33 | P140: III° APPARECCHIATURA | Q140: =VLOOKUP(C$18,L138:N140,2,FALSE) ->  | R140: =VLOOKUP(C$18,L138:N140,3,FALSE) -> 
J142: 28 | K142: CCB/SRS | L142: 25 | M142: 450 | N142: 34 | P142: I° APPARECCHIATURA | Q142: =VLOOKUP(C$16,L142:N144,2,FALSE) -> 450 | R142: =VLOOKUP(C$16,L142:N144,3,FALSE) -> 34
L143: 50 | M143: 1750 | N143: 33.5 | P143: II° APPARECCHIATURA | Q143: =VLOOKUP(C$17,L142:N144,2,FALSE) -> 3900 | R143: =VLOOKUP(C$17,L142:N144,3,FALSE) -> 34
L144: 80 | M144: 3900 | N144: 34 | P144: III° APPARECCHIATURA | Q144: =VLOOKUP(C$18,L142:N144,2,FALSE) ->  | R144: =VLOOKUP(C$18,L142:N144,3,FALSE) -> 
J146: 29 | K146: C all. | L146: 25 | M146: 580 | N146: 30 | P146: I° APPARECCHIATURA | Q146: =VLOOKUP(C$16,L146:N148,2,FALSE) -> 580 | R146: =VLOOKUP(C$16,L146:N148,3,FALSE) -> 30
L147: 50 | M147: 2300 | N147: 29 | P147: II° APPARECCHIATURA | Q147: =VLOOKUP(C$17,L146:N148,2,FALSE) -> 5200 | R147: =VLOOKUP(C$17,L146:N148,3,FALSE) -> 29
L148: 80 | M148: 5200 | N148: 29 | P148: III° APPARECCHIATURA | Q148: =VLOOKUP(C$18,L146:N148,2,FALSE) ->  | R148: =VLOOKUP(C$18,L146:N148,3,FALSE) -> 
J150: 30 | K150: CB all. | L150: 25 | M150: 550 | N150: 31 | P150: I° APPARECCHIATURA | Q150: =VLOOKUP(C$16,L150:N152,2,FALSE) -> 550 | R150: =VLOOKUP(C$16,L150:N152,3,FALSE) -> 31
L151: 50 | M151: 2100 | N151: 30 | P151: II° APPARECCHIATURA | Q151: =VLOOKUP(C$17,L150:N152,2,FALSE) -> 4850 | R151: =VLOOKUP(C$17,L150:N152,3,FALSE) -> 30
L152: 80 | M152: 4850 | N152: 30 | P152: III° APPARECCHIATURA | Q152: =VLOOKUP(C$18,L150:N152,2,FALSE) ->  | R152: =VLOOKUP(C$18,L150:N152,3,FALSE) -> 
J154: 31 | K154: CC all. | L154: 25 | M154: 550 | N154: 31 | P154: I° APPARECCHIATURA | Q154: =VLOOKUP(C$16,L154:N156,2,FALSE) -> 550 | R154: =VLOOKUP(C$16,L154:N156,3,FALSE) -> 31
L155: 50 | M155: 2100 | N155: 30.5 | P155: II° APPARECCHIATURA | Q155: =VLOOKUP(C$17,L154:N156,2,FALSE) -> 4850 | R155: =VLOOKUP(C$17,L154:N156,3,FALSE) -> 31
L156: 80 | M156: 4850 | N156: 31 | P156: III° APPARECCHIATURA | Q156: =VLOOKUP(C$18,L154:N156,2,FALSE) ->  | R156: =VLOOKUP(C$18,L154:N156,3,FALSE) -> 
J158: 32 | K158: CCB all. | L158: 25 | M158: 540 | N158: 31 | P158: I° APPARECCHIATURA | Q158: =VLOOKUP(C$16,L158:N160,2,FALSE) -> 540 | R158: =VLOOKUP(C$16,L158:N160,3,FALSE) -> 31
L159: 50 | M159: 2050 | N159: 30.5 | P159: II° APPARECCHIATURA | Q159: =VLOOKUP(C$17,L158:N160,2,FALSE) -> 4800 | R159: =VLOOKUP(C$17,L158:N160,3,FALSE) -> 31
L160: 80 | M160: 4800 | N160: 31 | P160: III° APPARECCHIATURA | Q160: =VLOOKUP(C$18,L158:N160,2,FALSE) ->  | R160: =VLOOKUP(C$18,L158:N160,3,FALSE) -> 
J162: 33 | K162: CBS | L162: 25 | M162: 450 | N162: 30 | P162: I° APPARECCHIATURA | Q162: =VLOOKUP(C$16,L162:N164,2,FALSE) -> 450 | R162: =VLOOKUP(C$16,L162:N164,3,FALSE) -> 30
L163: 50 | M163: 1850 | N163: 30 | P163: II° APPARECCHIATURA | Q163: =VLOOKUP(C$17,L162:N164,2,FALSE) -> 4300 | R163: =VLOOKUP(C$17,L162:N164,3,FALSE) -> 30
L164: 80 | M164: 4300 | N164: 30 | P164: III° APPARECCHIATURA | Q164: =VLOOKUP(C$18,L162:N164,2,FALSE) ->  | R164: =VLOOKUP(C$18,L162:N164,3,FALSE) -> 
J166: 34 | K166: CCS | L166: 25 | M166: 450 | N166: 30 | P166: I° APPARECCHIATURA | Q166: =VLOOKUP(C$16,L166:N168,2,FALSE) -> 450 | R166: =VLOOKUP(C$16,L166:N168,3,FALSE) -> 30
L167: 50 | M167: 1850 | N167: 30 | P167: II° APPARECCHIATURA | Q167: =VLOOKUP(C$17,L166:N168,2,FALSE) -> 4300 | R167: =VLOOKUP(C$17,L166:N168,3,FALSE) -> 30
L168: 80 | M168: 4300 | N168: 30 | P168: III° APPARECCHIATURA | Q168: =VLOOKUP(C$18,L166:N168,2,FALSE) ->  | R168: =VLOOKUP(C$18,L166:N168,3,FALSE) -> 
J170: 35 | K170: CCBS | L170: 25 | M170: 440 | N170: 31 | P170: I° APPARECCHIATURA | Q170: =VLOOKUP(C$16,L170:N172,2,FALSE) -> 440 | R170: =VLOOKUP(C$16,L170:N172,3,FALSE) -> 31
L171: 50 | M171: 1800 | N171: 31 | P171: II° APPARECCHIATURA | Q171: =VLOOKUP(C$17,L170:N172,2,FALSE) -> 4200 | R171: =VLOOKUP(C$17,L170:N172,3,FALSE) -> 31
L172: 80 | M172: 4200 | N172: 31 | P172: III° APPARECCHIATURA | Q172: =VLOOKUP(C$18,L170:N172,2,FALSE) ->  | R172: =VLOOKUP(C$18,L170:N172,3,FALSE) -> 
J174: 36 | K174: CBS/SR | L174: 25 | M174: 440 | N174: 30 | P174: I° APPARECCHIATURA | Q174: =VLOOKUP(C$16,L174:N176,2,FALSE) -> 440 | R174: =VLOOKUP(C$16,L174:N176,3,FALSE) -> 30
L175: 50 | M175: 1800 | N175: 30 | P175: II° APPARECCHIATURA | Q175: =VLOOKUP(C$17,L174:N176,2,FALSE) -> 4200 | R175: =VLOOKUP(C$17,L174:N176,3,FALSE) -> 30
L176: 80 | M176: 4200 | N176: 30 | P176: III° APPARECCHIATURA | Q176: =VLOOKUP(C$18,L174:N176,2,FALSE) ->  | R176: =VLOOKUP(C$18,L174:N176,3,FALSE) -> 
J178: 37 | K178: CCS/SR | L178: 25 | M178: 440 | N178: 30 | P178: I° APPARECCHIATURA | Q178: =VLOOKUP(C$16,L178:N180,2,FALSE) -> 440 | R178: =VLOOKUP(C$16,L178:N180,3,FALSE) -> 30
L179: 50 | M179: 1800 | N179: 30 | P179: II° APPARECCHIATURA | Q179: =VLOOKUP(C$17,L178:N180,2,FALSE) -> 4200 | R179: =VLOOKUP(C$17,L178:N180,3,FALSE) -> 30
L180: 80 | M180: 4200 | N180: 30 | P180: III° APPARECCHIATURA | Q180: =VLOOKUP(C$18,L178:N180,2,FALSE) ->  | R180: =VLOOKUP(C$18,L178:N180,3,FALSE) -> 
J182: 38 | K182: CCBS/SR | L182: 25 | M182: 430 | N182: 31 | P182: I° APPARECCHIATURA | Q182: =VLOOKUP(C$16,L182:N184,2,FALSE) -> 430 | R182: =VLOOKUP(C$16,L182:N184,3,FALSE) -> 31
L183: 50 | M183: 1750 | N183: 31 | P183: II° APPARECCHIATURA | Q183: =VLOOKUP(C$17,L182:N184,2,FALSE) -> 4100 | R183: =VLOOKUP(C$17,L182:N184,3,FALSE) -> 31
L184: 80 | M184: 4100 | N184: 31 | P184: III° APPARECCHIATURA | Q184: =VLOOKUP(C$18,L182:N184,2,FALSE) ->  | R184: =VLOOKUP(C$18,L182:N184,3,FALSE) -> 
J186: 39 | K186: CBS/SRS | L186: 25 | M186: 400 | N186: 33 | P186: I° APPARECCHIATURA | Q186: =VLOOKUP(C$16,L186:N188,2,FALSE) -> 400 | R186: =VLOOKUP(C$16,L186:N188,3,FALSE) -> 33
L187: 50 | M187: 1650 | N187: 32 | P187: II° APPARECCHIATURA | Q187: =VLOOKUP(C$17,L186:N188,2,FALSE) -> 3500 | R187: =VLOOKUP(C$17,L186:N188,3,FALSE) -> 33
L188: 80 | M188: 3500 | N188: 33 | P188: III° APPARECCHIATURA | Q188: =VLOOKUP(C$18,L186:N188,2,FALSE) ->  | R188: =VLOOKUP(C$18,L186:N188,3,FALSE) -> 
J190: 40 | K190: CCS/SRS | L190: 25 | M190: 400 | N190: 33 | P190: I° APPARECCHIATURA | Q190: =VLOOKUP(C$16,L190:N192,2,FALSE) -> 400 | R190: =VLOOKUP(C$16,L190:N192,3,FALSE) -> 33
L191: 50 | M191: 1650 | N191: 32 | P191: II° APPARECCHIATURA | Q191: =VLOOKUP(C$17,L190:N192,2,FALSE) -> 3500 | R191: =VLOOKUP(C$17,L190:N192,3,FALSE) -> 33
L192: 80 | M192: 3500 | N192: 33 | P192: III° APPARECCHIATURA | Q192: =VLOOKUP(C$18,L190:N192,2,FALSE) ->  | R192: =VLOOKUP(C$18,L190:N192,3,FALSE) -> 
J194: 41 | K194: CCBS/SRS | L194: 25 | M194: 390 | N194: 34 | P194: I° APPARECCHIATURA | Q194: =VLOOKUP(C$16,L194:N196,2,FALSE) -> 390 | R194: =VLOOKUP(C$16,L194:N196,3,FALSE) -> 34
L195: 50 | M195: 1600 | N195: 33 | P195: II° APPARECCHIATURA | Q195: =VLOOKUP(C$17,L194:N196,2,FALSE) -> 3400 | R195: =VLOOKUP(C$17,L194:N196,3,FALSE) -> 34
L196: 80 | M196: 3400 | N196: 34 | P196: III° APPARECCHIATURA | Q196: =VLOOKUP(C$18,L194:N196,2,FALSE) ->  | R196: =VLOOKUP(C$18,L194:N196,3,FALSE) -> 
J198: 42 | K198: CBS all. | L198: 25 | M198: 475 | N198: 30 | P198: I° APPARECCHIATURA | Q198: =VLOOKUP(C$16,L198:N200,2,FALSE) -> 475 | R198: =VLOOKUP(C$16,L198:N200,3,FALSE) -> 30
L199: 50 | M199: 1900 | N199: 30 | P199: II° APPARECCHIATURA | Q199: =VLOOKUP(C$17,L198:N200,2,FALSE) -> 4400 | R199: =VLOOKUP(C$17,L198:N200,3,FALSE) -> 30
L200: 80 | M200: 4400 | N200: 30 | P200: III° APPARECCHIATURA | Q200: =VLOOKUP(C$18,L198:N200,2,FALSE) ->  | R200: =VLOOKUP(C$18,L198:N200,3,FALSE) -> 
J202: 43 | K202: CCS all. | L202: 25 | M202: 475 | N202: 30 | P202: I° APPARECCHIATURA | Q202: =VLOOKUP(C$16,L202:N204,2,FALSE) -> 475 | R202: =VLOOKUP(C$16,L202:N204,3,FALSE) -> 30
L203: 50 | M203: 1900 | N203: 30 | P203: II° APPARECCHIATURA | Q203: =VLOOKUP(C$17,L202:N204,2,FALSE) -> 4400 | R203: =VLOOKUP(C$17,L202:N204,3,FALSE) -> 30
L204: 80 | M204: 4400 | N204: 30 | P204: III° APPARECCHIATURA | Q204: =VLOOKUP(C$18,L202:N204,2,FALSE) ->  | R204: =VLOOKUP(C$18,L202:N204,3,FALSE) -> 
J206: 44 | K206: CCBS all. | L206: 25 | M206: 470 | N206: 31 | P206: I° APPARECCHIATURA | Q206: =VLOOKUP(C$16,L206:N208,2,FALSE) -> 470 | R206: =VLOOKUP(C$16,L206:N208,3,FALSE) -> 31
L207: 50 | M207: 1850 | N207: 31 | P207: II° APPARECCHIATURA | Q207: =VLOOKUP(C$17,L206:N208,2,FALSE) -> 4300 | R207: =VLOOKUP(C$17,L206:N208,3,FALSE) -> 31
L208: 80 | M208: 4300 | N208: 31 | P208: III° APPARECCHIATURA | Q208: =VLOOKUP(C$18,L206:N208,2,FALSE) ->  | R208: =VLOOKUP(C$18,L206:N208,3,FALSE) -> 

Sheet РЕД-1 (hidden)
A1: Таблица расходов фильтров РЕД
B3: DP | C3: 10 | D3: =IF(AND(V10>C3,V10<E3)=TRUE,V10,0) -> 0 | E3: 25 | F3: =IF(AND(V10>E3,V10<G3)=TRUE,V10,0) -> 0 | G3: 50 | H3: =IF(AND(V10>G3,V10<I3)=TRUE,V10,0) -> 0 | I3: 75 | J3: =IF(AND(V10>I3,V10<K3)=TRUE,V10,0) -> 0 | K3: 100 | L3: =IF(AND(V10>K3,V10<M3)=TRUE,V10,0) -> 0 | M3: 150 | N3: =IF(AND(V10>M3,V10<O3)=TRUE,V10,0) -> 0 | O3: 250 | P3: =IF(AND(V10>O3,V10<Q3)=TRUE,V10,0) -> 0 | Q3: 500
A4: PM
A6: 0.5 | C6: 75 | D6: =(E6-C6)/(E3-C3)*(D3-C3)+C6 -> 51.66666667 | E6: 110 | F6: =(G6-E6)/(G3-E3)*(F3-E3)+E6 -> 100 | G6: 120 | H6: =(I6-G6)/(I3-G3)*(H3-G3)+G6 -> 119.8 | I6: 120.1 | J6: =(K6-I6)/(K3-I3)*(J3-I3)+I6 -> 119.8 | K6: 120.2 | L6: =(M6-K6)/(M3-K3)*(L3-K3)+K6 -> 120 | M6: 120.3 | N6: =(O6-M6)/(O3-M3)*(N3-M3)+M6 -> 120.15 | O6: 120.4 | P6: =(Q6-O6)/(Q3-O3)*(P3-O3)+O6 -> 120.31 | Q6: 120.49 | S6: PM | T6: Q | U6: Qcal | V6: DPcal | W6: DP | X6: TIPO
A7: =IF(AND(S10>A6,S10<A8)=TRUE,S10,0) -> 0 | C7: =(C8-C6)/(A8-A6)*(A7-A6)+C6 -> 60 | D7: =(E7-C7)/(E3-C3)*(D3-C3)+C7 -> 46.66666667 | E7: =(E8-E6)/(A8-A6)*(A7-A6)+E6 -> 80 | F7: =(G7-E7)/(G3-E3)*(F3-E3)+E7 -> 90 | G7: =(G8-G6)/(A8-A6)*(A7-A6)+G6 -> 70 | H7: =(I7-G7)/(I3-G3)*(H3-G3)+G7 -> 69.8 | I7: =(I8-I6)/(A8-A6)*(A7-A6)+I6 -> 70.1 | J7: =(K7-I7)/(K3-I3)*(J3-I3)+I7 -> 69.8 | K7: =(K8-K6)/(A8-A6)*(A7-A6)+K6 -> 70.2 | L7: =(M7-K7)/(M3-K3)*(L3-K3)+K7 -> 70 | M7: =(M8-M6)/(A8-A6)*(A7-A6)+M6 -> 70.3 | N7: =(O7-M7)/(O3-M3)*(N3-M3)+M7 -> 70.15 | O7: =(O8-O6)/(A8-A6)*(A7-A6)+O6 -> 70.4 | P7: =(Q7-O7)/(Q3-O3)*(P3-O3)+O7 -> 70.31 | Q7: =(Q8-Q6)/(A8-A6)*(A7-A6)+Q6 -> 70.49
A8: 1 | C8: 90 | D8: =(E8-C8)/(E3-C3)*(D3-C3)+C8 -> 56.66666667 | E8: 140 | F8: =(G8-E8)/(G3-E3)*(F3-E3)+E8 -> 110 | G8: 170 | H8: =(I8-G8)/(I3-G3)*(H3-G3)+G8 -> 169.8 | I8: 170.1 | J8: =(K8-I8)/(K3-I3)*(J3-I3)+I8 -> 169.8 | K8: 170.2 | L8: =(M8-K8)/(M3-K3)*(L3-K3)+K8 -> 170 | M8: 170.3 | N8: =(O8-M8)/(O3-M3)*(N3-M3)+M8 -> 170.15 | O8: 170.4 | P8: =(Q8-O8)/(Q3-O3)*(P3-O3)+O8 -> 170.31 | Q8: 170.49 | T8: нм3/час | U8: нм3/час | V8: мбар | W8: мбар
A9: =IF(AND(S10>A8,S10<A10)=TRUE,S10,0) -> 0 | C9: =(C10-C8)/(A10-A8)*(A9-A8)+C8 -> 70 | D9: =(E9-C9)/(E3-C3)*(D3-C3)+C9 -> 43.33333333 | E9: =(E10-E8)/(A10-A8)*(A9-A8)+E8 -> 110 | F9: =(G9-E9)/(G3-E3)*(F3-E3)+E9 -> 130 | G9: =(G10-G8)/(A10-A8)*(A9-A8)+G8 -> 90 | H9: =(I9-G9)/(I3-G3)*(H3-G3)+G9 -> 89.8 | I9: =(I10-I8)/(A10-A8)*(A9-A8)+I8 -> 90.1 | J9: =(K9-I9)/(K3-I3)*(J3-I3)+I9 -> 89.8 | K9: =(K10-K8)/(A10-A8)*(A9-A8)+K8 -> 90.2 | L9: =(M9-K9)/(M3-K3)*(L3-K3)+K9 -> 90 | M9: =(M10-M8)/(A10-A8)*(A9-A8)+M8 -> 90.3 | N9: =(O9-M9)/(O3-M3)*(N3-M3)+M9 -> 90.15 | O9: =(O10-O8)/(A10-A8)*(A9-A8)+O8 -> 90.4 | P9: =(Q9-O9)/(Q3-O3)*(P3-O3)+O9 -> 90.31 | Q9: =(Q10-Q8)/(A10-A8)*(A9-A8)+Q8 -> 90.49
A10: 2 | C10: 110 | D10: =(E10-C10)/(E3-C3)*(D3-C3)+C10 -> 70 | E10: 170 | F10: =(G10-E10)/(G3-E3)*(F3-E3)+E10 -> 90 | G10: 250 | H10: =(I10-G10)/(I3-G3)*(H3-G3)+G10 -> 249.8 | I10: 250.1 | J10: =(K10-I10)/(K3-I3)*(J3-I3)+I10 -> 249.8 | K10: 250.2 | L10: =(M10-K10)/(M3-K3)*(L3-K3)+K10 -> 250 | M10: 250.3 | N10: =(O10-M10)/(O3-M3)*(N3-M3)+M10 -> 250.15 | O10: 250.4 | P10: =(Q10-O10)/(Q3-O3)*(P3-O3)+O10 -> 250.31 | Q10: 250.49 | S10: =Лист1!B17*10 -> 0.1 | T10: =Лист1!B19 -> 3500 | U10: =VLOOKUP(S10,A3:Q18,HLOOKUP(V10,A3:Q18,16,0),0) ->  | V10: =Лист1!B18*10 -> 100 | W10: =IF(S10<A6,"NO",IF(S10>A16,"N0",IF(VLOOKUP(S10,A6:Q16,3,0)>T10,"NO",IF(VLOOKUP(S10,A6:Q16,17,0)<T10,"NO",IF(AND(U10>=T10-0.1,U10<T10+0.1)=TRUE,V10,"NO"))))) -> NO | X10: Фильтр газовый | Y10: =Лист1!F7 -> РЕД-С-0,5-1-50 DN50
A11: =IF(AND(S10>A10,S10<A12)=TRUE,S10,0) -> 0 | C11: =(C12-C10)/(A12-A10)*(A11-A10)+C10 -> 83.33333333 | D11: =(E11-C11)/(E3-C3)*(D3-C3)+C11 -> 38.88888889 | E11: =(E12-E10)/(A12-A10)*(A11-A10)+E10 -> 150 | F11: =(G11-E11)/(G3-E3)*(F3-E3)+E11 -> 116.6666667 | G11: =(G12-G10)/(A12-A10)*(A11-A10)+G10 -> 183.3333333 | H11: =(I11-G11)/(I3-G3)*(H3-G3)+G11 -> 216.3333333 | I11: =(I12-I10)/(A12-A10)*(A11-A10)+I10 -> 166.8333333 | J11: =(K11-I11)/(K3-I3)*(J3-I3)+I11 -> 416.3333333 | K11: =(K12-K10)/(A12-A10)*(A11-A10)+K10 -> 83.66666667 | L11: =(M11-K11)/(M3-K3)*(L3-K3)+K11 -> 83.46666667 | M11: =(M12-M10)/(A12-A10)*(A11-A10)+M10 -> 83.76666667 | N11: =(O11-M11)/(O3-M3)*(N3-M3)+M11 -> 83.61666667 | O11: =(O12-O10)/(A12-A10)*(A11-A10)+O10 -> 83.86666667 | P11: =(Q11-O11)/(Q3-O3)*(P3-O3)+O11 -> 83.71666667 | Q11: =(Q12-Q10)/(A12-A10)*(A11-A10)+Q10 -> 84.01666667
A12: 5 | C12: 150 | D12: =(E12-C12)/(E3-C3)*(D3-C3)+C12 -> 116.6666667 | E12: 200 | F12: =(G12-E12)/(G3-E3)*(F3-E3)+E12 -> 50 | G12: 350 | H12: =(I12-G12)/(I3-G3)*(H3-G3)+G12 -> 300 | I12: 375 | J12: =(K12-I12)/(K3-I3)*(J3-I3)+I12 -> 0 | K12: 500 | L12: =(M12-K12)/(M3-K3)*(L3-K3)+K12 -> 499.8 | M12: 500.1 | N12: =(O12-M12)/(O3-M3)*(N3-M3)+M12 -> 499.95 | O12: 500.2 | P12: =(Q12-O12)/(Q3-O3)*(P3-O3)+O12 -> 500.2 | Q12: 500.2
A13: =IF(AND(S10>A12,S10<A14)=TRUE,S10,0) -> 0 | C13: =(C14-C12)/(A14-A12)*(A13-A12)+C12 -> 50 | D13: =(E13-C13)/(E3-C3)*(D3-C3)+C13 -> 36.66666667 | E13: =(E14-E12)/(A14-A12)*(A13-A12)+E12 -> 70 | F13: =(G13-E13)/(G3-E3)*(F3-E3)+E13 -> -140 | G13: =(G14-G12)/(A14-A12)*(A13-A12)+G12 -> 280 | H13: =(I13-G13)/(I3-G3)*(H3-G3)+G13 -> 400 | I13: =(I14-I12)/(A14-A12)*(A13-A12)+I12 -> 220 | J13: =(K13-I13)/(K3-I3)*(J3-I3)+I13 -> -170 | K13: =(K14-K12)/(A14-A12)*(A13-A12)+K12 -> 350 | L13: =(M13-K13)/(M3-K3)*(L3-K3)+K13 -> 449.6 | M13: =(M14-M12)/(A14-A12)*(A13-A12)+M12 -> 300.2 | N13: =(O13-M13)/(O3-M3)*(N3-M3)+M13 -> 300.05 | O13: =(O14-O12)/(A14-A12)*(A13-A12)+O12 -> 300.3 | P13: =(Q13-O13)/(Q3-O3)*(P3-O3)+O13 -> 300.3 | Q13: =(Q14-Q12)/(A14-A12)*(A13-A12)+Q12 -> 300.3
A14: 10 | C14: 250 | D14: =(E14-C14)/(E3-C3)*(D3-C3)+C14 -> 196.6666667 | E14: 330 | F14: =(G14-E14)/(G3-E3)*(F3-E3)+E14 -> 240 | G14: 420 | H14: =(I14-G14)/(I3-G3)*(H3-G3)+G14 -> 200 | I14: 530 | J14: =(K14-I14)/(K3-I3)*(J3-I3)+I14 -> 170 | K14: 650 | L14: =(M14-K14)/(M3-K3)*(L3-K3)+K14 -> 550 | M14: 700 | N14: =(O14-M14)/(O3-M3)*(N3-M3)+M14 -> 699.85 | O14: 700.1 | P14: =(Q14-O14)/(Q3-O3)*(P3-O3)+O14 -> 700.1 | Q14: 700.1
A15: =IF(AND(S10>A14,S10<A16)=TRUE,S10,0) -> 0 | C15: =(C16-C14)/(A16-A14)*(A15-A14)+C14 -> 166.6666667 | D15: =(E15-C15)/(E3-C3)*(D3-C3)+C15 -> 146.6666667 | E15: =(E16-E14)/(A16-A14)*(A15-A14)+E14 -> 196.6666667 | F15: =(G15-E15)/(G3-E3)*(F3-E3)+E15 -> 148.3333333 | G15: =(G16-G14)/(A16-A14)*(A15-A14)+G14 -> 245 | H15: =(I15-G15)/(I3-G3)*(H3-G3)+G15 -> 25 | I15: =(I16-I14)/(A16-A14)*(A15-A14)+I14 -> 355 | J15: =(K15-I15)/(K3-I3)*(J3-I3)+I15 -> -30 | K15: =(K16-K14)/(A16-A14)*(A15-A14)+K14 -> 483.3333333 | L15: =(M15-K15)/(M3-K3)*(L3-K3)+K15 -> 633.3333333 | M15: =(M16-M14)/(A16-A14)*(A15-A14)+M14 -> 408.3333333 | N15: =(O15-M15)/(O3-M3)*(N3-M3)+M15 -> 720.4333333 | O15: =(O16-O14)/(A16-A14)*(A15-A14)+O14 -> 200.2666667 | P15: =(Q15-O15)/(Q3-O3)*(P3-O3)+O15 -> 200.4333333 | Q15: =(Q16-Q14)/(A16-A14)*(A15-A14)+Q14 -> 200.1
A16: 16 | C16: 300 | D16: =(E16-C16)/(E3-C3)*(D3-C3)+C16 -> 226.6666667 | E16: 410 | F16: =(G16-E16)/(G3-E3)*(F3-E3)+E16 -> 295 | G16: 525 | H16: =(I16-G16)/(I3-G3)*(H3-G3)+G16 -> 305 | I16: 635 | J16: =(K16-I16)/(K3-I3)*(J3-I3)+I16 -> 290 | K16: 750 | L16: =(M16-K16)/(M3-K3)*(L3-K3)+K16 -> 500 | M16: 875 | N16: =(O16-M16)/(O3-M3)*(N3-M3)+M16 -> 687.5 | O16: 1000 | P16: =(Q16-O16)/(Q3-O3)*(P3-O3)+O16 -> 999.9 | Q16: 1000.1
A18: COL | C18: 3 | D18: 4 | E18: 5 | F18: 6 | G18: 7 | H18: 8 | I18: 9 | J18: 10 | K18: 11 | L18: 12 | M18: 13 | N18: 14 | O18: 15 | P18: 16 | Q18: 17
B21: DP | C21: 10 | D21: =IF(AND(V28>C21,V28<E21)=TRUE,V28,0) -> 0 | E21: 25 | F21: =IF(AND(V28>E21,V28<G21)=TRUE,V28,0) -> 0 | G21: 50 | H21: =IF(AND(V28>G21,V28<I21)=TRUE,V28,0) -> 0 | I21: 75 | J21: =IF(AND(V28>I21,V28<K21)=TRUE,V28,0) -> 0 | K21: 100 | L21: =IF(AND(V28>K21,V28<M21)=TRUE,V28,0) -> 0 | M21: 150 | N21: =IF(AND(V28>M21,V28<O21)=TRUE,V28,0) -> 0 | O21: 250 | P21: =IF(AND(V28>O21,V28<Q21)=TRUE,V28,0) -> 0 | Q21: 500
A22: PM
A24: 0.5 | C24: 150 | D24: =(E24-C24)/(E21-C21)*(D21-C21)+C24 -> 103.3333333 | E24: 220 | F24: =(G24-E24)/(G21-E21)*(F21-E21)+E24 -> 100 | G24: 340 | H24: =(I24-G24)/(I21-G21)*(H21-G21)+G24 -> 220 | I24: 400 | J24: =(K24-I24)/(K21-I21)*(J21-I21)+I24 -> 399.7 | K24: 400.1 | L24: =(M24-K24)/(M21-K21)*(L21-K21)+K24 -> 399.9 | M24: 400.2 | N24: =(O24-M24)/(O21-M21)*(N21-M21)+M24 -> 400.05 | O24: 400.3 | P24: =(Q24-O24)/(Q21-O21)*(P21-O21)+O24 -> 400.2 | Q24: 400.4 | S24: PM | T24: Q | U24: Qcal | V24: DPcal | W24: DP | X24: TIPO
A25: =IF(AND(S28>A24,S28<A26)=TRUE,S28,0) -> 0 | C25: =(C26-C24)/(A26-A24)*(A25-A24)+C24 -> 120 | D25: =(E25-C25)/(E21-C21)*(D21-C21)+C25 -> 93.33333333 | E25: =(E26-E24)/(A26-A24)*(A25-A24)+E24 -> 160 | F25: =(G25-E25)/(G21-E21)*(F21-E21)+E25 -> 40 | G25: =(G26-G24)/(A26-A24)*(A25-A24)+G24 -> 280 | H25: =(I25-G25)/(I21-G21)*(H21-G21)+G25 -> 140 | I25: =(I26-I24)/(A26-A24)*(A25-A24)+I24 -> 350 | J25: =(K25-I25)/(K21-I21)*(J21-I21)+I25 -> 349.7 | K25: =(K26-K24)/(A26-A24)*(A25-A24)+K24 -> 350.1 | L25: =(M25-K25)/(M21-K21)*(L21-K21)+K25 -> 349.9 | M25: =(M26-M24)/(A26-A24)*(A25-A24)+M24 -> 350.2 | N25: =(O25-M25)/(O21-M21)*(N21-M21)+M25 -> 350.05 | O25: =(O26-O24)/(A26-A24)*(A25-A24)+O24 -> 350.3 | P25: =(Q25-O25)/(Q21-O21)*(P21-O21)+O25 -> 350.2 | Q25: =(Q26-Q24)/(A26-A24)*(A25-A24)+Q24 -> 350.4
A26: 1 | C26: 180 | D26: =(E26-C26)/(E21-C21)*(D21-C21)+C26 -> 113.3333333 | E26: 280 | F26: =(G26-E26)/(G21-E21)*(F21-E21)+E26 -> 160 | G26: 400 | H26: =(I26-G26)/(I21-G21)*(H21-G21)+G26 -> 300 | I26: 450 | J26: =(K26-I26)/(K21-I21)*(J21-I21)+I26 -> 449.7 | K26: 450.1 | L26: =(M26-K26)/(M21-K21)*(L21-K21)+K26 -> 449.9 | M26: 450.2 | N26: =(O26-M26)/(O21-M21)*(N21-M21)+M26 -> 450.05 | O26: 450.3 | P26: =(Q26-O26)/(Q21-O21)*(P21-O21)+O26 -> 450.2 | Q26: 450.4 | T26: нм3/час | U26: нм3/час | V26: мбар | W26: мбар
A27: =IF(AND(S28>A26,S28<A28)=TRUE,S28,0) -> 0 | C27: =(C28-C26)/(A28-A26)*(A27-A26)+C26 -> 140 | D27: =(E27-C27)/(E21-C21)*(D21-C21)+C27 -> 86.66666667 | E27: =(E28-E26)/(A28-A26)*(A27-A26)+E26 -> 220 | F27: =(G27-E27)/(G21-E21)*(F21-E21)+E27 -> 140 | G27: =(G28-G26)/(A28-A26)*(A27-A26)+G26 -> 300 | H27: =(I27-G27)/(I21-G21)*(H21-G21)+G27 -> 300 | I27: =(I28-I26)/(A28-A26)*(A27-A26)+I26 -> 300 | J27: =(K27-I27)/(K21-I21)*(J21-I21)+I27 -> 599.4 | K27: =(K28-K26)/(A28-A26)*(A27-A26)+K26 -> 200.2 | L27: =(M27-K27)/(M21-K21)*(L21-K21)+K27 -> 200 | M27: =(M28-M26)/(A28-A26)*(A27-A26)+M26 -> 200.3 | N27: =(O27-M27)/(O21-M21)*(N21-M21)+M27 -> 200.15 | O27: =(O28-O26)/(A28-A26)*(A27-A26)+O26 -> 200.4 | P27: =(Q27-O27)/(Q21-O21)*(P21-O21)+O27 -> 200.3 | Q27: =(Q28-Q26)/(A28-A26)*(A27-A26)+Q26 -> 200.5
A28: 2 | C28: 220 | D28: =(E28-C28)/(E21-C21)*(D21-C21)+C28 -> 140 | E28: 340 | F28: =(G28-E28)/(G21-E21)*(F21-E21)+E28 -> 180 | G28: 500 | H28: =(I28-G28)/(I21-G21)*(H21-G21)+G28 -> 300 | I28: 600 | J28: =(K28-I28)/(K21-I21)*(J21-I21)+I28 -> 300 | K28: 700 | L28: =(M28-K28)/(M21-K21)*(L21-K21)+K28 -> 699.8 | M28: 700.1 | N28: =(O28-M28)/(O21-M21)*(N21-M21)+M28 -> 699.95 | O28: 700.2 | P28: =(Q28-O28)/(Q21-O21)*(P21-O21)+O28 -> 700.1 | Q28: 700.3 | S28: =Лист1!B17*10 -> 0.1 | T28: =Лист1!B19 -> 3500 | U28: =VLOOKUP(S28,A21:Q36,HLOOKUP(V28,A21:Q36,16,0),0) ->  | V28: =Лист1!B18*10 -> 100 | W28: =IF(S28<A24,"NO",IF(S28>A34,"N0",IF(VLOOKUP(S28,A24:Q34,3,0)>T28,"NO",IF(VLOOKUP(S28,A24:Q34,17,0)<T28,"NO",IF(AND(U28>=T28-0.1,U28<T28+0.1)=TRUE,V28,"NO"))))) -> NO | X28: Фильтр газовый | Y28: =Лист1!F8 -> РЕД-С-1,0-1-65 DN65
A29: =IF(AND(S28>A28,S28<A30)=TRUE,S28,0) -> 0 | C29: =(C30-C28)/(A30-A28)*(A29-A28)+C28 -> 153.3333333 | D29: =(E29-C29)/(E21-C21)*(D21-C21)+C29 -> 100 | E29: =(E30-E28)/(A30-A28)*(A29-A28)+E28 -> 233.3333333 | F29: =(G29-E29)/(G21-E21)*(F21-E21)+E29 -> 100 | G29: =(G30-G28)/(A30-A28)*(A29-A28)+G28 -> 366.6666667 | H29: =(I29-G29)/(I21-G21)*(H21-G21)+G29 -> 100 | I29: =(I30-I28)/(A30-A28)*(A29-A28)+I28 -> 500 | J29: =(K29-I29)/(K21-I21)*(J21-I21)+I29 -> 500 | K29: =(K30-K28)/(A30-A28)*(A29-A28)+K28 -> 500 | L29: =(M29-K29)/(M21-K21)*(L21-K21)+K29 -> 766.3333333 | M29: =(M30-M28)/(A30-A28)*(A29-A28)+M28 -> 366.8333333 | N29: =(O29-M29)/(O21-M21)*(N21-M21)+M29 -> 366.6833333 | O29: =(O30-O28)/(A30-A28)*(A29-A28)+O28 -> 366.9333333 | P29: =(Q29-O29)/(Q21-O21)*(P21-O21)+O29 -> 366.8333333 | Q29: =(Q30-Q28)/(A30-A28)*(A29-A28)+Q28 -> 367.0333333
A30: 5 | C30: 320 | D30: =(E30-C30)/(E21-C21)*(D21-C21)+C30 -> 200 | E30: 500 | F30: =(G30-E30)/(G21-E21)*(F21-E21)+E30 -> 300 | G30: 700 | H30: =(I30-G30)/(I21-G21)*(H21-G21)+G30 -> 600 | I30: 750 | J30: =(K30-I30)/(K21-I21)*(J21-I21)+I30 -> 0 | K30: 1000 | L30: =(M30-K30)/(M21-K21)*(L21-K21)+K30 -> 600 | M30: 1200 | N30: =(O30-M30)/(O21-M21)*(N21-M21)+M30 -> 1199.85 | O30: 1200.1 | P30: =(Q30-O30)/(Q21-O21)*(P21-O21)+O30 -> 1200 | Q30: 1200.2
A31: =IF(AND(S28>A30,S28<A32)=TRUE,S28,0) -> 0 | C31: =(C32-C30)/(A32-A30)*(A31-A30)+C30 -> 190 | D31: =(E31-C31)/(E21-C21)*(D21-C21)+C31 -> 83.33333333 | E31: =(E32-E30)/(A32-A30)*(A31-A30)+E30 -> 350 | F31: =(G31-E31)/(G21-E21)*(F21-E21)+E31 -> 300 | G31: =(G32-G30)/(A32-A30)*(A31-A30)+G30 -> 400 | H31: =(I31-G31)/(I21-G21)*(H21-G21)+G31 -> 600 | I31: =(I32-I30)/(A32-A30)*(A31-A30)+I30 -> 300 | J31: =(K31-I31)/(K21-I21)*(J21-I21)+I31 -> -900 | K31: =(K32-K30)/(A32-A30)*(A31-A30)+K30 -> 700 | L31: =(M31-K31)/(M21-K21)*(L21-K21)+K31 -> 500 | M31: =(M32-M30)/(A32-A30)*(A31-A30)+M30 -> 800 | N31: =(O31-M31)/(O21-M21)*(N21-M21)+M31 -> 1699.7 | O31: =(O32-O30)/(A32-A30)*(A31-A30)+O30 -> 200.2 | P31: =(Q31-O31)/(Q21-O21)*(P21-O21)+O31 -> 200.1 | Q31: =(Q32-Q30)/(A32-A30)*(A31-A30)+Q30 -> 200.3
A32: 10 | C32: 450 | D32: =(E32-C32)/(E21-C21)*(D21-C21)+C32 -> 316.6666667 | E32: 650 | F32: =(G32-E32)/(G21-E21)*(F21-E21)+E32 -> 300 | G32: 1000 | H32: =(I32-G32)/(I21-G21)*(H21-G21)+G32 -> 600 | I32: 1200 | J32: =(K32-I32)/(K21-I21)*(J21-I21)+I32 -> 900 | K32: 1300 | L32: =(M32-K32)/(M21-K21)*(L21-K21)+K32 -> 700 | M32: 1600 | N32: =(O32-M32)/(O21-M21)*(N21-M21)+M32 -> 700 | O32: 2200 | P32: =(Q32-O32)/(Q21-O21)*(P21-O21)+O32 -> 2199.9 | Q32: 2200.1
A33: =IF(AND(S28>A32,S28<A34)=TRUE,S28,0) -> 0 | C33: =(C34-C32)/(A34-A32)*(A33-A32)+C32 -> 283.3333333 | D33: =(E33-C33)/(E21-C21)*(D21-C21)+C33 -> 205.5555556 | E33: =(E34-E32)/(A34-A32)*(A33-A32)+E32 -> 400 | F33: =(G33-E33)/(G21-E21)*(F21-E21)+E33 -> 133.3333333 | G33: =(G34-G32)/(A34-A32)*(A33-A32)+G32 -> 666.6666667 | H33: =(I33-G33)/(I21-G21)*(H21-G21)+G33 -> 600 | I33: =(I34-I32)/(A34-A32)*(A33-A32)+I32 -> 700 | J33: =(K33-I33)/(K21-I21)*(J21-I21)+I33 -> 900 | K33: =(K34-K32)/(A34-A32)*(A33-A32)+K32 -> 633.3333333 | L33: =(M33-K33)/(M21-K21)*(L21-K21)+K33 -> 33.33333333 | M33: =(M34-M32)/(A34-A32)*(A33-A32)+M32 -> 933.3333333 | N33: =(O33-M33)/(O21-M21)*(N21-M21)+M33 -> 408.3333333 | O33: =(O34-O32)/(A34-A32)*(A33-A32)+O32 -> 1283.333333 | P33: =(Q33-O33)/(Q21-O21)*(P21-O21)+O33 -> 3033.066667 | Q33: =(Q34-Q32)/(A34-A32)*(A33-A32)+Q32 -> -466.4
A34: 16 | C34: 550 | D34: =(E34-C34)/(E21-C21)*(D21-C21)+C34 -> 383.3333333 | E34: 800 | F34: =(G34-E34)/(G21-E21)*(F21-E21)+E34 -> 400 | G34: 1200 | H34: =(I34-G34)/(I21-G21)*(H21-G21)+G34 -> 600 | I34: 1500 | J34: =(K34-I34)/(K21-I21)*(J21-I21)+I34 -> 900 | K34: 1700 | L34: =(M34-K34)/(M21-K21)*(L21-K21)+K34 -> 1100 | M34: 2000 | N34: =(O34-M34)/(O21-M21)*(N21-M21)+M34 -> 875 | O34: 2750 | P34: =(Q34-O34)/(Q21-O21)*(P21-O21)+O34 -> 1700 | Q34: 3800
A36: COL | C36: 3 | D36: 4 | E36: 5 | F36: 6 | G36: 7 | H36: 8 | I36: 9 | J36: 10 | K36: 11 | L36: 12 | M36: 13 | N36: 14 | O36: 15 | P36: 16 | Q36: 17
B39: DP | C39: 10 | D39: =IF(AND(V46>C39,V46<E39)=TRUE,V46,0) -> 0 | E39: 25 | F39: =IF(AND(V46>E39,V46<G39)=TRUE,V46,0) -> 0 | G39: 50 | H39: =IF(AND(V46>G39,V46<I39)=TRUE,V46,0) -> 0 | I39: 75 | J39: =IF(AND(V46>I39,V46<K39)=TRUE,V46,0) -> 0 | K39: 100 | L39: =IF(AND(V46>K39,V46<M39)=TRUE,V46,0) -> 0 | M39: 150 | N39: =IF(AND(V46>M39,V46<O39)=TRUE,V46,0) -> 0 | O39: 250 | P39: =IF(AND(V46>O39,V46<Q39)=TRUE,V46,0) -> 0 | Q39: 500
A40: PM
A42: 0.5 | C42: 300 | D42: =(E42-C42)/(E39-C39)*(D39-C39)+C42 -> 213.3333333 | E42: 430 | F42: =(G42-E42)/(G39-E39)*(F39-E39)+E42 -> 210 | G42: 650 | H42: =(I42-G42)/(I39-G39)*(H39-G39)+G42 -> 350 | I42: 800 | J42: =(K42-I42)/(K39-I39)*(J39-I39)+I42 -> 799.7 | K42: 800.1 | L42: =(M42-K42)/(M39-K39)*(L39-K39)+K42 -> 799.9 | M42: 800.2 | N42: =(O42-M42)/(O39-M39)*(N39-M39)+M42 -> 800.05 | O42: 800.3 | P42: =(Q42-O42)/(Q39-O39)*(P39-O39)+O42 -> 800.2 | Q42: 800.4 | S42: PM | T42: Q | U42: Qcal | V42: DPcal | W42: DP | X42: TIPO
A43: =IF(AND(S46>A42,S46<A44)=TRUE,S46,0) -> 0 | C43: =(C44-C42)/(A44-A42)*(A43-A42)+C42 -> 260 | D43: =(E43-C43)/(E39-C39)*(D39-C39)+C43 -> 226.6666667 | E43: =(E44-E42)/(A44-A42)*(A43-A42)+E42 -> 310 | F43: =(G43-E43)/(G39-E39)*(F39-E39)+E43 -> 70 | G43: =(G44-G42)/(A44-A42)*(A43-A42)+G42 -> 550 | H43: =(I43-G43)/(I39-G39)*(H39-G39)+G43 -> 250 | I43: =(I44-I42)/(A44-A42)*(A43-A42)+I42 -> 700 | J43: =(K43-I43)/(K39-I39)*(J39-I39)+I43 -> 699.7 | K43: =(K44-K42)/(A44-A42)*(A43-A42)+K42 -> 700.1 | L43: =(M43-K43)/(M39-K39)*(L39-K39)+K43 -> 699.9 | M43: =(M44-M42)/(A44-A42)*(A43-A42)+M42 -> 700.2 | N43: =(O43-M43)/(O39-M39)*(N39-M39)+M43 -> 700.05 | O43: =(O44-O42)/(A44-A42)*(A43-A42)+O42 -> 700.3 | P43: =(Q43-O43)/(Q39-O39)*(P39-O39)+O43 -> 700.2 | Q43: =(Q44-Q42)/(A44-A42)*(A43-A42)+Q42 -> 700.4
A44: 1 | C44: 340 | D44: =(E44-C44)/(E39-C39)*(D39-C39)+C44 -> 200 | E44: 550 | F44: =(G44-E44)/(G39-E39)*(F39-E39)+E44 -> 350 | G44: 750 | H44: =(I44-G44)/(I39-G39)*(H39-G39)+G44 -> 450 | I44: 900 | J44: =(K44-I44)/(K39-I39)*(J39-I39)+I44 -> 899.7 | K44: 900.1 | L44: =(M44-K44)/(M39-K39)*(L39-K39)+K44 -> 899.9 | M44: 900.2 | N44: =(O44-M44)/(O39-M39)*(N39-M39)+M44 -> 900.05 | O44: 900.3 | P44: =(Q44-O44)/(Q39-O39)*(P39-O39)+O44 -> 900.2 | Q44: 900.4 | T44: нм3/час | U44: нм3/час | V44: мбар | W44: мбар
A45: =IF(AND(S46>A44,S46<A46)=TRUE,S46,0) -> 0 | C45: =(C46-C44)/(A46-A44)*(A45-A44)+C44 -> 280 | D45: =(E45-C45)/(E39-C39)*(D39-C39)+C45 -> 166.6666667 | E45: =(E46-E44)/(A46-A44)*(A45-A44)+E44 -> 450 | F45: =(G45-E45)/(G39-E39)*(F39-E39)+E45 -> 350 | G45: =(G46-G44)/(A46-A44)*(A45-A44)+G44 -> 550 | H45: =(I45-G45)/(I39-G39)*(H39-G39)+G45 -> 250 | I45: =(I46-I44)/(A46-A44)*(A45-A44)+I44 -> 700 | J45: =(K45-I45)/(K39-I39)*(J39-I39)+I45 -> 1299.4 | K45: =(K46-K44)/(A46-A44)*(A45-A44)+K44 -> 500.2 | L45: =(M45-K45)/(M39-K39)*(L39-K39)+K45 -> 500 | M45: =(M46-M44)/(A46-A44)*(A45-A44)+M44 -> 500.3 | N45: =(O45-M45)/(O39-M39)*(N39-M39)+M45 -> 500.15 | O45: =(O46-O44)/(A46-A44)*(A45-A44)+O44 -> 500.4 | P45: =(Q45-O45)/(Q39-O39)*(P39-O39)+O45 -> 500.3 | Q45: =(Q46-Q44)/(A46-A44)*(A45-A44)+Q44 -> 500.5
A46: 2 | C46: 400 | D46: =(E46-C46)/(E39-C39)*(D39-C39)+C46 -> 233.3333333 | E46: 650 | F46: =(G46-E46)/(G39-E39)*(F39-E39)+E46 -> 350 | G46: 950 | H46: =(I46-G46)/(I39-G39)*(H39-G39)+G46 -> 650 | I46: 1100 | J46: =(K46-I46)/(K39-I39)*(J39-I39)+I46 -> 500 | K46: 1300 | L46: =(M46-K46)/(M39-K39)*(L39-K39)+K46 -> 1299.8 | M46: 1300.1 | N46: =(O46-M46)/(O39-M39)*(N39-M39)+M46 -> 1299.95 | O46: 1300.2 | P46: =(Q46-O46)/(Q39-O39)*(P39-O39)+O46 -> 1300.1 | Q46: 1300.3 | S46: =Лист1!B17*10 -> 0.1 | T46: =Лист1!B19 -> 3500 | U46: =VLOOKUP(S46,A39:Q54,HLOOKUP(V46,A39:Q54,16,0),0) ->  | V46: =Лист1!B18*10 -> 100 | W46: =IF(S46<A42,"NO",IF(S46>A52,"N0",IF(VLOOKUP(S46,A42:Q52,3,0)>T46,"NO",IF(VLOOKUP(S46,A42:Q52,17,0)<T46,"NO",IF(AND(U46>=T46-0.1,U46<T46+0.1)=TRUE,V46,"NO"))))) -> NO | X46: Фильтр газовый | Y46: =Лист1!F9 -> РЕД-С-1,5-1-80 DN80
A47: =IF(AND(S46>A46,S46<A48)=TRUE,S46,0) -> 0 | C47: =(C48-C46)/(A48-A46)*(A47-A46)+C46 -> 266.6666667 | D47: =(E47-C47)/(E39-C39)*(D39-C39)+C47 -> 122.2222222 | E47: =(E48-E46)/(A48-A46)*(A47-A46)+E46 -> 483.3333333 | F47: =(G47-E47)/(G39-E39)*(F39-E39)+E47 -> 250 | G47: =(G48-G46)/(A48-A46)*(A47-A46)+G46 -> 716.6666667 | H47: =(I47-G47)/(I39-G39)*(H39-G39)+G47 -> 616.6666667 | I47: =(I48-I46)/(A48-A46)*(A47-A46)+I46 -> 766.6666667 | J47: =(K47-I47)/(K39-I39)*(J39-I39)+I47 -> 366.6666667 | K47: =(K48-K46)/(A48-A46)*(A47-A46)+K46 -> 900 | L47: =(M47-K47)/(M39-K39)*(L39-K39)+K47 -> 1299.666667 | M47: =(M48-M46)/(A48-A46)*(A47-A46)+M46 -> 700.1666667 | N47: =(O47-M47)/(O39-M39)*(N39-M39)+M47 -> 700.0166667 | O47: =(O48-O46)/(A48-A46)*(A47-A46)+O46 -> 700.2666667 | P47: =(Q47-O47)/(Q39-O39)*(P39-O39)+O47 -> 700.1666667 | Q47: =(Q48-Q46)/(A48-A46)*(A47-A46)+Q46 -> 700.3666667
A48: 5 | C48: 600 | D48: =(E48-C48)/(E39-C39)*(D39-C39)+C48 -> 400 | E48: 900 | F48: =(G48-E48)/(G39-E39)*(F39-E39)+E48 -> 500 | G48: 1300 | H48: =(I48-G48)/(I39-G39)*(H39-G39)+G48 -> 700 | I48: 1600 | J48: =(K48-I48)/(K39-I39)*(J39-I39)+I48 -> 700 | K48: 1900 | L48: =(M48-K48)/(M39-K39)*(L39-K39)+K48 -> 1300 | M48: 2200 | N48: =(O48-M48)/(O39-M39)*(N39-M39)+M48 -> 2199.85 | O48: 2200.1 | P48: =(Q48-O48)/(Q39-O39)*(P39-O39)+O48 -> 2200 | Q48: 2200.2
A49: =IF(AND(S46>A48,S46<A50)=TRUE,S46,0) -> 0 | C49: =(C50-C48)/(A50-A48)*(A49-A48)+C48 -> 350 | D49: =(E49-C49)/(E39-C39)*(D39-C39)+C49 -> 183.3333333 | E49: =(E50-E48)/(A50-A48)*(A49-A48)+E48 -> 600 | F49: =(G49-E49)/(G39-E39)*(F39-E39)+E49 -> 400 | G49: =(G50-G48)/(A50-A48)*(A49-A48)+G48 -> 800 | H49: =(I49-G49)/(I39-G39)*(H39-G39)+G49 -> 400 | I49: =(I50-I48)/(A50-A48)*(A49-A48)+I48 -> 1000 | J49: =(K49-I49)/(K39-I39)*(J39-I39)+I49 -> 100 | K49: =(K50-K48)/(A50-A48)*(A49-A48)+K48 -> 1300 | L49: =(M49-K49)/(M39-K39)*(L39-K39)+K49 -> 1100 | M49: =(M50-M48)/(A50-A48)*(A49-A48)+M48 -> 1400 | N49: =(O49-M49)/(O39-M39)*(N39-M39)+M49 -> 2524.7 | O49: =(O50-O48)/(A50-A48)*(A49-A48)+O48 -> 650.2 | P49: =(Q49-O49)/(Q39-O39)*(P39-O39)+O49 -> 650.1 | Q49: =(Q50-Q48)/(A50-A48)*(A49-A48)+Q48 -> 650.3
A50: 10 | C50: 850 | D50: =(E50-C50)/(E39-C39)*(D39-C39)+C50 -> 616.6666667 | E50: 1200 | F50: =(G50-E50)/(G39-E39)*(F39-E39)+E50 -> 600 | G50: 1800 | H50: =(I50-G50)/(I39-G39)*(H39-G39)+G50 -> 1000 | I50: 2200 | J50: =(K50-I50)/(K39-I39)*(J39-I39)+I50 -> 1300 | K50: 2500 | L50: =(M50-K50)/(M39-K39)*(L39-K39)+K50 -> 1500 | M50: 3000 | N50: =(O50-M50)/(O39-M39)*(N39-M39)+M50 -> 1875 | O50: 3750 | P50: =(Q50-O50)/(Q39-O39)*(P39-O39)+O50 -> 3749.9 | Q50: 3750.1
A51: =IF(AND(S46>A50,S46<A52)=TRUE,S46,0) -> 0 | C51: =(C52-C50)/(A52-A50)*(A51-A50)+C50 -> 600 | D51: =(E51-C51)/(E39-C39)*(D39-C39)+C51 -> 422.2222222 | E51: =(E52-E50)/(A52-A50)*(A51-A50)+E50 -> 866.6666667 | F51: =(G51-E51)/(G39-E39)*(F39-E39)+E51 -> 600 | G51: =(G52-G50)/(A52-A50)*(A51-A50)+G50 -> 1133.333333 | H51: =(I51-G51)/(I39-G39)*(H39-G39)+G51 -> 1000 | I51: =(I52-I50)/(A52-A50)*(A51-A50)+I50 -> 1200 | J51: =(K51-I51)/(K39-I39)*(J39-I39)+I51 -> 800 | K51: =(K52-K50)/(A52-A50)*(A51-A50)+K50 -> 1333.333333 | L51: =(M51-K51)/(M39-K39)*(L39-K39)+K51 -> 1333.333333 | M51: =(M52-M50)/(A52-A50)*(A51-A50)+M50 -> 1333.333333 | N51: =(O51-M51)/(O39-M39)*(N39-M39)+M51 -> -416.6666667 | O51: =(O52-O50)/(A52-A50)*(A51-A50)+O50 -> 2500 | P51: =(Q51-O51)/(Q39-O39)*(P39-O39)+O51 -> 4999.733333 | Q51: =(Q52-Q50)/(A52-A50)*(A51-A50)+Q50 -> 0.2666666667
A52: 16 | C52: 1000 | D52: =(E52-C52)/(E39-C39)*(D39-C39)+C52 -> 733.3333333 | E52: 1400 | F52: =(G52-E52)/(G39-E39)*(F39-E39)+E52 -> 600 | G52: 2200 | H52: =(I52-G52)/(I39-G39)*(H39-G39)+G52 -> 1000 | I52: 2800 | J52: =(K52-I52)/(K39-I39)*(J39-I39)+I52 -> 1600 | K52: 3200 | L52: =(M52-K52)/(M39-K39)*(L39-K39)+K52 -> 1600 | M52: 4000 | N52: =(O52-M52)/(O39-M39)*(N39-M39)+M52 -> 3250 | O52: 4500 | P52: =(Q52-O52)/(Q39-O39)*(P39-O39)+O52 -> 3000 | Q52: 6000
A54: COL | C54: 3 | D54: 4 | E54: 5 | F54: 6 | G54: 7 | H54: 8 | I54: 9 | J54: 10 | K54: 11 | L54: 12 | M54: 13 | N54: 14 | O54: 15 | P54: 16 | Q54: 17
B57: DP | C57: 10 | D57: =IF(AND(V64>C57,V64<E57)=TRUE,V64,0) -> 0 | E57: 25 | F57: =IF(AND(V64>E57,V64<G57)=TRUE,V64,0) -> 0 | G57: 50 | H57: =IF(AND(V64>G57,V64<I57)=TRUE,V64,0) -> 0 | I57: 75 | J57: =IF(AND(V64>I57,V64<K57)=TRUE,V64,0) -> 0 | K57: 100 | L57: =IF(AND(V64>K57,V64<M57)=TRUE,V64,0) -> 0 | M57: 150 | N57: =IF(AND(V64>M57,V64<O57)=TRUE,V64,0) -> 0 | O57: 250 | P57: =IF(AND(V64>O57,V64<Q57)=TRUE,V64,0) -> 0 | Q57: 500
A58: PM
A60: 0.5 | C60: 600 | D60: =(E60-C60)/(E57-C57)*(D57-C57)+C60 -> 400 | E60: 900 | F60: =(G60-E60)/(G57-E57)*(F57-E57)+E60 -> 500 | G60: 1300 | H60: =(I60-G60)/(I57-G57)*(H57-G57)+G60 -> 1299.8 | I60: 1300.1 | J60: =(K60-I60)/(K57-I57)*(J57-I57)+I60 -> 1299.8 | K60: 1300.2 | L60: =(M60-K60)/(M57-K57)*(L57-K57)+K60 -> 1300 | M60: 1300.3 | N60: =(O60-M60)/(O57-M57)*(N57-M57)+M60 -> 1300.15 | O60: 1300.4 | P60: =(Q60-O60)/(Q57-O57)*(P57-O57)+O60 -> 1300.31 | Q60: 1300.49 | S60: PM | T60: Q | U60: Qcal | V60: DPcal | W60: DP | X60: TIPO
A61: =IF(AND(S64>A60,S64<A62)=TRUE,S64,0) -> 0 | C61: =(C62-C60)/(A62-A60)*(A61-A60)+C60 -> 500 | D61: =(E61-C61)/(E57-C57)*(D57-C57)+C61 -> 366.6666667 | E61: =(E62-E60)/(A62-A60)*(A61-A60)+E60 -> 700 | F61: =(G61-E61)/(G57-E57)*(F57-E57)+E61 -> 300 | G61: =(G62-G60)/(A62-A60)*(A61-A60)+G60 -> 1100 | H61: =(I61-G61)/(I57-G57)*(H57-G57)+G61 -> 1499.6 | I61: =(I62-I60)/(A62-A60)*(A61-A60)+I60 -> 900.2 | J61: =(K61-I61)/(K57-I57)*(J57-I57)+I61 -> 899.9 | K61: =(K62-K60)/(A62-A60)*(A61-A60)+K60 -> 900.3 | L61: =(M61-K61)/(M57-K57)*(L57-K57)+K61 -> 900.1 | M61: =(M62-M60)/(A62-A60)*(A61-A60)+M60 -> 900.4 | N61: =(O61-M61)/(O57-M57)*(N57-M57)+M61 -> 900.25 | O61: =(O62-O60)/(A62-A60)*(A61-A60)+O60 -> 900.5 | P61: =(Q61-O61)/(Q57-O57)*(P57-O57)+O61 -> 900.42 | Q61: =(Q62-Q60)/(A62-A60)*(A61-A60)+Q60 -> 900.58
A62: 1 | C62: 700 | D62: =(E62-C62)/(E57-C57)*(D57-C57)+C62 -> 433.3333333 | E62: 1100 | F62: =(G62-E62)/(G57-E57)*(F57-E57)+E62 -> 700 | G62: 1500 | H62: =(I62-G62)/(I57-G57)*(H57-G57)+G62 -> 1100 | I62: 1700 | J62: =(K62-I62)/(K57-I57)*(J57-I57)+I62 -> 1699.7 | K62: 1700.1 | L62: =(M62-K62)/(M57-K57)*(L57-K57)+K62 -> 1699.9 | M62: 1700.2 | N62: =(O62-M62)/(O57-M57)*(N57-M57)+M62 -> 1700.05 | O62: 1700.3 | P62: =(Q62-O62)/(Q57-O57)*(P57-O57)+O62 -> 1700.2 | Q62: 1700.4 | T62: нм3/час | U62: нм3/час | V62: мбар | W62: мбар
A63: =IF(AND(S64>A62,S64<A64)=TRUE,S64,0) -> 0 | C63: =(C64-C62)/(A64-A62)*(A63-A62)+C62 -> 550 | D63: =(E63-C63)/(E57-C57)*(D57-C57)+C63 -> 316.6666667 | E63: =(E64-E62)/(A64-A62)*(A63-A62)+E62 -> 900 | F63: =(G63-E63)/(G57-E57)*(F57-E57)+E63 -> 700 | G63: =(G64-G62)/(A64-A62)*(A63-A62)+G62 -> 1100 | H63: =(I63-G63)/(I57-G57)*(H57-G57)+G63 -> 900 | I63: =(I64-I62)/(A64-A62)*(A63-A62)+I62 -> 1200 | J63: =(K63-I63)/(K57-I57)*(J57-I57)+I63 -> 1199.7 | K63: =(K64-K62)/(A64-A62)*(A63-A62)+K62 -> 1200.1 | L63: =(M63-K63)/(M57-K57)*(L57-K57)+K63 -> 1199.9 | M63: =(M64-M62)/(A64-A62)*(A63-A62)+M62 -> 1200.2 | N63: =(O63-M63)/(O57-M57)*(N57-M57)+M63 -> 1200.05 | O63: =(O64-O62)/(A64-A62)*(A63-A62)+O62 -> 1200.3 | P63: =(Q63-O63)/(Q57-O57)*(P57-O57)+O63 -> 1200.2 | Q63: =(Q64-Q62)/(A64-A62)*(A63-A62)+Q62 -> 1200.4
A64: 2 | C64: 850 | D64: =(E64-C64)/(E57-C57)*(D57-C57)+C64 -> 550 | E64: 1300 | F64: =(G64-E64)/(G57-E57)*(F57-E57)+E64 -> 700 | G64: 1900 | H64: =(I64-G64)/(I57-G57)*(H57-G57)+G64 -> 1300 | I64: 2200 | J64: =(K64-I64)/(K57-I57)*(J57-I57)+I64 -> 2199.7 | K64: 2200.1 | L64: =(M64-K64)/(M57-K57)*(L57-K57)+K64 -> 2199.9 | M64: 2200.2 | N64: =(O64-M64)/(O57-M57)*(N57-M57)+M64 -> 2200.05 | O64: 2200.3 | P64: =(Q64-O64)/(Q57-O57)*(P57-O57)+O64 -> 2200.2 | Q64: 2200.4 | S64: =Лист1!B17*10 -> 0.1 | T64: =Лист1!B19 -> 3500 | U64: =VLOOKUP(S64,A57:Q72,HLOOKUP(V64,A57:Q72,16,0),0) ->  | V64: =Лист1!B18*10 -> 100 | W64: =IF(S64<A60,"NO",IF(S64>A70,"N0",IF(VLOOKUP(S64,A60:Q70,3,0)>T64,"NO",IF(VLOOKUP(S64,A60:Q70,17,0)<T64,"NO",IF(AND(U64>=T64-0.1,U64<T64+0.1)=TRUE,V64,"NO"))))) -> NO | X64: Фильтр газовый | Y64: =Лист1!F10 -> РЕД-С-2,0-1-100 DN100
A65: =IF(AND(S64>A64,S64<A66)=TRUE,S64,0) -> 0 | C65: =(C66-C64)/(A66-A64)*(A65-A64)+C64 -> 850 | D65: =(E65-C65)/(E57-C57)*(D57-C57)+C65 -> 550 | E65: =(E66-E64)/(A66-A64)*(A65-A64)+E64 -> 1300 | F65: =(G65-E65)/(G57-E57)*(F57-E57)+E65 -> 1266.666667 | G65: =(G66-G64)/(A66-A64)*(A65-A64)+G64 -> 1333.333333 | H65: =(I65-G65)/(I57-G57)*(H57-G57)+G65 -> 933.3333333 | I65: =(I66-I64)/(A66-A64)*(A65-A64)+I64 -> 1533.333333 | J65: =(K65-I65)/(K57-I57)*(J57-I57)+I65 -> 2632.833333 | K65: =(K66-K64)/(A66-A64)*(A65-A64)+K64 -> 1166.833333 | L65: =(M65-K65)/(M57-K57)*(L57-K57)+K65 -> 2499.833333 | M65: =(M66-M64)/(A66-A64)*(A65-A64)+M64 -> 500.3333333 | N65: =(O65-M65)/(O57-M57)*(N57-M57)+M65 -> 500.0833333 | O65: =(O66-O64)/(A66-A64)*(A65-A64)+O64 -> 500.5 | P65: =(Q65-O65)/(Q57-O57)*(P57-O57)+O65 -> 500.3333333 | Q65: =(Q66-Q64)/(A66-A64)*(A65-A64)+Q64 -> 500.6666667
A66: 5 | C66: 850 | D66: =(E66-C66)/(E57-C57)*(D57-C57)+C66 -> 550 | E66: 1300 | F66: =(G66-E66)/(G57-E57)*(F57-E57)+E66 -> -150 | G66: 2750 | H66: =(I66-G66)/(I57-G57)*(H57-G57)+G66 -> 1850 | I66: 3200 | J66: =(K66-I66)/(K57-I57)*(J57-I57)+I66 -> 1550 | K66: 3750 | L66: =(M66-K66)/(M57-K57)*(L57-K57)+K66 -> 1750 | M66: 4750 | N66: =(O66-M66)/(O57-M57)*(N57-M57)+M66 -> 4750 | O66: 4750 | P66: =(Q66-O66)/(Q57-O57)*(P57-O57)+O66 -> 4750 | Q66: 4750
A67: =IF(AND(S64>A66,S64<A68)=TRUE,S64,0) -> 0 | C67: =(C68-C66)/(A68-A66)*(A67-A66)+C66 -> 500 | D67: =(E67-C67)/(E57-C57)*(D57-C57)+C67 -> 300 | E67: =(E68-E66)/(A68-A66)*(A67-A66)+E66 -> 800 | F67: =(G67-E67)/(G57-E57)*(F57-E57)+E67 -> -900 | G67: =(G68-G66)/(A68-A66)*(A67-A66)+G66 -> 2500 | H67: =(I67-G67)/(I57-G57)*(H57-G57)+G67 -> 1700 | I67: =(I68-I66)/(A68-A66)*(A67-A66)+I66 -> 2900 | J67: =(K67-I67)/(K57-I57)*(J57-I57)+I67 -> 4100 | K67: =(K68-K66)/(A68-A66)*(A67-A66)+K66 -> 2500 | L67: =(M67-K67)/(M57-K57)*(L57-K57)+K67 -> 1000 | M67: =(M68-M66)/(A68-A66)*(A67-A66)+M66 -> 3250 | N67: =(O67-M67)/(O57-M57)*(N57-M57)+M67 -> 6625 | O67: =(O68-O66)/(A68-A66)*(A67-A66)+O66 -> 1000 | P67: =(Q67-O67)/(Q57-O57)*(P57-O57)+O67 -> -3749.9 | Q67: =(Q68-Q66)/(A68-A66)*(A67-A66)+Q66 -> 5749.9
A68: 10 | C68: 1200 | D68: =(E68-C68)/(E57-C57)*(D57-C57)+C68 -> 800 | E68: 1800 | F68: =(G68-E68)/(G57-E57)*(F57-E57)+E68 -> 600 | G68: 3000 | H68: =(I68-G68)/(I57-G57)*(H57-G57)+G68 -> 2000 | I68: 3500 | J68: =(K68-I68)/(K57-I57)*(J57-I57)+I68 -> -1000 | K68: 5000 | L68: =(M68-K68)/(M57-K57)*(L57-K57)+K68 -> 2500 | M68: 6250 | N68: =(O68-M68)/(O57-M57)*(N57-M57)+M68 -> 2875 | O68: 8500 | P68: =(Q68-O68)/(Q57-O57)*(P57-O57)+O68 -> 13249.9 | Q68: 3750.1
A69: =IF(AND(S64>A68,S64<A70)=TRUE,S64,0) -> 0 | C69: =(C70-C68)/(A70-A68)*(A69-A68)+C68 -> 866.6666667 | D69: =(E69-C69)/(E57-C57)*(D57-C57)+C69 -> 688.8888889 | E69: =(E70-E68)/(A70-A68)*(A69-A68)+E68 -> 1133.333333 | F69: =(G69-E69)/(G57-E57)*(F57-E57)+E69 -> -400 | G69: =(G70-G68)/(A70-A68)*(A69-A68)+G68 -> 2666.666667 | H69: =(I69-G69)/(I57-G57)*(H57-G57)+G69 -> 2666.666667 | I69: =(I70-I68)/(A70-A68)*(A69-A68)+I68 -> 2666.666667 | J69: =(K69-I69)/(K57-I57)*(J57-I57)+I69 -> -1833.333333 | K69: =(K70-K68)/(A70-A68)*(A69-A68)+K68 -> 4166.666667 | L69: =(M69-K69)/(M57-K57)*(L57-K57)+K69 -> 833.3333333 | M69: =(M70-M68)/(A70-A68)*(A69-A68)+M68 -> 5833.333333 | N69: =(O69-M69)/(O57-M57)*(N57-M57)+M69 -> 5583.333333 | O69: =(O70-O68)/(A70-A68)*(A69-A68)+O68 -> 6000 | P69: =(Q69-O69)/(Q57-O57)*(P57-O57)+O69 -> 21999.73333 | Q69: =(Q70-Q68)/(A70-A68)*(A69-A68)+Q68 -> -9999.733333
A70: 16 | C70: 1400 | D70: =(E70-C70)/(E57-C57)*(D57-C57)+C70 -> 866.6666667 | E70: 2200 | F70: =(G70-E70)/(G57-E57)*(F57-E57)+E70 -> 1200 | G70: 3200 | H70: =(I70-G70)/(I57-G57)*(H57-G57)+G70 -> 1600 | I70: 4000 | J70: =(K70-I70)/(K57-I57)*(J57-I57)+I70 -> -500 | K70: 5500 | L70: =(M70-K70)/(M57-K57)*(L57-K57)+K70 -> 3500 | M70: 6500 | N70: =(O70-M70)/(O57-M57)*(N57-M57)+M70 -> 1250 | O70: 10000 | P70: =(Q70-O70)/(Q57-O57)*(P57-O57)+O70 -> 8000 | Q70: 12000
A72: COL | C72: 3 | D72: 4 | E72: 5 | F72: 6 | G72: 7 | H72: 8 | I72: 9 | J72: 10 | K72: 11 | L72: 12 | M72: 13 | N72: 14 | O72: 15 | P72: 16 | Q72: 17
B75: DP | C75: 10 | D75: =IF(AND(V82>C75,V82<E75)=TRUE,V82,0) -> 0 | E75: 25 | F75: =IF(AND(V82>E75,V82<G75)=TRUE,V82,0) -> 0 | G75: 50 | H75: =IF(AND(V82>G75,V82<I75)=TRUE,V82,0) -> 0 | I75: 75 | J75: =IF(AND(V82>I75,V82<K75)=TRUE,V82,0) -> 0 | K75: 100 | L75: =IF(AND(V82>K75,V82<M75)=TRUE,V82,0) -> 0 | M75: 150 | N75: =IF(AND(V82>M75,V82<O75)=TRUE,V82,0) -> 0 | O75: 250 | P75: =IF(AND(V82>O75,V82<Q75)=TRUE,V82,0) -> 0 | Q75: 500
A76: PM
A78: 0.5 | C78: 900 | D78: =(E78-C78)/(E75-C75)*(D75-C75)+C78 -> 633.3333333 | E78: 1300 | F78: =(G78-E78)/(G75-E75)*(F75-E75)+E78 -> 600 | G78: 2000 | H78: =(I78-G78)/(I75-G75)*(H75-G75)+G78 -> 1999.8 | I78: 2000.1 | J78: =(K78-I78)/(K75-I75)*(J75-I75)+I78 -> 1999.8 | K78: 2000.2 | L78: =(M78-K78)/(M75-K75)*(L75-K75)+K78 -> 2000 | M78: 2000.3 | N78: =(O78-M78)/(O75-M75)*(N75-M75)+M78 -> 2000.15 | O78: 2000.4 | P78: =(Q78-O78)/(Q75-O75)*(P75-O75)+O78 -> 2000.31 | Q78: 2000.49 | S78: PM | T78: Q | U78: Qcal | V78: DPcal | W78: DP | X78: TIPO
A79: =IF(AND(S82>A78,S82<A80)=TRUE,S82,0) -> 0 | C79: =(C80-C78)/(A80-A78)*(A79-A78)+C78 -> 800 | D79: =(E79-C79)/(E75-C75)*(D75-C75)+C79 -> 666.6666667 | E79: =(E80-E78)/(A80-A78)*(A79-A78)+E78 -> 1000 | F79: =(G79-E79)/(G75-E75)*(F75-E75)+E79 -> 750 | G79: =(G80-G78)/(A80-A78)*(A79-A78)+G78 -> 1250 | H79: =(I79-G79)/(I75-G75)*(H75-G75)+G79 -> 1249.8 | I79: =(I80-I78)/(A80-A78)*(A79-A78)+I78 -> 1250.1 | J79: =(K79-I79)/(K75-I75)*(J75-I75)+I79 -> 1249.8 | K79: =(K80-K78)/(A80-A78)*(A79-A78)+K78 -> 1250.2 | L79: =(M79-K79)/(M75-K75)*(L75-K75)+K79 -> 1250 | M79: =(M80-M78)/(A80-A78)*(A79-A78)+M78 -> 1250.3 | N79: =(O79-M79)/(O75-M75)*(N75-M75)+M79 -> 1250.15 | O79: =(O80-O78)/(A80-A78)*(A79-A78)+O78 -> 1250.4 | P79: =(Q79-O79)/(Q75-O75)*(P75-O75)+O79 -> 1250.31 | Q79: =(Q80-Q78)/(A80-A78)*(A79-A78)+Q78 -> 1250.49
A80: 1 | C80: 1000 | D80: =(E80-C80)/(E75-C75)*(D75-C75)+C80 -> 600 | E80: 1600 | F80: =(G80-E80)/(G75-E75)*(F75-E75)+E80 -> 450 | G80: 2750 | H80: =(I80-G80)/(I75-G75)*(H75-G75)+G80 -> 2749.8 | I80: 2750.1 | J80: =(K80-I80)/(K75-I75)*(J75-I75)+I80 -> 2749.8 | K80: 2750.2 | L80: =(M80-K80)/(M75-K75)*(L75-K75)+K80 -> 2750 | M80: 2750.3 | N80: =(O80-M80)/(O75-M75)*(N75-M75)+M80 -> 2750.15 | O80: 2750.4 | P80: =(Q80-O80)/(Q75-O75)*(P75-O75)+O80 -> 2750.31 | Q80: 2750.49 | T80: нм3/час | U80: нм3/час | V80: мбар | W80: мбар
A81: =IF(AND(S82>A80,S82<A82)=TRUE,S82,0) -> 0 | C81: =(C82-C80)/(A82-A80)*(A81-A80)+C80 -> 750 | D81: =(E81-C81)/(E75-C75)*(D75-C75)+C81 -> 450 | E81: =(E82-E80)/(A82-A80)*(A81-A80)+E80 -> 1200 | F81: =(G81-E81)/(G75-E75)*(F75-E75)+E81 -> -300 | G81: =(G82-G80)/(A82-A80)*(A81-A80)+G80 -> 2700 | H81: =(I81-G81)/(I75-G75)*(H75-G75)+G81 -> 3099.6 | I81: =(I82-I80)/(A82-A80)*(A81-A80)+I80 -> 2500.2 | J81: =(K81-I81)/(K75-I75)*(J75-I75)+I81 -> 3999.6 | K81: =(K82-K80)/(A82-A80)*(A81-A80)+K80 -> 2000.4 | L81: =(M81-K81)/(M75-K75)*(L75-K75)+K81 -> 2000.2 | M81: =(M82-M80)/(A82-A80)*(A81-A80)+M80 -> 2000.5 | N81: =(O81-M81)/(O75-M75)*(N75-M75)+M81 -> 2000.35 | O81: =(O82-O80)/(A82-A80)*(A81-A80)+O80 -> 2000.6 | P81: =(Q81-O81)/(Q75-O75)*(P75-O75)+O81 -> 2000.52 | Q81: =(Q82-Q80)/(A82-A80)*(A81-A80)+Q80 -> 2000.68
A82: 2 | C82: 1250 | D82: =(E82-C82)/(E75-C75)*(D75-C75)+C82 -> 750 | E82: 2000 | F82: =(G82-E82)/(G75-E75)*(F75-E75)+E82 -> 1200 | G82: 2800 | H82: =(I82-G82)/(I75-G75)*(H75-G75)+G82 -> 2400 | I82: 3000 | J82: =(K82-I82)/(K75-I75)*(J75-I75)+I82 -> 1500 | K82: 3500 | L82: =(M82-K82)/(M75-K75)*(L75-K75)+K82 -> 3499.8 | M82: 3500.1 | N82: =(O82-M82)/(O75-M75)*(N75-M75)+M82 -> 3499.95 | O82: 3500.2 | P82: =(Q82-O82)/(Q75-O75)*(P75-O75)+O82 -> 3500.1 | Q82: 3500.3 | S82: =Лист1!B17*10 -> 0.1 | T82: =Лист1!B19 -> 3500 | U82: =VLOOKUP(S82,A75:Q90,HLOOKUP(V82,A75:Q90,16,0),0) ->  | V82: =Лист1!B18*10 -> 100 | W82: =IF(S82<A78,"NO",IF(S82>A88,"N0",IF(VLOOKUP(S82,A78:Q88,3,0)>T82,"NO",IF(VLOOKUP(S82,A78:Q88,17,0)<T82,"NO",IF(AND(U82>=T82-0.1,U82<T82+0.1)=TRUE,V82,"NO"))))) -> NO | X82: Фильтр газовый | Y82: =Лист1!F11 -> РЕД-С-2,5-1-125 DN125
A83: =IF(AND(S82>A82,S82<A84)=TRUE,S82,0) -> 0 | C83: =(C84-C82)/(A84-A82)*(A83-A82)+C82 -> 1083.333333 | D83: =(E83-C83)/(E75-C75)*(D75-C75)+C83 -> 561.1111111 | E83: =(E84-E82)/(A84-A82)*(A83-A82)+E82 -> 1866.666667 | F83: =(G83-E83)/(G75-E75)*(F75-E75)+E83 -> 1733.333333 | G83: =(G84-G82)/(A84-A82)*(A83-A82)+G82 -> 2000 | H83: =(I83-G83)/(I75-G75)*(H75-G75)+G83 -> 2666.666667 | I83: =(I84-I82)/(A84-A82)*(A83-A82)+I82 -> 1666.666667 | J83: =(K83-I83)/(K75-I75)*(J75-I75)+I83 -> 166.6666667 | K83: =(K84-K82)/(A84-A82)*(A83-A82)+K82 -> 2166.666667 | L83: =(M83-K83)/(M75-K75)*(L75-K75)+K83 -> 2833 | M83: =(M84-M82)/(A84-A82)*(A83-A82)+M82 -> 1833.5 | N83: =(O83-M83)/(O75-M75)*(N75-M75)+M83 -> 1833.35 | O83: =(O84-O82)/(A84-A82)*(A83-A82)+O82 -> 1833.6 | P83: =(Q83-O83)/(Q75-O75)*(P75-O75)+O83 -> 1833.5 | Q83: =(Q84-Q82)/(A84-A82)*(A83-A82)+Q82 -> 1833.7
A84: 5 | C84: 1500 | D84: =(E84-C84)/(E75-C75)*(D75-C75)+C84 -> 1033.333333 | E84: 2200 | F84: =(G84-E84)/(G75-E75)*(F75-E75)+E84 -> 400 | G84: 4000 | H84: =(I84-G84)/(I75-G75)*(H75-G75)+G84 -> 2000 | I84: 5000 | J84: =(K84-I84)/(K75-I75)*(J75-I75)+I84 -> 3500 | K84: 5500 | L84: =(M84-K84)/(M75-K75)*(L75-K75)+K84 -> 4500 | M84: 6000 | N84: =(O84-M84)/(O75-M75)*(N75-M75)+M84 -> 5999.85 | O84: 6000.1 | P84: =(Q84-O84)/(Q75-O75)*(P75-O75)+O84 -> 6000 | Q84: 6000.2
A85: =IF(AND(S82>A84,S82<A86)=TRUE,S82,0) -> 0 | C85: =(C86-C84)/(A86-A84)*(A85-A84)+C84 -> 800 | D85: =(E85-C85)/(E75-C75)*(D75-C75)+C85 -> 533.3333333 | E85: =(E86-E84)/(A86-A84)*(A85-A84)+E84 -> 1200 | F85: =(G85-E85)/(G75-E75)*(F75-E75)+E85 -> -600 | G85: =(G86-G84)/(A86-A84)*(A85-A84)+G84 -> 3000 | H85: =(I85-G85)/(I75-G75)*(H75-G75)+G85 -> 1000 | I85: =(I86-I84)/(A86-A84)*(A85-A84)+I84 -> 4000 | J85: =(K85-I85)/(K75-I75)*(J75-I75)+I85 -> 5500 | K85: =(K86-K84)/(A86-A84)*(A85-A84)+K84 -> 3500 | L85: =(M85-K85)/(M75-K75)*(L75-K75)+K85 -> 3500 | M85: =(M86-M84)/(A86-A84)*(A85-A84)+M84 -> 3500 | N85: =(O85-M85)/(O75-M75)*(N75-M75)+M85 -> 5749.7 | O85: =(O86-O84)/(A86-A84)*(A85-A84)+O84 -> 2000.2 | P85: =(Q85-O85)/(Q75-O75)*(P75-O75)+O85 -> 2000.1 | Q85: =(Q86-Q84)/(A86-A84)*(A85-A84)+Q84 -> 2000.3
A86: 10 | C86: 2200 | D86: =(E86-C86)/(E75-C75)*(D75-C75)+C86 -> 1533.333333 | E86: 3200 | F86: =(G86-E86)/(G75-E75)*(F75-E75)+E86 -> 1400 | G86: 5000 | H86: =(I86-G86)/(I75-G75)*(H75-G75)+G86 -> 3000 | I86: 6000 | J86: =(K86-I86)/(K75-I75)*(J75-I75)+I86 -> 1500 | K86: 7500 | L86: =(M86-K86)/(M75-K75)*(L75-K75)+K86 -> 5500 | M86: 8500 | N86: =(O86-M86)/(O75-M75)*(N75-M75)+M86 -> 6250 | O86: 10000 | P86: =(Q86-O86)/(Q75-O75)*(P75-O75)+O86 -> 9999.9 | Q86: 10000.1
A87: =IF(AND(S82>A86,S82<A88)=TRUE,S82,0) -> 0 | C87: =(C88-C86)/(A88-A86)*(A87-A86)+C86 -> 1700 | D87: =(E87-C87)/(E75-C75)*(D75-C75)+C87 -> 1588.888889 | E87: =(E88-E86)/(A88-A86)*(A87-A86)+E86 -> 1866.666667 | F87: =(G87-E87)/(G75-E75)*(F75-E75)+E87 -> 400 | G87: =(G88-G86)/(A88-A86)*(A87-A86)+G86 -> 3333.333333 | H87: =(I87-G87)/(I75-G75)*(H75-G75)+G87 -> 1333.333333 | I87: =(I88-I86)/(A88-A86)*(A87-A86)+I86 -> 4333.333333 | J87: =(K87-I87)/(K75-I75)*(J75-I75)+I87 -> -2666.666667 | K87: =(K88-K86)/(A88-A86)*(A87-A86)+K86 -> 6666.666667 | L87: =(M87-K87)/(M75-K75)*(L75-K75)+K87 -> 8000 | M87: =(M88-M86)/(A88-A86)*(A87-A86)+M86 -> 6000 | N87: =(O87-M87)/(O75-M75)*(N75-M75)+M87 -> 5000 | O87: =(O88-O86)/(A88-A86)*(A87-A86)+O86 -> 6666.666667 | P87: =(Q87-O87)/(Q75-O75)*(P75-O75)+O87 -> 16666.4 | Q87: =(Q88-Q86)/(A88-A86)*(A87-A86)+Q86 -> -3333.066667
A88: 16 | C88: 2500 | D88: =(E88-C88)/(E75-C75)*(D75-C75)+C88 -> 1500 | E88: 4000 | F88: =(G88-E88)/(G75-E75)*(F75-E75)+E88 -> 2000 | G88: 6000 | H88: =(I88-G88)/(I75-G75)*(H75-G75)+G88 -> 4000 | I88: 7000 | J88: =(K88-I88)/(K75-I75)*(J75-I75)+I88 -> 4000 | K88: 8000 | L88: =(M88-K88)/(M75-K75)*(L75-K75)+K88 -> 4000 | M88: 10000 | N88: =(O88-M88)/(O75-M75)*(N75-M75)+M88 -> 7000 | O88: 12000 | P88: =(Q88-O88)/(Q75-O75)*(P75-O75)+O88 -> 6000 | Q88: 18000
A90: COL | C90: 3 | D90: 4 | E90: 5 | F90: 6 | G90: 7 | H90: 8 | I90: 9 | J90: 10 | K90: 11 | L90: 12 | M90: 13 | N90: 14 | O90: 15 | P90: 16 | Q90: 17
B93: DP | C93: 10 | D93: =IF(AND(V100>C93,V100<E93)=TRUE,V100,0) -> 0 | E93: 25 | F93: =IF(AND(V100>E93,V100<G93)=TRUE,V100,0) -> 0 | G93: 50 | H93: =IF(AND(V100>G93,V100<I93)=TRUE,V100,0) -> 0 | I93: 75 | J93: =IF(AND(V100>I93,V100<K93)=TRUE,V100,0) -> 0 | K93: 100 | L93: =IF(AND(V100>K93,V100<M93)=TRUE,V100,0) -> 0 | M93: 150 | N93: =IF(AND(V100>M93,V100<O93)=TRUE,V100,0) -> 0 | O93: 250 | P93: =IF(AND(V100>O93,V100<Q93)=TRUE,V100,0) -> 0 | Q93: 500
A94: PM
A96: 0.5 | C96: 1600 | D96: =(E96-C96)/(E93-C93)*(D93-C93)+C96 -> 1000 | E96: 2500 | F96: =(G96-E96)/(G93-E93)*(F93-E93)+E96 -> 2000 | G96: 3000 | H96: =(I96-G96)/(I93-G93)*(H93-G93)+G96 -> 2999.8 | I96: 3000.1 | J96: =(K96-I96)/(K93-I93)*(J93-I93)+I96 -> 2999.8 | K96: 3000.2 | L96: =(M96-K96)/(M93-K93)*(L93-K93)+K96 -> 3000 | M96: 3000.3 | N96: =(O96-M96)/(O93-M93)*(N93-M93)+M96 -> 3000.15 | O96: 3000.4 | P96: =(Q96-O96)/(Q93-O93)*(P93-O93)+O96 -> 3000.31 | Q96: 3000.49 | S96: PM | T96: Q | U96: Qcal | V96: DPcal | W96: DP | X96: TIPO
A97: =IF(AND(S100>A96,S100<A98)=TRUE,S100,0) -> 0 | C97: =(C98-C96)/(A98-A96)*(A97-A96)+C96 -> 1300 | D97: =(E97-C97)/(E93-C93)*(D93-C93)+C97 -> 833.3333333 | E97: =(E98-E96)/(A98-A96)*(A97-A96)+E96 -> 2000 | F97: =(G97-E97)/(G93-E93)*(F93-E93)+E97 -> 1750 | G97: =(G98-G96)/(A98-A96)*(A97-A96)+G96 -> 2250 | H97: =(I97-G97)/(I93-G93)*(H93-G93)+G97 -> 2249.8 | I97: =(I98-I96)/(A98-A96)*(A97-A96)+I96 -> 2250.1 | J97: =(K97-I97)/(K93-I93)*(J93-I93)+I97 -> 2249.8 | K97: =(K98-K96)/(A98-A96)*(A97-A96)+K96 -> 2250.2 | L97: =(M97-K97)/(M93-K93)*(L93-K93)+K97 -> 2250 | M97: =(M98-M96)/(A98-A96)*(A97-A96)+M96 -> 2250.3 | N97: =(O97-M97)/(O93-M93)*(N93-M93)+M97 -> 2250.15 | O97: =(O98-O96)/(A98-A96)*(A97-A96)+O96 -> 2250.4 | P97: =(Q97-O97)/(Q93-O93)*(P93-O93)+O97 -> 2250.31 | Q97: =(Q98-Q96)/(A98-A96)*(A97-A96)+Q96 -> 2250.49
A98: 1 | C98: 1900 | D98: =(E98-C98)/(E93-C93)*(D93-C93)+C98 -> 1166.666667 | E98: 3000 | F98: =(G98-E98)/(G93-E93)*(F93-E93)+E98 -> 2250 | G98: 3750 | H98: =(I98-G98)/(I93-G93)*(H93-G93)+G98 -> 3749.8 | I98: 3750.1 | J98: =(K98-I98)/(K93-I93)*(J93-I93)+I98 -> 3749.8 | K98: 3750.2 | L98: =(M98-K98)/(M93-K93)*(L93-K93)+K98 -> 3750 | M98: 3750.3 | N98: =(O98-M98)/(O93-M93)*(N93-M93)+M98 -> 3750.15 | O98: 3750.4 | P98: =(Q98-O98)/(Q93-O93)*(P93-O93)+O98 -> 3750.31 | Q98: 3750.49 | T98: нм3/час | U98: нм3/час | V98: мбар | W98: мбар
A99: =IF(AND(S100>A98,S100<A100)=TRUE,S100,0) -> 0 | C99: =(C100-C98)/(A100-A98)*(A99-A98)+C98 -> 1300 | D99: =(E99-C99)/(E93-C93)*(D93-C93)+C99 -> 833.3333333 | E99: =(E100-E98)/(A100-A98)*(A99-A98)+E98 -> 2000 | F99: =(G99-E99)/(G93-E93)*(F93-E93)+E99 -> 1000 | G99: =(G100-G98)/(A100-A98)*(A99-A98)+G98 -> 3000 | H99: =(I99-G99)/(I93-G93)*(H93-G93)+G99 -> 3499.6 | I99: =(I100-I98)/(A100-A98)*(A99-A98)+I98 -> 2750.2 | J99: =(K99-I99)/(K93-I93)*(J93-I93)+I99 -> 4999.6 | K99: =(K100-K98)/(A100-A98)*(A99-A98)+K98 -> 2000.4 | L99: =(M99-K99)/(M93-K93)*(L93-K93)+K99 -> 2000.2 | M99: =(M100-M98)/(A100-A98)*(A99-A98)+M98 -> 2000.5 | N99: =(O99-M99)/(O93-M93)*(N93-M93)+M99 -> 2000.35 | O99: =(O100-O98)/(A100-A98)*(A99-A98)+O98 -> 2000.6 | P99: =(Q99-O99)/(Q93-O93)*(P93-O93)+O99 -> 2000.52 | Q99: =(Q100-Q98)/(A100-A98)*(A99-A98)+Q98 -> 2000.68
A100: 2 | C100: 2500 | D100: =(E100-C100)/(E93-C93)*(D93-C93)+C100 -> 1500 | E100: 4000 | F100: =(G100-E100)/(G93-E93)*(F93-E93)+E100 -> 3500 | G100: 4500 | H100: =(I100-G100)/(I93-G93)*(H93-G93)+G100 -> 4000 | I100: 4750 | J100: =(K100-I100)/(K93-I93)*(J93-I93)+I100 -> 2500 | K100: 5500 | L100: =(M100-K100)/(M93-K93)*(L93-K93)+K100 -> 5499.8 | M100: 5500.1 | N100: =(O100-M100)/(O93-M93)*(N93-M93)+M100 -> 5499.95 | O100: 5500.2 | P100: =(Q100-O100)/(Q93-O93)*(P93-O93)+O100 -> 5500.1 | Q100: 5500.3 | S100: =Лист1!B17*10 -> 0.1 | T100: =Лист1!B19 -> 3500 | U100: =VLOOKUP(S100,A93:Q108,HLOOKUP(V100,A93:Q108,16,0),0) ->  | V100: =Лист1!B18*10 -> 100 | W100: =IF(S100<A96,"NO",IF(S100>A106,"N0",IF(VLOOKUP(S100,A96:Q106,3,0)>T100,"NO",IF(VLOOKUP(S100,A96:Q106,17,0)<T100,"NO",IF(AND(U100>=T100-0.1,U100<T100+0.1)=TRUE,V100,"NO"))))) -> NO | X100: Фильтр газовый | Y100: =Лист1!F12 -> РЕД-С-3,0-1-150 DN150
A101: =IF(AND(S100>A100,S100<A102)=TRUE,S100,0) -> 0 | C101: =(C102-C100)/(A102-A100)*(A101-A100)+C100 -> 2166.666667 | D101: =(E101-C101)/(E93-C93)*(D93-C93)+C101 -> 1166.666667 | E101: =(E102-E100)/(A102-A100)*(A101-A100)+E100 -> 3666.666667 | F101: =(G101-E101)/(G93-E93)*(F93-E93)+E101 -> 4833.333333 | G101: =(G102-G100)/(A102-A100)*(A101-A100)+G100 -> 2500 | H101: =(I101-G101)/(I93-G93)*(H93-G93)+G101 -> 3666.666667 | I101: =(I102-I100)/(A102-A100)*(A101-A100)+I100 -> 1916.666667 | J101: =(K101-I101)/(K93-I93)*(J93-I93)+I101 -> 166.6666667 | K101: =(K102-K100)/(A102-A100)*(A101-A100)+K100 -> 2500 | L101: =(M101-K101)/(M93-K93)*(L93-K93)+K101 -> 3833 | M101: =(M102-M100)/(A102-A100)*(A101-A100)+M100 -> 1833.5 | N101: =(O101-M101)/(O93-M93)*(N93-M93)+M101 -> 1833.35 | O101: =(O102-O100)/(A102-A100)*(A101-A100)+O100 -> 1833.6 | P101: =(Q101-O101)/(Q93-O93)*(P93-O93)+O101 -> 1833.5 | Q101: =(Q102-Q100)/(A102-A100)*(A101-A100)+Q100 -> 1833.7
A102: 5 | C102: 3000 | D102: =(E102-C102)/(E93-C93)*(D93-C93)+C102 -> 2000 | E102: 4500 | F102: =(G102-E102)/(G93-E93)*(F93-E93)+E102 -> 1500 | G102: 7500 | H102: =(I102-G102)/(I93-G93)*(H93-G93)+G102 -> 4500 | I102: 9000 | J102: =(K102-I102)/(K93-I93)*(J93-I93)+I102 -> 6000 | K102: 10000 | L102: =(M102-K102)/(M93-K93)*(L93-K93)+K102 -> 8000 | M102: 11000 | N102: =(O102-M102)/(O93-M93)*(N93-M93)+M102 -> 10999.85 | O102: 11000.1 | P102: =(Q102-O102)/(Q93-O93)*(P93-O93)+O102 -> 11000 | Q102: 11000.2
A103: =IF(AND(S100>A102,S100<A104)=TRUE,S100,0) -> 0 | C103: =(C104-C102)/(A104-A102)*(A103-A102)+C102 -> 2500 | D103: =(E103-C103)/(E93-C93)*(D93-C93)+C103 -> 1633.333333 | E103: =(E104-E102)/(A104-A102)*(A103-A102)+E102 -> 3800 | F103: =(G103-E103)/(G93-E93)*(F93-E93)+E103 -> 600 | G103: =(G104-G102)/(A104-A102)*(A103-A102)+G102 -> 7000 | H103: =(I103-G103)/(I93-G93)*(H93-G93)+G103 -> 5000 | I103: =(I104-I102)/(A104-A102)*(A103-A102)+I102 -> 8000 | J103: =(K103-I103)/(K93-I93)*(J93-I93)+I103 -> 8000 | K103: =(K104-K102)/(A104-A102)*(A103-A102)+K102 -> 8000 | L103: =(M103-K103)/(M93-K93)*(L93-K93)+K103 -> 10000 | M103: =(M104-M102)/(A104-A102)*(A103-A102)+M102 -> 7000 | N103: =(O103-M103)/(O93-M93)*(N93-M93)+M103 -> 11499.7 | O103: =(O104-O102)/(A104-A102)*(A103-A102)+O102 -> 4000.2 | P103: =(Q103-O103)/(Q93-O93)*(P93-O93)+O103 -> 4000.1 | Q103: =(Q104-Q102)/(A104-A102)*(A103-A102)+Q102 -> 4000.3
A104: 10 | C104: 3500 | D104: =(E104-C104)/(E93-C93)*(D93-C93)+C104 -> 2366.666667 | E104: 5200 | F104: =(G104-E104)/(G93-E93)*(F93-E93)+E104 -> 2400 | G104: 8000 | H104: =(I104-G104)/(I93-G93)*(H93-G93)+G104 -> 4000 | I104: 10000 | J104: =(K104-I104)/(K93-I93)*(J93-I93)+I104 -> 4000 | K104: 12000 | L104: =(M104-K104)/(M93-K93)*(L93-K93)+K104 -> 6000 | M104: 15000 | N104: =(O104-M104)/(O93-M93)*(N93-M93)+M104 -> 10500 | O104: 18000 | P104: =(Q104-O104)/(Q93-O93)*(P93-O93)+O104 -> 17999.9 | Q104: 18000.1
A105: =IF(AND(S100>A104,S100<A106)=TRUE,S100,0) -> 0 | C105: =(C106-C104)/(A106-A104)*(A105-A104)+C104 -> 2666.666667 | D105: =(E105-C105)/(E93-C93)*(D93-C93)+C105 -> 2422.222222 | E105: =(E106-E104)/(A106-A104)*(A105-A104)+E104 -> 3033.333333 | F105: =(G105-E105)/(G93-E93)*(F93-E93)+E105 -> -266.6666667 | G105: =(G106-G104)/(A106-A104)*(A105-A104)+G104 -> 6333.333333 | H105: =(I105-G105)/(I93-G93)*(H93-G93)+G105 -> 5666.666667 | I105: =(I106-I104)/(A106-A104)*(A105-A104)+I104 -> 6666.666667 | J105: =(K105-I105)/(K93-I93)*(J93-I93)+I105 -> -4333.333333 | K105: =(K106-K104)/(A106-A104)*(A105-A104)+K104 -> 10333.33333 | L105: =(M105-K105)/(M93-K93)*(L93-K93)+K105 -> 4333.333333 | M105: =(M106-M104)/(A106-A104)*(A105-A104)+M104 -> 13333.33333 | N105: =(O105-M105)/(O93-M93)*(N93-M93)+M105 -> 16333.33333 | O105: =(O106-O104)/(A106-A104)*(A105-A104)+O104 -> 11333.33333 | P105: =(Q105-O105)/(Q93-O93)*(P93-O93)+O105 -> 26333.06667 | Q105: =(Q106-Q104)/(A106-A104)*(A105-A104)+Q104 -> -3666.4
A106: 16 | C106: 4000 | D106: =(E106-C106)/(E93-C93)*(D93-C93)+C106 -> 2333.333333 | E106: 6500 | F106: =(G106-E106)/(G93-E93)*(F93-E93)+E106 -> 4000 | G106: 9000 | H106: =(I106-G106)/(I93-G93)*(H93-G93)+G106 -> 3000 | I106: 12000 | J106: =(K106-I106)/(K93-I93)*(J93-I93)+I106 -> 9000 | K106: 13000 | L106: =(M106-K106)/(M93-K93)*(L93-K93)+K106 -> 7000 | M106: 16000 | N106: =(O106-M106)/(O93-M93)*(N93-M93)+M106 -> 7000 | O106: 22000 | P106: =(Q106-O106)/(Q93-O93)*(P93-O93)+O106 -> 13000 | Q106: 31000
A108: COL | C108: 3 | D108: 4 | E108: 5 | F108: 6 | G108: 7 | H108: 8 | I108: 9 | J108: 10 | K108: 11 | L108: 12 | M108: 13 | N108: 14 | O108: 15 | P108: 16 | Q108: 17
B111: DP | C111: 10 | D111: =IF(AND(V118>C111,V118<E111)=TRUE,V118,0) -> 0 | E111: 25 | F111: =IF(AND(V118>E111,V118<G111)=TRUE,V118,0) -> 0 | G111: 50 | H111: =IF(AND(V118>G111,V118<I111)=TRUE,V118,0) -> 0 | I111: 75 | J111: =IF(AND(V118>I111,V118<K111)=TRUE,V118,0) -> 0 | K111: 100 | L111: =IF(AND(V118>K111,V118<M111)=TRUE,V118,0) -> 0 | M111: 150 | N111: =IF(AND(V118>M111,V118<O111)=TRUE,V118,0) -> 0 | O111: 250 | P111: =IF(AND(V118>O111,V118<Q111)=TRUE,V118,0) -> 0 | Q111: 500
A112: PM
A114: 0.5 | C114: 1900 | D114: =(E114-C114)/(E111-C111)*(D111-C111)+C114 -> 1300 | E114: 2800 | F114: =(G114-E114)/(G111-E111)*(F111-E111)+E114 -> 2100 | G114: 3500 | H114: =(I114-G114)/(I111-G111)*(H111-G111)+G114 -> 3499.8 | I114: 3500.1 | J114: =(K114-I114)/(K111-I111)*(J111-I111)+I114 -> 3499.8 | K114: 3500.2 | L114: =(M114-K114)/(M111-K111)*(L111-K111)+K114 -> 3500 | M114: 3500.3 | N114: =(O114-M114)/(O111-M111)*(N111-M111)+M114 -> 3500.15 | O114: 3500.4 | P114: =(Q114-O114)/(Q111-O111)*(P111-O111)+O114 -> 3500.31 | Q114: 3500.49 | S114: PM | T114: Q | U114: Qcal | V114: DPcal | W114: DP | X114: TIPO
A115: =IF(AND(S118>A114,S118<A116)=TRUE,S118,0) -> 0 | C115: =(C116-C114)/(A116-A114)*(A115-A114)+C114 -> 1600 | D115: =(E115-C115)/(E111-C111)*(D111-C111)+C115 -> 1266.666667 | E115: =(E116-E114)/(A116-A114)*(A115-A114)+E114 -> 2100 | F115: =(G115-E115)/(G111-E111)*(F111-E111)+E115 -> 1200 | G115: =(G116-G114)/(A116-A114)*(A115-A114)+G114 -> 3000 | H115: =(I115-G115)/(I111-G111)*(H111-G111)+G115 -> 2999.8 | I115: =(I116-I114)/(A116-A114)*(A115-A114)+I114 -> 3000.1 | J115: =(K115-I115)/(K111-I111)*(J111-I111)+I115 -> 2999.8 | K115: =(K116-K114)/(A116-A114)*(A115-A114)+K114 -> 3000.2 | L115: =(M115-K115)/(M111-K111)*(L111-K111)+K115 -> 3000 | M115: =(M116-M114)/(A116-A114)*(A115-A114)+M114 -> 3000.3 | N115: =(O115-M115)/(O111-M111)*(N111-M111)+M115 -> 3000.15 | O115: =(O116-O114)/(A116-A114)*(A115-A114)+O114 -> 3000.4 | P115: =(Q115-O115)/(Q111-O111)*(P111-O111)+O115 -> 3000.31 | Q115: =(Q116-Q114)/(A116-A114)*(A115-A114)+Q114 -> 3000.49
A116: 1 | C116: 2200 | D116: =(E116-C116)/(E111-C111)*(D111-C111)+C116 -> 1333.333333 | E116: 3500 | F116: =(G116-E116)/(G111-E111)*(F111-E111)+E116 -> 3000 | G116: 4000 | H116: =(I116-G116)/(I111-G111)*(H111-G111)+G116 -> 3999.8 | I116: 4000.1 | J116: =(K116-I116)/(K111-I111)*(J111-I111)+I116 -> 3999.8 | K116: 4000.2 | L116: =(M116-K116)/(M111-K111)*(L111-K111)+K116 -> 4000 | M116: 4000.3 | N116: =(O116-M116)/(O111-M111)*(N111-M111)+M116 -> 4000.15 | O116: 4000.4 | P116: =(Q116-O116)/(Q111-O111)*(P111-O111)+O116 -> 4000.31 | Q116: 4000.49 | T116: нм3/час | U116: нм3/час | V116: мбар | W116: мбар
A117: =IF(AND(S118>A116,S118<A118)=TRUE,S118,0) -> 0 | C117: =(C118-C116)/(A118-A116)*(A117-A116)+C116 -> 1650 | D117: =(E117-C117)/(E111-C111)*(D111-C111)+C117 -> 916.6666667 | E117: =(E118-E116)/(A118-A116)*(A117-A116)+E116 -> 2750 | F117: =(G117-E117)/(G111-E111)*(F111-E111)+E117 -> 3500 | G117: =(G118-G116)/(A118-A116)*(A117-A116)+G116 -> 2000 | H117: =(I117-G117)/(I111-G111)*(H111-G111)+G117 -> 1999.8 | I117: =(I118-I116)/(A118-A116)*(A117-A116)+I116 -> 2000.1 | J117: =(K117-I117)/(K111-I111)*(J111-I111)+I117 -> 1999.8 | K117: =(K118-K116)/(A118-A116)*(A117-A116)+K116 -> 2000.2 | L117: =(M117-K117)/(M111-K111)*(L111-K111)+K117 -> 2000 | M117: =(M118-M116)/(A118-A116)*(A117-A116)+M116 -> 2000.3 | N117: =(O117-M117)/(O111-M111)*(N111-M111)+M117 -> 2000.15 | O117: =(O118-O116)/(A118-A116)*(A117-A116)+O116 -> 2000.4 | P117: =(Q117-O117)/(Q111-O111)*(P111-O111)+O117 -> 2000.31 | Q117: =(Q118-Q116)/(A118-A116)*(A117-A116)+Q116 -> 2000.49
A118: 2 | C118: 2750 | D118: =(E118-C118)/(E111-C111)*(D111-C111)+C118 -> 1750 | E118: 4250 | F118: =(G118-E118)/(G111-E111)*(F111-E111)+E118 -> 2500 | G118: 6000 | H118: =(I118-G118)/(I111-G111)*(H111-G111)+G118 -> 5999.8 | I118: 6000.1 | J118: =(K118-I118)/(K111-I111)*(J111-I111)+I118 -> 5999.8 | K118: 6000.2 | L118: =(M118-K118)/(M111-K111)*(L111-K111)+K118 -> 6000 | M118: 6000.3 | N118: =(O118-M118)/(O111-M111)*(N111-M111)+M118 -> 6000.15 | O118: 6000.4 | P118: =(Q118-O118)/(Q111-O111)*(P111-O111)+O118 -> 6000.31 | Q118: 6000.49 | S118: =Лист1!B17*10 -> 0.1 | T118: =Лист1!B19 -> 3500 | U118: =VLOOKUP(S118,A111:Q126,HLOOKUP(V118,A111:Q126,16,0),0) ->  | V118: =Лист1!B18*10 -> 100 | W118: =IF(S118<A114,"NO",IF(S118>A124,"N0",IF(VLOOKUP(S118,A114:Q124,3,0)>T118,"NO",IF(VLOOKUP(S118,A114:Q124,17,0)<T118,"NO",IF(AND(U118>=T118-0.1,U118<T118+0.1)=TRUE,V118,"NO"))))) -> NO | X118: Фильтр газовый | Y118: =Лист1!F13 -> РЕД-С-3,5-1-150 DN150
A119: =IF(AND(S118>A118,S118<A120)=TRUE,S118,0) -> 0 | C119: =(C120-C118)/(A120-A118)*(A119-A118)+C118 -> 1916.666667 | D119: =(E119-C119)/(E111-C111)*(D111-C111)+C119 -> 1138.888889 | E119: =(E120-E118)/(A120-A118)*(A119-A118)+E118 -> 3083.333333 | F119: =(G119-E119)/(G111-E111)*(F111-E111)+E119 -> 2166.666667 | G119: =(G120-G118)/(A120-A118)*(A119-A118)+G118 -> 4000 | H119: =(I119-G119)/(I111-G111)*(H111-G111)+G119 -> 5333 | I119: =(I120-I118)/(A120-A118)*(A119-A118)+I118 -> 3333.5 | J119: =(K119-I119)/(K111-I111)*(J111-I111)+I119 -> 6333 | K119: =(K120-K118)/(A120-A118)*(A119-A118)+K118 -> 2333.666667 | L119: =(M119-K119)/(M111-K111)*(L111-K111)+K119 -> 3000 | M119: =(M120-M118)/(A120-A118)*(A119-A118)+M118 -> 2000.5 | N119: =(O119-M119)/(O111-M111)*(N111-M111)+M119 -> 2000.35 | O119: =(O120-O118)/(A120-A118)*(A119-A118)+O118 -> 2000.6 | P119: =(Q119-O119)/(Q111-O111)*(P111-O111)+O119 -> 2000.516667 | Q119: =(Q120-Q118)/(A120-A118)*(A119-A118)+Q118 -> 2000.683333
A120: 5 | C120: 4000 | D120: =(E120-C120)/(E111-C111)*(D111-C111)+C120 -> 2666.666667 | E120: 6000 | F120: =(G120-E120)/(G111-E111)*(F111-E111)+E120 -> 3000 | G120: 9000 | H120: =(I120-G120)/(I111-G111)*(H111-G111)+G120 -> 7000 | I120: 10000 | J120: =(K120-I120)/(K111-I111)*(J111-I111)+I120 -> 5500 | K120: 11500 | L120: =(M120-K120)/(M111-K111)*(L111-K111)+K120 -> 10500 | M120: 12000 | N120: =(O120-M120)/(O111-M111)*(N111-M111)+M120 -> 11999.85 | O120: 12000.1 | P120: =(Q120-O120)/(Q111-O111)*(P111-O111)+O120 -> 12000 | Q120: 12000.2
A121: =IF(AND(S118>A120,S118<A122)=TRUE,S118,0) -> 0 | C121: =(C122-C120)/(A122-A120)*(A121-A120)+C120 -> 2500 | D121: =(E121-C121)/(E111-C111)*(D111-C111)+C121 -> 1500 | E121: =(E122-E120)/(A122-A120)*(A121-A120)+E120 -> 4000 | F121: =(G121-E121)/(G111-E111)*(F111-E111)+E121 -> 3000 | G121: =(G122-G120)/(A122-A120)*(A121-A120)+G120 -> 5000 | H121: =(I121-G121)/(I111-G111)*(H111-G111)+G121 -> 5000 | I121: =(I122-I120)/(A122-A120)*(A121-A120)+I120 -> 5000 | J121: =(K121-I121)/(K111-I111)*(J111-I111)+I121 -> 2000 | K121: =(K122-K120)/(A122-A120)*(A121-A120)+K120 -> 6000 | L121: =(M121-K121)/(M111-K111)*(L111-K111)+K121 -> 10000 | M121: =(M122-M120)/(A122-A120)*(A121-A120)+M120 -> 4000 | N121: =(O121-M121)/(O111-M111)*(N111-M111)+M121 -> 6999.7 | O121: =(O122-O120)/(A122-A120)*(A121-A120)+O120 -> 2000.2 | P121: =(Q121-O121)/(Q111-O111)*(P111-O111)+O121 -> 2000.1 | Q121: =(Q122-Q120)/(A122-A120)*(A121-A120)+Q120 -> 2000.3
A122: 10 | C122: 5500 | D122: =(E122-C122)/(E111-C111)*(D111-C111)+C122 -> 3833.333333 | E122: 8000 | F122: =(G122-E122)/(G111-E111)*(F111-E111)+E122 -> 3000 | G122: 13000 | H122: =(I122-G122)/(I111-G111)*(H111-G111)+G122 -> 9000 | I122: 15000 | J122: =(K122-I122)/(K111-I111)*(J111-I111)+I122 -> 9000 | K122: 17000 | L122: =(M122-K122)/(M111-K111)*(L111-K111)+K122 -> 11000 | M122: 20000 | N122: =(O122-M122)/(O111-M111)*(N111-M111)+M122 -> 17000 | O122: 22000 | P122: =(Q122-O122)/(Q111-O111)*(P111-O111)+O122 -> 21999.9 | Q122: 22000.1
A123: =IF(AND(S118>A122,S118<A124)=TRUE,S118,0) -> 0 | C123: =(C124-C122)/(A124-A122)*(A123-A122)+C122 -> 3833.333333 | D123: =(E123-C123)/(E111-C111)*(D111-C111)+C123 -> 3277.777778 | E123: =(E124-E122)/(A124-A122)*(A123-A122)+E122 -> 4666.666667 | F123: =(G123-E123)/(G111-E111)*(F111-E111)+E123 -> -333.3333333 | G123: =(G124-G122)/(A124-A122)*(A123-A122)+G122 -> 9666.666667 | H123: =(I123-G123)/(I111-G111)*(H111-G111)+G123 -> 9000 | I123: =(I124-I122)/(A124-A122)*(A123-A122)+I122 -> 10000 | J123: =(K123-I123)/(K111-I111)*(J111-I111)+I123 -> 14000 | K123: =(K124-K122)/(A124-A122)*(A123-A122)+K122 -> 8666.666667 | L123: =(M123-K123)/(M111-K111)*(L111-K111)+K123 -> 6000 | M123: =(M124-M122)/(A124-A122)*(A123-A122)+M122 -> 10000 | N123: =(O123-M123)/(O111-M111)*(N111-M111)+M123 -> 14500 | O123: =(O124-O122)/(A124-A122)*(A123-A122)+O122 -> 7000 | P123: =(Q123-O123)/(Q111-O111)*(P111-O111)+O123 -> 6999.9 | Q123: =(Q124-Q122)/(A124-A122)*(A123-A122)+Q122 -> 7000.1
A124: 16 | C124: 6500 | D124: =(E124-C124)/(E111-C111)*(D111-C111)+C124 -> 4166.666667 | E124: 10000 | F124: =(G124-E124)/(G111-E111)*(F111-E111)+E124 -> 5000 | G124: 15000 | H124: =(I124-G124)/(I111-G111)*(H111-G111)+G124 -> 9000 | I124: 18000 | J124: =(K124-I124)/(K111-I111)*(J111-I111)+I124 -> 6000 | K124: 22000 | L124: =(M124-K124)/(M111-K111)*(L111-K111)+K124 -> 14000 | M124: 26000 | N124: =(O124-M124)/(O111-M111)*(N111-M111)+M124 -> 18500 | O124: 31000 | P124: =(Q124-O124)/(Q111-O111)*(P111-O111)+O124 -> 30999.9 | Q124: 31000.1
A126: COL | C126: 3 | D126: 4 | E126: 5 | F126: 6 | G126: 7 | H126: 8 | I126: 9 | J126: 10 | K126: 11 | L126: 12 | M126: 13 | N126: 14 | O126: 15 | P126: 16 | Q126: 17
B129: DP | C129: 10 | D129: =IF(AND(V136>C129,V136<E129)=TRUE,V136,0) -> 0 | E129: 25 | F129: =IF(AND(V136>E129,V136<G129)=TRUE,V136,0) -> 0 | G129: 50 | H129: =IF(AND(V136>G129,V136<I129)=TRUE,V136,0) -> 0 | I129: 75 | J129: =IF(AND(V136>I129,V136<K129)=TRUE,V136,0) -> 0 | K129: 100 | L129: =IF(AND(V136>K129,V136<M129)=TRUE,V136,0) -> 0 | M129: 150 | N129: =IF(AND(V136>M129,V136<O129)=TRUE,V136,0) -> 0 | O129: 250 | P129: =IF(AND(V136>O129,V136<Q129)=TRUE,V136,0) -> 0 | Q129: 500
A130: PM
A132: 0.5 | C132: 2250 | D132: =(E132-C132)/(E129-C129)*(D129-C129)+C132 -> 1483.333333 | E132: 3400 | F132: =(G132-E132)/(G129-E129)*(F129-E129)+E132 -> 1800 | G132: 5000 | H132: =(I132-G132)/(I129-G129)*(H129-G129)+G132 -> 4999.8 | I132: 5000.1 | J132: =(K132-I132)/(K129-I129)*(J129-I129)+I132 -> 4999.8 | K132: 5000.2 | L132: =(M132-K132)/(M129-K129)*(L129-K129)+K132 -> 5000 | M132: 5000.3 | N132: =(O132-M132)/(O129-M129)*(N129-M129)+M132 -> 5000.15 | O132: 5000.4 | P132: =(Q132-O132)/(Q129-O129)*(P129-O129)+O132 -> 5000.31 | Q132: 5000.49 | S132: PM | T132: Q | U132: Qcal | V132: DPcal | W132: DP | X132: TIPO
A133: =IF(AND(S136>A132,S136<A134)=TRUE,S136,0) -> 0 | C133: =(C134-C132)/(A134-A132)*(A133-A132)+C132 -> 2000 | D133: =(E133-C133)/(E129-C129)*(D129-C129)+C133 -> 1466.666667 | E133: =(E134-E132)/(A134-A132)*(A133-A132)+E132 -> 2800 | F133: =(G133-E133)/(G129-E129)*(F129-E129)+E133 -> 1100 | G133: =(G134-G132)/(A134-A132)*(A133-A132)+G132 -> 4500 | H133: =(I133-G133)/(I129-G129)*(H129-G129)+G133 -> 7499.6 | I133: =(I134-I132)/(A134-A132)*(A133-A132)+I132 -> 3000.2 | J133: =(K133-I133)/(K129-I129)*(J129-I129)+I133 -> 2999.9 | K133: =(K134-K132)/(A134-A132)*(A133-A132)+K132 -> 3000.3 | L133: =(M133-K133)/(M129-K129)*(L129-K129)+K133 -> 3000.1 | M133: =(M134-M132)/(A134-A132)*(A133-A132)+M132 -> 3000.4 | N133: =(O133-M133)/(O129-M129)*(N129-M129)+M133 -> 3000.25 | O133: =(O134-O132)/(A134-A132)*(A133-A132)+O132 -> 3000.5 | P133: =(Q133-O133)/(Q129-O129)*(P129-O129)+O133 -> 3000.42 | Q133: =(Q134-Q132)/(A134-A132)*(A133-A132)+Q132 -> 3000.58
A134: 1 | C134: 2500 | D134: =(E134-C134)/(E129-C129)*(D129-C129)+C134 -> 1500 | E134: 4000 | F134: =(G134-E134)/(G129-E129)*(F129-E129)+E134 -> 2500 | G134: 5500 | H134: =(I134-G134)/(I129-G129)*(H129-G129)+G134 -> 2500 | I134: 7000 | J134: =(K134-I134)/(K129-I129)*(J129-I129)+I134 -> 6999.7 | K134: 7000.1 | L134: =(M134-K134)/(M129-K129)*(L129-K129)+K134 -> 6999.9 | M134: 7000.2 | N134: =(O134-M134)/(O129-M129)*(N129-M129)+M134 -> 7000.05 | O134: 7000.3 | P134: =(Q134-O134)/(Q129-O129)*(P129-O129)+O134 -> 7000.2 | Q134: 7000.4 | T134: нм3/час | U134: нм3/час | V134: мбар | W134: мбар
A135: =IF(AND(S136>A134,S136<A136)=TRUE,S136,0) -> 0 | C135: =(C136-C134)/(A136-A134)*(A135-A134)+C134 -> 2000 | D135: =(E135-C135)/(E129-C129)*(D129-C129)+C135 -> 1333.333333 | E135: =(E136-E134)/(A136-A134)*(A135-A134)+E134 -> 3000 | F135: =(G135-E135)/(G129-E129)*(F129-E129)+E135 -> 2000 | G135: =(G136-G134)/(A136-A134)*(A135-A134)+G134 -> 4000 | H135: =(I135-G135)/(I129-G129)*(H129-G129)+G135 -> 2000 | I135: =(I136-I134)/(A136-A134)*(A135-A134)+I134 -> 5000 | J135: =(K135-I135)/(K129-I129)*(J129-I129)+I135 -> 7999.4 | K135: =(K136-K134)/(A136-A134)*(A135-A134)+K134 -> 4000.2 | L135: =(M135-K135)/(M129-K129)*(L129-K129)+K135 -> 4000 | M135: =(M136-M134)/(A136-A134)*(A135-A134)+M134 -> 4000.3 | N135: =(O135-M135)/(O129-M129)*(N129-M129)+M135 -> 4000.15 | O135: =(O136-O134)/(A136-A134)*(A135-A134)+O134 -> 4000.4 | P135: =(Q135-O135)/(Q129-O129)*(P129-O129)+O135 -> 4000.3 | Q135: =(Q136-Q134)/(A136-A134)*(A135-A134)+Q134 -> 4000.5
A136: 2 | C136: 3000 | D136: =(E136-C136)/(E129-C129)*(D129-C129)+C136 -> 1666.666667 | E136: 5000 | F136: =(G136-E136)/(G129-E129)*(F129-E129)+E136 -> 3000 | G136: 7000 | H136: =(I136-G136)/(I129-G129)*(H129-G129)+G136 -> 3000 | I136: 9000 | J136: =(K136-I136)/(K129-I129)*(J129-I129)+I136 -> 6000 | K136: 10000 | L136: =(M136-K136)/(M129-K129)*(L129-K129)+K136 -> 9999.8 | M136: 10000.1 | N136: =(O136-M136)/(O129-M129)*(N129-M129)+M136 -> 9999.95 | O136: 10000.2 | P136: =(Q136-O136)/(Q129-O129)*(P129-O129)+O136 -> 10000.1 | Q136: 10000.3 | S136: =Лист1!B17*10 -> 0.1 | T136: =Лист1!B19 -> 3500 | U136: =VLOOKUP(S136,A129:Q144,HLOOKUP(V136,A129:Q144,16,0),0) ->  | V136: =Лист1!B18*10 -> 100 | W136: =IF(S136<A132,"NO",IF(S136>A142,"N0",IF(VLOOKUP(S136,A132:Q142,3,0)>T136,"NO",IF(VLOOKUP(S136,A132:Q142,17,0)<T136,"NO",IF(AND(U136>=T136-0.1,U136<T136+0.1)=TRUE,V136,"NO"))))) -> NO | X136: Фильтр газовый | Y136: =Лист1!F14 -> РЕД-С-4-1-200 DN200
A137: =IF(AND(S136>A136,S136<A138)=TRUE,S136,0) -> 0 | C137: =(C138-C136)/(A138-A136)*(A137-A136)+C136 -> 2000 | D137: =(E137-C137)/(E129-C129)*(D129-C129)+C137 -> 888.8888889 | E137: =(E138-E136)/(A138-A136)*(A137-A136)+E136 -> 3666.666667 | F137: =(G137-E137)/(G129-E129)*(F129-E129)+E137 -> 2333.333333 | G137: =(G138-G136)/(A138-A136)*(A137-A136)+G136 -> 5000 | H137: =(I137-G137)/(I129-G129)*(H129-G129)+G137 -> 1666.666667 | I137: =(I138-I136)/(A138-A136)*(A137-A136)+I136 -> 6666.666667 | J137: =(K137-I137)/(K129-I129)*(J129-I129)+I137 -> 6666.666667 | K137: =(K138-K136)/(A138-A136)*(A137-A136)+K136 -> 6666.666667 | L137: =(M137-K137)/(M129-K129)*(L129-K129)+K137 -> 9999.666667 | M137: =(M138-M136)/(A138-A136)*(A137-A136)+M136 -> 5000.166667 | N137: =(O137-M137)/(O129-M129)*(N129-M129)+M137 -> 5000.016667 | O137: =(O138-O136)/(A138-A136)*(A137-A136)+O136 -> 5000.266667 | P137: =(Q137-O137)/(Q129-O129)*(P129-O129)+O137 -> 5000.166667 | Q137: =(Q138-Q136)/(A138-A136)*(A137-A136)+Q136 -> 5000.366667
A138: 5 | C138: 4500 | D138: =(E138-C138)/(E129-C129)*(D129-C129)+C138 -> 2833.333333 | E138: 7000 | F138: =(G138-E138)/(G129-E129)*(F129-E129)+E138 -> 4000 | G138: 10000 | H138: =(I138-G138)/(I129-G129)*(H129-G129)+G138 -> 5000 | I138: 12500 | J138: =(K138-I138)/(K129-I129)*(J129-I129)+I138 -> 5000 | K138: 15000 | L138: =(M138-K138)/(M129-K129)*(L129-K129)+K138 -> 10000 | M138: 17500 | N138: =(O138-M138)/(O129-M129)*(N129-M129)+M138 -> 17499.85 | O138: 17500.1 | P138: =(Q138-O138)/(Q129-O129)*(P129-O129)+O138 -> 17500 | Q138: 17500.2
A139: =IF(AND(S136>A138,S136<A140)=TRUE,S136,0) -> 0 | C139: =(C140-C138)/(A140-A138)*(A139-A138)+C138 -> 2500 | D139: =(E139-C139)/(E129-C129)*(D129-C129)+C139 -> 1500 | E139: =(E140-E138)/(A140-A138)*(A139-A138)+E138 -> 4000 | F139: =(G139-E139)/(G129-E129)*(F129-E129)+E139 -> 3000 | G139: =(G140-G138)/(A140-A138)*(A139-A138)+G138 -> 5000 | H139: =(I139-G139)/(I129-G129)*(H129-G129)+G139 -> 1000 | I139: =(I140-I138)/(A140-A138)*(A139-A138)+I138 -> 7000 | J139: =(K139-I139)/(K129-I129)*(J129-I129)+I139 -> -3500 | K139: =(K140-K138)/(A140-A138)*(A139-A138)+K138 -> 10500 | L139: =(M139-K139)/(M129-K129)*(L129-K129)+K139 -> 5500 | M139: =(M140-M138)/(A140-A138)*(A139-A138)+M138 -> 13000 | N139: =(O139-M139)/(O129-M129)*(N129-M129)+M139 -> 24999.7 | O139: =(O140-O138)/(A140-A138)*(A139-A138)+O138 -> 5000.2 | P139: =(Q139-O139)/(Q129-O129)*(P129-O129)+O139 -> 5000.1 | Q139: =(Q140-Q138)/(A140-A138)*(A139-A138)+Q138 -> 5000.3
A140: 10 | C140: 6500 | D140: =(E140-C140)/(E129-C129)*(D129-C129)+C140 -> 4166.666667 | E140: 10000 | F140: =(G140-E140)/(G129-E129)*(F129-E129)+E140 -> 5000 | G140: 15000 | H140: =(I140-G140)/(I129-G129)*(H129-G129)+G140 -> 9000 | I140: 18000 | J140: =(K140-I140)/(K129-I129)*(J129-I129)+I140 -> 13500 | K140: 19500 | L140: =(M140-K140)/(M129-K129)*(L129-K129)+K140 -> 14500 | M140: 22000 | N140: =(O140-M140)/(O129-M129)*(N129-M129)+M140 -> 10000 | O140: 30000 | P140: =(Q140-O140)/(Q129-O129)*(P129-O129)+O140 -> 29999.9 | Q140: 30000.1
A141: =IF(AND(S136>A140,S136<A142)=TRUE,S136,0) -> 0 | C141: =(C142-C140)/(A142-A140)*(A141-A140)+C140 -> 4000 | D141: =(E141-C141)/(E129-C129)*(D129-C129)+C141 -> 2222.222222 | E141: =(E142-E140)/(A142-A140)*(A141-A140)+E140 -> 6666.666667 | F141: =(G141-E141)/(G129-E129)*(F129-E129)+E141 -> 3333.333333 | G141: =(G142-G140)/(A142-A140)*(A141-A140)+G140 -> 10000 | H141: =(I141-G141)/(I129-G129)*(H129-G129)+G141 -> 7333.333333 | I141: =(I142-I140)/(A142-A140)*(A141-A140)+I140 -> 11333.33333 | J141: =(K141-I141)/(K129-I129)*(J129-I129)+I141 -> 14333.33333 | K141: =(K142-K140)/(A142-A140)*(A141-A140)+K140 -> 10333.33333 | L141: =(M141-K141)/(M129-K129)*(L129-K129)+K141 -> 17000 | M141: =(M142-M140)/(A142-A140)*(A141-A140)+M140 -> 7000 | N141: =(O141-M141)/(O129-M129)*(N129-M129)+M141 -> -15000 | O141: =(O142-O140)/(A142-A140)*(A141-A140)+O140 -> 21666.66667 | P141: =(Q141-O141)/(Q129-O129)*(P129-O129)+O141 -> 46666.4 | Q141: =(Q142-Q140)/(A142-A140)*(A141-A140)+Q140 -> -3333.066667
A142: 16 | C142: 8000 | D142: =(E142-C142)/(E129-C129)*(D129-C129)+C142 -> 5333.333333 | E142: 12000 | F142: =(G142-E142)/(G129-E129)*(F129-E129)+E142 -> 6000 | G142: 18000 | H142: =(I142-G142)/(I129-G129)*(H129-G129)+G142 -> 10000 | I142: 22000 | J142: =(K142-I142)/(K129-I129)*(J129-I129)+I142 -> 13000 | K142: 25000 | L142: =(M142-K142)/(M129-K129)*(L129-K129)+K142 -> 13000 | M142: 31000 | N142: =(O142-M142)/(O129-M129)*(N129-M129)+M142 -> 25000 | O142: 35000 | P142: =(Q142-O142)/(Q129-O129)*(P129-O129)+O142 -> 20000 | Q142: 50000
A144: COL | C144: 3 | D144: 4 | E144: 5 | F144: 6 | G144: 7 | H144: 8 | I144: 9 | J144: 10 | K144: 11 | L144: 12 | M144: 13 | N144: 14 | O144: 15 | P144: 16 | Q144: 17
B147: DP | C147: 10 | D147: =IF(AND(V154>C147,V154<E147)=TRUE,V154,0) -> 0 | E147: 25 | F147: =IF(AND(V154>E147,V154<G147)=TRUE,V154,0) -> 0 | G147: 50 | H147: =IF(AND(V154>G147,V154<I147)=TRUE,V154,0) -> 0 | I147: 75 | J147: =IF(AND(V154>I147,V154<K147)=TRUE,V154,0) -> 0 | K147: 100 | L147: =IF(AND(V154>K147,V154<M147)=TRUE,V154,0) -> 0 | M147: 150 | N147: =IF(AND(V154>M147,V154<O147)=TRUE,V154,0) -> 0 | O147: 250 | P147: =IF(AND(V154>O147,V154<Q147)=TRUE,V154,0) -> 0 | Q147: 500
A148: PM
A150: 0.5 | C150: 3500 | D150: =(E150-C150)/(E147-C147)*(D147-C147)+C150 -> 2166.666667 | E150: 5500 | F150: =(G150-E150)/(G147-E147)*(F147-E147)+E150 -> 3000 | G150: 8000 | H150: =(I150-G150)/(I147-G147)*(H147-G147)+G150 -> 7999.8 | I150: 8000.1 | J150: =(K150-I150)/(K147-I147)*(J147-I147)+I150 -> 7999.8 | K150: 8000.2 | L150: =(M150-K150)/(M147-K147)*(L147-K147)+K150 -> 8000 | M150: 8000.3 | N150: =(O150-M150)/(O147-M147)*(N147-M147)+M150 -> 8000.15 | O150: 8000.4 | P150: =(Q150-O150)/(Q147-O147)*(P147-O147)+O150 -> 8000.31 | Q150: 8000.49 | S150: PM | T150: Q | U150: Qcal | V150: DPcal | W150: DP | X150: TIPO
A151: =IF(AND(S154>A150,S154<A152)=TRUE,S154,0) -> 0 | C151: =(C152-C150)/(A152-A150)*(A151-A150)+C150 -> 3250 | D151: =(E151-C151)/(E147-C147)*(D147-C147)+C151 -> 2750 | E151: =(E152-E150)/(A152-A150)*(A151-A150)+E150 -> 4000 | F151: =(G151-E151)/(G147-E147)*(F147-E147)+E151 -> 3000 | G151: =(G152-G150)/(A152-A150)*(A151-A150)+G150 -> 5000 | H151: =(I151-G151)/(I147-G147)*(H147-G147)+G151 -> 4999.8 | I151: =(I152-I150)/(A152-A150)*(A151-A150)+I150 -> 5000.1 | J151: =(K151-I151)/(K147-I147)*(J147-I147)+I151 -> 4999.8 | K151: =(K152-K150)/(A152-A150)*(A151-A150)+K150 -> 5000.2 | L151: =(M151-K151)/(M147-K147)*(L147-K147)+K151 -> 5000 | M151: =(M152-M150)/(A152-A150)*(A151-A150)+M150 -> 5000.3 | N151: =(O151-M151)/(O147-M147)*(N147-M147)+M151 -> 5000.15 | O151: =(O152-O150)/(A152-A150)*(A151-A150)+O150 -> 5000.4 | P151: =(Q151-O151)/(Q147-O147)*(P147-O147)+O151 -> 5000.31 | Q151: =(Q152-Q150)/(A152-A150)*(A151-A150)+Q150 -> 5000.49
A152: 1 | C152: 3750 | D152: =(E152-C152)/(E147-C147)*(D147-C147)+C152 -> 1583.333333 | E152: 7000 | F152: =(G152-E152)/(G147-E147)*(F147-E147)+E152 -> 3000 | G152: 11000 | H152: =(I152-G152)/(I147-G147)*(H147-G147)+G152 -> 10999.8 | I152: 11000.1 | J152: =(K152-I152)/(K147-I147)*(J147-I147)+I152 -> 10999.8 | K152: 11000.2 | L152: =(M152-K152)/(M147-K147)*(L147-K147)+K152 -> 11000 | M152: 11000.3 | N152: =(O152-M152)/(O147-M147)*(N147-M147)+M152 -> 11000.15 | O152: 11000.4 | P152: =(Q152-O152)/(Q147-O147)*(P147-O147)+O152 -> 11000.31 | Q152: 11000.49 | T152: нм3/час | U152: нм3/час | V152: мбар | W152: мбар
A153: =IF(AND(S154>A152,S154<A154)=TRUE,S154,0) -> 0 | C153: =(C154-C152)/(A154-A152)*(A153-A152)+C152 -> 1000 | D153: =(E153-C153)/(E147-C147)*(D147-C147)+C153 -> -2000 | E153: =(E154-E152)/(A154-A152)*(A153-A152)+E152 -> 5500 | F153: =(G153-E153)/(G147-E147)*(F147-E147)+E153 -> 1500 | G153: =(G154-G152)/(A154-A152)*(A153-A152)+G152 -> 9500 | H153: =(I153-G153)/(I147-G147)*(H147-G147)+G153 -> 16499.6 | I153: =(I154-I152)/(A154-A152)*(A153-A152)+I152 -> 6000.2 | J153: =(K153-I153)/(K147-I147)*(J147-I147)+I153 -> 5999.9 | K153: =(K154-K152)/(A154-A152)*(A153-A152)+K152 -> 6000.3 | L153: =(M153-K153)/(M147-K147)*(L147-K147)+K153 -> 6000.1 | M153: =(M154-M152)/(A154-A152)*(A153-A152)+M152 -> 6000.4 | N153: =(O153-M153)/(O147-M147)*(N147-M147)+M153 -> 6000.25 | O153: =(O154-O152)/(A154-A152)*(A153-A152)+O152 -> 6000.5 | P153: =(Q153-O153)/(Q147-O147)*(P147-O147)+O153 -> 6000.42 | Q153: =(Q154-Q152)/(A154-A152)*(A153-A152)+Q152 -> 6000.58
A154: 2 | C154: 6500 | D154: =(E154-C154)/(E147-C147)*(D147-C147)+C154 -> 5166.666667 | E154: 8500 | F154: =(G154-E154)/(G147-E147)*(F147-E147)+E154 -> 4500 | G154: 12500 | H154: =(I154-G154)/(I147-G147)*(H147-G147)+G154 -> 5500 | I154: 16000 | J154: =(K154-I154)/(K147-I147)*(J147-I147)+I154 -> 15999.7 | K154: 16000.1 | L154: =(M154-K154)/(M147-K147)*(L147-K147)+K154 -> 15999.9 | M154: 16000.2 | N154: =(O154-M154)/(O147-M147)*(N147-M147)+M154 -> 16000.05 | O154: 16000.3 | P154: =(Q154-O154)/(Q147-O147)*(P147-O147)+O154 -> 16000.2 | Q154: 16000.4 | S154: =Лист1!B17*10 -> 0.1 | T154: =Лист1!B19 -> 3500 | U154: =VLOOKUP(S154,A147:Q162,HLOOKUP(V154,A147:Q162,16,0),0) ->  | V154: =Лист1!B18*10 -> 100 | W154: =IF(S154<A150,"NO",IF(S154>A160,"N0",IF(VLOOKUP(S154,A150:Q160,3,0)>T154,"NO",IF(VLOOKUP(S154,A150:Q160,17,0)<T154,"NO",IF(AND(U154>=T154-0.1,U154<T154+0.1)=TRUE,V154,"NO"))))) -> NO | X154: Фильтр газовый | Y154: =Лист1!F15 -> РЕД-С-5-1-250 DN250
A155: =IF(AND(S154>A154,S154<A156)=TRUE,S154,0) -> 0 | C155: =(C156-C154)/(A156-A154)*(A155-A154)+C154 -> 5166.666667 | D155: =(E155-C155)/(E147-C147)*(D147-C147)+C155 -> 4944.444444 | E155: =(E156-E154)/(A156-A154)*(A155-A154)+E154 -> 5500 | F155: =(G155-E155)/(G147-E147)*(F147-E147)+E155 -> 1833.333333 | G155: =(G156-G154)/(A156-A154)*(A155-A154)+G154 -> 9166.666667 | H155: =(I155-G155)/(I147-G147)*(H147-G147)+G155 -> 2166.666667 | I155: =(I156-I154)/(A156-A154)*(A155-A154)+I154 -> 12666.66667 | J155: =(K155-I155)/(K147-I147)*(J147-I147)+I155 -> 22666.16667 | K155: =(K156-K154)/(A156-A154)*(A155-A154)+K154 -> 9333.5 | L155: =(M155-K155)/(M147-K147)*(L147-K147)+K155 -> 17333.16667 | M155: =(M156-M154)/(A156-A154)*(A155-A154)+M154 -> 5333.666667 | N155: =(O155-M155)/(O147-M147)*(N147-M147)+M155 -> 5333.516667 | O155: =(O156-O154)/(A156-A154)*(A155-A154)+O154 -> 5333.766667 | P155: =(Q155-O155)/(Q147-O147)*(P147-O147)+O155 -> 5333.666667 | Q155: =(Q156-Q154)/(A156-A154)*(A155-A154)+Q154 -> 5333.866667
A156: 5 | C156: 8500 | D156: =(E156-C156)/(E147-C147)*(D147-C147)+C156 -> 5500 | E156: 13000 | F156: =(G156-E156)/(G147-E147)*(F147-E147)+E156 -> 8500 | G156: 17500 | H156: =(I156-G156)/(I147-G147)*(H147-G147)+G156 -> 10500 | I156: 21000 | J156: =(K156-I156)/(K147-I147)*(J147-I147)+I156 -> 6000 | K156: 26000 | L156: =(M156-K156)/(M147-K147)*(L147-K147)+K156 -> 14000 | M156: 32000 | N156: =(O156-M156)/(O147-M147)*(N147-M147)+M156 -> 31999.85 | O156: 32000.1 | P156: =(Q156-O156)/(Q147-O147)*(P147-O147)+O156 -> 32000 | Q156: 32000.2
A157: =IF(AND(S154>A156,S154<A158)=TRUE,S154,0) -> 0 | C157: =(C158-C156)/(A158-A156)*(A157-A156)+C156 -> 5000 | D157: =(E157-C157)/(E147-C147)*(D147-C147)+C157 -> 3000 | E157: =(E158-E156)/(A158-A156)*(A157-A156)+E156 -> 8000 | F157: =(G157-E157)/(G147-E147)*(F147-E147)+E157 -> 8000 | G157: =(G158-G156)/(A158-A156)*(A157-A156)+G156 -> 8000 | H157: =(I157-G157)/(I147-G147)*(H147-G147)+G157 -> 4000 | I157: =(I158-I156)/(A158-A156)*(A157-A156)+I156 -> 10000 | J157: =(K157-I157)/(K147-I147)*(J147-I147)+I157 -> -11000 | K157: =(K158-K156)/(A158-A156)*(A157-A156)+K156 -> 17000 | L157: =(M157-K157)/(M147-K147)*(L147-K147)+K157 -> 3000 | M157: =(M158-M156)/(A158-A156)*(A157-A156)+M156 -> 24000 | N157: =(O157-M157)/(O147-M147)*(N147-M147)+M157 -> 49499.7 | O157: =(O158-O156)/(A158-A156)*(A157-A156)+O156 -> 7000.2 | P157: =(Q157-O157)/(Q147-O147)*(P147-O147)+O157 -> 7000.1 | Q157: =(Q158-Q156)/(A158-A156)*(A157-A156)+Q156 -> 7000.3
A158: 10 | C158: 12000 | D158: =(E158-C158)/(E147-C147)*(D147-C147)+C158 -> 8000 | E158: 18000 | F158: =(G158-E158)/(G147-E147)*(F147-E147)+E158 -> 9000 | G158: 27000 | H158: =(I158-G158)/(I147-G147)*(H147-G147)+G158 -> 17000 | I158: 32000 | J158: =(K158-I158)/(K147-I147)*(J147-I147)+I158 -> 23000 | K158: 35000 | L158: =(M158-K158)/(M147-K147)*(L147-K147)+K158 -> 25000 | M158: 40000 | N158: =(O158-M158)/(O147-M147)*(N147-M147)+M158 -> 14500 | O158: 57000 | P158: =(Q158-O158)/(Q147-O147)*(P147-O147)+O158 -> 56999.9 | Q158: 57000.1
A159: =IF(AND(S154>A158,S154<A160)=TRUE,S154,0) -> 0 | C159: =(C160-C158)/(A160-A158)*(A159-A158)+C158 -> 8666.666667 | D159: =(E159-C159)/(E147-C147)*(D147-C147)+C159 -> 6888.888889 | E159: =(E160-E158)/(A160-A158)*(A159-A158)+E158 -> 11333.33333 | F159: =(G159-E159)/(G147-E147)*(F147-E147)+E159 -> 4000 | G159: =(G160-G158)/(A160-A158)*(A159-A158)+G158 -> 18666.66667 | H159: =(I159-G159)/(I147-G147)*(H147-G147)+G159 -> 18666.66667 | I159: =(I160-I158)/(A160-A158)*(A159-A158)+I158 -> 18666.66667 | J159: =(K159-I159)/(K147-I147)*(J147-I147)+I159 -> 19666.66667 | K159: =(K160-K158)/(A160-A158)*(A159-A158)+K158 -> 18333.33333 | L159: =(M159-K159)/(M147-K147)*(L147-K147)+K159 -> 25000 | M159: =(M160-M158)/(A160-A158)*(A159-A158)+M158 -> 15000 | N159: =(O159-M159)/(O147-M147)*(N147-M147)+M159 -> -28000 | O159: =(O160-O158)/(A160-A158)*(A159-A158)+O158 -> 43666.66667 | P159: =(Q159-O159)/(Q147-O147)*(P147-O147)+O159 -> 85333.06667 | Q159: =(Q160-Q158)/(A160-A158)*(A159-A158)+Q158 -> 2000.266667
A160: 16 | C160: 14000 | D160: =(E160-C160)/(E147-C147)*(D147-C147)+C160 -> 8666.666667 | E160: 22000 | F160: =(G160-E160)/(G147-E147)*(F147-E147)+E160 -> 12000 | G160: 32000 | H160: =(I160-G160)/(I147-G147)*(H147-G147)+G160 -> 16000 | I160: 40000 | J160: =(K160-I160)/(K147-I147)*(J147-I147)+I160 -> 25000 | K160: 45000 | L160: =(M160-K160)/(M147-K147)*(L147-K147)+K160 -> 25000 | M160: 55000 | N160: =(O160-M160)/(O147-M147)*(N147-M147)+M160 -> 40000 | O160: 65000 | P160: =(Q160-O160)/(Q147-O147)*(P147-O147)+O160 -> 40000 | Q160: 90000
A162: COL | C162: 3 | D162: 4 | E162: 5 | F162: 6 | G162: 7 | H162: 8 | I162: 9 | J162: 10 | K162: 11 | L162: 12 | M162: 13 | N162: 14 | O162: 15 | P162: 16 | Q162: 17
B165: DP | C165: 10 | D165: =IF(AND(V172>C165,V172<E165)=TRUE,V172,0) -> 0 | E165: 25 | F165: =IF(AND(V172>E165,V172<G165)=TRUE,V172,0) -> 0 | G165: 50 | H165: =IF(AND(V172>G165,V172<I165)=TRUE,V172,0) -> 0 | I165: 75 | J165: =IF(AND(V172>I165,V172<K165)=TRUE,V172,0) -> 0 | K165: 100 | L165: =IF(AND(V172>K165,V172<M165)=TRUE,V172,0) -> 0 | M165: 150 | N165: =IF(AND(V172>M165,V172<O165)=TRUE,V172,0) -> 0 | O165: 250 | P165: =IF(AND(V172>O165,V172<Q165)=TRUE,V172,0) -> 0 | Q165: 500
A166: PM
A168: 0.5 | C168: 6000 | D168: =(E168-C168)/(E165-C165)*(D165-C165)+C168 -> 4000 | E168: 9000 | F168: =(G168-E168)/(G165-E165)*(F165-E165)+E168 -> 7000 | G168: 11000 | H168: =(I168-G168)/(I165-G165)*(H165-G165)+G168 -> 10000 | I168: 11500 | J168: =(K168-I168)/(K165-I165)*(J165-I165)+I168 -> 11499.7 | K168: 11500.1 | L168: =(M168-K168)/(M165-K165)*(L165-K165)+K168 -> 11499.9 | M168: 11500.2 | N168: =(O168-M168)/(O165-M165)*(N165-M165)+M168 -> 11500.05 | O168: 11500.3 | P168: =(Q168-O168)/(Q165-O165)*(P165-O165)+O168 -> 11500.2 | Q168: 11500.4 | S168: PM | T168: Q | U168: Qcal | V168: DPcal | W168: DP | X168: TIPO
A169: =IF(AND(S172>A168,S172<A170)=TRUE,S172,0) -> 0 | C169: =(C170-C168)/(A170-A168)*(A169-A168)+C168 -> 5000 | D169: =(E169-C169)/(E165-C165)*(D165-C165)+C169 -> 3000 | E169: =(E170-E168)/(A170-A168)*(A169-A168)+E168 -> 8000 | F169: =(G169-E169)/(G165-E165)*(F165-E165)+E169 -> 9000 | G169: =(G170-G168)/(A170-A168)*(A169-A168)+G168 -> 7000 | H169: =(I169-G169)/(I165-G165)*(H165-G165)+G169 -> 5000.2 | I169: =(I170-I168)/(A170-A168)*(A169-A168)+I168 -> 7999.9 | J169: =(K169-I169)/(K165-I165)*(J165-I165)+I169 -> 7999.6 | K169: =(K170-K168)/(A170-A168)*(A169-A168)+K168 -> 8000 | L169: =(M169-K169)/(M165-K165)*(L165-K165)+K169 -> 7999.8 | M169: =(M170-M168)/(A170-A168)*(A169-A168)+M168 -> 8000.1 | N169: =(O169-M169)/(O165-M165)*(N165-M165)+M169 -> 7999.95 | O169: =(O170-O168)/(A170-A168)*(A169-A168)+O168 -> 8000.2 | P169: =(Q169-O169)/(Q165-O165)*(P165-O165)+O169 -> 8000.09 | Q169: =(Q170-Q168)/(A170-A168)*(A169-A168)+Q168 -> 8000.31
A170: 1 | C170: 7000 | D170: =(E170-C170)/(E165-C165)*(D165-C165)+C170 -> 5000 | E170: 10000 | F170: =(G170-E170)/(G165-E165)*(F165-E165)+E170 -> 5000 | G170: 15000 | H170: =(I170-G170)/(I165-G165)*(H165-G165)+G170 -> 14999.8 | I170: 15000.1 | J170: =(K170-I170)/(K165-I165)*(J165-I165)+I170 -> 14999.8 | K170: 15000.2 | L170: =(M170-K170)/(M165-K165)*(L165-K165)+K170 -> 15000 | M170: 15000.3 | N170: =(O170-M170)/(O165-M165)*(N165-M165)+M170 -> 15000.15 | O170: 15000.4 | P170: =(Q170-O170)/(Q165-O165)*(P165-O165)+O170 -> 15000.31 | Q170: 15000.49 | T170: нм3/час | U170: нм3/час | V170: мбар | W170: мбар
A171: =IF(AND(S172>A170,S172<A172)=TRUE,S172,0) -> 0 | C171: =(C172-C170)/(A172-A170)*(A171-A170)+C170 -> 6000 | D171: =(E171-C171)/(E165-C165)*(D165-C165)+C171 -> 5333.333333 | E171: =(E172-E170)/(A172-A170)*(A171-A170)+E170 -> 7000 | F171: =(G171-E171)/(G165-E165)*(F165-E165)+E171 -> 3000 | G171: =(G172-G170)/(A172-A170)*(A171-A170)+G170 -> 11000 | H171: =(I171-G171)/(I165-G165)*(H165-G165)+G171 -> 18999.6 | I171: =(I172-I170)/(A172-A170)*(A171-A170)+I170 -> 7000.2 | J171: =(K171-I171)/(K165-I165)*(J165-I165)+I171 -> 6999.9 | K171: =(K172-K170)/(A172-A170)*(A171-A170)+K170 -> 7000.3 | L171: =(M171-K171)/(M165-K165)*(L165-K165)+K171 -> 7000.1 | M171: =(M172-M170)/(A172-A170)*(A171-A170)+M170 -> 7000.4 | N171: =(O171-M171)/(O165-M165)*(N165-M165)+M171 -> 7000.25 | O171: =(O172-O170)/(A172-A170)*(A171-A170)+O170 -> 7000.5 | P171: =(Q171-O171)/(Q165-O165)*(P165-O165)+O171 -> 7000.42 | Q171: =(Q172-Q170)/(A172-A170)*(A171-A170)+Q170 -> 7000.58
A172: 2 | C172: 8000 | D172: =(E172-C172)/(E165-C165)*(D165-C165)+C172 -> 4666.666667 | E172: 13000 | F172: =(G172-E172)/(G165-E165)*(F165-E165)+E172 -> 7000 | G172: 19000 | H172: =(I172-G172)/(I165-G165)*(H165-G165)+G172 -> 11000 | I172: 23000 | J172: =(K172-I172)/(K165-I165)*(J165-I165)+I172 -> 22999.7 | K172: 23000.1 | L172: =(M172-K172)/(M165-K165)*(L165-K165)+K172 -> 22999.9 | M172: 23000.2 | N172: =(O172-M172)/(O165-M165)*(N165-M165)+M172 -> 23000.05 | O172: 23000.3 | P172: =(Q172-O172)/(Q165-O165)*(P165-O165)+O172 -> 23000.2 | Q172: 23000.4 | S172: =Лист1!B17*10 -> 0.1 | T172: =Лист1!B19 -> 3500 | U172: =VLOOKUP(S172,A165:Q180,HLOOKUP(V172,A165:Q180,16,0),0) ->  | V172: =Лист1!B18*10 -> 100 | W172: =IF(S172<A168,"NO",IF(S172>A178,"N0",IF(VLOOKUP(S172,A168:Q178,3,0)>T172,"NO",IF(VLOOKUP(S172,A168:Q178,17,0)<T172,"NO",IF(AND(U172>=T172-0.1,U172<T172+0.1)=TRUE,V172,"NO"))))) -> NO | X172: Фильтр газовый | Y172: =Лист1!F16 -> РЕД-С-6-1-300 DN300
A173: =IF(AND(S172>A172,S172<A174)=TRUE,S172,0) -> 0 | C173: =(C174-C172)/(A174-A172)*(A173-A172)+C172 -> 4333.333333 | D173: =(E173-C173)/(E165-C165)*(D165-C165)+C173 -> 1666.666667 | E173: =(E174-E172)/(A174-A172)*(A173-A172)+E172 -> 8333.333333 | F173: =(G173-E173)/(G165-E165)*(F165-E165)+E173 -> 1666.666667 | G173: =(G174-G172)/(A174-A172)*(A173-A172)+G172 -> 15000 | H173: =(I173-G173)/(I165-G165)*(H165-G165)+G173 -> 8333.333333 | I173: =(I174-I172)/(A174-A172)*(A173-A172)+I172 -> 18333.33333 | J173: =(K173-I173)/(K165-I165)*(J165-I165)+I173 -> 28332.83333 | K173: =(K174-K172)/(A174-A172)*(A173-A172)+K172 -> 15000.16667 | L173: =(M173-K173)/(M165-K165)*(L165-K165)+K173 -> 28333.16667 | M173: =(M174-M172)/(A174-A172)*(A173-A172)+M172 -> 8333.666667 | N173: =(O173-M173)/(O165-M165)*(N165-M165)+M173 -> 8333.516667 | O173: =(O174-O172)/(A174-A172)*(A173-A172)+O172 -> 8333.766667 | P173: =(Q173-O173)/(Q165-O165)*(P165-O165)+O173 -> 8333.666667 | Q173: =(Q174-Q172)/(A174-A172)*(A173-A172)+Q172 -> 8333.866667
A174: 5 | C174: 13500 | D174: =(E174-C174)/(E165-C165)*(D165-C165)+C174 -> 9166.666667 | E174: 20000 | F174: =(G174-E174)/(G165-E165)*(F165-E165)+E174 -> 15000 | G174: 25000 | H174: =(I174-G174)/(I165-G165)*(H165-G165)+G174 -> 15000 | I174: 30000 | J174: =(K174-I174)/(K165-I165)*(J165-I165)+I174 -> 15000 | K174: 35000 | L174: =(M174-K174)/(M165-K165)*(L165-K165)+K174 -> 15000 | M174: 45000 | N174: =(O174-M174)/(O165-M165)*(N165-M165)+M174 -> 44999.85 | O174: 45000.1 | P174: =(Q174-O174)/(Q165-O165)*(P165-O165)+O174 -> 45000 | Q174: 45000.2
A175: =IF(AND(S172>A174,S172<A176)=TRUE,S172,0) -> 0 | C175: =(C176-C174)/(A176-A174)*(A175-A174)+C174 -> 8000 | D175: =(E175-C175)/(E165-C165)*(D165-C165)+C175 -> 5333.333333 | E175: =(E176-E174)/(A176-A174)*(A175-A174)+E174 -> 12000 | F175: =(G175-E175)/(G165-E165)*(F165-E165)+E175 -> 16000 | G175: =(G176-G174)/(A176-A174)*(A175-A174)+G174 -> 8000 | H175: =(I175-G175)/(I165-G165)*(H165-G165)+G175 -> 0 | I175: =(I176-I174)/(A176-A174)*(A175-A174)+I174 -> 12000 | J175: =(K175-I175)/(K165-I165)*(J165-I165)+I175 -> -12000 | K175: =(K176-K174)/(A176-A174)*(A175-A174)+K174 -> 20000 | L175: =(M175-K175)/(M165-K165)*(L165-K165)+K175 -> 0 | M175: =(M176-M174)/(A176-A174)*(A175-A174)+M174 -> 30000 | N175: =(O175-M175)/(O165-M165)*(N165-M165)+M175 -> 67499.7 | O175: =(O176-O174)/(A176-A174)*(A175-A174)+O174 -> 5000.2 | P175: =(Q175-O175)/(Q165-O165)*(P165-O165)+O175 -> 5000.1 | Q175: =(Q176-Q174)/(A176-A174)*(A175-A174)+Q174 -> 5000.3
A176: 10 | C176: 19000 | D176: =(E176-C176)/(E165-C165)*(D165-C165)+C176 -> 13000 | E176: 28000 | F176: =(G176-E176)/(G165-E165)*(F165-E165)+E176 -> 14000 | G176: 42000 | H176: =(I176-G176)/(I165-G165)*(H165-G165)+G176 -> 30000 | I176: 48000 | J176: =(K176-I176)/(K165-I165)*(J165-I165)+I176 -> 42000 | K176: 50000 | L176: =(M176-K176)/(M165-K165)*(L165-K165)+K176 -> 30000 | M176: 60000 | N176: =(O176-M176)/(O165-M165)*(N165-M165)+M176 -> 22500 | O176: 85000 | P176: =(Q176-O176)/(Q165-O165)*(P165-O165)+O176 -> 84999.9 | Q176: 85000.1
A177: =IF(AND(S172>A176,S172<A178)=TRUE,S172,0) -> 0 | C177: =(C178-C176)/(A178-A176)*(A177-A176)+C176 -> 14000 | D177: =(E177-C177)/(E165-C165)*(D165-C165)+C177 -> 12444.44444 | E177: =(E178-E176)/(A178-A176)*(A177-A176)+E176 -> 16333.33333 | F177: =(G177-E177)/(G165-E165)*(F165-E165)+E177 -> 4000 | G177: =(G178-G176)/(A178-A176)*(A177-A176)+G176 -> 28666.66667 | H177: =(I177-G177)/(I165-G165)*(H165-G165)+G177 -> 36666.66667 | I177: =(I178-I176)/(A178-A176)*(A177-A176)+I176 -> 24666.66667 | J177: =(K177-I177)/(K165-I165)*(J165-I165)+I177 -> 48666.66667 | K177: =(K178-K176)/(A178-A176)*(A177-A176)+K176 -> 16666.66667 | L177: =(M177-K177)/(M165-K165)*(L165-K165)+K177 -> 13333.33333 | M177: =(M178-M176)/(A178-A176)*(A177-A176)+M176 -> 18333.33333 | N177: =(O177-M177)/(O165-M165)*(N165-M165)+M177 -> -69166.66667 | O177: =(O178-O176)/(A178-A176)*(A177-A176)+O176 -> 76666.66667 | P177: =(Q177-O177)/(Q165-O165)*(P165-O165)+O177 -> 143333.0667 | Q177: =(Q178-Q176)/(A178-A176)*(A177-A176)+Q176 -> 10000.26667
A178: 16 | C178: 22000 | D178: =(E178-C178)/(E165-C165)*(D165-C165)+C178 -> 13333.33333 | E178: 35000 | F178: =(G178-E178)/(G165-E165)*(F165-E165)+E178 -> 20000 | G178: 50000 | H178: =(I178-G178)/(I165-G165)*(H165-G165)+G178 -> 26000 | I178: 62000 | J178: =(K178-I178)/(K165-I165)*(J165-I165)+I178 -> 38000 | K178: 70000 | L178: =(M178-K178)/(M165-K165)*(L165-K165)+K178 -> 40000 | M178: 85000 | N178: =(O178-M178)/(O165-M165)*(N165-M165)+M178 -> 77500 | O178: 90000 | P178: =(Q178-O178)/(Q165-O165)*(P165-O165)+O178 -> 50000 | Q178: 130000
A180: COL | C180: 3 | D180: 4 | E180: 5 | F180: 6 | G180: 7 | H180: 8 | I180: 9 | J180: 10 | K180: 11 | L180: 12 | M180: 13 | N180: 14 | O180: 15 | P180: 16 | Q180: 17
B183: DP | C183: 10 | D183: =IF(AND(V190>C183,V190<E183)=TRUE,V190,0) -> 0 | E183: 25 | F183: =IF(AND(V190>E183,V190<G183)=TRUE,V190,0) -> 0 | G183: 50 | H183: =IF(AND(V190>G183,V190<I183)=TRUE,V190,0) -> 0 | I183: 75 | J183: =IF(AND(V190>I183,V190<K183)=TRUE,V190,0) -> 0 | K183: 100 | L183: =IF(AND(V190>K183,V190<M183)=TRUE,V190,0) -> 0 | M183: 150 | N183: =IF(AND(V190>M183,V190<O183)=TRUE,V190,0) -> 0 | O183: 250 | P183: =IF(AND(V190>O183,V190<Q183)=TRUE,V190,0) -> 0 | Q183: 500
A184: PM
A186: 0.5 | C186: =C168*1.5 -> 9000 | D186: =(E186-C186)/(E183-C183)*(D183-C183)+C186 -> 6000 | E186: =E168*1.5 -> 13500 | F186: =(G186-E186)/(G183-E183)*(F183-E183)+E186 -> 8300 | G186: =G168*1.7 -> 18700 | H186: =(I186-G186)/(I183-G183)*(H183-G183)+G186 -> 17000 | I186: =I168*1.7 -> 19550 | J186: =(K186-I186)/(K183-I183)*(J183-I183)+I186 -> 19549.49 | K186: =K168*1.7 -> 19550.17 | L186: =(M186-K186)/(M183-K183)*(L183-K183)+K186 -> 19549.83 | M186: =M168*1.7 -> 19550.34 | N186: =(O186-M186)/(O183-M183)*(N183-M183)+M186 -> 19550.34 | O186: =M186 -> 19550.34 | P186: =(Q186-O186)/(Q183-O183)*(P183-O183)+O186 -> 19550.34 | Q186: =O186 -> 19550.34 | S186: PM | T186: Q | U186: Qcal | V186: DPcal | W186: DP | X186: TIPO
A187: =IF(AND(S190>A186,S190<A188)=TRUE,S190,0) -> 0 | C187: =(C188-C186)/(A188-A186)*(A187-A186)+C186 -> 7500 | D187: =(E187-C187)/(E183-C183)*(D183-C183)+C187 -> 4500 | E187: =(E188-E186)/(A188-A186)*(A187-A186)+E186 -> 12000 | F187: =(G187-E187)/(G183-E183)*(F183-E183)+E187 -> 12100 | G187: =(G188-G186)/(A188-A186)*(A187-A186)+G186 -> 11900 | H187: =(I187-G187)/(I183-G183)*(H183-G183)+G187 -> 8500.34 | I187: =(I188-I186)/(A188-A186)*(A187-A186)+I186 -> 13599.83 | J187: =(K187-I187)/(K183-I183)*(J183-I183)+I187 -> 13599.32 | K187: =(K188-K186)/(A188-A186)*(A187-A186)+K186 -> 13600 | L187: =(M187-K187)/(M183-K183)*(L183-K183)+K187 -> 13599.32 | M187: =(M188-M186)/(A188-A186)*(A187-A186)+M186 -> 13600.34 | N187: =(O187-M187)/(O183-M183)*(N183-M183)+M187 -> 13600.34 | O187: =(O188-O186)/(A188-A186)*(A187-A186)+O186 -> 13600.34 | P187: =(Q187-O187)/(Q183-O183)*(P183-O183)+O187 -> 13600.34 | Q187: =(Q188-Q186)/(A188-A186)*(A187-A186)+Q186 -> 13600.34
A188: 1 | C188: =C170*1.5 -> 10500 | D188: =(E188-C188)/(E183-C183)*(D183-C183)+C188 -> 7500 | E188: =E170*1.5 -> 15000 | F188: =(G188-E188)/(G183-E183)*(F183-E183)+E188 -> 4500 | G188: =G170*1.7 -> 25500 | H188: =(I188-G188)/(I183-G183)*(H183-G183)+G188 -> 25499.66 | I188: =I170*1.7 -> 25500.17 | J188: =(K188-I188)/(K183-I183)*(J183-I183)+I188 -> 25499.66 | K188: =K170*1.7 -> 25500.34 | L188: =(M188-K188)/(M183-K183)*(L183-K183)+K188 -> 25500.34 | M188: =K188 -> 25500.34 | N188: =(O188-M188)/(O183-M183)*(N183-M183)+M188 -> 25500.34 | O188: =M188 -> 25500.34 | P188: =(Q188-O188)/(Q183-O183)*(P183-O183)+O188 -> 25500.34 | Q188: =O188 -> 25500.34 | T188: нм3/час | U188: нм3/час | V188: мбар | W188: мбар
A189: =IF(AND(S190>A188,S190<A190)=TRUE,S190,0) -> 0 | C189: =(C190-C188)/(A190-A188)*(A189-A188)+C188 -> 9000 | D189: =(E189-C189)/(E183-C183)*(D183-C183)+C189 -> 8000 | E189: =(E190-E188)/(A190-A188)*(A189-A188)+E188 -> 10500 | F189: =(G189-E189)/(G183-E183)*(F183-E183)+E189 -> 2300 | G189: =(G190-G188)/(A190-A188)*(A189-A188)+G188 -> 18700 | H189: =(I189-G189)/(I183-G183)*(H183-G183)+G189 -> 32299.32 | I189: =(I190-I188)/(A190-A188)*(A189-A188)+I188 -> 11900.34 | J189: =(K189-I189)/(K183-I183)*(J183-I183)+I189 -> 11899.83 | K189: =(K190-K188)/(A190-A188)*(A189-A188)+K188 -> 11900.51 | L189: =(M189-K189)/(M183-K183)*(L183-K183)+K189 -> 11900.85 | M189: =(M190-M188)/(A190-A188)*(A189-A188)+M188 -> 11900.34 | N189: =(O189-M189)/(O183-M183)*(N183-M183)+M189 -> 11900.34 | O189: =(O190-O188)/(A190-A188)*(A189-A188)+O188 -> 11900.34 | P189: =(Q189-O189)/(Q183-O183)*(P183-O183)+O189 -> 11900.34 | Q189: =(Q190-Q188)/(A190-A188)*(A189-A188)+Q188 -> 11900.34
A190: 2 | C190: =C172*1.5 -> 12000 | D190: =(E190-C190)/(E183-C183)*(D183-C183)+C190 -> 7000 | E190: =E172*1.5 -> 19500 | F190: =(G190-E190)/(G183-E183)*(F183-E183)+E190 -> 6700 | G190: =G172*1.7 -> 32300 | H190: =(I190-G190)/(I183-G183)*(H183-G183)+G190 -> 18700 | I190: =I172*1.7 -> 39100 | J190: =(K190-I190)/(K183-I183)*(J183-I183)+I190 -> 39099.49 | K190: =K172*1.7 -> 39100.17 | L190: =(M190-K190)/(M183-K183)*(L183-K183)+K190 -> 39099.83 | M190: =M172*1.7 -> 39100.34 | N190: =(O190-M190)/(O183-M183)*(N183-M183)+M190 -> 39100.34 | O190: =M190 -> 39100.34 | P190: =(Q190-O190)/(Q183-O183)*(P183-O183)+O190 -> 39100.34 | Q190: =M190 -> 39100.34 | S190: =Лист1!B17*10 -> 0.1 | T190: =Лист1!B19 -> 3500 | U190: =VLOOKUP(S190,A183:Q198,HLOOKUP(V190,A183:Q198,16,0),0) ->  | V190: =Лист1!B18*10 -> 100 | W190: =IF(S190<A186,"NO",IF(S190>A196,"N0",IF(VLOOKUP(S190,A186:Q196,3,0)>T190,"NO",IF(VLOOKUP(S190,A186:Q196,17,0)<T190,"NO",IF(AND(U190>=T190-0.1,U190<T190+0.1)=TRUE,V190,"NO"))))) -> NO | X190: Фильтр газовый | Y190: =Лист1!F17 -> РЕД-С-8-1-400 DN400
A191: =IF(AND(S190>A190,S190<A192)=TRUE,S190,0) -> 0 | C191: =(C192-C190)/(A192-A190)*(A191-A190)+C190 -> 6500 | D191: =(E191-C191)/(E183-C183)*(D183-C183)+C191 -> 2500 | E191: =(E192-E190)/(A192-A190)*(A191-A190)+E190 -> 12500 | F191: =(G191-E191)/(G183-E183)*(F183-E183)+E191 -> -500 | G191: =(G192-G190)/(A192-A190)*(A191-A190)+G190 -> 25500 | H191: =(I191-G191)/(I183-G183)*(H183-G183)+G191 -> 14166.66667 | I191: =(I192-I190)/(A192-A190)*(A191-A190)+I190 -> 31166.66667 | J191: =(K191-I191)/(K183-I183)*(J183-I183)+I191 -> 48165.81667 | K191: =(K192-K190)/(A192-A190)*(A191-A190)+K190 -> 25500.28333 | L191: =(M191-K191)/(M183-K183)*(L183-K183)+K191 -> 48166.38333 | M191: =(M192-M190)/(A192-A190)*(A191-A190)+M190 -> 14167.23333 | N191: =(O191-M191)/(O183-M183)*(N183-M183)+M191 -> 14167.40333 | O191: =(O192-O190)/(A192-A190)*(A191-A190)+O190 -> 14167.12 | P191: =(Q191-O191)/(Q183-O183)*(P183-O183)+O191 -> 14167.23333 | Q191: =(Q192-Q190)/(A192-A190)*(A191-A190)+Q190 -> 14167.00667
A192: 5 | C192: =C174*1.5 -> 20250 | D192: =(E192-C192)/(E183-C183)*(D183-C183)+C192 -> 13750 | E192: =E174*1.5 -> 30000 | F192: =(G192-E192)/(G183-E183)*(F183-E183)+E192 -> 17500 | G192: =G174*1.7 -> 42500 | H192: =(I192-G192)/(I183-G183)*(H183-G183)+G192 -> 25500 | I192: =I174*1.7 -> 51000 | J192: =(K192-I192)/(K183-I183)*(J183-I183)+I192 -> 25500 | K192: =K174*1.7 -> 59500 | L192: =(M192-K192)/(M183-K183)*(L183-K183)+K192 -> 25500 | M192: =M174*1.7 -> 76500 | N192: =(O192-M192)/(O183-M183)*(N183-M183)+M192 -> 76499.745 | O192: =O174*1.7 -> 76500.17 | P192: =(Q192-O192)/(Q183-O183)*(P183-O183)+O192 -> 76500 | Q192: =Q174*1.7 -> 76500.34
A193: =IF(AND(S190>A192,S190<A194)=TRUE,S190,0) -> 0 | C193: =(C194-C192)/(A194-A192)*(A193-A192)+C192 -> 12000 | D193: =(E193-C193)/(E183-C183)*(D183-C183)+C193 -> 8000 | E193: =(E194-E192)/(A194-A192)*(A193-A192)+E192 -> 18000 | F193: =(G193-E193)/(G183-E183)*(F183-E183)+E193 -> 22400 | G193: =(G194-G192)/(A194-A192)*(A193-A192)+G192 -> 13600 | H193: =(I193-G193)/(I183-G183)*(H183-G183)+G193 -> 0 | I193: =(I194-I192)/(A194-A192)*(A193-A192)+I192 -> 20400 | J193: =(K193-I193)/(K183-I183)*(J183-I183)+I193 -> -20400 | K193: =(K194-K192)/(A194-A192)*(A193-A192)+K192 -> 34000 | L193: =(M193-K193)/(M183-K183)*(L183-K183)+K193 -> 0 | M193: =(M194-M192)/(A194-A192)*(A193-A192)+M192 -> 51000 | N193: =(O193-M193)/(O183-M183)*(N183-M183)+M193 -> 114749.49 | O193: =(O194-O192)/(A194-A192)*(A193-A192)+O192 -> 8500.34 | P193: =(Q193-O193)/(Q183-O183)*(P183-O183)+O193 -> 8500.17 | Q193: =(Q194-Q192)/(A194-A192)*(A193-A192)+Q192 -> 8500.51
A194: 10 | C194: =C176*1.5 -> 28500 | D194: =(E194-C194)/(E183-C183)*(D183-C183)+C194 -> 19500 | E194: =E176*1.5 -> 42000 | F194: =(G194-E194)/(G183-E183)*(F183-E183)+E194 -> 12600 | G194: =G176*1.7 -> 71400 | H194: =(I194-G194)/(I183-G183)*(H183-G183)+G194 -> 51000 | I194: =I176*1.7 -> 81600 | J194: =(K194-I194)/(K183-I183)*(J183-I183)+I194 -> 71400 | K194: =K176*1.7 -> 85000 | L194: =(M194-K194)/(M183-K183)*(L183-K183)+K194 -> 51000 | M194: =M176*1.7 -> 102000 | N194: =(O194-M194)/(O183-M183)*(N183-M183)+M194 -> 38250 | O194: =O176*1.7 -> 144500 | P194: =(Q194-O194)/(Q183-O183)*(P183-O183)+O194 -> 144499.83 | Q194: =Q176*1.7 -> 144500.17
A195: =IF(AND(S190>A194,S190<A196)=TRUE,S190,0) -> 0 | C195: =(C196-C194)/(A196-A194)*(A195-A194)+C194 -> 21000 | D195: =(E195-C195)/(E183-C183)*(D183-C183)+C195 -> 18666.66667 | E195: =(E196-E194)/(A196-A194)*(A195-A194)+E194 -> 24500 | F195: =(G195-E195)/(G183-E183)*(F183-E183)+E195 -> 266.6666667 | G195: =(G196-G194)/(A196-A194)*(A195-A194)+G194 -> 48733.33333 | H195: =(I195-G195)/(I183-G183)*(H183-G183)+G195 -> 62333.33333 | I195: =(I196-I194)/(A196-A194)*(A195-A194)+I194 -> 41933.33333 | J195: =(K195-I195)/(K183-I183)*(J183-I183)+I195 -> 82733.33333 | K195: =(K196-K194)/(A196-A194)*(A195-A194)+K194 -> 28333.33333 | L195: =(M195-K195)/(M183-K183)*(L183-K183)+K195 -> 22666.66667 | M195: =(M196-M194)/(A196-A194)*(A195-A194)+M194 -> 31166.66667 | N195: =(O195-M195)/(O183-M183)*(N183-M183)+M195 -> -117583.3333 | O195: =(O196-O194)/(A196-A194)*(A195-A194)+O194 -> 130333.3333 | P195: =(Q195-O195)/(Q183-O183)*(P183-O183)+O195 -> 243666.2133 | Q195: =(Q196-Q194)/(A196-A194)*(A195-A194)+Q194 -> 17000.45333
A196: 16 | C196: =C178*1.5 -> 33000 | D196: =(E196-C196)/(E183-C183)*(D183-C183)+C196 -> 20000 | E196: =E178*1.5 -> 52500 | F196: =(G196-E196)/(G183-E183)*(F183-E183)+E196 -> 20000 | G196: =G178*1.7 -> 85000 | H196: =(I196-G196)/(I183-G183)*(H183-G183)+G196 -> 44200 | I196: =I178*1.7 -> 105400 | J196: =(K196-I196)/(K183-I183)*(J183-I183)+I196 -> 64600 | K196: =K178*1.7 -> 119000 | L196: =(M196-K196)/(M183-K183)*(L183-K183)+K196 -> 68000 | M196: =M178*1.7 -> 144500 | N196: =(O196-M196)/(O183-M183)*(N183-M183)+M196 -> 131750 | O196: =O178*1.7 -> 153000 | P196: =(Q196-O196)/(Q183-O183)*(P183-O183)+O196 -> 85000 | Q196: =Q178*1.7 -> 221000
A198: COL | C198: 3 | D198: 4 | E198: 5 | F198: 6 | G198: 7 | H198: 8 | I198: 9 | J198: 10 | K198: 11 | L198: 12 | M198: 13 | N198: 14 | O198: 15 | P198: 16 | Q198: 17
B201: DP | C201: 10 | D201: =IF(AND(V208>C201,V208<E201)=TRUE,V208,0) -> 0 | E201: 20 | F201: =IF(AND(V208>E201,V208<G201)=TRUE,V208,0) -> 0 | G201: 30 | H201: =IF(AND(V208>G201,V208<I201)=TRUE,V208,0) -> 0 | I201: 40 | J201: =IF(AND(V208>I201,V208<K201)=TRUE,V208,0) -> 0 | K201: 50 | L201: =IF(AND(V208>K201,V208<M201)=TRUE,V208,0) -> 0 | M201: 75 | N201: =IF(AND(V208>M201,V208<O201)=TRUE,V208,0) -> 0 | O201: 100 | P201: =IF(AND(V208>O201,V208<Q201)=TRUE,V208,0) -> 0 | Q201: 100
A202: PM
A204: 0.1 | C204: 43 | D204: =(E204-C204)/(E201-C201)*(D201-C201)+C204 -> 23 | E204: 63 | F204: =(G204-E204)/(G201-E201)*(F201-E201)+E204 -> 37 | G204: 76 | H204: =(I204-G204)/(I201-G201)*(H201-G201)+G204 -> 34 | I204: 90 | J204: =(K204-I204)/(K201-I201)*(J201-I201)+I204 -> 50 | K204: 100 | L204: =(M204-K204)/(M201-K201)*(L201-K201)+K204 -> 40 | M204: 130 | N204: =(O204-M204)/(O201-M201)*(N201-M201)+M204 -> 70 | O204: 150 | P204: =(Q204-O204)/(Q201-O201)*(P201-O201)+O204 ->  | Q204: 150 | S204: PM | T204: Q | U204: Qcal | V204: DPcal | W204: DP | X204: TIPO
A205: =IF(AND(S208>A204,S208<A206)=TRUE,S208,0) -> 0 | C205: =(C206-C204)/(A206-A204)*(A205-A204)+C204 -> 41.75 | D205: =(E205-C205)/(E201-C201)*(D201-C201)+C205 -> 22.25 | E205: =(E206-E204)/(A206-A204)*(A205-A204)+E204 -> 61.25 | F205: =(G205-E205)/(G201-E201)*(F201-E201)+E205 -> 38.75 | G205: =(G206-G204)/(A206-A204)*(A205-A204)+G204 -> 72.5 | H205: =(I205-G205)/(I201-G201)*(H201-G201)+G205 -> 35 | I205: =(I206-I204)/(A206-A204)*(A205-A204)+I204 -> 85 | J205: =(K205-I205)/(K201-I201)*(J201-I201)+I205 -> 45 | K205: =(K206-K204)/(A206-A204)*(A205-A204)+K204 -> 95 | L205: =(M205-K205)/(M201-K201)*(L201-K201)+K205 -> 35 | M205: =(M206-M204)/(A206-A204)*(A205-A204)+M204 -> 125 | N205: =(O205-M205)/(O201-M201)*(N201-M201)+M205 -> 65 | O205: =(O206-O204)/(A206-A204)*(A205-A204)+O204 -> 145 | P205: =(Q205-O205)/(Q201-O201)*(P201-O201)+O205 ->  | Q205: =(Q206-Q204)/(A206-A204)*(A205-A204)+Q204 -> 145
A206: 0.5 | C206: 48 | D206: =(E206-C206)/(E201-C201)*(D201-C201)+C206 -> 26 | E206: 70 | F206: =(G206-E206)/(G201-E201)*(F201-E201)+E206 -> 30 | G206: 90 | H206: =(I206-G206)/(I201-G201)*(H201-G201)+G206 -> 30 | I206: 110 | J206: =(K206-I206)/(K201-I201)*(J201-I201)+I206 -> 70 | K206: 120 | L206: =(M206-K206)/(M201-K201)*(L201-K201)+K206 -> 60 | M206: 150 | N206: =(O206-M206)/(O201-M201)*(N201-M201)+M206 -> 90 | O206: 170 | P206: =(Q206-O206)/(Q201-O201)*(P201-O201)+O206 ->  | Q206: 170 | T206: нм3/час | U206: нм3/час | V206: мбар | W206: мбар
A207: =IF(AND(S208>A206,S208<A208)=TRUE,S208,0) -> 0 | C207: =(C208-C206)/(A208-A206)*(A207-A206)+C206 -> 38 | D207: =(E207-C207)/(E201-C201)*(D201-C201)+C207 -> 18 | E207: =(E208-E206)/(A208-A206)*(A207-A206)+E206 -> 58 | F207: =(G207-E207)/(G201-E201)*(F201-E201)+E207 -> 24 | G207: =(G208-G206)/(A208-A206)*(A207-A206)+G206 -> 75 | H207: =(I207-G207)/(I201-G201)*(H201-G201)+G207 -> 15 | I207: =(I208-I206)/(A208-A206)*(A207-A206)+I206 -> 95 | J207: =(K207-I207)/(K201-I201)*(J201-I201)+I207 -> 35 | K207: =(K208-K206)/(A208-A206)*(A207-A206)+K206 -> 110 | L207: =(M207-K207)/(M201-K201)*(L201-K201)+K207 -> 80 | M207: =(M208-M206)/(A208-A206)*(A207-A206)+M206 -> 125 | N207: =(O207-M207)/(O201-M201)*(N201-M201)+M207 -> 80 | O207: =(O208-O206)/(A208-A206)*(A207-A206)+O206 -> 140 | P207: =(Q207-O207)/(Q201-O201)*(P201-O201)+O207 ->  | Q207: =(Q208-Q206)/(A208-A206)*(A207-A206)+Q206 -> 140
A208: 1 | C208: 58 | D208: =(E208-C208)/(E201-C201)*(D201-C201)+C208 -> 34 | E208: 82 | F208: =(G208-E208)/(G201-E201)*(F201-E201)+E208 -> 36 | G208: 105 | H208: =(I208-G208)/(I201-G201)*(H201-G201)+G208 -> 45 | I208: 125 | J208: =(K208-I208)/(K201-I201)*(J201-I201)+I208 -> 105 | K208: 130 | L208: =(M208-K208)/(M201-K201)*(L201-K201)+K208 -> 40 | M208: 175 | N208: =(O208-M208)/(O201-M201)*(N201-M201)+M208 -> 100 | O208: 200 | P208: =(Q208-O208)/(Q201-O201)*(P201-O201)+O208 ->  | Q208: 200 | S208: =Лист1!B17*10 -> 0.1 | T208: =Лист1!B19 -> 3500 | U208: =VLOOKUP(S208,A201:Q216,HLOOKUP(V208,A201:Q216,16,0),0) -> 150 | V208: =Лист1!B18*10 -> 100 | W208: =IF(S208<A204,"NO",IF(S208>A214,"N0",IF(VLOOKUP(S208,A204:Q214,3,0)>T208,"NO",IF(VLOOKUP(S208,A204:Q214,17,0)<T208,"NO",IF(AND(U208>=T208-0.1,U208<T208+0.1)=TRUE,V208,"NO"))))) -> NO | X208: Фильтр газовый | Y208: =Лист1!F4 -> РЕД-25 DN25
A209: =IF(AND(S208>A208,S208<A210)=TRUE,S208,0) -> 0 | C209: =(C210-C208)/(A210-A208)*(A209-A208)+C208 -> 49.6 | D209: =(E209-C209)/(E201-C201)*(D201-C201)+C209 -> 28.8 | E209: =(E210-E208)/(A210-A208)*(A209-A208)+E208 -> 70.4 | F209: =(G209-E209)/(G201-E201)*(F201-E201)+E209 -> 27.2 | G209: =(G210-G208)/(A210-A208)*(A209-A208)+G208 -> 92 | H209: =(I209-G209)/(I201-G201)*(H201-G201)+G209 -> 32 | I209: =(I210-I208)/(A210-A208)*(A209-A208)+I208 -> 112 | J209: =(K209-I209)/(K201-I201)*(J201-I201)+I209 -> 104 | K209: =(K210-K208)/(A210-A208)*(A209-A208)+K208 -> 114 | L209: =(M209-K209)/(M201-K201)*(L201-K201)+K209 -> 26 | M209: =(M210-M208)/(A210-A208)*(A209-A208)+M208 -> 158 | N209: =(O209-M209)/(O201-M201)*(N201-M201)+M209 -> 92 | O209: =(O210-O208)/(A210-A208)*(A209-A208)+O208 -> 180 | P209: =(Q209-O209)/(Q201-O201)*(P201-O201)+O209 ->  | Q209: =(Q210-Q208)/(A210-A208)*(A209-A208)+Q208 -> 180
A210: 6 | C210: 100 | D210: =(E210-C210)/(E201-C201)*(D201-C201)+C210 -> 60 | E210: 140 | F210: =(G210-E210)/(G201-E201)*(F201-E201)+E210 -> 80 | G210: 170 | H210: =(I210-G210)/(I201-G201)*(H201-G201)+G210 -> 110 | I210: 190 | J210: =(K210-I210)/(K201-I201)*(J201-I201)+I210 -> 110 | K210: 210 | L210: =(M210-K210)/(M201-K201)*(L201-K201)+K210 -> 110 | M210: 260 | N210: =(O210-M210)/(O201-M201)*(N201-M201)+M210 -> 140 | O210: 300 | P210: =(Q210-O210)/(Q201-O201)*(P201-O201)+O210 ->  | Q210: 300
A211: =IF(AND(S208>A210,S208<A212)=TRUE,S208,0) -> 0 | C211: =(C212-C210)/(A212-A210)*(A211-A210)+C210 -> -180 | D211: =(E211-C211)/(E201-C201)*(D201-C201)+C211 -> -170 | E211: =(E212-E210)/(A212-A210)*(A211-A210)+E210 -> -190 | F211: =(G211-E211)/(G201-E201)*(F201-E201)+E211 -> -190 | G211: =(G212-G210)/(A212-A210)*(A211-A210)+G210 -> -190 | H211: =(I211-G211)/(I201-G201)*(H201-G201)+G211 -> -160 | I211: =(I212-I210)/(A212-A210)*(A211-A210)+I210 -> -200 | J211: =(K211-I211)/(K201-I201)*(J201-I201)+I211 -> 0 | K211: =(K212-K210)/(A212-A210)*(A211-A210)+K210 -> -250 | L211: =(M211-K211)/(M201-K201)*(L201-K201)+K211 -> -30 | M211: =(M212-M210)/(A212-A210)*(A211-A210)+M210 -> -360 | N211: =(O211-M211)/(O201-M201)*(N201-M201)+M211 -> -240 | O211: =(O212-O210)/(A212-A210)*(A211-A210)+O210 -> -400 | P211: =(Q211-O211)/(Q201-O201)*(P201-O201)+O211 ->  | Q211: =(Q212-Q210)/(A212-A210)*(A211-A210)+Q210 -> -400
A212: 12 | C212: 380 | D212: =(E212-C212)/(E201-C201)*(D201-C201)+C212 -> 290 | E212: 470 | F212: =(G212-E212)/(G201-E201)*(F201-E201)+E212 -> 350 | G212: 530 | H212: =(I212-G212)/(I201-G201)*(H201-G201)+G212 -> 380 | I212: 580 | J212: =(K212-I212)/(K201-I201)*(J201-I201)+I212 -> 220 | K212: 670 | L212: =(M212-K212)/(M201-K201)*(L201-K201)+K212 -> 250 | M212: 880 | N212: =(O212-M212)/(O201-M201)*(N201-M201)+M212 -> 520 | O212: 1000 | P212: =(Q212-O212)/(Q201-O201)*(P201-O201)+O212 ->  | Q212: 1000
A213: =IF(AND(S208>A212,S208<A214)=TRUE,S208,0) -> 0 | C213: =(C214-C212)/(A214-A212)*(A213-A212)+C212 -> 20 | D213: =(E213-C213)/(E201-C201)*(D201-C201)+C213 -> -40 | E213: =(E214-E212)/(A214-A212)*(A213-A212)+E212 -> 80 | F213: =(G213-E213)/(G201-E201)*(F201-E201)+E213 -> 20 | G213: =(G214-G212)/(A214-A212)*(A213-A212)+G212 -> 110 | H213: =(I213-G213)/(I201-G201)*(H201-G201)+G213 -> 50 | I213: =(I214-I212)/(A214-A212)*(A213-A212)+I212 -> 130 | J213: =(K213-I213)/(K201-I201)*(J201-I201)+I213 -> 370 | K213: =(K214-K212)/(A214-A212)*(A213-A212)+K212 -> 70 | L213: =(M213-K213)/(M201-K201)*(L201-K201)+K213 -> 190 | M213: =(M214-M212)/(A214-A212)*(A213-A212)+M212 -> 10 | N213: =(O213-M213)/(O201-M201)*(N201-M201)+M213 -> 190 | O213: =(O214-O212)/(A214-A212)*(A213-A212)+O212 -> -50 | P213: =(Q213-O213)/(Q201-O201)*(P201-O201)+O213 ->  | Q213: =(Q214-Q212)/(A214-A212)*(A213-A212)+Q212 -> -50
A214: 16 | C214: 500 | D214: =(E214-C214)/(E201-C201)*(D201-C201)+C214 -> 400 | E214: 600 | F214: =(G214-E214)/(G201-E201)*(F201-E201)+E214 -> 460 | G214: 670 | H214: =(I214-G214)/(I201-G201)*(H201-G201)+G214 -> 490 | I214: 730 | J214: =(K214-I214)/(K201-I201)*(J201-I201)+I214 -> 170 | K214: 870 | L214: =(M214-K214)/(M201-K201)*(L201-K201)+K214 -> 270 | M214: 1170 | N214: =(O214-M214)/(O201-M201)*(N201-M201)+M214 -> 630 | O214: 1350 | P214: =(Q214-O214)/(Q201-O201)*(P201-O201)+O214 ->  | Q214: 1350
A216: COL | C216: 3 | D216: 4 | E216: 5 | F216: 6 | G216: 7 | H216: 8 | I216: 9 | J216: 10 | K216: 11 | L216: 12 | M216: 13 | N216: 14 | O216: 15 | P216: 16 | Q216: 17
B219: DP | C219: 10 | D219: =IF(AND(V226>C219,V226<E219)=TRUE,V226,0) -> 0 | E219: 20 | F219: =IF(AND(V226>E219,V226<G219)=TRUE,V226,0) -> 0 | G219: 30 | H219: =IF(AND(V226>G219,V226<I219)=TRUE,V226,0) -> 0 | I219: 40 | J219: =IF(AND(V226>I219,V226<K219)=TRUE,V226,0) -> 0 | K219: 50 | L219: =IF(AND(V226>K219,V226<M219)=TRUE,V226,0) -> 0 | M219: 75 | N219: =IF(AND(V226>M219,V226<O219)=TRUE,V226,0) -> 0 | O219: 100 | P219: =IF(AND(V226>O219,V226<Q219)=TRUE,V226,0) -> 0 | Q219: 150
A220: PM
A222: 0.5 | C222: 150 | D222: =(E222-C222)/(E219-C219)*(D219-C219)+C222 -> 65 | E222: 235 | F222: =(G222-E222)/(G219-E219)*(F219-E219)+E222 -> 135 | G222: 285 | H222: =(I222-G222)/(I219-G219)*(H219-G219)+G222 -> 165 | I222: 325 | J222: =(K222-I222)/(K219-I219)*(J219-I219)+I222 -> 225 | K222: 350 | L222: =(M222-K222)/(M219-K219)*(L219-K219)+K222 -> 150 | M222: 450 | N222: =(O222-M222)/(O219-M219)*(N219-M219)+M222 -> 225 | O222: 525 | P222: =(Q222-O222)/(Q219-O219)*(P219-O219)+O222 -> 325 | Q222: 625 | S222: PM | T222: Q | U222: Qcal | V222: DPcal | W222: DP | X222: TIPO
A223: =IF(AND(S226>A222,S226<A224)=TRUE,S226,0) -> 0 | C223: =(C224-C222)/(A224-A222)*(A223-A222)+C222 -> 65 | D223: =(E223-C223)/(E219-C219)*(D219-C219)+C223 -> -5 | E223: =(E224-E222)/(A224-A222)*(A223-A222)+E222 -> 135 | F223: =(G223-E223)/(G219-E219)*(F219-E219)+E223 -> 65 | G223: =(G224-G222)/(A224-A222)*(A223-A222)+G222 -> 170 | H223: =(I223-G223)/(I219-G219)*(H219-G219)+G223 -> 80 | I223: =(I224-I222)/(A224-A222)*(A223-A222)+I222 -> 200 | J223: =(K223-I223)/(K219-I219)*(J219-I219)+I223 -> 200 | K223: =(K224-K222)/(A224-A222)*(A223-A222)+K222 -> 200 | L223: =(M223-K223)/(M219-K219)*(L219-K219)+K223 -> -30 | M223: =(M224-M222)/(A224-A222)*(A223-A222)+M222 -> 315 | N223: =(O223-M223)/(O219-M219)*(N219-M219)+M223 -> 135 | O223: =(O224-O222)/(A224-A222)*(A223-A222)+O222 -> 375 | P223: =(Q223-O223)/(Q219-O219)*(P219-O219)+O223 -> 245 | Q223: =(Q224-Q222)/(A224-A222)*(A223-A222)+Q222 -> 440
A224: 1 | C224: 235 | D224: =(E224-C224)/(E219-C219)*(D219-C219)+C224 -> 135 | E224: 335 | F224: =(G224-E224)/(G219-E219)*(F219-E219)+E224 -> 205 | G224: 400 | H224: =(I224-G224)/(I219-G219)*(H219-G219)+G224 -> 250 | I224: 450 | J224: =(K224-I224)/(K219-I219)*(J219-I219)+I224 -> 250 | K224: 500 | L224: =(M224-K224)/(M219-K219)*(L219-K219)+K224 -> 330 | M224: 585 | N224: =(O224-M224)/(O219-M219)*(N219-M219)+M224 -> 315 | O224: 675 | P224: =(Q224-O224)/(Q219-O219)*(P219-O219)+O224 -> 405 | Q224: 810 | T224: нм3/час | U224: нм3/час | V224: мбар | W224: мбар
A225: =IF(AND(S226>A224,S226<A226)=TRUE,S226,0) -> 0 | C225: =(C226-C224)/(A226-A224)*(A225-A224)+C224 -> 195 | D225: =(E225-C225)/(E219-C219)*(D219-C219)+C225 -> 105 | E225: =(E226-E224)/(A226-A224)*(A225-A224)+E224 -> 285 | F225: =(G225-E225)/(G219-E219)*(F219-E219)+E225 -> 170 | G225: =(G226-G224)/(A226-A224)*(A225-A224)+G224 -> 342.5 | H225: =(I225-G225)/(I219-G219)*(H219-G219)+G225 -> 200 | I225: =(I226-I224)/(A226-A224)*(A225-A224)+I224 -> 390 | J225: =(K225-I225)/(K219-I219)*(J219-I219)+I225 -> 190 | K225: =(K226-K224)/(A226-A224)*(A225-A224)+K224 -> 440 | L225: =(M225-K225)/(M219-K219)*(L219-K219)+K225 -> 300 | M225: =(M226-M224)/(A226-A224)*(A225-A224)+M224 -> 510 | N225: =(O225-M225)/(O219-M219)*(N219-M219)+M225 -> 225 | O225: =(O226-O224)/(A226-A224)*(A225-A224)+O224 -> 605 | P225: =(Q225-O225)/(Q219-O219)*(P219-O219)+O225 -> 370 | Q225: =(Q226-Q224)/(A226-A224)*(A225-A224)+Q224 -> 722.5
A226: 3 | C226: 315 | D226: =(E226-C226)/(E219-C219)*(D219-C219)+C226 -> 195 | E226: 435 | F226: =(G226-E226)/(G219-E219)*(F219-E219)+E226 -> 275 | G226: 515 | H226: =(I226-G226)/(I219-G219)*(H219-G219)+G226 -> 350 | I226: 570 | J226: =(K226-I226)/(K219-I219)*(J219-I219)+I226 -> 370 | K226: 620 | L226: =(M226-K226)/(M219-K219)*(L219-K219)+K226 -> 390 | M226: 735 | N226: =(O226-M226)/(O219-M219)*(N219-M219)+M226 -> 495 | O226: 815 | P226: =(Q226-O226)/(Q219-O219)*(P219-O219)+O226 -> 475 | Q226: 985 | S226: =Лист1!B17*10 -> 0.1 | T226: =Лист1!B19 -> 3500 | U226: =VLOOKUP(S226,A219:Q234,HLOOKUP(V226,A219:Q234,16,0),0) ->  | V226: =Лист1!B18*10 -> 100 | W226: =IF(S226<A222,"NO",IF(S226>A232,"N0",IF(VLOOKUP(S226,A222:Q232,3,0)>T226,"NO",IF(VLOOKUP(S226,A222:Q232,17,0)<T226,"NO",IF(AND(U226>=T226-0.1,U226<T226+0.1)=TRUE,V226,"NO"))))) -> NO | X226: Фильтр газовый | Y226: =Лист1!F5 -> РЕД-40 DN40
A227: =IF(AND(S226>A226,S226<A228)=TRUE,S226,0) -> 0 | C227: =(C228-C226)/(A228-A226)*(A227-A226)+C226 -> 195 | D227: =(E227-C227)/(E219-C219)*(D219-C219)+C227 -> 105 | E227: =(E228-E226)/(A228-A226)*(A227-A226)+E226 -> 285 | F227: =(G227-E227)/(G219-E219)*(F219-E219)+E227 -> 165 | G227: =(G228-G226)/(A228-A226)*(A227-A226)+G226 -> 345 | H227: =(I227-G227)/(I219-G219)*(H219-G219)+G227 -> 210 | I227: =(I228-I226)/(A228-A226)*(A227-A226)+I226 -> 390 | J227: =(K227-I227)/(K219-I219)*(J219-I219)+I227 -> 230 | K227: =(K228-K226)/(A228-A226)*(A227-A226)+K226 -> 430 | L227: =(M227-K227)/(M219-K219)*(L219-K219)+K227 -> 270 | M227: =(M228-M226)/(A228-A226)*(A227-A226)+M226 -> 510 | N227: =(O227-M227)/(O219-M219)*(N219-M219)+M227 -> 240 | O227: =(O228-O226)/(A228-A226)*(A227-A226)+O226 -> 600 | P227: =(Q227-O227)/(Q219-O219)*(P219-O219)+O227 -> 360 | Q227: =(Q228-Q226)/(A228-A226)*(A227-A226)+Q226 -> 720
A228: 6 | C228: 435 | D228: =(E228-C228)/(E219-C219)*(D219-C219)+C228 -> 285 | E228: 585 | F228: =(G228-E228)/(G219-E219)*(F219-E219)+E228 -> 385 | G228: 685 | H228: =(I228-G228)/(I219-G219)*(H219-G219)+G228 -> 490 | I228: 750 | J228: =(K228-I228)/(K219-I219)*(J219-I219)+I228 -> 510 | K228: 810 | L228: =(M228-K228)/(M219-K219)*(L219-K219)+K228 -> 510 | M228: 960 | N228: =(O228-M228)/(O219-M219)*(N219-M219)+M228 -> 750 | O228: 1030 | P228: =(Q228-O228)/(Q219-O219)*(P219-O219)+O228 -> 590 | Q228: 1250
A229: =IF(AND(S226>A228,S226<A230)=TRUE,S226,0) -> 0 | C229: =(C230-C228)/(A230-A228)*(A229-A228)+C228 -> 60 | D229: =(E229-C229)/(E219-C219)*(D219-C219)+C229 -> -50 | E229: =(E230-E228)/(A230-A228)*(A229-A228)+E228 -> 170 | F229: =(G229-E229)/(G219-E219)*(F219-E219)+E229 -> 20 | G229: =(G230-G228)/(A230-A228)*(A229-A228)+G228 -> 245 | H229: =(I229-G229)/(I219-G219)*(H219-G219)+G229 -> 155 | I229: =(I230-I228)/(A230-A228)*(A229-A228)+I228 -> 275 | J229: =(K229-I229)/(K219-I219)*(J219-I219)+I229 -> 615 | K229: =(K230-K228)/(A230-A228)*(A229-A228)+K228 -> 190 | L229: =(M229-K229)/(M219-K219)*(L219-K219)+K229 -> 480 | M229: =(M230-M228)/(A230-A228)*(A229-A228)+M228 -> 45 | N229: =(O229-M229)/(O219-M219)*(N219-M219)+M229 -> 375 | O229: =(O230-O228)/(A230-A228)*(A229-A228)+O228 -> -65 | P229: =(Q229-O229)/(Q219-O219)*(P219-O219)+O229 -> -195 | Q229: =(Q230-Q228)/(A230-A228)*(A229-A228)+Q228 -> 0
A230: 12 | C230: 810 | D230: =(E230-C230)/(E219-C219)*(D219-C219)+C230 -> 620 | E230: 1000 | F230: =(G230-E230)/(G219-E219)*(F219-E219)+E230 -> 750 | G230: 1125 | H230: =(I230-G230)/(I219-G219)*(H219-G219)+G230 -> 825 | I230: 1225 | J230: =(K230-I230)/(K219-I219)*(J219-I219)+I230 -> 405 | K230: 1430 | L230: =(M230-K230)/(M219-K219)*(L219-K219)+K230 -> 540 | M230: 1875 | N230: =(O230-M230)/(O219-M219)*(N219-M219)+M230 -> 1125 | O230: 2125 | P230: =(Q230-O230)/(Q219-O219)*(P219-O219)+O230 -> 1375 | Q230: 2500
A231: =IF(AND(S226>A230,S226<A232)=TRUE,S226,0) -> 0 | C231: =(C232-C230)/(A232-A230)*(A231-A230)+C230 -> 60 | D231: =(E231-C231)/(E219-C219)*(D219-C219)+C231 -> -70 | E231: =(E232-E230)/(A232-A230)*(A231-A230)+E230 -> 190 | F231: =(G231-E231)/(G219-E219)*(F219-E219)+E231 -> 30 | G231: =(G232-G230)/(A232-A230)*(A231-A230)+G230 -> 270 | H231: =(I231-G231)/(I219-G219)*(H219-G219)+G231 -> 240 | I231: =(I232-I230)/(A232-A230)*(A231-A230)+I230 -> 280 | J231: =(K231-I231)/(K219-I219)*(J219-I219)+I231 -> 600 | K231: =(K232-K230)/(A232-A230)*(A231-A230)+K230 -> 200 | L231: =(M231-K231)/(M219-K219)*(L219-K219)+K231 -> 510 | M231: =(M232-M230)/(A232-A230)*(A231-A230)+M230 -> 45 | N231: =(O231-M231)/(O219-M219)*(N219-M219)+M231 -> 375 | O231: =(O232-O230)/(A232-A230)*(A231-A230)+O230 -> -65 | P231: =(Q231-O231)/(Q219-O219)*(P219-O219)+O231 -> -395 | Q231: =(Q232-Q230)/(A232-A230)*(A231-A230)+Q230 -> 100
A232: 16 | C232: 1060 | D232: =(E232-C232)/(E219-C219)*(D219-C219)+C232 -> 850 | E232: 1270 | F232: =(G232-E232)/(G219-E219)*(F219-E219)+E232 -> 990 | G232: 1410 | H232: =(I232-G232)/(I219-G219)*(H219-G219)+G232 -> 1020 | I232: 1540 | J232: =(K232-I232)/(K219-I219)*(J219-I219)+I232 -> 340 | K232: 1840 | L232: =(M232-K232)/(M219-K219)*(L219-K219)+K232 -> 550 | M232: 2485 | N232: =(O232-M232)/(O219-M219)*(N219-M219)+M232 -> 1375 | O232: 2855 | P232: =(Q232-O232)/(Q219-O219)*(P219-O219)+O232 -> 1965 | Q232: 3300
A234: COL | C234: 3 | D234: 4 | E234: 5 | F234: 6 | G234: 7 | H234: 8 | I234: 9 | J234: 10 | K234: 11 | L234: 12 | M234: 13 | N234: 14 | O234: 15 | P234: 16 | Q234: 17
B237: DP | C237: 10 | D237: =IF(AND(V244>C237,V244<E237)=TRUE,V244,0) -> 0 | E237: 20 | F237: =IF(AND(V244>E237,V244<G237)=TRUE,V244,0) -> 0 | G237: 30 | H237: =IF(AND(V244>G237,V244<I237)=TRUE,V244,0) -> 0 | I237: 40 | J237: =IF(AND(V244>I237,V244<K237)=TRUE,V244,0) -> 0 | K237: 50 | L237: =IF(AND(V244>K237,V244<M237)=TRUE,V244,0) -> 0 | M237: 75 | N237: =IF(AND(V244>M237,V244<O237)=TRUE,V244,0) -> 0 | O237: 100 | P237: =IF(AND(V244>O237,V244<Q237)=TRUE,V244,0) -> 0 | Q237: 150
A238: PM
A240: 0.5 | C240: 170 | D240: =(E240-C240)/(E237-C237)*(D237-C237)+C240 -> 70 | E240: 270 | F240: =(G240-E240)/(G237-E237)*(F237-E237)+E240 -> 170 | G240: 320 | H240: =(I240-G240)/(I237-G237)*(H237-G237)+G240 -> 170 | I240: 370 | J240: =(K240-I240)/(K237-I237)*(J237-I237)+I240 -> 250 | K240: 400 | L240: =(M240-K240)/(M237-K237)*(L237-K237)+K240 -> 180 | M240: 510 | N240: =(O240-M240)/(O237-M237)*(N237-M237)+M240 -> 240 | O240: 600 | P240: =(Q240-O240)/(Q237-O237)*(P237-O237)+O240 -> 380 | Q240: 710 | S240: PM | T240: Q | U240: Qcal | V240: DPcal | W240: DP | X240: TIPO
A241: =IF(AND(S244>A240,S244<A242)=TRUE,S244,0) -> 0 | C241: =(C242-C240)/(A242-A240)*(A241-A240)+C240 -> 75 | D241: =(E241-C241)/(E237-C237)*(D237-C237)+C241 -> -10 | E241: =(E242-E240)/(A242-A240)*(A241-A240)+E240 -> 160 | F241: =(G241-E241)/(G237-E237)*(F237-E237)+E241 -> 100 | G241: =(G242-G240)/(A242-A240)*(A241-A240)+G240 -> 190 | H241: =(I241-G241)/(I237-G237)*(H237-G237)+G241 -> -110 | I241: =(I242-I240)/(A242-A240)*(A241-A240)+I240 -> 290 | J241: =(K241-I241)/(K237-I237)*(J237-I237)+I241 -> 530 | K241: =(K242-K240)/(A242-A240)*(A241-A240)+K240 -> 230 | L241: =(M241-K241)/(M237-K237)*(L237-K237)+K241 -> -20 | M241: =(M242-M240)/(A242-A240)*(A241-A240)+M240 -> 355 | N241: =(O241-M241)/(O237-M237)*(N237-M237)+M241 -> 130 | O241: =(O242-O240)/(A242-A240)*(A241-A240)+O240 -> 430 | P241: =(Q241-O241)/(Q237-O237)*(P237-O237)+O241 -> 290 | Q241: =(Q242-Q240)/(A242-A240)*(A241-A240)+Q240 -> 500
A242: 1 | C242: 265 | D242: =(E242-C242)/(E237-C237)*(D237-C237)+C242 -> 150 | E242: 380 | F242: =(G242-E242)/(G237-E237)*(F237-E237)+E242 -> 240 | G242: 450 | H242: =(I242-G242)/(I237-G237)*(H237-G237)+G242 -> 450 | I242: 450 | J242: =(K242-I242)/(K237-I237)*(J237-I237)+I242 -> -30 | K242: 570 | L242: =(M242-K242)/(M237-K237)*(L237-K237)+K242 -> 380 | M242: 665 | N242: =(O242-M242)/(O237-M237)*(N237-M237)+M242 -> 350 | O242: 770 | P242: =(Q242-O242)/(Q237-O237)*(P237-O237)+O242 -> 470 | Q242: 920 | T242: нм3/час | U242: нм3/час | V242: мбар | W242: мбар
A243: =IF(AND(S244>A242,S244<A244)=TRUE,S244,0) -> 0 | C243: =(C244-C242)/(A244-A242)*(A243-A242)+C242 -> 222.5 | D243: =(E243-C243)/(E237-C237)*(D237-C237)+C243 -> 125 | E243: =(E244-E242)/(A244-A242)*(A243-A242)+E242 -> 320 | F243: =(G243-E243)/(G237-E237)*(F237-E237)+E243 -> 195 | G243: =(G244-G242)/(A244-A242)*(A243-A242)+G242 -> 382.5 | H243: =(I243-G243)/(I237-G237)*(H237-G237)+G243 -> 382.5 | I243: =(I244-I242)/(A244-A242)*(A243-A242)+I242 -> 382.5 | J243: =(K243-I243)/(K237-I237)*(J237-I237)+I243 -> -107.5 | K243: =(K244-K242)/(A244-A242)*(A243-A242)+K242 -> 505 | L243: =(M243-K243)/(M237-K237)*(L237-K237)+K243 -> 355 | M243: =(M244-M242)/(A244-A242)*(A243-A242)+M242 -> 580 | N243: =(O243-M243)/(O237-M237)*(N237-M237)+M243 -> 242.5 | O243: =(O244-O242)/(A244-A242)*(A243-A242)+O242 -> 692.5 | P243: =(Q243-O243)/(Q237-O237)*(P237-O237)+O243 -> 437.5 | Q243: =(Q244-Q242)/(A244-A242)*(A243-A242)+Q242 -> 820
A244: 3 | C244: 350 | D244: =(E244-C244)/(E237-C237)*(D237-C237)+C244 -> 200 | E244: 500 | F244: =(G244-E244)/(G237-E237)*(F237-E237)+E244 -> 330 | G244: 585 | H244: =(I244-G244)/(I237-G237)*(H237-G237)+G244 -> 585 | I244: 585 | J244: =(K244-I244)/(K237-I237)*(J237-I237)+I244 -> 125 | K244: 700 | L244: =(M244-K244)/(M237-K237)*(L237-K237)+K244 -> 430 | M244: 835 | N244: =(O244-M244)/(O237-M237)*(N237-M237)+M244 -> 565 | O244: 925 | P244: =(Q244-O244)/(Q237-O237)*(P237-O237)+O244 -> 535 | Q244: 1120 | S244: =Лист1!B17*10 -> 0.1 | T244: =Лист1!B19 -> 3500 | U244: =VLOOKUP(S244,A237:Q252,HLOOKUP(V244,A237:Q252,16,0),0) ->  | V244: =Лист1!B18*10 -> 100 | W244: =IF(S244<A240,"NO",IF(S244>A250,"N0",IF(VLOOKUP(S244,A240:Q250,3,0)>T244,"NO",IF(VLOOKUP(S244,A240:Q250,17,0)<T244,"NO",IF(AND(U244>=T244-0.1,U244<T244+0.1)=TRUE,V244,"NO"))))) -> NO | X244: Фильтр газовый | Y244: =Лист1!F6 -> РЕД-50 DN50
A245: =IF(AND(S244>A244,S244<A246)=TRUE,S244,0) -> 0 | C245: =(C246-C244)/(A246-A244)*(A245-A244)+C244 -> 205 | D245: =(E245-C245)/(E237-C237)*(D237-C237)+C245 -> 75 | E245: =(E246-E244)/(A246-A244)*(A245-A244)+E244 -> 335 | F245: =(G245-E245)/(G237-E237)*(F237-E237)+E245 -> 225 | G245: =(G246-G244)/(A246-A244)*(A245-A244)+G244 -> 390 | H245: =(I245-G245)/(I237-G237)*(H237-G237)+G245 -> 390 | I245: =(I246-I244)/(A246-A244)*(A245-A244)+I244 -> 390 | J245: =(K245-I245)/(K237-I237)*(J237-I237)+I245 -> 30 | K245: =(K246-K244)/(A246-A244)*(A245-A244)+K244 -> 480 | L245: =(M245-K245)/(M237-K237)*(L237-K237)+K245 -> 280 | M245: =(M246-M244)/(A246-A244)*(A245-A244)+M244 -> 580 | N245: =(O245-M245)/(O237-M237)*(N237-M237)+M245 -> 280 | O245: =(O246-O244)/(A246-A244)*(A245-A244)+O244 -> 680 | P245: =(Q245-O245)/(Q237-O237)*(P237-O237)+O245 -> 400 | Q245: =(Q246-Q244)/(A246-A244)*(A245-A244)+Q244 -> 820
A246: 6 | C246: 495 | D246: =(E246-C246)/(E237-C237)*(D237-C237)+C246 -> 325 | E246: 665 | F246: =(G246-E246)/(G237-E237)*(F237-E237)+E246 -> 435 | G246: 780 | H246: =(I246-G246)/(I237-G237)*(H237-G237)+G246 -> 780 | I246: 780 | J246: =(K246-I246)/(K237-I237)*(J237-I237)+I246 -> 220 | K246: 920 | L246: =(M246-K246)/(M237-K237)*(L237-K237)+K246 -> 580 | M246: 1090 | N246: =(O246-M246)/(O237-M237)*(N237-M237)+M246 -> 850 | O246: 1170 | P246: =(Q246-O246)/(Q237-O237)*(P237-O237)+O246 -> 670 | Q246: 1420
A247: =IF(AND(S244>A246,S244<A248)=TRUE,S244,0) -> 0 | C247: =(C248-C246)/(A248-A246)*(A247-A246)+C246 -> 70 | D247: =(E247-C247)/(E237-C237)*(D237-C237)+C247 -> -55 | E247: =(E248-E246)/(A248-A246)*(A247-A246)+E246 -> 195 | F247: =(G247-E247)/(G237-E237)*(F237-E237)+E247 -> 25 | G247: =(G248-G246)/(A248-A246)*(A247-A246)+G246 -> 280 | H247: =(I247-G247)/(I237-G237)*(H237-G237)+G247 -> 280 | I247: =(I248-I246)/(A248-A246)*(A247-A246)+I246 -> 280 | J247: =(K247-I247)/(K237-I237)*(J237-I237)+I247 -> 520 | K247: =(K248-K246)/(A248-A246)*(A247-A246)+K246 -> 220 | L247: =(M247-K247)/(M237-K237)*(L237-K237)+K247 -> 560 | M247: =(M248-M246)/(A248-A246)*(A247-A246)+M246 -> 50 | N247: =(O247-M247)/(O237-M237)*(N237-M237)+M247 -> 410 | O247: =(O248-O246)/(A248-A246)*(A247-A246)+O246 -> -70 | P247: =(Q247-O247)/(Q237-O237)*(P237-O237)+O247 -> -210 | Q247: =(Q248-Q246)/(A248-A246)*(A247-A246)+Q246 -> 0
A248: 12 | C248: 920 | D248: =(E248-C248)/(E237-C237)*(D237-C237)+C248 -> 705 | E248: 1135 | F248: =(G248-E248)/(G237-E237)*(F237-E237)+E248 -> 845 | G248: 1280 | H248: =(I248-G248)/(I237-G237)*(H237-G237)+G248 -> 1280 | I248: 1280 | J248: =(K248-I248)/(K237-I237)*(J237-I237)+I248 -> -80 | K248: 1620 | L248: =(M248-K248)/(M237-K237)*(L237-K237)+K248 -> 600 | M248: 2130 | N248: =(O248-M248)/(O237-M237)*(N237-M237)+M248 -> 1290 | O248: 2410 | P248: =(Q248-O248)/(Q237-O237)*(P237-O237)+O248 -> 1550 | Q248: 2840
A249: =IF(AND(S244>A248,S244<A250)=TRUE,S244,0) -> 0 | C249: =(C250-C248)/(A250-A248)*(A249-A248)+C248 -> 80 | D249: =(E249-C249)/(E237-C237)*(D237-C237)+C249 -> -60 | E249: =(E250-E248)/(A250-A248)*(A249-A248)+E248 -> 220 | F249: =(G249-E249)/(G237-E237)*(F237-E237)+E249 -> 140 | G249: =(G250-G248)/(A250-A248)*(A249-A248)+G248 -> 260 | H249: =(I249-G249)/(I237-G237)*(H237-G237)+G249 -> 260 | I249: =(I250-I248)/(A250-A248)*(A249-A248)+I248 -> 260 | J249: =(K249-I249)/(K237-I237)*(J237-I237)+I249 -> 460 | K249: =(K250-K248)/(A250-A248)*(A249-A248)+K248 -> 210 | L249: =(M249-K249)/(M237-K237)*(L237-K237)+K249 -> 510 | M249: =(M250-M248)/(A250-A248)*(A249-A248)+M248 -> 60 | N249: =(O249-M249)/(O237-M237)*(N237-M237)+M249 -> 570 | O249: =(O250-O248)/(A250-A248)*(A249-A248)+O248 -> -110 | P249: =(Q249-O249)/(Q237-O237)*(P237-O237)+O249 -> -550 | Q249: =(Q250-Q248)/(A250-A248)*(A249-A248)+Q248 -> 110
A250: 16 | C250: 1200 | D250: =(E250-C250)/(E237-C237)*(D237-C237)+C250 -> 960 | E250: 1440 | F250: =(G250-E250)/(G237-E237)*(F237-E237)+E250 -> 1080 | G250: 1620 | H250: =(I250-G250)/(I237-G237)*(H237-G237)+G250 -> 1620 | I250: 1620 | J250: =(K250-I250)/(K237-I237)*(J237-I237)+I250 -> -260 | K250: 2090 | L250: =(M250-K250)/(M237-K237)*(L237-K237)+K250 -> 630 | M250: 2820 | N250: =(O250-M250)/(O237-M237)*(N237-M237)+M250 -> 1530 | O250: 3250 | P250: =(Q250-O250)/(Q237-O237)*(P237-O237)+O250 -> 2250 | Q250: 3750
A252: COL | C252: 3 | D252: 4 | E252: 5 | F252: 6 | G252: 7 | H252: 8 | I252: 9 | J252: 10 | K252: 11 | L252: 12 | M252: 13 | N252: 14 | O252: 15 | P252: 16 | Q252: 17

Sheet РЕД-2 (hidden)
A1: Таблица расходов фильтров РЕД
B4: DP | C4: 10 | D4: =IF(AND(V11>C4,V11<E4)=TRUE,V11,0) -> 0 | E4: 25 | F4: =IF(AND(V11>E4,V11<G4)=TRUE,V11,0) -> 0 | G4: 50 | H4: =IF(AND(V11>G4,V11<I4)=TRUE,V11,0) -> 0 | I4: 75 | J4: =IF(AND(V11>I4,V11<K4)=TRUE,V11,0) -> 0 | K4: 100 | L4: =IF(AND(V11>K4,V11<M4)=TRUE,V11,0) -> 0 | M4: 150 | N4: =IF(AND(V11>M4,V11<O4)=TRUE,V11,0) -> 0 | O4: 250 | P4: =IF(AND(V11>O4,V11<Q4)=TRUE,V11,0) -> 0 | Q4: 500
A5: PM
A7: 0.5 | C7: 150 | D7: =(E7-C7)/(E4-C4)*(D4-C4)+C7 -> 103.3333333 | E7: 220 | F7: =(G7-E7)/(G4-E4)*(F4-E4)+E7 -> 100 | G7: 340 | H7: =(I7-G7)/(I4-G4)*(H4-G4)+G7 -> 220 | I7: 400 | J7: =(K7-I7)/(K4-I4)*(J4-I4)+I7 -> 399.7 | K7: 400.1 | L7: =(M7-K7)/(M4-K4)*(L4-K4)+K7 -> 399.9 | M7: 400.2 | N7: =(O7-M7)/(O4-M4)*(N4-M4)+M7 -> 400.05 | O7: 400.3 | P7: =(Q7-O7)/(Q4-O4)*(P4-O4)+O7 -> 400.2 | Q7: 400.4 | S7: PM | T7: Q | U7: Qcal | V7: DPcal | W7: DP | X7: TIPO
A8: =IF(AND(S11>A7,S11<A9)=TRUE,S11,0) -> 0 | C8: =(C9-C7)/(A9-A7)*(A8-A7)+C7 -> 120 | D8: =(E8-C8)/(E4-C4)*(D4-C4)+C8 -> 93.33333333 | E8: =(E9-E7)/(A9-A7)*(A8-A7)+E7 -> 160 | F8: =(G8-E8)/(G4-E4)*(F4-E4)+E8 -> 40 | G8: =(G9-G7)/(A9-A7)*(A8-A7)+G7 -> 280 | H8: =(I8-G8)/(I4-G4)*(H4-G4)+G8 -> 140 | I8: =(I9-I7)/(A9-A7)*(A8-A7)+I7 -> 350 | J8: =(K8-I8)/(K4-I4)*(J4-I4)+I8 -> 349.7 | K8: =(K9-K7)/(A9-A7)*(A8-A7)+K7 -> 350.1 | L8: =(M8-K8)/(M4-K4)*(L4-K4)+K8 -> 349.9 | M8: =(M9-M7)/(A9-A7)*(A8-A7)+M7 -> 350.2 | N8: =(O8-M8)/(O4-M4)*(N4-M4)+M8 -> 350.05 | O8: =(O9-O7)/(A9-A7)*(A8-A7)+O7 -> 350.3 | P8: =(Q8-O8)/(Q4-O4)*(P4-O4)+O8 -> 350.2 | Q8: =(Q9-Q7)/(A9-A7)*(A8-A7)+Q7 -> 350.4
A9: 1 | C9: 180 | D9: =(E9-C9)/(E4-C4)*(D4-C4)+C9 -> 113.3333333 | E9: 280 | F9: =(G9-E9)/(G4-E4)*(F4-E4)+E9 -> 160 | G9: 400 | H9: =(I9-G9)/(I4-G4)*(H4-G4)+G9 -> 300 | I9: 450 | J9: =(K9-I9)/(K4-I4)*(J4-I4)+I9 -> 449.7 | K9: 450.1 | L9: =(M9-K9)/(M4-K4)*(L4-K4)+K9 -> 449.9 | M9: 450.2 | N9: =(O9-M9)/(O4-M4)*(N4-M4)+M9 -> 450.05 | O9: 450.3 | P9: =(Q9-O9)/(Q4-O4)*(P4-O4)+O9 -> 450.2 | Q9: 450.4 | T9: Stmc/h | U9: Stmc/h | V9: Mbar | W9: Mbar
A10: =IF(AND(S11>A9,S11<A11)=TRUE,S11,0) -> 0 | C10: =(C11-C9)/(A11-A9)*(A10-A9)+C9 -> 140 | D10: =(E10-C10)/(E4-C4)*(D4-C4)+C10 -> 86.66666667 | E10: =(E11-E9)/(A11-A9)*(A10-A9)+E9 -> 220 | F10: =(G10-E10)/(G4-E4)*(F4-E4)+E10 -> 140 | G10: =(G11-G9)/(A11-A9)*(A10-A9)+G9 -> 300 | H10: =(I10-G10)/(I4-G4)*(H4-G4)+G10 -> 300 | I10: =(I11-I9)/(A11-A9)*(A10-A9)+I9 -> 300 | J10: =(K10-I10)/(K4-I4)*(J4-I4)+I10 -> 599.4 | K10: =(K11-K9)/(A11-A9)*(A10-A9)+K9 -> 200.2 | L10: =(M10-K10)/(M4-K4)*(L4-K4)+K10 -> 200 | M10: =(M11-M9)/(A11-A9)*(A10-A9)+M9 -> 200.3 | N10: =(O10-M10)/(O4-M4)*(N4-M4)+M10 -> 200.15 | O10: =(O11-O9)/(A11-A9)*(A10-A9)+O9 -> 200.4 | P10: =(Q10-O10)/(Q4-O4)*(P4-O4)+O10 -> 200.3 | Q10: =(Q11-Q9)/(A11-A9)*(A10-A9)+Q9 -> 200.5
A11: 2 | C11: 220 | D11: =(E11-C11)/(E4-C4)*(D4-C4)+C11 -> 140 | E11: 340 | F11: =(G11-E11)/(G4-E4)*(F4-E4)+E11 -> 180 | G11: 500 | H11: =(I11-G11)/(I4-G4)*(H4-G4)+G11 -> 300 | I11: 600 | J11: =(K11-I11)/(K4-I4)*(J4-I4)+I11 -> 300 | K11: 700 | L11: =(M11-K11)/(M4-K4)*(L4-K4)+K11 -> 699.8 | M11: 700.1 | N11: =(O11-M11)/(O4-M4)*(N4-M4)+M11 -> 699.95 | O11: 700.2 | P11: =(Q11-O11)/(Q4-O4)*(P4-O4)+O11 -> 700.1 | Q11: 700.3 | S11: =Лист1!B17*10 -> 0.1 | T11: =DIMENSIONAMENTO!$D$12 -> 3000 | U11: =VLOOKUP(S11,A4:Q25,HLOOKUP(V11,A4:Q25,22,0),0) ->  | V11: =DIMENSIONAMENTO!$E$21 -> 100 | W11: =IF(S11<A7,"NO",IF(S11>A21,"NO",IF(VLOOKUP(S11,A7:Q21,3,0)>T11,"NO",IF(VLOOKUP(S11,A7:Q21,17,0)<T11,"NO",IF(AND(U11>=T11-0.1,U11<T11+0.1)=TRUE,V11,"NO"))))) -> NO | X11: FA-12-AP/ | Y11: 50-1
A12: =IF(AND(S11>A11,S11<A13)=TRUE,S11,0) -> 0 | C12: =(C13-C11)/(A13-A11)*(A12-A11)+C11 -> 166.6666667 | D12: =(E12-C12)/(E4-C4)*(D4-C4)+C12 -> 77.77777778 | E12: =(E13-E11)/(A13-A11)*(A12-A11)+E11 -> 300 | F12: =(G12-E12)/(G4-E4)*(F4-E4)+E12 -> 233.3333333 | G12: =(G13-G11)/(A13-A11)*(A12-A11)+G11 -> 366.6666667 | H12: =(I12-G12)/(I4-G4)*(H4-G4)+G12 -> 100 | I12: =(I13-I11)/(A13-A11)*(A12-A11)+I11 -> 500 | J12: =(K12-I12)/(K4-I4)*(J4-I4)+I12 -> 500 | K12: =(K13-K11)/(A13-A11)*(A12-A11)+K11 -> 500 | L12: =(M12-K12)/(M4-K4)*(L4-K4)+K12 -> 766.3333333 | M12: =(M13-M11)/(A13-A11)*(A12-A11)+M11 -> 366.8333333 | N12: =(O12-M12)/(O4-M4)*(N4-M4)+M12 -> 366.6833333 | O12: =(O13-O11)/(A13-A11)*(A12-A11)+O11 -> 366.9333333 | P12: =(Q12-O12)/(Q4-O4)*(P4-O4)+O12 -> 366.8333333 | Q12: =(Q13-Q11)/(A13-A11)*(A12-A11)+Q11 -> 367.0333333
A13: 5 | C13: 300 | D13: =(E13-C13)/(E4-C4)*(D4-C4)+C13 -> 233.3333333 | E13: 400 | F13: =(G13-E13)/(G4-E4)*(F4-E4)+E13 -> 100 | G13: 700 | H13: =(I13-G13)/(I4-G4)*(H4-G4)+G13 -> 600 | I13: 750 | J13: =(K13-I13)/(K4-I4)*(J4-I4)+I13 -> 0 | K13: 1000 | L13: =(M13-K13)/(M4-K4)*(L4-K4)+K13 -> 600 | M13: 1200 | N13: =(O13-M13)/(O4-M4)*(N4-M4)+M13 -> 1199.85 | O13: 1200.1 | P13: =(Q13-O13)/(Q4-O4)*(P4-O4)+O13 -> 1200 | Q13: 1200.2
A14: =IF(AND(S11>A13,S11<A15)=TRUE,S11,0) -> 0 | C14: =(C15-C13)/(A15-A13)*(A14-A13)+C13 -> 200 | D14: =(E14-C14)/(E4-C4)*(D4-C4)+C14 -> 133.3333333 | E14: =(E15-E13)/(A15-A13)*(A14-A13)+E13 -> 300 | F14: =(G14-E14)/(G4-E4)*(F4-E4)+E14 -> -100 | G14: =(G15-G13)/(A15-A13)*(A14-A13)+G13 -> 700 | H14: =(I14-G14)/(I4-G4)*(H4-G4)+G14 -> 900 | I14: =(I15-I13)/(A15-A13)*(A14-A13)+I13 -> 600 | J14: =(K14-I14)/(K4-I4)*(J4-I4)+I14 -> 150 | K14: =(K15-K13)/(A15-A13)*(A14-A13)+K13 -> 750 | L14: =(M14-K14)/(M4-K4)*(L4-K4)+K14 -> 250 | M14: =(M15-M13)/(A15-A13)*(A14-A13)+M13 -> 1000 | N14: =(O14-M14)/(O4-M4)*(N4-M4)+M14 -> 2199.7 | O14: =(O15-O13)/(A15-A13)*(A14-A13)+O13 -> 200.2 | P14: =(Q14-O14)/(Q4-O4)*(P4-O4)+O14 -> 200.1 | Q14: =(Q15-Q13)/(A15-A13)*(A14-A13)+Q13 -> 200.3
A15: 10 | C15: 400 | D15: =(E15-C15)/(E4-C4)*(D4-C4)+C15 -> 333.3333333 | E15: 500 | F15: =(G15-E15)/(G4-E4)*(F4-E4)+E15 -> 300 | G15: 700 | H15: =(I15-G15)/(I4-G4)*(H4-G4)+G15 -> 300 | I15: 900 | J15: =(K15-I15)/(K4-I4)*(J4-I4)+I15 -> -150 | K15: 1250 | L15: =(M15-K15)/(M4-K4)*(L4-K4)+K15 -> 950 | M15: 1400 | N15: =(O15-M15)/(O4-M4)*(N4-M4)+M15 -> 200 | O15: 2200 | P15: =(Q15-O15)/(Q4-O4)*(P4-O4)+O15 -> 2199.9 | Q15: 2200.1
A16: =IF(AND(S11>A15,S11<A17)=TRUE,S11,0) -> 0 | C16: =(C17-C15)/(A17-A15)*(A16-A15)+C15 -> 266.6666667 | D16: =(E16-C16)/(E4-C4)*(D4-C4)+C16 -> 244.4444444 | E16: =(E17-E15)/(A17-A15)*(A16-A15)+E15 -> 300 | F16: =(G16-E16)/(G4-E4)*(F4-E4)+E16 -> 233.3333333 | G16: =(G17-G15)/(A17-A15)*(A16-A15)+G15 -> 366.6666667 | H16: =(I16-G16)/(I4-G4)*(H4-G4)+G16 -> -3700 | I16: 2400 | J16: =(K16-I16)/(K4-I4)*(J4-I4)+I16 -> 7150 | K16: =(K17-K15)/(A17-A15)*(A16-A15)+K15 -> 816.6666667 | L16: =(M16-K16)/(M4-K4)*(L4-K4)+K16 -> 716.6666667 | M16: =(M17-M15)/(A17-A15)*(A16-A15)+M15 -> 866.6666667 | N16: =(O16-M16)/(O4-M4)*(N4-M4)+M16 -> -583.3333333 | O16: =(O17-O15)/(A17-A15)*(A16-A15)+O15 -> 1833.333333 | P16: =(Q16-O16)/(Q4-O4)*(P4-O4)+O16 -> 2333.166667 | Q16: =(Q17-Q15)/(A17-A15)*(A16-A15)+Q15 -> 1333.5
A17: 25 | C17: 600 | D17: =(E17-C17)/(E4-C4)*(D4-C4)+C17 -> 466.6666667 | E17: 800 | F17: =(G17-E17)/(G4-E4)*(F4-E4)+E17 -> 400 | G17: 1200 | H17: =(I17-G17)/(I4-G4)*(H4-G4)+G17 -> 600 | I17: 1500 | J17: =(K17-I17)/(K4-I4)*(J4-I4)+I17 -> 300 | K17: 1900 | L17: =(M17-K17)/(M4-K4)*(L4-K4)+K17 -> 1300 | M17: 2200 | N17: =(O17-M17)/(O4-M4)*(N4-M4)+M17 -> 1375 | O17: 2750 | P17: =(Q17-O17)/(Q4-O4)*(P4-O4)+O17 -> 2000 | Q17: 3500
A18: =IF(AND(S13>A17,S13<A19)=TRUE,S13,0) -> 0 | C18: =(C19-C17)/(A19-A17)*(A18-A17)+C17 -> -400 | D18: =(E18-C18)/(E4-C4)*(D4-C4)+C18 -> -422.2222222 | E18: =(E19-E17)/(A19-A17)*(A18-A17)+E17 -> -366.6666667 | F18: =(G18-E18)/(G4-E4)*(F4-E4)+E18 -> -766.6666667 | G18: =(G19-G17)/(A19-A17)*(A18-A17)+G17 -> 33.33333333 | H18: =(I18-G18)/(I4-G4)*(H4-G4)+G18 -> -4700 | I18: 2400 | J18: =(K18-I18)/(K4-I4)*(J4-I4)+I18 -> 7900 | K18: =(K19-K17)/(A19-A17)*(A18-A17)+K17 -> 566.6666667 | L18: =(M18-K18)/(M4-K4)*(L4-K4)+K18 -> 633.3333333 | M18: =(M19-M17)/(A19-A17)*(A18-A17)+M17 -> 533.3333333 | N18: =(O18-M18)/(O4-M4)*(N4-M4)+M18 -> 333.3333333 | O18: =(O19-O17)/(A19-A17)*(A18-A17)+O17 -> 666.6666667 | P18: =(Q18-O18)/(Q4-O4)*(P4-O4)+O18 -> 1166.666667 | Q18: =(Q19-Q17)/(A19-A17)*(A18-A17)+Q17 -> 166.6666667
A19: 40 | C19: 1200 | D19: =(E19-C19)/(E4-C4)*(D4-C4)+C19 -> 1000 | E19: 1500 | F19: =(G19-E19)/(G4-E4)*(F4-E4)+E19 -> 1100 | G19: 1900 | H19: =(I19-G19)/(I4-G4)*(H4-G4)+G19 -> 1100 | I19: 2300 | J19: =(K19-I19)/(K4-I4)*(J4-I4)+I19 -> 1100 | K19: 2700 | L19: =(M19-K19)/(M4-K4)*(L4-K4)+K19 -> 1700 | M19: 3200 | N19: =(O19-M19)/(O4-M4)*(N4-M4)+M19 -> 2000 | O19: 4000 | P19: =(Q19-O19)/(Q4-O4)*(P4-O4)+O19 -> 2500 | Q19: 5500
A20: =IF(AND(S15>A19,S15<A21)=TRUE,S15,0) -> 0 | C20: =(C21-C19)/(A21-A19)*(A20-A19)+C19 -> 666.6666667 | D20: =(E20-C20)/(E8-C8)*(D8-C8)+C20 -> 555.5555556 | E20: =(E21-E19)/(A21-A19)*(A20-A19)+E19 -> 833.3333333 | F20: =(G20-E20)/(G8-E8)*(F8-E8)+E20 -> 566.6666667 | G20: =(G21-G19)/(A21-A19)*(A20-A19)+G19 -> 1100 | H20: =(I20-G20)/(I8-G8)*(H8-G8)+G20 -> -1500 | I20: 2400 | J20: =(K20-I20)/(K8-I8)*(J8-I8)+I20 -> 6700 | K20: =(K21-K19)/(A21-A19)*(A20-A19)+K19 -> 966.6666667 | L20: =(M20-K20)/(M8-K8)*(L8-K8)+K20 -> 1300 | M20: =(M21-M19)/(A21-A19)*(A20-A19)+M19 -> 800 | N20: =(O20-M20)/(O8-M8)*(N8-M8)+M20 -> 0 | O20: =(O21-O19)/(A21-A19)*(A20-A19)+O19 -> 1333.333333 | P20: =(Q20-O20)/(Q8-O8)*(P8-O8)+O20 -> -166.6666667 | Q20: =(Q21-Q19)/(A21-A19)*(A20-A19)+Q19 -> 2833.333333
A21: 70 | C21: 1600 | D21: =(E21-C21)/(E8-C8)*(D8-C8)+C21 -> 1333.333333 | E21: 2000 | F21: =(G21-E21)/(G8-E8)*(F8-E8)+E21 -> 1500 | G21: 2500 | H21: =(I21-G21)/(I8-G8)*(H8-G8)+G21 -> 1500 | I21: 3000 | J21: =(K21-I21)/(K8-I8)*(J8-I8)+I21 -> 0 | K21: 4000 | L21: =(M21-K21)/(M8-K8)*(L8-K8)+K21 -> 2000 | M21: 5000 | N21: =(O21-M21)/(O8-M8)*(N8-M8)+M21 -> 3500 | O21: 6000 | P21: =(Q21-O21)/(Q8-O8)*(P8-O8)+O21 -> 4500 | Q21: 7500 | U21: VALORI LIMITE
A25: COL | C25: 3 | D25: 4 | E25: 5 | F25: 6 | G25: 7 | H25: 8 | I25: 9 | J25: 10 | K25: 11 | L25: 12 | M25: 13 | N25: 14 | O25: 15 | P25: 16 | Q25: 17
B28: DP | C28: 10 | D28: =IF(AND(V35>C28,V35<E28)=TRUE,V35,0) -> 0 | E28: 25 | F28: =IF(AND(V35>E28,V35<G28)=TRUE,V35,0) -> 0 | G28: 50 | H28: =IF(AND(V35>G28,V35<I28)=TRUE,V35,0) -> 0 | I28: 75 | J28: =IF(AND(V35>I28,V35<K28)=TRUE,V35,0) -> 0 | K28: 100 | L28: =IF(AND(V35>K28,V35<M28)=TRUE,V35,0) -> 0 | M28: 150 | N28: =IF(AND(V35>M28,V35<O28)=TRUE,V35,0) -> 0 | O28: 250 | P28: =IF(AND(V35>O28,V35<Q28)=TRUE,V35,0) -> 0 | Q28: 500
A29: PM
A31: 0.5 | C31: 300 | D31: =(E31-C31)/(E28-C28)*(D28-C28)+C31 -> 266.6666667 | E31: 350 | F31: =(G31-E31)/(G28-E28)*(F28-E28)+E31 -> 349.9 | G31: 350.1 | H31: =(I31-G31)/(I28-G28)*(H28-G28)+G31 -> 349.9 | I31: 350.2 | J31: =(K31-I31)/(K28-I28)*(J28-I28)+I31 -> 349.9 | K31: 350.3 | L31: =(M31-K31)/(M28-K28)*(L28-K28)+K31 -> 350.1 | M31: 350.4 | N31: =(O31-M31)/(O28-M28)*(N28-M28)+M31 -> 350.325 | O31: 350.45 | P31: =(Q31-O31)/(Q28-O28)*(P28-O28)+O31 -> 350.41 | Q31: 350.49 | S31: PM | T31: Q | U31: Qcal | V31: DPcal | W31: DP | X31: TIPO
A32: =IF(AND(S35>A31,S35<A33)=TRUE,S35,0) -> 0 | C32: =(C33-C31)/(A33-A31)*(A32-A31)+C31 -> 240 | D32: =(E32-C32)/(E28-C28)*(D28-C28)+C32 -> 233.3333333 | E32: =(E33-E31)/(A33-A31)*(A32-A31)+E31 -> 250 | F32: =(G32-E32)/(G28-E28)*(F28-E28)+E32 -> 249.9 | G32: =(G33-G31)/(A33-A31)*(A32-A31)+G31 -> 250.1 | H32: =(I32-G32)/(I28-G28)*(H28-G28)+G32 -> 249.9 | I32: =(I33-I31)/(A33-A31)*(A32-A31)+I31 -> 250.2 | J32: =(K32-I32)/(K28-I28)*(J28-I28)+I32 -> 249.9 | K32: =(K33-K31)/(A33-A31)*(A32-A31)+K31 -> 250.3 | L32: =(M32-K32)/(M28-K28)*(L28-K28)+K32 -> 250.1 | M32: =(M33-M31)/(A33-A31)*(A32-A31)+M31 -> 250.4 | N32: =(O32-M32)/(O28-M28)*(N28-M28)+M32 -> 250.325 | O32: =(O33-O31)/(A33-A31)*(A32-A31)+O31 -> 250.45 | P32: =(Q32-O32)/(Q28-O28)*(P28-O28)+O32 -> 250.41 | Q32: =(Q33-Q31)/(A33-A31)*(A32-A31)+Q31 -> 250.49
A33: 1 | C33: 360 | D33: =(E33-C33)/(E28-C28)*(D28-C28)+C33 -> 300 | E33: 450 | F33: =(G33-E33)/(G28-E28)*(F28-E28)+E33 -> 449.9 | G33: 450.1 | H33: =(I33-G33)/(I28-G28)*(H28-G28)+G33 -> 449.9 | I33: 450.2 | J33: =(K33-I33)/(K28-I28)*(J28-I28)+I33 -> 449.9 | K33: 450.3 | L33: =(M33-K33)/(M28-K28)*(L28-K28)+K33 -> 450.1 | M33: 450.4 | N33: =(O33-M33)/(O28-M28)*(N28-M28)+M33 -> 450.325 | O33: 450.45 | P33: =(Q33-O33)/(Q28-O28)*(P28-O28)+O33 -> 450.41 | Q33: 450.49 | T33: Stmc/h | U33: Stmc/h | V33: Mbar | W33: Mbar
A34: =IF(AND(S35>A33,S35<A35)=TRUE,S35,0) -> 0 | C34: =(C35-C33)/(A35-A33)*(A34-A33)+C33 -> 280 | D34: =(E34-C34)/(E28-C28)*(D28-C28)+C34 -> 333.3333333 | E34: =(E35-E33)/(A35-A33)*(A34-A33)+E33 -> 200 | F34: =(G34-E34)/(G28-E28)*(F28-E28)+E34 -> 199.9 | G34: =(G35-G33)/(A35-A33)*(A34-A33)+G33 -> 200.1 | H34: =(I34-G34)/(I28-G28)*(H28-G28)+G34 -> 199.9 | I34: =(I35-I33)/(A35-A33)*(A34-A33)+I33 -> 200.2 | J34: =(K34-I34)/(K28-I28)*(J28-I28)+I34 -> 199.9 | K34: =(K35-K33)/(A35-A33)*(A34-A33)+K33 -> 200.3 | L34: =(M34-K34)/(M28-K28)*(L28-K28)+K34 -> 200.1 | M34: =(M35-M33)/(A35-A33)*(A34-A33)+M33 -> 200.4 | N34: =(O34-M34)/(O28-M28)*(N28-M28)+M34 -> 200.325 | O34: =(O35-O33)/(A35-A33)*(A34-A33)+O33 -> 200.45 | P34: =(Q34-O34)/(Q28-O28)*(P28-O28)+O34 -> 200.41 | Q34: =(Q35-Q33)/(A35-A33)*(A34-A33)+Q33 -> 200.49
A35: 2 | C35: 440 | D35: =(E35-C35)/(E28-C28)*(D28-C28)+C35 -> 266.6666667 | E35: 700 | F35: =(G35-E35)/(G28-E28)*(F28-E28)+E35 -> 699.9 | G35: 700.1 | H35: =(I35-G35)/(I28-G28)*(H28-G28)+G35 -> 699.9 | I35: 700.2 | J35: =(K35-I35)/(K28-I28)*(J28-I28)+I35 -> 699.9 | K35: 700.3 | L35: =(M35-K35)/(M28-K28)*(L28-K28)+K35 -> 700.1 | M35: 700.4 | N35: =(O35-M35)/(O28-M28)*(N28-M28)+M35 -> 700.325 | O35: 700.45 | P35: =(Q35-O35)/(Q28-O28)*(P28-O28)+O35 -> 700.41 | Q35: 700.49 | S35: =Лист1!B17*10 -> 0.1 | T35: =DIMENSIONAMENTO!$D$12 -> 3000 | U35: =VLOOKUP(S35,A28:Q49,HLOOKUP(V35,A28:Q49,22,0),0) ->  | V35: =DIMENSIONAMENTO!$E$21 -> 100 | W35: =IF(S35<A31,"NO",IF(S35>A45,"NO",IF(VLOOKUP(S35,A31:Q45,3,0)>T35,"NO",IF(VLOOKUP(S35,A31:Q45,17,0)<T35,"NO",IF(AND(U35>=T35-0.1,U35<T35+0.1)=TRUE,V35,"NO"))))) -> NO | X35: FA-12-AP/ | Y35: 50
A36: =IF(AND(S35>A35,S35<A37)=TRUE,S35,0) -> 0 | C36: =(C37-C35)/(A37-A35)*(A36-A35)+C35 -> 300 | D36: =(E36-C36)/(E28-C28)*(D28-C28)+C36 -> 77.77777778 | E36: =(E37-E35)/(A37-A35)*(A36-A35)+E35 -> 633.3333333 | F36: =(G36-E36)/(G28-E28)*(F28-E28)+E36 -> 766.5 | G36: =(G37-G35)/(A37-A35)*(A36-A35)+G35 -> 500.1666667 | H36: =(I36-G36)/(I28-G28)*(H28-G28)+G36 -> 833.1666667 | I36: =(I37-I35)/(A37-A35)*(A36-A35)+I35 -> 333.6666667 | J36: =(K36-I36)/(K28-I28)*(J28-I28)+I36 -> 333.3666667 | K36: =(K37-K35)/(A37-A35)*(A36-A35)+K35 -> 333.7666667 | L36: =(M36-K36)/(M28-K28)*(L28-K28)+K36 -> 333.5666667 | M36: =(M37-M35)/(A37-A35)*(A36-A35)+M35 -> 333.8666667 | N36: =(O36-M36)/(O28-M28)*(N28-M28)+M36 -> 333.8416667 | O36: =(O37-O35)/(A37-A35)*(A36-A35)+O35 -> 333.8833333 | P36: =(Q36-O36)/(Q28-O28)*(P28-O28)+O36 -> 333.8833333 | Q36: =(Q37-Q35)/(A37-A35)*(A36-A35)+Q35 -> 333.8833333
A37: 5 | C37: 650 | D37: =(E37-C37)/(E28-C28)*(D28-C28)+C37 -> 550 | E37: 800 | F37: =(G37-E37)/(G28-E28)*(F28-E28)+E37 -> 600 | G37: 1000 | H37: =(I37-G37)/(I28-G28)*(H28-G28)+G37 -> 500 | I37: 1250 | J37: =(K37-I37)/(K28-I28)*(J28-I28)+I37 -> 1249.7 | K37: 1250.1 | L37: =(M37-K37)/(M28-K28)*(L28-K28)+K37 -> 1249.9 | M37: 1250.2 | N37: =(O37-M37)/(O28-M28)*(N28-M28)+M37 -> 1250.05 | O37: 1250.3 | P37: =(Q37-O37)/(Q28-O28)*(P28-O28)+O37 -> 1250.2 | Q37: 1250.4
A38: =IF(AND(S35>A37,S35<A39)=TRUE,S35,0) -> 0 | C38: =(C39-C37)/(A39-A37)*(A38-A37)+C37 -> 400 | D38: =(E38-C38)/(E28-C28)*(D28-C28)+C38 -> 466.6666667 | E38: =(E39-E37)/(A39-A37)*(A38-A37)+E37 -> 300 | F38: =(G38-E38)/(G28-E28)*(F28-E28)+E38 -> 600 | G38: =(G39-G37)/(A39-A37)*(A38-A37)+G37 -> 0 | H38: =(I38-G38)/(I28-G28)*(H28-G28)+G38 -> -200 | I38: =(I39-I37)/(A39-A37)*(A38-A37)+I37 -> 100 | J38: =(K38-I38)/(K28-I28)*(J28-I28)+I38 -> 399.4 | K38: =(K39-K37)/(A39-A37)*(A38-A37)+K37 -> 0.2 | L38: =(M38-K38)/(M28-K28)*(L28-K28)+K38 -> -9.094947018e-13 | M38: =(M39-M37)/(A39-A37)*(A38-A37)+M37 -> 0.3 | N38: =(O38-M38)/(O28-M28)*(N28-M28)+M38 -> 0.15 | O38: =(O39-O37)/(A39-A37)*(A38-A37)+O37 -> 0.4 | P38: =(Q38-O38)/(Q28-O28)*(P28-O28)+O38 -> 0.3 | Q38: =(Q39-Q37)/(A39-A37)*(A38-A37)+Q37 -> 0.5
A39: 10 | C39: 900 | D39: =(E39-C39)/(E28-C28)*(D28-C28)+C39 -> 633.3333333 | E39: 1300 | F39: =(G39-E39)/(G28-E28)*(F28-E28)+E39 -> 600 | G39: 2000 | H39: =(I39-G39)/(I28-G28)*(H28-G28)+G39 -> 1200 | I39: 2400 | J39: =(K39-I39)/(K28-I28)*(J28-I28)+I39 -> 2100 | K39: 2500 | L39: =(M39-K39)/(M28-K28)*(L28-K28)+K39 -> 2499.8 | M39: 2500.1 | N39: =(O39-M39)/(O28-M28)*(N28-M28)+M39 -> 2499.95 | O39: 2500.2 | P39: =(Q39-O39)/(Q28-O28)*(P28-O28)+O39 -> 2500.1 | Q39: 2500.3
A40: =IF(AND(S35>A39,S35<A41)=TRUE,S35,0) -> 0 | C40: =(C41-C39)/(A41-A39)*(A40-A39)+C39 -> 366.6666667 | D40: =(E40-C40)/(E28-C28)*(D28-C28)+C40 -> 55.55555556 | E40: =(E41-E39)/(A41-A39)*(A40-A39)+E39 -> 833.3333333 | F40: =(G40-E40)/(G28-E28)*(F28-E28)+E40 -> 333.3333333 | G40: =(G41-G39)/(A41-A39)*(A40-A39)+G39 -> 1333.333333 | H40: =(I40-G40)/(I28-G28)*(H28-G28)+G40 -> -800 | I40: 2400 | J40: =(K40-I40)/(K28-I28)*(J28-I28)+I40 -> 5500 | K40: =(K41-K39)/(A41-A39)*(A40-A39)+K39 -> 1366.666667 | L40: =(M40-K40)/(M28-K28)*(L28-K28)+K40 -> 2433 | M40: =(M41-M39)/(A41-A39)*(A40-A39)+M39 -> 833.5 | N40: =(O40-M40)/(O28-M28)*(N28-M28)+M40 -> 1333.25 | O40: =(O41-O39)/(A41-A39)*(A40-A39)+O39 -> 500.3333333 | P40: =(Q40-O40)/(Q28-O28)*(P28-O28)+O40 -> 500.2333333 | Q40: =(Q41-Q39)/(A41-A39)*(A40-A39)+Q39 -> 500.4333333
A41: 25 | C41: 1700 | D41: =(E41-C41)/(E28-C28)*(D28-C28)+C41 -> 1500 | E41: 2000 | F41: =(G41-E41)/(G28-E28)*(F28-E28)+E41 -> 1000 | G41: 3000 | H41: =(I41-G41)/(I28-G28)*(H28-G28)+G41 -> 1800 | I41: 3600 | J41: =(K41-I41)/(K28-I28)*(J28-I28)+I41 -> 1800 | K41: 4200 | L41: =(M41-K41)/(M28-K28)*(L28-K28)+K41 -> 2600 | M41: 5000 | N41: =(O41-M41)/(O28-M28)*(N28-M28)+M41 -> 4250 | O41: 5500 | P41: =(Q41-O41)/(Q28-O28)*(P28-O28)+O41 -> 5499.9 | Q41: 5500.1
A42: =IF(AND(S37>A41,S37<A43)=TRUE,S37,0) -> 0 | C42: =(C43-C41)/(A43-A41)*(A42-A41)+C41 -> 1200 | D42: =(E42-C42)/(E28-C28)*(D28-C28)+C42 -> 1777.777778 | E42: =(E43-E41)/(A43-A41)*(A42-A41)+E41 -> 333.3333333 | F42: =(G42-E42)/(G28-E28)*(F28-E28)+E42 -> -666.6666667 | G42: =(G43-G41)/(A43-A41)*(A42-A41)+G41 -> 1333.333333 | H42: =(I42-G42)/(I28-G28)*(H28-G28)+G42 -> -800 | I42: 2400 | J42: =(K42-I42)/(K28-I28)*(J28-I28)+I42 -> 6000 | K42: =(K43-K41)/(A43-A41)*(A42-A41)+K41 -> 1200 | L42: =(M42-K42)/(M28-K28)*(L28-K28)+K42 -> 266.6666667 | M42: =(M43-M41)/(A43-A41)*(A42-A41)+M41 -> 1666.666667 | N42: =(O42-M42)/(O28-M28)*(N28-M28)+M42 -> 2166.666667 | O42: =(O43-O41)/(A43-A41)*(A42-A41)+O41 -> 1333.333333 | P42: =(Q42-O42)/(Q28-O28)*(P28-O28)+O42 -> 2999.733333 | Q42: =(Q43-Q41)/(A43-A41)*(A42-A41)+Q41 -> -333.0666667
A43: 40 | C43: 2000 | D43: =(E43-C43)/(E28-C28)*(D28-C28)+C43 -> 1333.333333 | E43: 3000 | F43: =(G43-E43)/(G28-E28)*(F28-E28)+E43 -> 2000 | G43: 4000 | H43: =(I43-G43)/(I28-G28)*(H28-G28)+G43 -> 2000 | I43: 5000 | J43: =(K43-I43)/(K28-I28)*(J28-I28)+I43 -> 2000 | K43: 6000 | L43: =(M43-K43)/(M28-K28)*(L28-K28)+K43 -> 4000 | M43: 7000 | N43: =(O43-M43)/(O28-M28)*(N28-M28)+M43 -> 5500 | O43: 8000 | P43: =(Q43-O43)/(Q28-O28)*(P28-O28)+O43 -> 7000 | Q43: 9000
A44: =IF(AND(S39>A43,S39<A45)=TRUE,S39,0) -> 0 | C44: =(C45-C43)/(A45-A43)*(A44-A43)+C43 -> 666.6666667 | D44: =(E44-C44)/(E32-C32)*(D32-C32)+C44 -> 0 | E44: =(E45-E43)/(A45-A43)*(A44-A43)+E43 -> 1666.666667 | F44: =(G44-E44)/(G32-E32)*(F32-E32)+E44 -> 666.6666667 | G44: =(G45-G43)/(A45-A43)*(A44-A43)+G43 -> 2666.666667 | H44: =(I44-G44)/(I32-G32)*(H32-G32)+G44 -> 3200 | I44: 2400 | J44: =(K44-I44)/(K32-I32)*(J32-I32)+I44 -> -2400 | K44: =(K45-K43)/(A45-A43)*(A44-A43)+K43 -> 4000 | L44: =(M44-K44)/(M32-K32)*(L32-K32)+K44 -> 3333.333333 | M44: =(M45-M43)/(A45-A43)*(A44-A43)+M43 -> 4333.333333 | N44: =(O44-M44)/(O32-M32)*(N32-M32)+M44 -> 6833.333333 | O44: =(O45-O43)/(A45-A43)*(A44-A43)+O43 -> 2666.666667 | P44: =(Q44-O44)/(Q32-O32)*(P32-O32)+O44 -> 4333.333333 | Q44: =(Q45-Q43)/(A45-A43)*(A44-A43)+Q43 -> 1000
A45: 70 | C45: 3000 | D45: =(E45-C45)/(E32-C32)*(D32-C32)+C45 -> 2333.333333 | E45: 4000 | F45: =(G45-E45)/(G32-E32)*(F32-E32)+E45 -> 3000 | G45: 5000 | H45: =(I45-G45)/(I32-G32)*(H32-G32)+G45 -> 3000 | I45: 6000 | J45: =(K45-I45)/(K32-I32)*(J32-I32)+I45 -> 1500 | K45: 7500 | L45: =(M45-K45)/(M32-K32)*(L32-K32)+K45 -> 4500 | M45: 9000 | N45: =(O45-M45)/(O32-M32)*(N32-M32)+M45 -> 4500 | O45: 12000 | P45: =(Q45-O45)/(Q32-O32)*(P32-O32)+O45 -> 9000 | Q45: 15000 | U45: VALORI LIMITE
A49: COL | C49: 3 | D49: 4 | E49: 5 | F49: 6 | G49: 7 | H49: 8 | I49: 9 | J49: 10 | K49: 11 | L49: 12 | M49: 13 | N49: 14 | O49: 15 | P49: 16 | Q49: 17
B52: DP | C52: 10 | D52: =IF(AND(V59>C52,V59<E52)=TRUE,V59,0) -> 0 | E52: 25 | F52: =IF(AND(V59>E52,V59<G52)=TRUE,V59,0) -> 0 | G52: 50 | H52: =IF(AND(V59>G52,V59<I52)=TRUE,V59,0) -> 0 | I52: 75 | J52: =IF(AND(V59>I52,V59<K52)=TRUE,V59,0) -> 0 | K52: 100 | L52: =IF(AND(V59>K52,V59<M52)=TRUE,V59,0) -> 0 | M52: 150 | N52: =IF(AND(V59>M52,V59<O52)=TRUE,V59,0) -> 0 | O52: 250 | P52: =IF(AND(V59>O52,V59<Q52)=TRUE,V59,0) -> 0 | Q52: 500
A53: PM
A55: 0.5 | C55: 300 | D55: =(E55-C55)/(E52-C52)*(D52-C52)+C55 -> 206.6666667 | E55: 440 | F55: =(G55-E55)/(G52-E52)*(F52-E52)+E55 -> 280 | G55: 600 | H55: =(I55-G55)/(I52-G52)*(H52-G52)+G55 -> 599.8 | I55: 600.1 | J55: =(K55-I55)/(K52-I52)*(J52-I52)+I55 -> 599.8 | K55: 600.2 | L55: =(M55-K55)/(M52-K52)*(L52-K52)+K55 -> 600 | M55: 600.3 | N55: =(O55-M55)/(O52-M52)*(N52-M52)+M55 -> 600.15 | O55: 600.4 | P55: =(Q55-O55)/(Q52-O52)*(P52-O52)+O55 -> 600.31 | Q55: 600.49 | S55: PM | T55: Q | U55: Qcal | V55: DPcal | W55: DP | X55: TIPO
A56: =IF(AND(S59>A55,S59<A57)=TRUE,S59,0) -> 0 | C56: =(C57-C55)/(A57-A55)*(A56-A55)+C55 -> 240 | D56: =(E56-C56)/(E52-C52)*(D52-C52)+C56 -> 180 | E56: =(E57-E55)/(A57-A55)*(A56-A55)+E55 -> 330 | F56: =(G56-E56)/(G52-E52)*(F52-E52)+E56 -> 260 | G56: =(G57-G55)/(A57-A55)*(A56-A55)+G55 -> 400 | H56: =(I56-G56)/(I52-G52)*(H52-G52)+G56 -> 399.8 | I56: =(I57-I55)/(A57-A55)*(A56-A55)+I55 -> 400.1 | J56: =(K56-I56)/(K52-I52)*(J52-I52)+I56 -> 399.8 | K56: =(K57-K55)/(A57-A55)*(A56-A55)+K55 -> 400.2 | L56: =(M56-K56)/(M52-K52)*(L52-K52)+K56 -> 400 | M56: =(M57-M55)/(A57-A55)*(A56-A55)+M55 -> 400.3 | N56: =(O56-M56)/(O52-M52)*(N52-M52)+M56 -> 400.15 | O56: =(O57-O55)/(A57-A55)*(A56-A55)+O55 -> 400.4 | P56: =(Q56-O56)/(Q52-O52)*(P52-O52)+O56 -> 400.31 | Q56: =(Q57-Q55)/(A57-A55)*(A56-A55)+Q55 -> 400.49
A57: 1 | C57: 360 | D57: =(E57-C57)/(E52-C52)*(D52-C52)+C57 -> 233.3333333 | E57: 550 | F57: =(G57-E57)/(G52-E52)*(F52-E52)+E57 -> 300 | G57: 800 | H57: =(I57-G57)/(I52-G52)*(H52-G52)+G57 -> 799.8 | I57: 800.1 | J57: =(K57-I57)/(K52-I52)*(J52-I52)+I57 -> 799.8 | K57: 800.2 | L57: =(M57-K57)/(M52-K52)*(L52-K52)+K57 -> 800 | M57: 800.3 | N57: =(O57-M57)/(O52-M52)*(N52-M52)+M57 -> 800.15 | O57: 800.4 | P57: =(Q57-O57)/(Q52-O52)*(P52-O52)+O57 -> 800.31 | Q57: 800.49 | T57: Stmc/h | U57: Stmc/h | V57: Mbar | W57: Mbar
A58: =IF(AND(S59>A57,S59<A59)=TRUE,S59,0) -> 0 | C58: =(C59-C57)/(A59-A57)*(A58-A57)+C57 -> 280 | D58: =(E58-C58)/(E52-C52)*(D52-C52)+C58 -> 200 | E58: =(E59-E57)/(A59-A57)*(A58-A57)+E57 -> 400 | F58: =(G58-E58)/(G52-E52)*(F52-E52)+E58 -> 200 | G58: =(G59-G57)/(A59-A57)*(A58-A57)+G57 -> 600 | H58: =(I58-G58)/(I52-G52)*(H52-G52)+G58 -> 999.6 | I58: =(I59-I57)/(A59-A57)*(A58-A57)+I57 -> 400.2 | J58: =(K58-I58)/(K52-I52)*(J52-I52)+I58 -> 399.9 | K58: =(K59-K57)/(A59-A57)*(A58-A57)+K57 -> 400.3 | L58: =(M58-K58)/(M52-K52)*(L52-K52)+K58 -> 400.1 | M58: =(M59-M57)/(A59-A57)*(A58-A57)+M57 -> 400.4 | N58: =(O58-M58)/(O52-M52)*(N52-M52)+M58 -> 400.25 | O58: =(O59-O57)/(A59-A57)*(A58-A57)+O57 -> 400.5 | P58: =(Q58-O58)/(Q52-O52)*(P52-O52)+O58 -> 400.42 | Q58: =(Q59-Q57)/(A59-A57)*(A58-A57)+Q57 -> 400.58
A59: 2 | C59: 440 | D59: =(E59-C59)/(E52-C52)*(D52-C52)+C59 -> 266.6666667 | E59: 700 | F59: =(G59-E59)/(G52-E52)*(F52-E52)+E59 -> 400 | G59: 1000 | H59: =(I59-G59)/(I52-G52)*(H52-G52)+G59 -> 600 | I59: 1200 | J59: =(K59-I59)/(K52-I52)*(J52-I52)+I59 -> 1199.7 | K59: 1200.1 | L59: =(M59-K59)/(M52-K52)*(L52-K52)+K59 -> 1199.9 | M59: 1200.2 | N59: =(O59-M59)/(O52-M52)*(N52-M52)+M59 -> 1200.05 | O59: 1200.3 | P59: =(Q59-O59)/(Q52-O52)*(P52-O52)+O59 -> 1200.2 | Q59: 1200.4 | S59: =Лист1!B17*10 -> 0.1 | T59: =DIMENSIONAMENTO!$D$12 -> 3000 | U59: =VLOOKUP(S59,A52:Q73,HLOOKUP(V59,A52:Q73,22,0),0) ->  | V59: =DIMENSIONAMENTO!$E$21 -> 100 | W59: =IF(S59<A55,"NO",IF(S59>A69,"NO",IF(VLOOKUP(S59,A55:Q69,3,0)>T59,"NO",IF(VLOOKUP(S59,A55:Q69,17,0)<T59,"NO",IF(AND(U59>=T59-0.1,U59<T59+0.1)=TRUE,V59,"NO"))))) -> NO | X59: FA-12-AP/ | Y59: 65
A60: =IF(AND(S59>A59,S59<A61)=TRUE,S59,0) -> 0 | C60: =(C61-C59)/(A61-A59)*(A60-A59)+C59 -> 300 | D60: =(E60-C60)/(E52-C52)*(D52-C52)+C60 -> 166.6666667 | E60: =(E61-E59)/(A61-A59)*(A60-A59)+E59 -> 500 | F60: =(G60-E60)/(G52-E52)*(F52-E52)+E60 -> 266.6666667 | G60: =(G61-G59)/(A61-A59)*(A60-A59)+G59 -> 733.3333333 | H60: =(I60-G60)/(I52-G52)*(H52-G52)+G60 -> 466.6666667 | I60: =(I61-I59)/(A61-A59)*(A60-A59)+I59 -> 866.6666667 | J60: =(K60-I60)/(K52-I52)*(J52-I52)+I60 -> 1466.166667 | K60: =(K61-K59)/(A61-A59)*(A60-A59)+K59 -> 666.8333333 | L60: =(M60-K60)/(M52-K52)*(L52-K52)+K60 -> 1199.833333 | M60: =(M61-M59)/(A61-A59)*(A60-A59)+M59 -> 400.3333333 | N60: =(O60-M60)/(O52-M52)*(N52-M52)+M60 -> 400.1833333 | O60: =(O61-O59)/(A61-A59)*(A60-A59)+O59 -> 400.4333333 | P60: =(Q60-O60)/(Q52-O52)*(P52-O52)+O60 -> 400.3333333 | Q60: =(Q61-Q59)/(A61-A59)*(A60-A59)+Q59 -> 400.5333333
A61: 5 | C61: 650 | D61: =(E61-C61)/(E52-C52)*(D52-C52)+C61 -> 416.6666667 | E61: 1000 | F61: =(G61-E61)/(G52-E52)*(F52-E52)+E61 -> 600 | G61: 1400 | H61: =(I61-G61)/(I52-G52)*(H52-G52)+G61 -> 800 | I61: 1700 | J61: =(K61-I61)/(K52-I52)*(J52-I52)+I61 -> 800 | K61: 2000 | L61: =(M61-K61)/(M52-K52)*(L52-K52)+K61 -> 1200 | M61: 2400 | N61: =(O61-M61)/(O52-M52)*(N52-M52)+M61 -> 2399.85 | O61: 2400.1 | P61: =(Q61-O61)/(Q52-O52)*(P52-O52)+O61 -> 2400 | Q61: 2400.2
A62: =IF(AND(S59>A61,S59<A63)=TRUE,S59,0) -> 0 | C62: =(C63-C61)/(A63-A61)*(A62-A61)+C61 -> 400 | D62: =(E62-C62)/(E52-C52)*(D52-C52)+C62 -> 200 | E62: =(E63-E61)/(A63-A61)*(A62-A61)+E61 -> 700 | F62: =(G62-E62)/(G52-E52)*(F52-E52)+E62 -> 600 | G62: =(G63-G61)/(A63-A61)*(A62-A61)+G61 -> 800 | H62: =(I62-G62)/(I52-G52)*(H52-G52)+G62 -> 400 | I62: =(I63-I61)/(A63-A61)*(A62-A61)+I61 -> 1000 | J62: =(K62-I62)/(K52-I52)*(J52-I52)+I62 -> 400 | K62: =(K63-K61)/(A63-A61)*(A62-A61)+K61 -> 1200 | L62: =(M62-K62)/(M52-K52)*(L52-K52)+K62 -> 400 | M62: =(M63-M61)/(A63-A61)*(A62-A61)+M61 -> 1600 | N62: =(O62-M62)/(O52-M52)*(N52-M52)+M62 -> 3399.7 | O62: =(O63-O61)/(A63-A61)*(A62-A61)+O61 -> 400.2 | P62: =(Q62-O62)/(Q52-O52)*(P52-O52)+O62 -> 400.1 | Q62: =(Q63-Q61)/(A63-A61)*(A62-A61)+Q61 -> 400.3
A63: 10 | C63: 900 | D63: =(E63-C63)/(E52-C52)*(D52-C52)+C63 -> 633.3333333 | E63: 1300 | F63: =(G63-E63)/(G52-E52)*(F52-E52)+E63 -> 600 | G63: 2000 | H63: =(I63-G63)/(I52-G52)*(H52-G52)+G63 -> 1200 | I63: 2400 | J63: =(K63-I63)/(K52-I52)*(J52-I52)+I63 -> 1200 | K63: 2800 | L63: =(M63-K63)/(M52-K52)*(L52-K52)+K63 -> 2000 | M63: 3200 | N63: =(O63-M63)/(O52-M52)*(N52-M52)+M63 -> 1400 | O63: 4400 | P63: =(Q63-O63)/(Q52-O52)*(P52-O52)+O63 -> 4399.9 | Q63: 4400.1
A64: =IF(AND(S59>A63,S59<A65)=TRUE,S59,0) -> 0 | C64: =(C65-C63)/(A65-A63)*(A64-A63)+C63 -> 633.3333333 | D64: =(E64-C64)/(E52-C52)*(D52-C52)+C64 -> 500 | E64: =(E65-E63)/(A65-A63)*(A64-A63)+E63 -> 833.3333333 | F64: =(G64-E64)/(G52-E52)*(F52-E52)+E64 -> 333.3333333 | G64: =(G65-G63)/(A65-A63)*(A64-A63)+G63 -> 1333.333333 | H64: =(I64-G64)/(I52-G52)*(H52-G52)+G64 -> -800 | I64: 2400 | J64: =(K64-I64)/(K52-I52)*(J52-I52)+I64 -> 4000 | K64: =(K65-K63)/(A65-A63)*(A64-A63)+K63 -> 1866.666667 | L64: =(M64-K64)/(M52-K52)*(L52-K52)+K64 -> 1600 | M64: =(M65-M63)/(A65-A63)*(A64-A63)+M63 -> 2000 | N64: =(O64-M64)/(O52-M52)*(N52-M52)+M64 -> 400 | O64: =(O65-O63)/(A65-A63)*(A64-A63)+O63 -> 3066.666667 | P64: =(Q64-O64)/(Q52-O52)*(P52-O52)+O64 -> 5466.5 | Q64: =(Q65-Q63)/(A65-A63)*(A64-A63)+Q63 -> 666.8333333
A65: 25 | C65: 1300 | D65: =(E65-C65)/(E52-C52)*(D52-C52)+C65 -> 833.3333333 | E65: 2000 | F65: =(G65-E65)/(G52-E52)*(F52-E52)+E65 -> 1000 | G65: 3000 | H65: =(I65-G65)/(I52-G52)*(H52-G52)+G65 -> 1800 | I65: 3600 | J65: =(K65-I65)/(K52-I52)*(J52-I52)+I65 -> 1800 | K65: 4200 | L65: =(M65-K65)/(M52-K52)*(L52-K52)+K65 -> 2600 | M65: 5000 | N65: =(O65-M65)/(O52-M52)*(N52-M52)+M65 -> 2900 | O65: 6400 | P65: =(Q65-O65)/(Q52-O52)*(P52-O52)+O65 -> 2800 | Q65: 10000
A66: =IF(AND(S61>A65,S61<A67)=TRUE,S61,0) -> 0 | C66: =(C67-C65)/(A67-A65)*(A66-A65)+C65 -> 133.3333333 | D66: =(E66-C66)/(E52-C52)*(D52-C52)+C66 -> 3.126388037e-13 | E66: =(E67-E65)/(A67-A65)*(A66-A65)+E65 -> 333.3333333 | F66: =(G66-E66)/(G52-E52)*(F52-E52)+E66 -> -666.6666667 | G66: =(G67-G65)/(A67-A65)*(A66-A65)+G65 -> 1333.333333 | H66: =(I66-G66)/(I52-G52)*(H52-G52)+G66 -> -800 | I66: 2400 | J66: =(K66-I66)/(K52-I52)*(J52-I52)+I66 -> 6000 | K66: =(K67-K65)/(A67-A65)*(A66-A65)+K65 -> 1200 | L66: =(M66-K66)/(M52-K52)*(L52-K52)+K66 -> 266.6666667 | M66: =(M67-M65)/(A67-A65)*(A66-A65)+M65 -> 1666.666667 | N66: =(O66-M66)/(O52-M52)*(N52-M52)+M66 -> -1433.333333 | O66: =(O67-O65)/(A67-A65)*(A66-A65)+O65 -> 3733.333333 | P66: =(Q66-O66)/(Q52-O52)*(P52-O52)+O66 -> 800 | Q66: =(Q67-Q65)/(A67-A65)*(A66-A65)+Q65 -> 6666.666667
A67: 40 | C67: 2000 | D67: =(E67-C67)/(E52-C52)*(D52-C52)+C67 -> 1333.333333 | E67: 3000 | F67: =(G67-E67)/(G52-E52)*(F52-E52)+E67 -> 2000 | G67: 4000 | H67: =(I67-G67)/(I52-G52)*(H52-G52)+G67 -> 2000 | I67: 5000 | J67: =(K67-I67)/(K52-I52)*(J52-I52)+I67 -> 2000 | K67: 6000 | L67: =(M67-K67)/(M52-K52)*(L52-K52)+K67 -> 4000 | M67: 7000 | N67: =(O67-M67)/(O52-M52)*(N52-M52)+M67 -> 5500 | O67: 8000 | P67: =(Q67-O67)/(Q52-O52)*(P52-O52)+O67 -> 4000 | Q67: 12000
A68: =IF(AND(S63>A67,S63<A69)=TRUE,S63,0) -> 0 | C68: =(C69-C67)/(A69-A67)*(A68-A67)+C67 -> 666.6666667 | D68: =(E68-C68)/(E56-C56)*(D56-C56)+C68 -> 0 | E68: =(E69-E67)/(A69-A67)*(A68-A67)+E67 -> 1666.666667 | F68: =(G68-E68)/(G56-E56)*(F56-E56)+E68 -> 666.6666667 | G68: =(G69-G67)/(A69-A67)*(A68-A67)+G67 -> 2666.666667 | H68: =(I68-G68)/(I56-G56)*(H56-G56)+G68 -> 3200 | I68: 2400 | J68: =(K68-I68)/(K56-I56)*(J56-I56)+I68 -> -2400 | K68: =(K69-K67)/(A69-A67)*(A68-A67)+K67 -> 4000 | L68: =(M68-K68)/(M56-K56)*(L56-K56)+K68 -> 3333.333333 | M68: =(M69-M67)/(A69-A67)*(A68-A67)+M67 -> 4333.333333 | N68: =(O68-M68)/(O56-M56)*(N56-M56)+M68 -> 6833.333333 | O68: =(O69-O67)/(A69-A67)*(A68-A67)+O67 -> 2666.666667 | P68: =(Q68-O68)/(Q56-O56)*(P56-O56)+O68 -> -1333.333333 | Q68: =(Q69-Q67)/(A69-A67)*(A68-A67)+Q67 -> 6666.666667
A69: 70 | C69: 3000 | D69: =(E69-C69)/(E56-C56)*(D56-C56)+C69 -> 2333.333333 | E69: 4000 | F69: =(G69-E69)/(G56-E56)*(F56-E56)+E69 -> 3000 | G69: 5000 | H69: =(I69-G69)/(I56-G56)*(H56-G56)+G69 -> 3000 | I69: 6000 | J69: =(K69-I69)/(K56-I56)*(J56-I56)+I69 -> 1500 | K69: 7500 | L69: =(M69-K69)/(M56-K56)*(L56-K56)+K69 -> 4500 | M69: 9000 | N69: =(O69-M69)/(O56-M56)*(N56-M56)+M69 -> 4500 | O69: 12000 | P69: =(Q69-O69)/(Q56-O56)*(P56-O56)+O69 -> 8000 | Q69: 16000 | U69: VALORI LIMITE
A73: COL | C73: 3 | D73: 4 | E73: 5 | F73: 6 | G73: 7 | H73: 8 | I73: 9 | J73: 10 | K73: 11 | L73: 12 | M73: 13 | N73: 14 | O73: 15 | P73: 16 | Q73: 17
B76: DP | C76: 10 | D76: =IF(AND(V83>C76,V83<E76)=TRUE,V83,0) -> 0 | E76: 25 | F76: =IF(AND(V83>E76,V83<G76)=TRUE,V83,0) -> 0 | G76: 50 | H76: =IF(AND(V83>G76,V83<I76)=TRUE,V83,0) -> 0 | I76: 75 | J76: =IF(AND(V83>I76,V83<K76)=TRUE,V83,0) -> 0 | K76: 100 | L76: =IF(AND(V83>K76,V83<M76)=TRUE,V83,0) -> 0 | M76: 150 | N76: =IF(AND(V83>M76,V83<O76)=TRUE,V83,0) -> 0 | O76: 250 | P76: =IF(AND(V83>O76,V83<Q76)=TRUE,V83,0) -> 0 | Q76: 500
A77: PM
A79: 0.5 | C79: 600 | D79: =(E79-C79)/(E76-C76)*(D76-C76)+C79 -> 500 | E79: 750 | F79: =(G79-E79)/(G76-E76)*(F76-E76)+E79 -> 749.9 | G79: 750.1 | H79: =(I79-G79)/(I76-G76)*(H76-G76)+G79 -> 750 | I79: 750.15 | J79: =(K79-I79)/(K76-I76)*(J76-I76)+I79 -> 750 | K79: 750.2 | L79: =(M79-K79)/(M76-K76)*(L76-K76)+K79 -> 750 | M79: 750.3 | N79: =(O79-M79)/(O76-M76)*(N76-M76)+M79 -> 750.15 | O79: 750.4 | P79: =(Q79-O79)/(Q76-O76)*(P76-O76)+O79 -> 750.31 | Q79: 750.49 | S79: PM | T79: Q | U79: Qcal | V79: DPcal | W79: DP | X79: TIPO
A80: =IF(AND(S83>A79,S83<A81)=TRUE,S83,0) -> 0 | C80: =(C81-C79)/(A81-A79)*(A80-A79)+C79 -> 500 | D80: =(E80-C80)/(E76-C76)*(D76-C76)+C80 -> 500 | E80: =(E81-E79)/(A81-A79)*(A80-A79)+E79 -> 500 | F80: =(G80-E80)/(G76-E76)*(F76-E76)+E80 -> 499.9 | G80: =(G81-G79)/(A81-A79)*(A80-A79)+G79 -> 500.1 | H80: =(I80-G80)/(I76-G76)*(H76-G76)+G80 -> 500 | I80: =(I81-I79)/(A81-A79)*(A80-A79)+I79 -> 500.15 | J80: =(K80-I80)/(K76-I76)*(J76-I76)+I80 -> 500 | K80: =(K81-K79)/(A81-A79)*(A80-A79)+K79 -> 500.2 | L80: =(M80-K80)/(M76-K76)*(L76-K76)+K80 -> 500 | M80: =(M81-M79)/(A81-A79)*(A80-A79)+M79 -> 500.3 | N80: =(O80-M80)/(O76-M76)*(N76-M76)+M80 -> 500.15 | O80: =(O81-O79)/(A81-A79)*(A80-A79)+O79 -> 500.4 | P80: =(Q80-O80)/(Q76-O76)*(P76-O76)+O80 -> 500.31 | Q80: =(Q81-Q79)/(A81-A79)*(A80-A79)+Q79 -> 500.49
A81: 1 | C81: 700 | D81: =(E81-C81)/(E76-C76)*(D76-C76)+C81 -> 500 | E81: 1000 | F81: =(G81-E81)/(G76-E76)*(F76-E76)+E81 -> 999.9 | G81: 1000.1 | H81: =(I81-G81)/(I76-G76)*(H76-G76)+G81 -> 1000 | I81: 1000.15 | J81: =(K81-I81)/(K76-I76)*(J76-I76)+I81 -> 1000 | K81: 1000.2 | L81: =(M81-K81)/(M76-K76)*(L76-K76)+K81 -> 1000 | M81: 1000.3 | N81: =(O81-M81)/(O76-M76)*(N76-M76)+M81 -> 1000.15 | O81: 1000.4 | P81: =(Q81-O81)/(Q76-O76)*(P76-O76)+O81 -> 1000.31 | Q81: 1000.49 | T81: Stmc/h | U81: Stmc/h | V81: Mbar | W81: Mbar
A82: =IF(AND(S83>A81,S83<A83)=TRUE,S83,0) -> 0 | C82: =(C83-C81)/(A83-A81)*(A82-A81)+C81 -> 600 | D82: =(E82-C82)/(E76-C76)*(D76-C76)+C82 -> 533.3333333 | E82: =(E83-E81)/(A83-A81)*(A82-A81)+E81 -> 700 | F82: =(G82-E82)/(G76-E76)*(F76-E76)+E82 -> 1099.8 | G82: =(G83-G81)/(A83-A81)*(A82-A81)+G81 -> 300.2 | H82: =(I82-G82)/(I76-G76)*(H76-G76)+G82 -> 300.2 | I82: =(I83-I81)/(A83-A81)*(A82-A81)+I81 -> 300.2 | J82: =(K82-I82)/(K76-I76)*(J76-I76)+I82 -> 300.2 | K82: =(K83-K81)/(A83-A81)*(A82-A81)+K81 -> 300.2 | L82: =(M82-K82)/(M76-K76)*(L76-K76)+K82 -> 300 | M82: =(M83-M81)/(A83-A81)*(A82-A81)+M81 -> 300.3 | N82: =(O82-M82)/(O76-M76)*(N76-M76)+M82 -> 300.15 | O82: =(O83-O81)/(A83-A81)*(A82-A81)+O81 -> 300.4 | P82: =(Q82-O82)/(Q76-O76)*(P76-O76)+O82 -> 300.31 | Q82: =(Q83-Q81)/(A83-A81)*(A82-A81)+Q81 -> 300.49
A83: 2 | C83: 800 | D83: =(E83-C83)/(E76-C76)*(D76-C76)+C83 -> 466.6666667 | E83: 1300 | F83: =(G83-E83)/(G76-E76)*(F76-E76)+E83 -> 900 | G83: 1700 | H83: =(I83-G83)/(I76-G76)*(H76-G76)+G83 -> 1699.8 | I83: 1700.1 | J83: =(K83-I83)/(K76-I76)*(J76-I76)+I83 -> 1699.8 | K83: 1700.2 | L83: =(M83-K83)/(M76-K76)*(L76-K76)+K83 -> 1700 | M83: 1700.3 | N83: =(O83-M83)/(O76-M76)*(N76-M76)+M83 -> 1700.15 | O83: 1700.4 | P83: =(Q83-O83)/(Q76-O76)*(P76-O76)+O83 -> 1700.31 | Q83: 1700.49 | S83: =Лист1!B17*10 -> 0.1 | T83: =DIMENSIONAMENTO!$D$12 -> 3000 | U83: =VLOOKUP(S83,A76:Q97,HLOOKUP(V83,A76:Q97,22,0),0) ->  | V83: =DIMENSIONAMENTO!$E$21 -> 100 | W83: =IF(S83<A79,"NO",IF(S83>A93,"NO",IF(VLOOKUP(S83,A79:Q93,3,0)>T83,"NO",IF(VLOOKUP(S83,A79:Q93,17,0)<T83,"NO",IF(AND(U83>=T83-0.1,U83<T83+0.1)=TRUE,V83,"NO"))))) -> NO | X83: FA-12-AP/ | Y83: 80
A84: =IF(AND(S83>A83,S83<A85)=TRUE,S83,0) -> 0 | C84: =(C85-C83)/(A85-A83)*(A84-A83)+C83 -> 533.3333333 | D84: =(E84-C84)/(E76-C76)*(D76-C76)+C84 -> 244.4444444 | E84: =(E85-E83)/(A85-A83)*(A84-A83)+E83 -> 966.6666667 | F84: =(G84-E84)/(G76-E76)*(F76-E76)+E84 -> 833.3333333 | G84: =(G85-G83)/(A85-A83)*(A84-A83)+G83 -> 1100 | H84: =(I84-G84)/(I76-G76)*(H76-G76)+G84 -> 1633 | I84: =(I85-I83)/(A85-A83)*(A84-A83)+I83 -> 833.5 | J84: =(K84-I84)/(K76-I76)*(J76-I76)+I84 -> 833.2 | K84: =(K85-K83)/(A85-A83)*(A84-A83)+K83 -> 833.6 | L84: =(M84-K84)/(M76-K76)*(L76-K76)+K84 -> 833.4 | M84: =(M85-M83)/(A85-A83)*(A84-A83)+M83 -> 833.7 | N84: =(O84-M84)/(O76-M76)*(N76-M76)+M84 -> 833.55 | O84: =(O85-O83)/(A85-A83)*(A84-A83)+O83 -> 833.8 | P84: =(Q84-O84)/(Q76-O76)*(P76-O76)+O84 -> 833.7166667 | Q84: =(Q85-Q83)/(A85-A83)*(A84-A83)+Q83 -> 833.8833333
A85: 5 | C85: 1200 | D85: =(E85-C85)/(E76-C76)*(D76-C76)+C85 -> 800 | E85: 1800 | F85: =(G85-E85)/(G76-E76)*(F76-E76)+E85 -> 1000 | G85: 2600 | H85: =(I85-G85)/(I76-G76)*(H76-G76)+G85 -> 1800 | I85: 3000 | J85: =(K85-I85)/(K76-I76)*(J76-I76)+I85 -> 2999.7 | K85: 3000.1 | L85: =(M85-K85)/(M76-K76)*(L76-K76)+K85 -> 2999.9 | M85: 3000.2 | N85: =(O85-M85)/(O76-M76)*(N76-M76)+M85 -> 3000.05 | O85: 3000.3 | P85: =(Q85-O85)/(Q76-O76)*(P76-O76)+O85 -> 3000.2 | Q85: 3000.4
A86: =IF(AND(S83>A85,S83<A87)=TRUE,S83,0) -> 0 | C86: =(C87-C85)/(A87-A85)*(A86-A85)+C85 -> 700 | D86: =(E86-C86)/(E76-C76)*(D76-C76)+C86 -> 366.6666667 | E86: =(E87-E85)/(A87-A85)*(A86-A85)+E85 -> 1200 | F86: =(G86-E86)/(G76-E76)*(F76-E76)+E86 -> 800 | G86: =(G87-G85)/(A87-A85)*(A86-A85)+G85 -> 1600 | H86: =(I86-G86)/(I76-G76)*(H76-G76)+G86 -> 1800 | I86: =(I87-I85)/(A87-A85)*(A86-A85)+I85 -> 1500 | J86: =(K86-I86)/(K76-I76)*(J76-I76)+I86 -> 2999.4 | K86: =(K87-K85)/(A87-A85)*(A86-A85)+K85 -> 1000.2 | L86: =(M86-K86)/(M76-K76)*(L76-K76)+K86 -> 1000 | M86: =(M87-M85)/(A87-A85)*(A86-A85)+M85 -> 1000.3 | N86: =(O86-M86)/(O76-M76)*(N76-M76)+M86 -> 1000.15 | O86: =(O87-O85)/(A87-A85)*(A86-A85)+O85 -> 1000.4 | P86: =(Q86-O86)/(Q76-O76)*(P76-O76)+O86 -> 1000.3 | Q86: =(Q87-Q85)/(A87-A85)*(A86-A85)+Q85 -> 1000.5
A87: 10 | C87: 1700 | D87: =(E87-C87)/(E76-C76)*(D76-C76)+C87 -> 1233.333333 | E87: 2400 | F87: =(G87-E87)/(G76-E76)*(F76-E76)+E87 -> 1200 | G87: 3600 | H87: =(I87-G87)/(I76-G76)*(H76-G76)+G87 -> 1800 | I87: 4500 | J87: =(K87-I87)/(K76-I76)*(J76-I76)+I87 -> 3000 | K87: 5000 | L87: =(M87-K87)/(M76-K76)*(L76-K76)+K87 -> 4999.8 | M87: 5000.1 | N87: =(O87-M87)/(O76-M76)*(N76-M76)+M87 -> 4999.95 | O87: 5000.2 | P87: =(Q87-O87)/(Q76-O76)*(P76-O76)+O87 -> 5000.1 | Q87: 5000.3
A88: =IF(AND(S83>A87,S83<A89)=TRUE,S83,0) -> 0 | C88: =(C89-C87)/(A89-A87)*(A88-A87)+C87 -> 1166.666667 | D88: =(E88-C88)/(E76-C76)*(D76-C76)+C88 -> 1055.555556 | E88: =(E89-E87)/(A89-A87)*(A88-A87)+E87 -> 1333.333333 | F88: =(G88-E88)/(G76-E76)*(F76-E76)+E88 -> 666.6666667 | G88: =(G89-G87)/(A89-A87)*(A88-A87)+G87 -> 2000 | H88: =(I88-G88)/(I76-G76)*(H76-G76)+G88 -> 1200 | I88: 2400 | J88: =(K88-I88)/(K76-I76)*(J76-I76)+I88 -> 600 | K88: =(K89-K87)/(A89-A87)*(A88-A87)+K87 -> 3000 | L88: =(M88-K88)/(M76-K76)*(L76-K76)+K88 -> 5666.333333 | M88: =(M89-M87)/(A89-A87)*(A88-A87)+M87 -> 1666.833333 | N88: =(O88-M88)/(O76-M76)*(N76-M76)+M88 -> 3666.583333 | O88: =(O89-O87)/(A89-A87)*(A88-A87)+O87 -> 333.6666667 | P88: =(Q88-O88)/(Q76-O76)*(P76-O76)+O88 -> 1000.166667 | Q88: =(Q89-Q87)/(A89-A87)*(A88-A87)+Q87 -> -332.8333333
A89: 25 | C89: 2500 | D89: =(E89-C89)/(E76-C76)*(D76-C76)+C89 -> 1500 | E89: 4000 | F89: =(G89-E89)/(G76-E76)*(F76-E76)+E89 -> 2000 | G89: 6000 | H89: =(I89-G89)/(I76-G76)*(H76-G76)+G89 -> 4000 | I89: 7000 | J89: =(K89-I89)/(K76-I76)*(J76-I76)+I89 -> 4000 | K89: 8000 | L89: =(M89-K89)/(M76-K76)*(L76-K76)+K89 -> 4000 | M89: 10000 | N89: =(O89-M89)/(O76-M76)*(N76-M76)+M89 -> 7000 | O89: 12000 | P89: =(Q89-O89)/(Q76-O76)*(P76-O76)+O89 -> 11000 | Q89: 13000
A90: =IF(AND(S85>A89,S85<A91)=TRUE,S85,0) -> 0 | C90: =(C91-C89)/(A91-A89)*(A90-A89)+C89 -> 833.3333333 | D90: =(E90-C90)/(E76-C76)*(D76-C76)+C90 -> 388.8888889 | E90: =(E91-E89)/(A91-A89)*(A90-A89)+E89 -> 1500 | F90: =(G90-E90)/(G76-E76)*(F76-E76)+E90 -> -1333.333333 | G90: =(G91-G89)/(A91-A89)*(A90-A89)+G89 -> 4333.333333 | H90: =(I90-G90)/(I76-G76)*(H76-G76)+G90 -> 8200 | I90: 2400 | J90: =(K90-I90)/(K76-I76)*(J76-I76)+I90 -> -4400 | K90: =(K91-K89)/(A91-A89)*(A90-A89)+K89 -> 4666.666667 | L90: =(M90-K90)/(M76-K76)*(L76-K76)+K90 -> 4000 | M90: =(M91-M89)/(A91-A89)*(A90-A89)+M89 -> 5000 | N90: =(O90-M90)/(O76-M76)*(N76-M76)+M90 -> 4500 | O90: =(O91-O89)/(A91-A89)*(A90-A89)+O89 -> 5333.333333 | P90: =(Q90-O90)/(Q76-O76)*(P76-O76)+O90 -> 11000 | Q90: =(Q91-Q89)/(A91-A89)*(A90-A89)+Q89 -> -333.3333333
A91: 40 | C91: 3500 | D91: =(E91-C91)/(E76-C76)*(D76-C76)+C91 -> 2166.666667 | E91: 5500 | F91: =(G91-E91)/(G76-E76)*(F76-E76)+E91 -> 4000 | G91: 7000 | H91: =(I91-G91)/(I76-G76)*(H76-G76)+G91 -> 5000 | I91: 8000 | J91: =(K91-I91)/(K76-I76)*(J76-I76)+I91 -> 2000 | K91: 10000 | L91: =(M91-K91)/(M76-K76)*(L76-K76)+K91 -> 4000 | M91: 13000 | N91: =(O91-M91)/(O76-M76)*(N76-M76)+M91 -> 8500 | O91: 16000 | P91: =(Q91-O91)/(Q76-O76)*(P76-O76)+O91 -> 11000 | Q91: 21000
A92: =IF(AND(S87>A91,S87<A93)=TRUE,S87,0) -> 0 | C92: =(C93-C91)/(A93-A91)*(A92-A91)+C91 -> 1500 | D92: =(E92-C92)/(E80-C80)*(D80-C80)+C92 ->  | E92: =(E93-E91)/(A93-A91)*(A92-A91)+E91 -> 3500 | F92: =(G92-E92)/(G80-E80)*(F80-E80)+E92 -> 1333.333333 | G92: =(G93-G91)/(A93-A91)*(A92-A91)+G91 -> 5666.666667 | H92: =(I92-G92)/(I80-G80)*(H80-G80)+G92 -> 12200 | I92: 2400 | J92: =(K92-I92)/(K80-I80)*(J80-I80)+I92 -> -8400 | K92: =(K93-K91)/(A93-A91)*(A92-A91)+K91 -> 6000 | L92: =(M92-K92)/(M80-K80)*(L80-K80)+K92 -> 0 | M92: =(M93-M91)/(A93-A91)*(A92-A91)+M91 -> 9000 | N92: =(O92-M92)/(O80-M80)*(N80-M80)+M92 -> 8500 | O92: =(O93-O91)/(A93-A91)*(A92-A91)+O91 -> 9333.333333 | P92: =(Q92-O92)/(Q80-O80)*(P80-O80)+O92 -> 9666.666667 | Q92: =(Q93-Q91)/(A93-A91)*(A92-A91)+Q91 -> 9000
A93: 70 | C93: 5000 | D93: =(E93-C93)/(E80-C80)*(D80-C80)+C93 ->  | E93: 7000 | F93: =(G93-E93)/(G80-E80)*(F80-E80)+E93 -> 6000 | G93: 8000 | H93: =(I93-G93)/(I80-G80)*(H80-G80)+G93 -> 4000 | I93: 10000 | J93: =(K93-I93)/(K80-I80)*(J80-I80)+I93 -> 1000 | K93: 13000 | L93: =(M93-K93)/(M80-K80)*(L80-K80)+K93 -> 7000 | M93: 16000 | N93: =(O93-M93)/(O80-M80)*(N80-M80)+M93 -> 8500 | O93: 21000 | P93: =(Q93-O93)/(Q80-O80)*(P80-O80)+O93 -> 12000 | Q93: 30000 | U93: VALORI LIMITE
A97: COL | C97: 3 | D97: 4 | E97: 5 | F97: 6 | G97: 7 | H97: 8 | I97: 9 | J97: 10 | K97: 11 | L97: 12 | M97: 13 | N97: 14 | O97: 15 | P97: 16 | Q97: 17
B100: DP | C100: 10 | D100: =IF(AND(V107>C100,V107<E100)=TRUE,V107,0) -> 0 | E100: 25 | F100: =IF(AND(V107>E100,V107<G100)=TRUE,V107,0) -> 0 | G100: 50 | H100: =IF(AND(V107>G100,V107<I100)=TRUE,V107,0) -> 0 | I100: 75 | J100: =IF(AND(V107>I100,V107<K100)=TRUE,V107,0) -> 0 | K100: 100 | L100: =IF(AND(V107>K100,V107<M100)=TRUE,V107,0) -> 0 | M100: 150 | N100: =IF(AND(V107>M100,V107<O100)=TRUE,V107,0) -> 0 | O100: 250 | P100: =IF(AND(V107>O100,V107<Q100)=TRUE,V107,0) -> 0 | Q100: 500
A101: PM
A103: 0.5 | C103: 600 | D103: =(E103-C103)/(E100-C100)*(D100-C100)+C103 -> 400 | E103: 900 | F103: =(G103-E103)/(G100-E100)*(F100-E100)+E103 -> 500 | G103: 1300 | H103: =(I103-G103)/(I100-G100)*(H100-G100)+G103 -> 1300 | I103: 1300 | J103: =(K103-I103)/(K100-I100)*(J100-I100)+I103 -> 1299.7 | K103: 1300.1 | L103: =(M103-K103)/(M100-K100)*(L100-K100)+K103 -> 1299.9 | M103: 1300.2 | N103: =(O103-M103)/(O100-M100)*(N100-M100)+M103 -> 1300.05 | O103: 1300.3 | P103: =(Q103-O103)/(Q100-O100)*(P100-O100)+O103 -> 1300.2 | Q103: 1300.4 | S103: PM | T103: Q | U103: Qcal | V103: DPcal | W103: DP | X103: TIPO
A104: =IF(AND(S107>A103,S107<A105)=TRUE,S107,0) -> 0 | C104: =(C105-C103)/(A105-A103)*(A104-A103)+C103 -> 500 | D104: =(E104-C104)/(E100-C100)*(D100-C100)+C104 -> 300 | E104: =(E105-E103)/(A105-A103)*(A104-A103)+E103 -> 800 | F104: =(G104-E104)/(G100-E100)*(F100-E100)+E104 -> 500 | G104: =(G105-G103)/(A105-A103)*(A104-A103)+G103 -> 1100 | H104: =(I104-G104)/(I100-G100)*(H100-G100)+G104 -> 1900 | I104: =(I105-I103)/(A105-A103)*(A104-A103)+I103 -> 700 | J104: =(K104-I104)/(K100-I100)*(J100-I100)+I104 -> 699.7 | K104: =(K105-K103)/(A105-A103)*(A104-A103)+K103 -> 700.1 | L104: =(M104-K104)/(M100-K100)*(L100-K100)+K104 -> 699.9 | M104: =(M105-M103)/(A105-A103)*(A104-A103)+M103 -> 700.2 | N104: =(O104-M104)/(O100-M100)*(N100-M100)+M104 -> 700.05 | O104: =(O105-O103)/(A105-A103)*(A104-A103)+O103 -> 700.3 | P104: =(Q104-O104)/(Q100-O100)*(P100-O100)+O104 -> 700.2 | Q104: =(Q105-Q103)/(A105-A103)*(A104-A103)+Q103 -> 700.4
A105: 1 | C105: 700 | D105: =(E105-C105)/(E100-C100)*(D100-C100)+C105 -> 500 | E105: 1000 | F105: =(G105-E105)/(G100-E100)*(F100-E100)+E105 -> 500 | G105: 1500 | H105: =(I105-G105)/(I100-G100)*(H100-G100)+G105 -> 700 | I105: 1900 | J105: =(K105-I105)/(K100-I100)*(J100-I100)+I105 -> 1899.7 | K105: 1900.1 | L105: =(M105-K105)/(M100-K100)*(L100-K100)+K105 -> 1899.9 | M105: 1900.2 | N105: =(O105-M105)/(O100-M100)*(N100-M100)+M105 -> 1900.05 | O105: 1900.3 | P105: =(Q105-O105)/(Q100-O100)*(P100-O100)+O105 -> 1900.2 | Q105: 1900.4 | T105: Stmc/h | U105: Stmc/h | V105: Mbar | W105: Mbar
A106: =IF(AND(S107>A105,S107<A107)=TRUE,S107,0) -> 0 | C106: =(C107-C105)/(A107-A105)*(A106-A105)+C105 -> 600 | D106: =(E106-C106)/(E100-C100)*(D100-C100)+C106 -> 533.3333333 | E106: =(E107-E105)/(A107-A105)*(A106-A105)+E105 -> 700 | F106: =(G106-E106)/(G100-E100)*(F100-E100)+E106 -> 100 | G106: =(G107-G105)/(A107-A105)*(A106-A105)+G105 -> 1300 | H106: =(I106-G106)/(I100-G100)*(H100-G100)+G106 -> 700 | I106: =(I107-I105)/(A107-A105)*(A106-A105)+I105 -> 1600 | J106: =(K106-I106)/(K100-I100)*(J100-I100)+I106 -> 2799.4 | K106: =(K107-K105)/(A107-A105)*(A106-A105)+K105 -> 1200.2 | L106: =(M106-K106)/(M100-K100)*(L100-K100)+K106 -> 1200 | M106: =(M107-M105)/(A107-A105)*(A106-A105)+M105 -> 1200.3 | N106: =(O106-M106)/(O100-M100)*(N100-M100)+M106 -> 1200.15 | O106: =(O107-O105)/(A107-A105)*(A106-A105)+O105 -> 1200.4 | P106: =(Q106-O106)/(Q100-O100)*(P100-O100)+O106 -> 1200.3 | Q106: =(Q107-Q105)/(A107-A105)*(A106-A105)+Q105 -> 1200.5
A107: 2 | C107: 800 | D107: =(E107-C107)/(E100-C100)*(D100-C100)+C107 -> 466.6666667 | E107: 1300 | F107: =(G107-E107)/(G100-E100)*(F100-E100)+E107 -> 900 | G107: 1700 | H107: =(I107-G107)/(I100-G100)*(H100-G100)+G107 -> 700 | I107: 2200 | J107: =(K107-I107)/(K100-I100)*(J100-I100)+I107 -> 1000 | K107: 2600 | L107: =(M107-K107)/(M100-K100)*(L100-K100)+K107 -> 2599.8 | M107: 2600.1 | N107: =(O107-M107)/(O100-M100)*(N100-M100)+M107 -> 2599.95 | O107: 2600.2 | P107: =(Q107-O107)/(Q100-O100)*(P100-O100)+O107 -> 2600.1 | Q107: 2600.3 | S107: =Лист1!B17*10 -> 0.1 | T107: =DIMENSIONAMENTO!$D$12 -> 3000 | U107: =VLOOKUP(S107,A100:Q121,HLOOKUP(V107,A100:Q121,22,0),0) ->  | V107: =DIMENSIONAMENTO!$E$21 -> 100 | W107: =IF(S107<A103,"NO",IF(S107>A117,"NO",IF(VLOOKUP(S107,A103:Q117,3,0)>T107,"NO",IF(VLOOKUP(S107,A103:Q117,17,0)<T107,"NO",IF(AND(U107>=T107-0.1,U107<T107+0.1)=TRUE,V107,"NO"))))) -> NO | X107: FA-12-AP/ | Y107: 100
A108: =IF(AND(S107>A107,S107<A109)=TRUE,S107,0) -> 0 | C108: =(C109-C107)/(A109-A107)*(A108-A107)+C107 -> 533.3333333 | D108: =(E108-C108)/(E100-C100)*(D100-C100)+C108 -> 244.4444444 | E108: =(E109-E107)/(A109-A107)*(A108-A107)+E107 -> 966.6666667 | F108: =(G108-E108)/(G100-E100)*(F100-E100)+E108 -> 833.3333333 | G108: =(G109-G107)/(A109-A107)*(A108-A107)+G107 -> 1100 | H108: =(I108-G108)/(I100-G100)*(H100-G100)+G108 -> 233.3333333 | I108: =(I109-I107)/(A109-A107)*(A108-A107)+I107 -> 1533.333333 | J108: =(K108-I108)/(K100-I100)*(J100-I100)+I108 -> 133.3333333 | K108: =(K109-K107)/(A109-A107)*(A108-A107)+K107 -> 2000 | L108: =(M108-K108)/(M100-K100)*(L100-K100)+K108 -> 3333 | M108: =(M109-M107)/(A109-A107)*(A108-A107)+M107 -> 1333.5 | N108: =(O108-M108)/(O100-M100)*(N100-M100)+M108 -> 1333.35 | O108: =(O109-O107)/(A109-A107)*(A108-A107)+O107 -> 1333.6 | P108: =(Q108-O108)/(Q100-O100)*(P100-O100)+O108 -> 1333.5 | Q108: =(Q109-Q107)/(A109-A107)*(A108-A107)+Q107 -> 1333.7
A109: 5 | C109: 1200 | D109: =(E109-C109)/(E100-C100)*(D100-C100)+C109 -> 800 | E109: 1800 | F109: =(G109-E109)/(G100-E100)*(F100-E100)+E109 -> 1000 | G109: 2600 | H109: =(I109-G109)/(I100-G100)*(H100-G100)+G109 -> 1400 | I109: 3200 | J109: =(K109-I109)/(K100-I100)*(J100-I100)+I109 -> 2300 | K109: 3500 | L109: =(M109-K109)/(M100-K100)*(L100-K100)+K109 -> 1500 | M109: 4500 | N109: =(O109-M109)/(O100-M100)*(N100-M100)+M109 -> 4499.85 | O109: 4500.1 | P109: =(Q109-O109)/(Q100-O100)*(P100-O100)+O109 -> 4500 | Q109: 4500.2
A110: =IF(AND(S107>A109,S107<A111)=TRUE,S107,0) -> 0 | C110: =(C111-C109)/(A111-A109)*(A110-A109)+C109 -> 700 | D110: =(E110-C110)/(E100-C100)*(D100-C100)+C110 -> 366.6666667 | E110: =(E111-E109)/(A111-A109)*(A110-A109)+E109 -> 1200 | F110: =(G110-E110)/(G100-E100)*(F100-E100)+E110 -> 800 | G110: =(G111-G109)/(A111-A109)*(A110-A109)+G109 -> 1600 | H110: =(I110-G110)/(I100-G100)*(H100-G100)+G110 -> 1000 | I110: =(I111-I109)/(A111-A109)*(A110-A109)+I109 -> 1900 | J110: =(K110-I110)/(K100-I100)*(J100-I100)+I110 -> 1600 | K110: =(K111-K109)/(A111-A109)*(A110-A109)+K109 -> 2000 | L110: =(M110-K110)/(M100-K100)*(L100-K100)+K110 -> 0 | M110: =(M111-M109)/(A111-A109)*(A110-A109)+M109 -> 3000 | N110: =(O110-M110)/(O100-M100)*(N100-M100)+M110 -> 5999.7 | O110: =(O111-O109)/(A111-A109)*(A110-A109)+O109 -> 1000.2 | P110: =(Q110-O110)/(Q100-O100)*(P100-O100)+O110 -> 1000.2 | Q110: =(Q111-Q109)/(A111-A109)*(A110-A109)+Q109 -> 1000.2
A111: 10 | C111: 1700 | D111: =(E111-C111)/(E100-C100)*(D100-C100)+C111 -> 1233.333333 | E111: 2400 | F111: =(G111-E111)/(G100-E100)*(F100-E100)+E111 -> 1200 | G111: 3600 | H111: =(I111-G111)/(I100-G100)*(H100-G100)+G111 -> 1800 | I111: 4500 | J111: =(K111-I111)/(K100-I100)*(J100-I100)+I111 -> 3000 | K111: 5000 | L111: =(M111-K111)/(M100-K100)*(L100-K100)+K111 -> 3000 | M111: 6000 | N111: =(O111-M111)/(O100-M100)*(N100-M100)+M111 -> 3000 | O111: 8000 | P111: =(Q111-O111)/(Q100-O100)*(P100-O100)+O111 -> 7999.8 | Q111: 8000.2
A112: =IF(AND(S107>A111,S107<A113)=TRUE,S107,0) -> 0 | C112: =(C113-C111)/(A113-A111)*(A112-A111)+C111 -> 1166.666667 | D112: =(E112-C112)/(E100-C100)*(D100-C100)+C112 -> 1055.555556 | E112: =(E113-E111)/(A113-A111)*(A112-A111)+E111 -> 1333.333333 | F112: =(G112-E112)/(G100-E100)*(F100-E100)+E112 -> 666.6666667 | G112: =(G113-G111)/(A113-A111)*(A112-A111)+G111 -> 2000 | H112: =(I112-G112)/(I100-G100)*(H100-G100)+G112 -> 1200 | I112: 2400 | J112: =(K112-I112)/(K100-I100)*(J100-I100)+I112 -> 600 | K112: =(K113-K111)/(A113-A111)*(A112-A111)+K111 -> 3000 | L112: =(M112-K112)/(M100-K100)*(L100-K100)+K112 -> 2333.333333 | M112: =(M113-M111)/(A113-A111)*(A112-A111)+M111 -> 3333.333333 | N112: =(O112-M112)/(O100-M100)*(N100-M100)+M112 -> 333.3333333 | O112: =(O113-O111)/(A113-A111)*(A112-A111)+O111 -> 5333.333333 | P112: =(Q112-O112)/(Q100-O100)*(P100-O100)+O112 -> 8999.666667 | Q112: =(Q113-Q111)/(A113-A111)*(A112-A111)+Q111 -> 1667
A113: 25 | C113: 2500 | D113: =(E113-C113)/(E100-C100)*(D100-C100)+C113 -> 1500 | E113: 4000 | F113: =(G113-E113)/(G100-E100)*(F100-E100)+E113 -> 2000 | G113: 6000 | H113: =(I113-G113)/(I100-G100)*(H100-G100)+G113 -> 4000 | I113: 7000 | J113: =(K113-I113)/(K100-I100)*(J100-I100)+I113 -> 4000 | K113: 8000 | L113: =(M113-K113)/(M100-K100)*(L100-K100)+K113 -> 4000 | M113: 10000 | N113: =(O113-M113)/(O100-M100)*(N100-M100)+M113 -> 7000 | O113: 12000 | P113: =(Q113-O113)/(Q100-O100)*(P100-O100)+O113 -> 6500 | Q113: 17500
A114: =IF(AND(S109>A113,S109<A115)=TRUE,S109,0) -> 0 | C114: =(C115-C113)/(A115-A113)*(A114-A113)+C113 -> 833.3333333 | D114: =(E114-C114)/(E100-C100)*(D100-C100)+C114 -> 388.8888889 | E114: =(E115-E113)/(A115-A113)*(A114-A113)+E113 -> 1500 | F114: =(G114-E114)/(G100-E100)*(F100-E100)+E114 -> -1333.333333 | G114: =(G115-G113)/(A115-A113)*(A114-A113)+G113 -> 4333.333333 | H114: =(I114-G114)/(I100-G100)*(H100-G100)+G114 -> 8200 | I114: 2400 | J114: =(K114-I114)/(K100-I100)*(J100-I100)+I114 -> -4400 | K114: =(K115-K113)/(A115-A113)*(A114-A113)+K113 -> 4666.666667 | L114: =(M114-K114)/(M100-K100)*(L100-K100)+K114 -> 4000 | M114: =(M115-M113)/(A115-A113)*(A114-A113)+M113 -> 5000 | N114: =(O114-M114)/(O100-M100)*(N100-M100)+M114 -> 4500 | O114: =(O115-O113)/(A115-A113)*(A114-A113)+O113 -> 5333.333333 | P114: =(Q114-O114)/(Q100-O100)*(P100-O100)+O114 -> -1000 | Q114: =(Q115-Q113)/(A115-A113)*(A114-A113)+Q113 -> 11666.66667
A115: 40 | C115: 3500 | D115: =(E115-C115)/(E100-C100)*(D100-C100)+C115 -> 2166.666667 | E115: 5500 | F115: =(G115-E115)/(G100-E100)*(F100-E100)+E115 -> 4000 | G115: 7000 | H115: =(I115-G115)/(I100-G100)*(H100-G100)+G115 -> 5000 | I115: 8000 | J115: =(K115-I115)/(K100-I100)*(J100-I100)+I115 -> 2000 | K115: 10000 | L115: =(M115-K115)/(M100-K100)*(L100-K100)+K115 -> 4000 | M115: 13000 | N115: =(O115-M115)/(O100-M100)*(N100-M100)+M115 -> 8500 | O115: 16000 | P115: =(Q115-O115)/(Q100-O100)*(P100-O100)+O115 -> 11000 | Q115: 21000
A116: =IF(AND(S111>A115,S111<A117)=TRUE,S111,0) -> 0 | C116: =(C117-C115)/(A117-A115)*(A116-A115)+C115 -> 1500 | D116: =(E116-C116)/(E104-C104)*(D104-C104)+C116 -> 166.6666667 | E116: =(E117-E115)/(A117-A115)*(A116-A115)+E115 -> 3500 | F116: =(G116-E116)/(G104-E104)*(F104-E104)+E116 -> 1333.333333 | G116: =(G117-G115)/(A117-A115)*(A116-A115)+G115 -> 5666.666667 | H116: =(I116-G116)/(I104-G104)*(H104-G104)+G116 -> 12200 | I116: 2400 | J116: =(K116-I116)/(K104-I104)*(J104-I104)+I116 -> -8400 | K116: =(K117-K115)/(A117-A115)*(A116-A115)+K115 -> 6000 | L116: =(M116-K116)/(M104-K104)*(L104-K104)+K116 -> 0 | M116: =(M117-M115)/(A117-A115)*(A116-A115)+M115 -> 9000 | N116: =(O116-M116)/(O104-M104)*(N104-M104)+M116 -> 8500 | O116: =(O117-O115)/(A117-A115)*(A116-A115)+O115 -> 9333.333333 | P116: =(Q116-O116)/(Q104-O104)*(P104-O104)+O116 -> 9666.666667 | Q116: =(Q117-Q115)/(A117-A115)*(A116-A115)+Q115 -> 9000
A117: 70 | C117: 5000 | D117: =(E117-C117)/(E104-C104)*(D104-C104)+C117 -> 3666.666667 | E117: 7000 | F117: =(G117-E117)/(G104-E104)*(F104-E104)+E117 -> 6000 | G117: 8000 | H117: =(I117-G117)/(I104-G104)*(H104-G104)+G117 -> 4000 | I117: 10000 | J117: =(K117-I117)/(K104-I104)*(J104-I104)+I117 -> 1000 | K117: 13000 | L117: =(M117-K117)/(M104-K104)*(L104-K104)+K117 -> 7000 | M117: 16000 | N117: =(O117-M117)/(O104-M104)*(N104-M104)+M117 -> 8500 | O117: 21000 | P117: =(Q117-O117)/(Q104-O104)*(P104-O104)+O117 -> 12000 | Q117: 30000 | U117: VALORI LIMITE
A121: COL | C121: 3 | D121: 4 | E121: 5 | F121: 6 | G121: 7 | H121: 8 | I121: 9 | J121: 10 | K121: 11 | L121: 12 | M121: 13 | N121: 14 | O121: 15 | P121: 16 | Q121: 17
B124: DP | C124: 10 | D124: =IF(AND(V131>C124,V131<E124)=TRUE,V131,0) -> 0 | E124: 25 | F124: =IF(AND(V131>E124,V131<G124)=TRUE,V131,0) -> 0 | G124: 50 | H124: =IF(AND(V131>G124,V131<I124)=TRUE,V131,0) -> 0 | I124: 75 | J124: =IF(AND(V131>I124,V131<K124)=TRUE,V131,0) -> 0 | K124: 100 | L124: =IF(AND(V131>K124,V131<M124)=TRUE,V131,0) -> 0 | M124: 150 | N124: =IF(AND(V131>M124,V131<O124)=TRUE,V131,0) -> 0 | O124: 250 | P124: =IF(AND(V131>O124,V131<Q124)=TRUE,V131,0) -> 0 | Q124: 500
A125: PM
A127: 0.5 | C127: 670 | D127: =(E127-C127)/(E124-C124)*(D124-C124)+C127 -> 383.3333333 | E127: 1100 | F127: =(G127-E127)/(G124-E124)*(F124-E124)+E127 -> 900 | G127: 1300 | H127: =(I127-G127)/(I124-G124)*(H124-G124)+G127 -> 1299.9 | I127: 1300.05 | J127: =(K127-I127)/(K124-I124)*(J124-I124)+I127 -> 1299.9 | K127: 1300.1 | L127: =(M127-K127)/(M124-K124)*(L124-K124)+K127 -> 1299.9 | M127: 1300.2 | N127: =(O127-M127)/(O124-M124)*(N124-M124)+M127 -> 1300.05 | O127: 1300.3 | P127: =(Q127-O127)/(Q124-O124)*(P124-O124)+O127 -> 1300.2 | Q127: 1300.4 | S127: PM | T127: Q | U127: Qcal | V127: DPcal | W127: DP | X127: TIPO
A128: =IF(AND(S131>A127,S131<A129)=TRUE,S131,0) -> 0 | C128: =(C129-C127)/(A129-A127)*(A128-A127)+C127 -> 565 | D128: =(E128-C128)/(E124-C124)*(D124-C124)+C128 -> 328.3333333 | E128: =(E129-E127)/(A129-A127)*(A128-A127)+E127 -> 920 | F128: =(G128-E128)/(G124-E124)*(F124-E124)+E128 -> 940 | G128: =(G129-G127)/(A129-A127)*(A128-A127)+G127 -> 900 | H128: =(I128-G128)/(I124-G124)*(H124-G124)+G128 -> 900 | I128: =(I129-I127)/(A129-A127)*(A128-A127)+I127 -> 900 | J128: =(K128-I128)/(K124-I124)*(J124-I124)+I128 -> 900 | K128: =(K129-K127)/(A129-A127)*(A128-A127)+K127 -> 900 | L128: =(M128-K128)/(M124-K124)*(L124-K124)+K128 -> 899.8 | M128: =(M129-M127)/(A129-A127)*(A128-A127)+M127 -> 900.1 | N128: =(O128-M128)/(O124-M124)*(N124-M124)+M128 -> 899.95 | O128: =(O129-O127)/(A129-A127)*(A128-A127)+O127 -> 900.2 | P128: =(Q128-O128)/(Q124-O124)*(P124-O124)+O128 -> 900.09 | Q128: =(Q129-Q127)/(A129-A127)*(A128-A127)+Q127 -> 900.31
A129: 1 | C129: 775 | D129: =(E129-C129)/(E124-C124)*(D124-C124)+C129 -> 438.3333333 | E129: 1280 | F129: =(G129-E129)/(G124-E124)*(F124-E124)+E129 -> 860 | G129: 1700 | H129: =(I129-G129)/(I124-G124)*(H124-G124)+G129 -> 1699.8 | I129: 1700.1 | J129: =(K129-I129)/(K124-I124)*(J124-I124)+I129 -> 1699.8 | K129: 1700.2 | L129: =(M129-K129)/(M124-K124)*(L124-K124)+K129 -> 1700 | M129: 1700.3 | N129: =(O129-M129)/(O124-M124)*(N124-M124)+M129 -> 1700.15 | O129: 1700.4 | P129: =(Q129-O129)/(Q124-O124)*(P124-O124)+O129 -> 1700.31 | Q129: 1700.49 | T129: Stmc/h | U129: Stmc/h | V129: Mbar | W129: Mbar
A130: =IF(AND(S131>A129,S131<A131)=TRUE,S131,0) -> 0 | C130: =(C131-C129)/(A131-A129)*(A130-A129)+C129 -> 580 | D130: =(E130-C130)/(E124-C124)*(D124-C124)+C130 -> 320 | E130: =(E131-E129)/(A131-A129)*(A130-A129)+E129 -> 970 | F130: =(G130-E130)/(G124-E124)*(F124-E124)+E130 -> 840 | G130: =(G131-G129)/(A131-A129)*(A130-A129)+G129 -> 1100 | H130: =(I130-G130)/(I124-G124)*(H124-G124)+G130 -> 1699.6 | I130: =(I131-I129)/(A131-A129)*(A130-A129)+I129 -> 800.2 | J130: =(K130-I130)/(K124-I124)*(J124-I124)+I130 -> 799.9 | K130: =(K131-K129)/(A131-A129)*(A130-A129)+K129 -> 800.3 | L130: =(M130-K130)/(M124-K124)*(L124-K124)+K130 -> 800.1 | M130: =(M131-M129)/(A131-A129)*(A130-A129)+M129 -> 800.4 | N130: =(O130-M130)/(O124-M124)*(N124-M124)+M130 -> 800.25 | O130: =(O131-O129)/(A131-A129)*(A130-A129)+O129 -> 800.5 | P130: =(Q130-O130)/(Q124-O124)*(P124-O124)+O130 -> 800.42 | Q130: =(Q131-Q129)/(A131-A129)*(A130-A129)+Q129 -> 800.58
A131: 2 | C131: 970 | D131: =(E131-C131)/(E124-C124)*(D124-C124)+C131 -> 556.6666667 | E131: 1590 | F131: =(G131-E131)/(G124-E124)*(F124-E124)+E131 -> 880 | G131: 2300 | H131: =(I131-G131)/(I124-G124)*(H124-G124)+G131 -> 1700 | I131: 2600 | J131: =(K131-I131)/(K124-I124)*(J124-I124)+I131 -> 2599.7 | K131: 2600.1 | L131: =(M131-K131)/(M124-K124)*(L124-K124)+K131 -> 2599.9 | M131: 2600.2 | N131: =(O131-M131)/(O124-M124)*(N124-M124)+M131 -> 2600.05 | O131: 2600.3 | P131: =(Q131-O131)/(Q124-O124)*(P124-O124)+O131 -> 2600.2 | Q131: 2600.4 | S131: =Лист1!B17*10 -> 0.1 | T131: =DIMENSIONAMENTO!$D$12 -> 3000 | U131: =VLOOKUP(S131,A124:Q145,HLOOKUP(V131,A124:Q145,22,0),0) ->  | V131: =DIMENSIONAMENTO!$E$21 -> 100 | W131: =IF(S131<A127,"NO",IF(S131>A141,"NO",IF(VLOOKUP(S131,A127:Q141,3,0)>T131,"NO",IF(VLOOKUP(S131,A127:Q141,17,0)<T131,"NO",IF(AND(U131>=T131-0.1,U131<T131+0.1)=TRUE,V131,"NO"))))) -> NO | X131: FA-12-AP/ | Y131: 100-S
A132: =IF(AND(S131>A131,S131<A133)=TRUE,S131,0) -> 0 | C132: =(C133-C131)/(A133-A131)*(A132-A131)+C131 -> 683.3333333 | D132: =(E132-C132)/(E124-C124)*(D124-C124)+C132 -> 416.6666667 | E132: =(E133-E131)/(A133-A131)*(A132-A131)+E131 -> 1083.333333 | F132: =(G132-E132)/(G124-E124)*(F124-E124)+E132 -> 566.6666667 | G132: =(G133-G131)/(A133-A131)*(A132-A131)+G131 -> 1600 | H132: =(I132-G132)/(I124-G124)*(H124-G124)+G132 -> 1733.333333 | I132: =(I133-I131)/(A133-A131)*(A132-A131)+I131 -> 1533.333333 | J132: =(K132-I132)/(K124-I124)*(J124-I124)+I132 -> 2932.833333 | K132: =(K133-K131)/(A133-A131)*(A132-A131)+K131 -> 1066.833333 | L132: =(M132-K132)/(M124-K124)*(L124-K124)+K132 -> 1333.166667 | M132: =(M133-M131)/(A133-A131)*(A132-A131)+M131 -> 933.6666667 | N132: =(O132-M132)/(O124-M124)*(N124-M124)+M132 -> 933.5166667 | O132: =(O133-O131)/(A133-A131)*(A132-A131)+O131 -> 933.7666667 | P132: =(Q132-O132)/(Q124-O124)*(P124-O124)+O132 -> 933.6666667 | Q132: =(Q133-Q131)/(A133-A131)*(A132-A131)+Q131 -> 933.8666667
A133: 5 | C133: 1400 | D133: =(E133-C133)/(E124-C124)*(D124-C124)+C133 -> 766.6666667 | E133: 2350 | F133: =(G133-E133)/(G124-E124)*(F124-E124)+E133 -> 1350 | G133: 3350 | H133: =(I133-G133)/(I124-G124)*(H124-G124)+G133 -> 1650 | I133: 4200 | J133: =(K133-I133)/(K124-I124)*(J124-I124)+I133 -> 2100 | K133: 4900 | L133: =(M133-K133)/(M124-K124)*(L124-K124)+K133 -> 4500 | M133: 5100 | N133: =(O133-M133)/(O124-M124)*(N124-M124)+M133 -> 5099.85 | O133: 5100.1 | P133: =(Q133-O133)/(Q124-O124)*(P124-O124)+O133 -> 5100 | Q133: 5100.2
A134: =IF(AND(S131>A133,S131<A135)=TRUE,S131,0) -> 0 | C134: =(C135-C133)/(A135-A133)*(A134-A133)+C133 -> 850 | D134: =(E134-C134)/(E124-C124)*(D124-C124)+C134 -> 416.6666667 | E134: =(E135-E133)/(A135-A133)*(A134-A133)+E133 -> 1500 | F134: =(G134-E134)/(G124-E124)*(F124-E124)+E134 -> 950 | G134: =(G135-G133)/(A135-A133)*(A134-A133)+G133 -> 2050 | H134: =(I134-G134)/(I124-G124)*(H124-G124)+G134 -> 950 | I134: =(I135-I133)/(A135-A133)*(A134-A133)+I133 -> 2600 | J134: =(K134-I134)/(K124-I124)*(J124-I124)+I134 -> 1100 | K134: =(K135-K133)/(A135-A133)*(A134-A133)+K133 -> 3100 | L134: =(M134-K134)/(M124-K124)*(L124-K124)+K134 -> 5500 | M134: =(M135-M133)/(A135-A133)*(A134-A133)+M133 -> 1900 | N134: =(O134-M134)/(O124-M124)*(N124-M124)+M134 -> 3549.7 | O134: =(O135-O133)/(A135-A133)*(A134-A133)+O133 -> 800.2 | P134: =(Q134-O134)/(Q124-O124)*(P124-O124)+O134 -> 800.1 | Q134: =(Q135-Q133)/(A135-A133)*(A134-A133)+Q133 -> 800.3
A135: 10 | C135: 1950 | D135: =(E135-C135)/(E124-C124)*(D124-C124)+C135 -> 1116.666667 | E135: 3200 | F135: =(G135-E135)/(G124-E124)*(F124-E124)+E135 -> 1750 | G135: 4650 | H135: =(I135-G135)/(I124-G124)*(H124-G124)+G135 -> 2350 | I135: 5800 | J135: =(K135-I135)/(K124-I124)*(J124-I124)+I135 -> 3100 | K135: 6700 | L135: =(M135-K135)/(M124-K124)*(L124-K124)+K135 -> 3500 | M135: 8300 | N135: =(O135-M135)/(O124-M124)*(N124-M124)+M135 -> 6650 | O135: 9400 | P135: =(Q135-O135)/(Q124-O124)*(P124-O124)+O135 -> 9399.9 | Q135: 9400.1
A136: =IF(AND(S131>A135,S131<A137)=TRUE,S131,0) -> 0 | C136: =(C137-C135)/(A137-A135)*(A136-A135)+C135 -> 1183.333333 | D136: =(E136-C136)/(E124-C124)*(D124-C124)+C136 -> 661.1111111 | E136: =(E137-E135)/(A137-A135)*(A136-A135)+E135 -> 1966.666667 | F136: =(G136-E136)/(G124-E124)*(F124-E124)+E136 -> 1083.333333 | G136: =(G137-G135)/(A137-A135)*(A136-A135)+G135 -> 2850 | H136: =(I136-G136)/(I124-G124)*(H124-G124)+G136 -> 3750 | I136: 2400 | J136: =(K136-I136)/(K124-I124)*(J124-I124)+I136 -> -2700 | K136: =(K137-K135)/(A137-A135)*(A136-A135)+K135 -> 4100 | L136: =(M136-K136)/(M124-K124)*(L124-K124)+K136 -> 2233.333333 | M136: =(M137-M135)/(A137-A135)*(A136-A135)+M135 -> 5033.333333 | N136: =(O136-M136)/(O124-M124)*(N124-M124)+M136 -> 6283.333333 | O136: =(O137-O135)/(A137-A135)*(A136-A135)+O135 -> 4200 | P136: =(Q136-O136)/(Q124-O124)*(P124-O124)+O136 -> 7466.5 | Q136: =(Q137-Q135)/(A137-A135)*(A136-A135)+Q135 -> 933.5
A137: 25 | C137: 3100 | D137: =(E137-C137)/(E124-C124)*(D124-C124)+C137 -> 1800 | E137: 5050 | F137: =(G137-E137)/(G124-E124)*(F124-E124)+E137 -> 2750 | G137: 7350 | H137: =(I137-G137)/(I124-G124)*(H124-G124)+G137 -> 3850 | I137: 9100 | J137: =(K137-I137)/(K124-I124)*(J124-I124)+I137 -> 4600 | K137: 10600 | L137: =(M137-K137)/(M124-K124)*(L124-K124)+K137 -> 5400 | M137: 13200 | N137: =(O137-M137)/(O124-M124)*(N124-M124)+M137 -> 7200 | O137: 17200 | P137: =(Q137-O137)/(Q124-O124)*(P124-O124)+O137 -> 12300 | Q137: 22100
A138: =IF(AND(S133>A137,S133<A139)=TRUE,S133,0) -> 0 | C138: =(C139-C137)/(A139-A137)*(A138-A137)+C137 -> 1683.333333 | D138: =(E138-C138)/(E124-C124)*(D124-C124)+C138 -> 994.4444444 | E138: =(E139-E137)/(A139-A137)*(A138-A137)+E137 -> 2716.666667 | F138: =(G138-E138)/(G124-E124)*(F124-E124)+E138 -> 1500 | G138: =(G139-G137)/(A139-A137)*(A138-A137)+G137 -> 3933.333333 | H138: =(I138-G138)/(I124-G124)*(H124-G124)+G138 -> 7000 | I138: 2400 | J138: =(K138-I138)/(K124-I124)*(J124-I124)+I138 -> -7700 | K138: =(K139-K137)/(A139-A137)*(A138-A137)+K137 -> 5766.666667 | L138: =(M138-K138)/(M124-K124)*(L124-K124)+K138 -> 2566.666667 | M138: =(M139-M137)/(A139-A137)*(A138-A137)+M137 -> 7366.666667 | N138: =(O138-M138)/(O124-M124)*(N124-M124)+M138 -> 4616.666667 | O138: =(O139-O137)/(A139-A137)*(A138-A137)+O137 -> 9200 | P138: =(Q138-O138)/(Q124-O124)*(P124-O124)+O138 -> 12300 | Q138: =(Q139-Q137)/(A139-A137)*(A138-A137)+Q137 -> 6100
A139: 40 | C139: 3950 | D139: =(E139-C139)/(E124-C124)*(D124-C124)+C139 -> 2283.333333 | E139: 6450 | F139: =(G139-E139)/(G124-E124)*(F124-E124)+E139 -> 3500 | G139: 9400 | H139: =(I139-G139)/(I124-G124)*(H124-G124)+G139 -> 5000 | I139: 11600 | J139: =(K139-I139)/(K124-I124)*(J124-I124)+I139 -> 5900 | K139: 13500 | L139: =(M139-K139)/(M124-K124)*(L124-K124)+K139 -> 7100 | M139: 16700 | N139: =(O139-M139)/(O124-M124)*(N124-M124)+M139 -> 8750 | O139: 22000 | P139: =(Q139-O139)/(Q124-O124)*(P124-O124)+O139 -> 12300 | Q139: 31700
A140: =IF(AND(S135>A139,S135<A141)=TRUE,S135,0) -> 0 | C140: =(C141-C139)/(A141-A139)*(A140-A139)+C139 -> 2216.666667 | D140: =(E140-C140)/(E128-C128)*(D128-C128)+C140 -> 1332.222222 | E140: =(E141-E139)/(A141-A139)*(A140-A139)+E139 -> 3543.333333 | F140: =(G140-E140)/(G128-E128)*(F128-E128)+E140 -> 1820 | G140: =(G141-G139)/(A141-A139)*(A140-A139)+G139 -> 5266.666667 | H140: =(I140-G140)/(I128-G128)*(H128-G128)+G140 ->  | I140: 2400 | J140: =(K140-I140)/(K128-I128)*(J128-I128)+I140 -> -12900 | K140: =(K141-K139)/(A141-A139)*(A140-A139)+K139 -> 7500 | L140: =(M140-K140)/(M128-K128)*(L128-K128)+K140 -> 4566.666667 | M140: =(M141-M139)/(A141-A139)*(A140-A139)+M139 -> 8966.666667 | N140: =(O140-M140)/(O128-M128)*(N128-M128)+M140 -> 4216.666667 | O140: =(O141-O139)/(A141-A139)*(A140-A139)+O139 -> 12133.33333 | P140: =(Q140-O140)/(Q128-O128)*(P128-O128)+O140 -> 6833.333333 | Q140: =(Q141-Q139)/(A141-A139)*(A140-A139)+Q139 -> 17433.33333
A141: 70 | C141: 5250 | D141: =(E141-C141)/(E128-C128)*(D128-C128)+C141 -> 2996.666667 | E141: 8630 | F141: =(G141-E141)/(G128-E128)*(F128-E128)+E141 -> 4760 | G141: 12500 | H141: =(I141-G141)/(I128-G128)*(H128-G128)+G141 ->  | I141: 15500 | J141: =(K141-I141)/(K128-I128)*(J128-I128)+I141 -> 8000 | K141: 18000 | L141: =(M141-K141)/(M128-K128)*(L128-K128)+K141 -> 9000 | M141: 22500 | N141: =(O141-M141)/(O128-M128)*(N128-M128)+M141 -> 12150 | O141: 29400 | P141: =(Q141-O141)/(Q128-O128)*(P128-O128)+O141 -> 16400 | Q141: 42400 | U141: VALORI LIMITE
A145: COL | C145: 3 | D145: 4 | E145: 5 | F145: 6 | G145: 7 | H145: 8 | I145: 9 | J145: 10 | K145: 11 | L145: 12 | M145: 13 | N145: 14 | O145: 15 | P145: 16 | Q145: 17
B148: DP | C148: 10 | D148: =IF(AND(V155>C148,V155<E148)=TRUE,V155,0) -> 0 | E148: 25 | F148: =IF(AND(V155>E148,V155<G148)=TRUE,V155,0) -> 0 | G148: 50 | H148: =IF(AND(V155>G148,V155<I148)=TRUE,V155,0) -> 0 | I148: 75 | J148: =IF(AND(V155>I148,V155<K148)=TRUE,V155,0) -> 0 | K148: 100 | L148: =IF(AND(V155>K148,V155<M148)=TRUE,V155,0) -> 0 | M148: 150 | N148: =IF(AND(V155>M148,V155<O148)=TRUE,V155,0) -> 0 | O148: 250 | P148: =IF(AND(V155>O148,V155<Q148)=TRUE,V155,0) -> 0 | Q148: 500
A149: PM
A151: 0.5 | C151: 1800 | D151: =(E151-C151)/(E148-C148)*(D148-C148)+C151 -> 1133.333333 | E151: 2800 | F151: =(G151-E151)/(G148-E148)*(F148-E148)+E151 -> 2799.95 | G151: 2800.05 | H151: =(I151-G151)/(I148-G148)*(H148-G148)+G151 -> 2799.95 | I151: 2800.1 | J151: =(K151-I151)/(K148-I148)*(J148-I148)+I151 -> 2799.8 | K151: 2800.2 | L151: =(M151-K151)/(M148-K148)*(L148-K148)+K151 -> 2800 | M151: 2800.3 | N151: =(O151-M151)/(O148-M148)*(N148-M148)+M151 -> 2800.15 | O151: 2800.4 | P151: =(Q151-O151)/(Q148-O148)*(P148-O148)+O151 -> 2800.31 | Q151: 2800.49 | S151: PM | T151: Q | U151: Qcal | V151: DPcal | W151: DP | X151: TIPO
A152: =IF(AND(S155>A151,S155<A153)=TRUE,S155,0) -> 0 | C152: =(C153-C151)/(A153-A151)*(A152-A151)+C151 -> 1500 | D152: =(E152-C152)/(E148-C148)*(D148-C148)+C152 -> 900 | E152: =(E153-E151)/(A153-A151)*(A152-A151)+E151 -> 2400 | F152: =(G152-E152)/(G148-E148)*(F148-E148)+E152 -> 3199.9 | G152: =(G153-G151)/(A153-A151)*(A152-A151)+G151 -> 1600.1 | H152: =(I152-G152)/(I148-G148)*(H148-G148)+G152 -> 1600.1 | I152: =(I153-I151)/(A153-A151)*(A152-A151)+I151 -> 1600.1 | J152: =(K152-I152)/(K148-I148)*(J148-I148)+I152 -> 1599.8 | K152: =(K153-K151)/(A153-A151)*(A152-A151)+K151 -> 1600.2 | L152: =(M152-K152)/(M148-K148)*(L148-K148)+K152 -> 1600 | M152: =(M153-M151)/(A153-A151)*(A152-A151)+M151 -> 1600.3 | N152: =(O152-M152)/(O148-M148)*(N148-M148)+M152 -> 1600.15 | O152: =(O153-O151)/(A153-A151)*(A152-A151)+O151 -> 1600.4 | P152: =(Q152-O152)/(Q148-O148)*(P148-O148)+O152 -> 1600.31 | Q152: =(Q153-Q151)/(A153-A151)*(A152-A151)+Q151 -> 1600.49
A153: 1 | C153: 2100 | D153: =(E153-C153)/(E148-C148)*(D148-C148)+C153 -> 1366.666667 | E153: 3200 | F153: =(G153-E153)/(G148-E148)*(F148-E148)+E153 -> 2400 | G153: 4000 | H153: =(I153-G153)/(I148-G148)*(H148-G148)+G153 -> 3999.8 | I153: 4000.1 | J153: =(K153-I153)/(K148-I148)*(J148-I148)+I153 -> 3999.8 | K153: 4000.2 | L153: =(M153-K153)/(M148-K148)*(L148-K148)+K153 -> 4000 | M153: 4000.3 | N153: =(O153-M153)/(O148-M148)*(N148-M148)+M153 -> 4000.15 | O153: 4000.4 | P153: =(Q153-O153)/(Q148-O148)*(P148-O148)+O153 -> 4000.31 | Q153: 4000.49 | T153: Stmc/h | U153: Stmc/h | V153: Mbar | W153: Mbar
A154: =IF(AND(S155>A153,S155<A155)=TRUE,S155,0) -> 0 | C154: =(C155-C153)/(A155-A153)*(A154-A153)+C153 -> 1600 | D154: =(E154-C154)/(E148-C148)*(D148-C148)+C154 -> 1066.666667 | E154: =(E155-E153)/(A155-A153)*(A154-A153)+E153 -> 2400 | F154: =(G154-E154)/(G148-E148)*(F148-E148)+E154 -> 2300 | G154: =(G155-G153)/(A155-A153)*(A154-A153)+G153 -> 2500 | H154: =(I154-G154)/(I148-G148)*(H148-G148)+G154 -> 2499.8 | I154: =(I155-I153)/(A155-A153)*(A154-A153)+I153 -> 2500.1 | J154: =(K154-I154)/(K148-I148)*(J148-I148)+I154 -> 2499.8 | K154: =(K155-K153)/(A155-A153)*(A154-A153)+K153 -> 2500.2 | L154: =(M154-K154)/(M148-K148)*(L148-K148)+K154 -> 2500 | M154: =(M155-M153)/(A155-A153)*(A154-A153)+M153 -> 2500.3 | N154: =(O154-M154)/(O148-M148)*(N148-M148)+M154 -> 2500.15 | O154: =(O155-O153)/(A155-A153)*(A154-A153)+O153 -> 2500.4 | P154: =(Q154-O154)/(Q148-O148)*(P148-O148)+O154 -> 2500.31 | Q154: =(Q155-Q153)/(A155-A153)*(A154-A153)+Q153 -> 2500.49
A155: 2 | C155: 2600 | D155: =(E155-C155)/(E148-C148)*(D148-C148)+C155 -> 1666.666667 | E155: 4000 | F155: =(G155-E155)/(G148-E148)*(F148-E148)+E155 -> 2500 | G155: 5500 | H155: =(I155-G155)/(I148-G148)*(H148-G148)+G155 -> 5499.8 | I155: 5500.1 | J155: =(K155-I155)/(K148-I148)*(J148-I148)+I155 -> 5499.8 | K155: 5500.2 | L155: =(M155-K155)/(M148-K148)*(L148-K148)+K155 -> 5500 | M155: 5500.3 | N155: =(O155-M155)/(O148-M148)*(N148-M148)+M155 -> 5500.15 | O155: 5500.4 | P155: =(Q155-O155)/(Q148-O148)*(P148-O148)+O155 -> 5500.31 | Q155: 5500.49 | S155: =Лист1!B17*10 -> 0.1 | T155: =DIMENSIONAMENTO!$D$12 -> 3000 | U155: =VLOOKUP(S155,A148:Q169,HLOOKUP(V155,A148:Q169,22,0),0) ->  | V155: =DIMENSIONAMENTO!$E$21 -> 100 | W155: =IF(S155<A151,"NO",IF(S155>A165,"NO",IF(VLOOKUP(S155,A151:Q165,3,0)>T155,"NO",IF(VLOOKUP(S155,A151:Q165,17,0)<T155,"NO",IF(AND(U155>=T155-0.1,U155<T155+0.1)=TRUE,V155,"NO"))))) -> NO | X155: FA-12-AP/ | Y155: 150
A156: =IF(AND(S155>A155,S155<A157)=TRUE,S155,0) -> 0 | C156: =(C157-C155)/(A157-A155)*(A156-A155)+C155 -> 2333.333333 | D156: =(E156-C156)/(E148-C148)*(D148-C148)+C156 -> 1400 | E156: =(E157-E155)/(A157-A155)*(A156-A155)+E155 -> 3733.333333 | F156: =(G156-E156)/(G148-E148)*(F148-E148)+E156 -> 3633.333333 | G156: =(G157-G155)/(A157-A155)*(A156-A155)+G155 -> 3833.333333 | H156: =(I156-G156)/(I148-G148)*(H148-G148)+G156 -> 7833 | I156: =(I157-I155)/(A157-A155)*(A156-A155)+I155 -> 1833.5 | J156: =(K156-I156)/(K148-I148)*(J148-I148)+I156 -> 1833.2 | K156: =(K157-K155)/(A157-A155)*(A156-A155)+K155 -> 1833.6 | L156: =(M156-K156)/(M148-K148)*(L148-K148)+K156 -> 1833.4 | M156: =(M157-M155)/(A157-A155)*(A156-A155)+M155 -> 1833.7 | N156: =(O156-M156)/(O148-M148)*(N148-M148)+M156 -> 1833.55 | O156: =(O157-O155)/(A157-A155)*(A156-A155)+O155 -> 1833.8 | P156: =(Q156-O156)/(Q148-O148)*(P148-O148)+O156 -> 1833.716667 | Q156: =(Q157-Q155)/(A157-A155)*(A156-A155)+Q155 -> 1833.883333
A157: 5 | C157: 3000 | D157: =(E157-C157)/(E148-C148)*(D148-C148)+C157 -> 2066.666667 | E157: 4400 | F157: =(G157-E157)/(G148-E148)*(F148-E148)+E157 -> 800 | G157: 8000 | H157: =(I157-G157)/(I148-G148)*(H148-G148)+G157 -> 2000 | I157: 11000 | J157: =(K157-I157)/(K148-I148)*(J148-I148)+I157 -> 10999.7 | K157: 11000.1 | L157: =(M157-K157)/(M148-K148)*(L148-K148)+K157 -> 10999.9 | M157: 11000.2 | N157: =(O157-M157)/(O148-M148)*(N148-M148)+M157 -> 11000.05 | O157: 11000.3 | P157: =(Q157-O157)/(Q148-O148)*(P148-O148)+O157 -> 11000.2 | Q157: 11000.4
A158: =IF(AND(S155>A157,S155<A159)=TRUE,S155,0) -> 0 | C158: =(C159-C157)/(A159-A157)*(A158-A157)+C157 -> 1500 | D158: =(E158-C158)/(E148-C148)*(D148-C148)+C158 -> 966.6666667 | E158: =(E159-E157)/(A159-A157)*(A158-A157)+E157 -> 2300 | F158: =(G158-E158)/(G148-E148)*(F148-E148)+E158 -> -1400 | G158: =(G159-G157)/(A159-A157)*(A158-A157)+G157 -> 6000 | H158: =(I158-G158)/(I148-G148)*(H148-G148)+G158 -> -2000 | I158: =(I159-I157)/(A159-A157)*(A158-A157)+I157 -> 10000 | J158: =(K158-I158)/(K148-I148)*(J148-I148)+I158 -> 21999.4 | K158: =(K159-K157)/(A159-A157)*(A158-A157)+K157 -> 6000.2 | L158: =(M158-K158)/(M148-K148)*(L148-K148)+K158 -> 13999.8 | M158: =(M159-M157)/(A159-A157)*(A158-A157)+M157 -> 2000.4 | N158: =(O158-M158)/(O148-M148)*(N148-M148)+M158 -> 2000.25 | O158: =(O159-O157)/(A159-A157)*(A158-A157)+O157 -> 2000.5 | P158: =(Q158-O158)/(Q148-O148)*(P148-O148)+O158 -> 2000.4 | Q158: =(Q159-Q157)/(A159-A157)*(A158-A157)+Q157 -> 2000.6
A159: 10 | C159: 4500 | D159: =(E159-C159)/(E148-C148)*(D148-C148)+C159 -> 3166.666667 | E159: 6500 | F159: =(G159-E159)/(G148-E148)*(F148-E148)+E159 -> 3000 | G159: 10000 | H159: =(I159-G159)/(I148-G148)*(H148-G148)+G159 -> 6000 | I159: 12000 | J159: =(K159-I159)/(K148-I148)*(J148-I148)+I159 -> 0 | K159: 16000 | L159: =(M159-K159)/(M148-K148)*(L148-K148)+K159 -> 8000 | M159: 20000 | N159: =(O159-M159)/(O148-M148)*(N148-M148)+M159 -> 19999.85 | O159: 20000.1 | P159: =(Q159-O159)/(Q148-O148)*(P148-O148)+O159 -> 20000 | Q159: 20000.2
A160: =IF(AND(S155>A159,S155<A161)=TRUE,S155,0) -> 0 | C160: =(C161-C159)/(A161-A159)*(A160-A159)+C159 -> 3166.666667 | D160: =(E160-C160)/(E148-C148)*(D148-C148)+C160 -> 2500 | E160: =(E161-E159)/(A161-A159)*(A160-A159)+E159 -> 4166.666667 | F160: =(G160-E160)/(G148-E148)*(F148-E148)+E160 -> 1000 | G160: =(G161-G159)/(A161-A159)*(A160-A159)+G159 -> 7333.333333 | H160: =(I160-G160)/(I148-G148)*(H148-G148)+G160 -> 17200 | I160: 2400 | J160: =(K160-I160)/(K148-I148)*(J148-I148)+I160 -> -30400 | K160: =(K161-K159)/(A161-A159)*(A160-A159)+K159 -> 13333.33333 | L160: =(M160-K160)/(M148-K148)*(L148-K148)+K160 -> 8000 | M160: =(M161-M159)/(A161-A159)*(A160-A159)+M159 -> 16000 | N160: =(O160-M160)/(O148-M148)*(N148-M148)+M160 -> 24999.75 | O160: =(O161-O159)/(A161-A159)*(A160-A159)+O159 -> 10000.16667 | P160: =(Q160-O160)/(Q148-O148)*(P148-O148)+O160 -> 17333.33333 | Q160: =(Q161-Q159)/(A161-A159)*(A160-A159)+Q159 -> 2667
A161: 25 | C161: 6500 | D161: =(E161-C161)/(E148-C148)*(D148-C148)+C161 -> 4166.666667 | E161: 10000 | F161: =(G161-E161)/(G148-E148)*(F148-E148)+E161 -> 6000 | G161: 14000 | H161: =(I161-G161)/(I148-G148)*(H148-G148)+G161 -> 6000 | I161: 18000 | J161: =(K161-I161)/(K148-I148)*(J148-I148)+I161 -> 12000 | K161: 20000 | L161: =(M161-K161)/(M148-K148)*(L148-K148)+K161 -> 8000 | M161: 26000 | N161: =(O161-M161)/(O148-M148)*(N148-M148)+M161 -> 12500 | O161: 35000 | P161: =(Q161-O161)/(Q148-O148)*(P148-O148)+O161 -> 24000 | Q161: 46000
A162: =IF(AND(S157>A161,S157<A163)=TRUE,S157,0) -> 0 | C162: =(C163-C161)/(A163-A161)*(A162-A161)+C161 -> 3166.666667 | D162: =(E162-C162)/(E148-C148)*(D148-C148)+C162 -> 1944.444444 | E162: =(E163-E161)/(A163-A161)*(A162-A161)+E161 -> 5000 | F162: =(G162-E162)/(G148-E148)*(F148-E148)+E162 -> 1000 | G162: =(G163-G161)/(A163-A161)*(A162-A161)+G161 -> 9000 | H162: =(I162-G162)/(I148-G148)*(H148-G148)+G162 -> 22200 | I162: 2400 | J162: =(K162-I162)/(K148-I148)*(J148-I148)+I162 -> -400 | K162: =(K163-K161)/(A163-A161)*(A162-A161)+K161 -> 3333.333333 | L162: =(M162-K162)/(M148-K148)*(L148-K148)+K162 -> -12000 | M162: =(M163-M161)/(A163-A161)*(A162-A161)+M161 -> 11000 | N162: =(O162-M162)/(O148-M148)*(N148-M148)+M162 -> -7500 | O162: =(O163-O161)/(A163-A161)*(A162-A161)+O161 -> 23333.33333 | P162: =(Q162-O162)/(Q148-O148)*(P148-O148)+O162 -> 27333.33333 | Q162: =(Q163-Q161)/(A163-A161)*(A162-A161)+Q161 -> 19333.33333
A163: 40 | C163: 8500 | D163: =(E163-C163)/(E148-C148)*(D148-C148)+C163 -> 5500 | E163: 13000 | F163: =(G163-E163)/(G148-E148)*(F148-E148)+E163 -> 9000 | G163: 17000 | H163: =(I163-G163)/(I148-G148)*(H148-G148)+G163 -> 7000 | I163: 22000 | J163: =(K163-I163)/(K148-I148)*(J148-I148)+I163 -> -2000 | K163: 30000 | L163: =(M163-K163)/(M148-K148)*(L148-K148)+K163 -> 20000 | M163: 35000 | N163: =(O163-M163)/(O148-M148)*(N148-M148)+M163 -> 24500 | O163: 42000 | P163: =(Q163-O163)/(Q148-O148)*(P148-O148)+O163 -> 22000 | Q163: 62000
A164: =IF(AND(S159>A163,S159<A165)=TRUE,S159,0) -> 0 | C164: =(C165-C163)/(A165-A163)*(A164-A163)+C163 -> 6500 | D164: =(E164-C164)/(E152-C152)*(D152-C152)+C164 -> 5722.222222 | E164: =(E165-E163)/(A165-A163)*(A164-A163)+E163 -> 7666.666667 | F164: =(G164-E164)/(G152-E152)*(F152-E152)+E164 -> 9000 | G164: =(G165-G163)/(A165-A163)*(A164-A163)+G163 -> 6333.333333 | H164: =(I164-G164)/(I152-G152)*(H152-G152)+G164 -> 14200 | I164: 2400 | J164: =(K164-I164)/(K152-I152)*(J152-I152)+I164 -> -40400 | K164: =(K165-K163)/(A165-A163)*(A164-A163)+K163 -> 16666.66667 | L164: =(M164-K164)/(M152-K152)*(L152-K152)+K164 -> 20000 | M164: =(M165-M163)/(A165-A163)*(A164-A163)+M163 -> 15000 | N164: =(O164-M164)/(O152-M152)*(N152-M152)+M164 -> 10500 | O164: =(O165-O163)/(A165-A163)*(A164-A163)+O163 -> 18000 | P164: =(Q164-O164)/(Q152-O152)*(P152-O152)+O164 -> 11333.33333 | Q164: =(Q165-Q163)/(A165-A163)*(A164-A163)+Q163 -> 24666.66667
A165: 70 | C165: 10000 | D165: =(E165-C165)/(E152-C152)*(D152-C152)+C165 -> 5333.333333 | E165: 17000 | F165: =(G165-E165)/(G152-E152)*(F152-E152)+E165 -> 9000 | G165: 25000 | H165: =(I165-G165)/(I152-G152)*(H152-G152)+G165 -> 11000 | I165: 32000 | J165: =(K165-I165)/(K152-I152)*(J152-I152)+I165 -> 8000 | K165: 40000 | L165: =(M165-K165)/(M152-K152)*(L152-K152)+K165 -> 20000 | M165: 50000 | N165: =(O165-M165)/(O152-M152)*(N152-M152)+M165 -> 35000 | O165: 60000 | P165: =(Q165-O165)/(Q152-O152)*(P152-O152)+O165 -> 30000 | Q165: 90000 | U165: VALORI LIMITE
A169: COL | C169: 3 | D169: 4 | E169: 5 | F169: 6 | G169: 7 | H169: 8 | I169: 9 | J169: 10 | K169: 11 | L169: 12 | M169: 13 | N169: 14 | O169: 15 | P169: 16 | Q169: 17
B172: DP | C172: 10 | D172: =IF(AND(V179>C172,V179<E172)=TRUE,V179,0) -> 0 | E172: 25 | F172: =IF(AND(V179>E172,V179<G172)=TRUE,V179,0) -> 0 | G172: 50 | H172: =IF(AND(V179>G172,V179<I172)=TRUE,V179,0) -> 0 | I172: 75 | J172: =IF(AND(V179>I172,V179<K172)=TRUE,V179,0) -> 0 | K172: 100 | L172: =IF(AND(V179>K172,V179<M172)=TRUE,V179,0) -> 0 | M172: 150 | N172: =IF(AND(V179>M172,V179<O172)=TRUE,V179,0) -> 0 | O172: 250 | P172: =IF(AND(V179>O172,V179<Q172)=TRUE,V179,0) -> 0 | Q172: 500
A173: PM
A175: 0.5 | C175: 2400 | D175: =(E175-C175)/(E172-C172)*(D172-C172)+C175 -> 1600 | E175: 3600 | F175: =(G175-E175)/(G172-E172)*(F172-E172)+E175 -> 2200 | G175: 5000 | H175: =(I175-G175)/(I172-G172)*(H172-G172)+G175 -> 4999.8 | I175: 5000.1 | J175: =(K175-I175)/(K172-I172)*(J172-I172)+I175 -> 4999.8 | K175: 5000.2 | L175: =(M175-K175)/(M172-K172)*(L172-K172)+K175 -> 5000 | M175: 5000.3 | N175: =(O175-M175)/(O172-M172)*(N172-M172)+M175 -> 5000.15 | O175: 5000.4 | P175: =(Q175-O175)/(Q172-O172)*(P172-O172)+O175 -> 5000.31 | Q175: 5000.49 | S175: PM | T175: Q | U175: Qcal | V175: DPcal | W175: DP | X175: TIPO
A176: =IF(AND(S179>A175,S179<A177)=TRUE,S179,0) -> 0 | C176: =(C177-C175)/(A177-A175)*(A176-A175)+C175 -> 2000 | D176: =(E176-C176)/(E172-C172)*(D172-C172)+C176 -> 1400 | E176: =(E177-E175)/(A177-A175)*(A176-A175)+E175 -> 2900 | F176: =(G176-E176)/(G172-E172)*(F172-E172)+E176 -> 2100 | G176: =(G177-G175)/(A177-A175)*(A176-A175)+G175 -> 3700 | H176: =(I176-G176)/(I172-G172)*(H172-G172)+G176 -> 4099.6 | I176: =(I177-I175)/(A177-A175)*(A176-A175)+I175 -> 3500.2 | J176: =(K176-I176)/(K172-I172)*(J172-I172)+I176 -> 3499.9 | K176: =(K177-K175)/(A177-A175)*(A176-A175)+K175 -> 3500.3 | L176: =(M176-K176)/(M172-K172)*(L172-K172)+K176 -> 3500.1 | M176: =(M177-M175)/(A177-A175)*(A176-A175)+M175 -> 3500.4 | N176: =(O176-M176)/(O172-M172)*(N172-M172)+M176 -> 3500.25 | O176: =(O177-O175)/(A177-A175)*(A176-A175)+O175 -> 3500.5 | P176: =(Q176-O176)/(Q172-O172)*(P172-O172)+O176 -> 3500.42 | Q176: =(Q177-Q175)/(A177-A175)*(A176-A175)+Q175 -> 3500.58
A177: 1 | C177: 2800 | D177: =(E177-C177)/(E172-C172)*(D172-C172)+C177 -> 1800 | E177: 4300 | F177: =(G177-E177)/(G172-E172)*(F172-E172)+E177 -> 2300 | G177: 6300 | H177: =(I177-G177)/(I172-G172)*(H172-G172)+G177 -> 5900 | I177: 6500 | J177: =(K177-I177)/(K172-I172)*(J172-I172)+I177 -> 6499.7 | K177: 6500.1 | L177: =(M177-K177)/(M172-K172)*(L172-K172)+K177 -> 6499.9 | M177: 6500.2 | N177: =(O177-M177)/(O172-M172)*(N172-M172)+M177 -> 6500.05 | O177: 6500.3 | P177: =(Q177-O177)/(Q172-O172)*(P172-O172)+O177 -> 6500.2 | Q177: 6500.4 | T177: Stmc/h | U177: Stmc/h | V177: Mbar | W177: Mbar
A178: =IF(AND(S179>A177,S179<A179)=TRUE,S179,0) -> 0 | C178: =(C179-C177)/(A179-A177)*(A178-A177)+C177 -> 2100 | D178: =(E178-C178)/(E172-C172)*(D172-C172)+C178 -> 1433.333333 | E178: =(E179-E177)/(A179-A177)*(A178-A177)+E177 -> 3100 | F178: =(G178-E178)/(G172-E172)*(F172-E172)+E178 -> 1600 | G178: =(G179-G177)/(A179-A177)*(A178-A177)+G177 -> 4600 | H178: =(I178-G178)/(I172-G172)*(H172-G172)+G178 -> 7800 | I178: =(I179-I177)/(A179-A177)*(A178-A177)+I177 -> 3000 | J178: =(K178-I178)/(K172-I172)*(J172-I172)+I178 -> 2999.7 | K178: =(K179-K177)/(A179-A177)*(A178-A177)+K177 -> 3000.1 | L178: =(M178-K178)/(M172-K172)*(L172-K172)+K178 -> 2999.9 | M178: =(M179-M177)/(A179-A177)*(A178-A177)+M177 -> 3000.2 | N178: =(O178-M178)/(O172-M172)*(N172-M172)+M178 -> 3000.05 | O178: =(O179-O177)/(A179-A177)*(A178-A177)+O177 -> 3000.3 | P178: =(Q178-O178)/(Q172-O172)*(P172-O172)+O178 -> 3000.2 | Q178: =(Q179-Q177)/(A179-A177)*(A178-A177)+Q177 -> 3000.4
A179: 2 | C179: 3500 | D179: =(E179-C179)/(E172-C172)*(D172-C172)+C179 -> 2166.666667 | E179: 5500 | F179: =(G179-E179)/(G172-E172)*(F172-E172)+E179 -> 3000 | G179: 8000 | H179: =(I179-G179)/(I172-G172)*(H172-G172)+G179 -> 4000 | I179: 10000 | J179: =(K179-I179)/(K172-I172)*(J172-I172)+I179 -> 9999.7 | K179: 10000.1 | L179: =(M179-K179)/(M172-K172)*(L172-K172)+K179 -> 9999.9 | M179: 10000.2 | N179: =(O179-M179)/(O172-M172)*(N172-M172)+M179 -> 10000.05 | O179: 10000.3 | P179: =(Q179-O179)/(Q172-O172)*(P172-O172)+O179 -> 10000.2 | Q179: 10000.4 | S179: =Лист1!B17*10 -> 0.1 | T179: =DIMENSIONAMENTO!$D$12 -> 3000 | U179: =VLOOKUP(S179,A172:Q193,HLOOKUP(V179,A172:Q193,22,0),0) ->  | V179: =DIMENSIONAMENTO!$E$21 -> 100 | W179: =IF(S179<A175,"NO",IF(S179>A189,"NO",IF(VLOOKUP(S179,A175:Q189,3,0)>T179,"NO",IF(VLOOKUP(S179,A175:Q189,17,0)<T179,"NO",IF(AND(U179>=T179-0.1,U179<T179+0.1)=TRUE,V179,"NO"))))) -> NO | X179: FA-12-AP/ | Y179: 200
A180: =IF(AND(S179>A179,S179<A181)=TRUE,S179,0) -> 0 | C180: =(C181-C179)/(A181-A179)*(A180-A179)+C179 -> 2500 | D180: =(E180-C180)/(E172-C172)*(D172-C172)+C180 -> 1388.888889 | E180: =(E181-E179)/(A181-A179)*(A180-A179)+E179 -> 4166.666667 | F180: =(G180-E180)/(G172-E172)*(F172-E172)+E180 -> 2333.333333 | G180: =(G181-G179)/(A181-A179)*(A180-A179)+G179 -> 6000 | H180: =(I180-G180)/(I172-G172)*(H172-G172)+G180 -> 4666.666667 | I180: =(I181-I179)/(A181-A179)*(A180-A179)+I179 -> 6666.666667 | J180: =(K180-I180)/(K172-I172)*(J172-I172)+I180 -> 16666.16667 | K180: =(K181-K179)/(A181-A179)*(A180-A179)+K179 -> 3333.5 | L180: =(M180-K180)/(M172-K172)*(L172-K172)+K180 -> 3333.3 | M180: =(M181-M179)/(A181-A179)*(A180-A179)+M179 -> 3333.6 | N180: =(O180-M180)/(O172-M172)*(N172-M172)+M180 -> 3333.45 | O180: =(O181-O179)/(A181-A179)*(A180-A179)+O179 -> 3333.7 | P180: =(Q180-O180)/(Q172-O172)*(P172-O172)+O180 -> 3333.6 | Q180: =(Q181-Q179)/(A181-A179)*(A180-A179)+Q179 -> 3333.8
A181: 5 | C181: 5000 | D181: =(E181-C181)/(E172-C172)*(D172-C172)+C181 -> 3333.333333 | E181: 7500 | F181: =(G181-E181)/(G172-E172)*(F172-E172)+E181 -> 4000 | G181: 11000 | H181: =(I181-G181)/(I172-G172)*(H172-G172)+G181 -> 3000 | I181: 15000 | J181: =(K181-I181)/(K172-I172)*(J172-I172)+I181 -> 0 | K181: 20000 | L181: =(M181-K181)/(M172-K172)*(L172-K172)+K181 -> 19999.8 | M181: 20000.1 | N181: =(O181-M181)/(O172-M172)*(N172-M172)+M181 -> 19999.95 | O181: 20000.2 | P181: =(Q181-O181)/(Q172-O172)*(P172-O172)+O181 -> 20000.1 | Q181: 20000.3
A182: =IF(AND(S179>A181,S179<A183)=TRUE,S179,0) -> 0 | C182: =(C183-C181)/(A183-A181)*(A182-A181)+C181 -> 3000 | D182: =(E182-C182)/(E172-C172)*(D172-C172)+C182 -> 1666.666667 | E182: =(E183-E181)/(A183-A181)*(A182-A181)+E181 -> 5000 | F182: =(G182-E182)/(G172-E172)*(F172-E172)+E182 -> 4000 | G182: =(G183-G181)/(A183-A181)*(A182-A181)+G181 -> 6000 | H182: =(I182-G182)/(I172-G172)*(H172-G172)+G182 -> -6000 | I182: =(I183-I181)/(A183-A181)*(A182-A181)+I181 -> 12000 | J182: =(K182-I182)/(K172-I172)*(J172-I172)+I182 -> -6000 | K182: =(K183-K181)/(A183-A181)*(A182-A181)+K181 -> 18000 | L182: =(M182-K182)/(M172-K172)*(L172-K172)+K182 -> 25999.6 | M182: =(M183-M181)/(A183-A181)*(A182-A181)+M181 -> 14000.2 | N182: =(O182-M182)/(O172-M172)*(N172-M172)+M182 -> 27499.9 | O182: =(O183-O181)/(A183-A181)*(A182-A181)+O181 -> 5000.4 | P182: =(Q182-O182)/(Q172-O172)*(P172-O172)+O182 -> 5000.2 | Q182: =(Q183-Q181)/(A183-A181)*(A182-A181)+Q181 -> 5000.6
A183: 10 | C183: 7000 | D183: =(E183-C183)/(E172-C172)*(D172-C172)+C183 -> 5000 | E183: 10000 | F183: =(G183-E183)/(G172-E172)*(F172-E172)+E183 -> 4000 | G183: 16000 | H183: =(I183-G183)/(I172-G172)*(H172-G172)+G183 -> 12000 | I183: 18000 | J183: =(K183-I183)/(K172-I172)*(J172-I172)+I183 -> 6000 | K183: 22000 | L183: =(M183-K183)/(M172-K172)*(L172-K172)+K183 -> 14000 | M183: 26000 | N183: =(O183-M183)/(O172-M172)*(N172-M172)+M183 -> 12500 | O183: 35000 | P183: =(Q183-O183)/(Q172-O172)*(P172-O172)+O183 -> 35000 | Q183: 35000
A184: =IF(AND(S179>A183,S179<A185)=TRUE,S179,0) -> 0 | C184: =(C185-C183)/(A185-A183)*(A184-A183)+C183 -> 5000 | D184: =(E184-C184)/(E172-C172)*(D172-C172)+C184 -> 4333.333333 | E184: =(E185-E183)/(A185-A183)*(A184-A183)+E183 -> 6000 | F184: =(G184-E184)/(G172-E172)*(F172-E172)+E184 -> 1333.333333 | G184: =(G185-G183)/(A185-A183)*(A184-A183)+G183 -> 10666.66667 | H184: =(I184-G184)/(I172-G172)*(H172-G172)+G184 -> 27200 | I184: 2400 | J184: =(K184-I184)/(K172-I172)*(J172-I172)+I184 -> -32400 | K184: =(K185-K183)/(A185-A183)*(A184-A183)+K183 -> 14000 | L184: =(M184-K184)/(M172-K172)*(L172-K172)+K184 -> 8666.666667 | M184: =(M185-M183)/(A185-A183)*(A184-A183)+M183 -> 16666.66667 | N184: =(O184-M184)/(O172-M172)*(N172-M172)+M184 -> 4166.666667 | O184: =(O185-O183)/(A185-A183)*(A184-A183)+O183 -> 25000 | P184: =(Q184-O184)/(Q172-O172)*(P172-O172)+O184 -> 39666.66667 | Q184: =(Q185-Q183)/(A185-A183)*(A184-A183)+Q183 -> 10333.33333
A185: 25 | C185: 10000 | D185: =(E185-C185)/(E172-C172)*(D172-C172)+C185 -> 6000 | E185: 16000 | F185: =(G185-E185)/(G172-E172)*(F172-E172)+E185 -> 8000 | G185: 24000 | H185: =(I185-G185)/(I172-G172)*(H172-G172)+G185 -> 12000 | I185: 30000 | J185: =(K185-I185)/(K172-I172)*(J172-I172)+I185 -> 18000 | K185: 34000 | L185: =(M185-K185)/(M172-K172)*(L172-K172)+K185 -> 22000 | M185: 40000 | N185: =(O185-M185)/(O172-M172)*(N172-M172)+M185 -> 25000 | O185: 50000 | P185: =(Q185-O185)/(Q172-O172)*(P172-O172)+O185 -> 28000 | Q185: 72000
A186: =IF(AND(S181>A185,S181<A187)=TRUE,S181,0) -> 0 | C186: =(C187-C185)/(A187-A185)*(A186-A185)+C185 -> 5000 | D186: =(E186-C186)/(E172-C172)*(D172-C172)+C186 -> 1000 | E186: =(E187-E185)/(A187-A185)*(A186-A185)+E185 -> 11000 | F186: =(G186-E186)/(G172-E172)*(F172-E172)+E186 -> -333.3333333 | G186: =(G187-G185)/(A187-A185)*(A186-A185)+G185 -> 22333.33333 | H186: =(I186-G186)/(I172-G172)*(H172-G172)+G186 -> 62200 | I186: 2400 | J186: =(K186-I186)/(K172-I172)*(J172-I172)+I186 -> -62400 | K186: =(K187-K185)/(A187-A185)*(A186-A185)+K185 -> 24000 | L186: =(M186-K186)/(M172-K172)*(L172-K172)+K186 -> 32000 | M186: =(M187-M185)/(A187-A185)*(A186-A185)+M185 -> 20000 | N186: =(O186-M186)/(O172-M172)*(N172-M172)+M186 -> 12500 | O186: =(O187-O185)/(A187-A185)*(A186-A185)+O185 -> 25000 | P186: =(Q186-O186)/(Q172-O172)*(P172-O172)+O186 -> 8000 | Q186: =(Q187-Q185)/(A187-A185)*(A186-A185)+Q185 -> 42000
A187: 40 | C187: 13000 | D187: =(E187-C187)/(E172-C172)*(D172-C172)+C187 -> 9000 | E187: 19000 | F187: =(G187-E187)/(G172-E172)*(F172-E172)+E187 -> 13000 | G187: 25000 | H187: =(I187-G187)/(I172-G172)*(H172-G172)+G187 -> 9000 | I187: 33000 | J187: =(K187-I187)/(K172-I172)*(J172-I172)+I187 -> 12000 | K187: 40000 | L187: =(M187-K187)/(M172-K172)*(L172-K172)+K187 -> 16000 | M187: 52000 | N187: =(O187-M187)/(O172-M172)*(N172-M172)+M187 -> 32500 | O187: 65000 | P187: =(Q187-O187)/(Q172-O172)*(P172-O172)+O187 -> 40000 | Q187: 90000
A188: =IF(AND(S183>A187,S183<A189)=TRUE,S183,0) -> 0 | C188: =(C189-C187)/(A189-A187)*(A188-A187)+C187 -> 9000 | D188: =(E188-C188)/(E176-C176)*(D176-C176)+C188 -> 5888.888889 | E188: =(E189-E187)/(A189-A187)*(A188-A187)+E187 -> 13666.66667 | F188: =(G188-E188)/(G176-E176)*(F176-E176)+E188 -> 10333.33333 | G188: =(G189-G187)/(A189-A187)*(A188-A187)+G187 -> 17000 | H188: =(I188-G188)/(I176-G176)*(H176-G176)+G188 -> 46200 | I188: 2400 | J188: =(K188-I188)/(K176-I176)*(J176-I176)+I188 -> -30400 | K188: =(K189-K187)/(A189-A187)*(A188-A187)+K187 -> 13333.33333 | L188: =(M188-K188)/(M176-K176)*(L176-K176)+K188 -> -2666.666667 | M188: =(M189-M187)/(A189-A187)*(A188-A187)+M187 -> 21333.33333 | N188: =(O188-M188)/(O176-M176)*(N176-M176)+M188 -> 5833.333333 | O188: =(O189-O187)/(A189-A187)*(A188-A187)+O187 -> 31666.66667 | P188: =(Q188-O188)/(Q176-O176)*(P176-O176)+O188 -> 20000 | Q188: =(Q189-Q187)/(A189-A187)*(A188-A187)+Q187 -> 43333.33333
A189: 70 | C189: 16000 | D189: =(E189-C189)/(E176-C176)*(D176-C176)+C189 -> 11333.33333 | E189: 23000 | F189: =(G189-E189)/(G176-E176)*(F176-E176)+E189 -> 15000 | G189: 31000 | H189: =(I189-G189)/(I176-G176)*(H176-G176)+G189 -> 3000 | I189: 45000 | J189: =(K189-I189)/(K176-I176)*(J176-I176)+I189 -> 0 | K189: 60000 | L189: =(M189-K189)/(M176-K176)*(L176-K176)+K189 -> 30000 | M189: 75000 | N189: =(O189-M189)/(O176-M176)*(N176-M176)+M189 -> 52500 | O189: 90000 | P189: =(Q189-O189)/(Q176-O176)*(P176-O176)+O189 -> 55000 | Q189: 125000 | U189: VALORI LIMITE
A193: COL | C193: 3 | D193: 4 | E193: 5 | F193: 6 | G193: 7 | H193: 8 | I193: 9 | J193: 10 | K193: 11 | L193: 12 | M193: 13 | N193: 14 | O193: 15 | P193: 16 | Q193: 17
B196: DP | C196: 10 | D196: =IF(AND(V203>C196,V203<E196)=TRUE,V203,0) -> 0 | E196: 25 | F196: =IF(AND(V203>E196,V203<G196)=TRUE,V203,0) -> 0 | G196: 50 | H196: =IF(AND(V203>G196,V203<I196)=TRUE,V203,0) -> 0 | I196: 75 | J196: =IF(AND(V203>I196,V203<K196)=TRUE,V203,0) -> 0 | K196: 100 | L196: =IF(AND(V203>K196,V203<M196)=TRUE,V203,0) -> 0 | M196: 150 | N196: =IF(AND(V203>M196,V203<O196)=TRUE,V203,0) -> 0 | O196: 250 | P196: =IF(AND(V203>O196,V203<Q196)=TRUE,V203,0) -> 0 | Q196: 500
A197: PM
A199: 0.5 | C199: 4500 | D199: =(E199-C199)/(E196-C196)*(D196-C196)+C199 -> 2833.333333 | E199: 7000 | F199: =(G199-E199)/(G196-E196)*(F196-E196)+E199 -> 6000 | G199: 8000 | H199: =(I199-G199)/(I196-G196)*(H196-G196)+G199 -> 7999.8 | I199: 8000.1 | J199: =(K199-I199)/(K196-I196)*(J196-I196)+I199 -> 7999.8 | K199: 8000.2 | L199: =(M199-K199)/(M196-K196)*(L196-K196)+K199 -> 8000 | M199: 8000.3 | N199: =(O199-M199)/(O196-M196)*(N196-M196)+M199 -> 8000.15 | O199: 8000.4 | P199: =(Q199-O199)/(Q196-O196)*(P196-O196)+O199 -> 8000.31 | Q199: 8000.49 | S199: PM | T199: Q | U199: Qcal | V199: DPcal | W199: DP | X199: TIPO
A200: =IF(AND(S203>A199,S203<A201)=TRUE,S203,0) -> 0 | C200: =(C201-C199)/(A201-A199)*(A200-A199)+C199 -> 3500 | D200: =(E200-C200)/(E196-C196)*(D196-C196)+C200 -> 1833.333333 | E200: =(E201-E199)/(A201-A199)*(A200-A199)+E199 -> 6000 | F200: =(G200-E200)/(G196-E196)*(F196-E196)+E200 -> 6000 | G200: =(G201-G199)/(A201-A199)*(A200-A199)+G199 -> 6000 | H200: =(I200-G200)/(I196-G196)*(H196-G196)+G200 -> 5999.8 | I200: =(I201-I199)/(A201-A199)*(A200-A199)+I199 -> 6000.1 | J200: =(K200-I200)/(K196-I196)*(J196-I196)+I200 -> 5999.8 | K200: =(K201-K199)/(A201-A199)*(A200-A199)+K199 -> 6000.2 | L200: =(M200-K200)/(M196-K196)*(L196-K196)+K200 -> 6000 | M200: =(M201-M199)/(A201-A199)*(A200-A199)+M199 -> 6000.3 | N200: =(O200-M200)/(O196-M196)*(N196-M196)+M200 -> 6000.15 | O200: =(O201-O199)/(A201-A199)*(A200-A199)+O199 -> 6000.4 | P200: =(Q200-O200)/(Q196-O196)*(P196-O196)+O200 -> 6000.31 | Q200: =(Q201-Q199)/(A201-A199)*(A200-A199)+Q199 -> 6000.49
A201: 1 | C201: 5500 | D201: =(E201-C201)/(E196-C196)*(D196-C196)+C201 -> 3833.333333 | E201: 8000 | F201: =(G201-E201)/(G196-E196)*(F196-E196)+E201 -> 6000 | G201: 10000 | H201: =(I201-G201)/(I196-G196)*(H196-G196)+G201 -> 9999.8 | I201: 10000.1 | J201: =(K201-I201)/(K196-I196)*(J196-I196)+I201 -> 9999.8 | K201: 10000.2 | L201: =(M201-K201)/(M196-K196)*(L196-K196)+K201 -> 10000 | M201: 10000.3 | N201: =(O201-M201)/(O196-M196)*(N196-M196)+M201 -> 10000.15 | O201: 10000.4 | P201: =(Q201-O201)/(Q196-O196)*(P196-O196)+O201 -> 10000.31 | Q201: 10000.49 | T201: Stmc/h | U201: Stmc/h | V201: Mbar | W201: Mbar
A202: =IF(AND(S203>A201,S203<A203)=TRUE,S203,0) -> 0 | C202: =(C203-C201)/(A203-A201)*(A202-A201)+C201 -> 4500 | D202: =(E202-C202)/(E196-C196)*(D196-C196)+C202 -> 3500 | E202: =(E203-E201)/(A203-A201)*(A202-A201)+E201 -> 6000 | F202: =(G202-E202)/(G196-E196)*(F196-E196)+E202 -> 7000 | G202: =(G203-G201)/(A203-A201)*(A202-A201)+G201 -> 5000 | H202: =(I202-G202)/(I196-G196)*(H196-G196)+G202 -> 4999.8 | I202: =(I203-I201)/(A203-A201)*(A202-A201)+I201 -> 5000.1 | J202: =(K202-I202)/(K196-I196)*(J196-I196)+I202 -> 4999.8 | K202: =(K203-K201)/(A203-A201)*(A202-A201)+K201 -> 5000.2 | L202: =(M202-K202)/(M196-K196)*(L196-K196)+K202 -> 5000 | M202: =(M203-M201)/(A203-A201)*(A202-A201)+M201 -> 5000.3 | N202: =(O202-M202)/(O196-M196)*(N196-M196)+M202 -> 5000.15 | O202: =(O203-O201)/(A203-A201)*(A202-A201)+O201 -> 5000.4 | P202: =(Q202-O202)/(Q196-O196)*(P196-O196)+O202 -> 5000.31 | Q202: =(Q203-Q201)/(A203-A201)*(A202-A201)+Q201 -> 5000.49
A203: 2 | C203: 6500 | D203: =(E203-C203)/(E196-C196)*(D196-C196)+C203 -> 4166.666667 | E203: 10000 | F203: =(G203-E203)/(G196-E196)*(F196-E196)+E203 -> 5000 | G203: 15000 | H203: =(I203-G203)/(I196-G196)*(H196-G196)+G203 -> 14999.8 | I203: 15000.1 | J203: =(K203-I203)/(K196-I196)*(J196-I196)+I203 -> 14999.8 | K203: 15000.2 | L203: =(M203-K203)/(M196-K196)*(L196-K196)+K203 -> 15000 | M203: 15000.3 | N203: =(O203-M203)/(O196-M196)*(N196-M196)+M203 -> 15000.15 | O203: 15000.4 | P203: =(Q203-O203)/(Q196-O196)*(P196-O196)+O203 -> 15000.31 | Q203: 15000.49 | S203: =DIMENSIONAMENTO!$F$21 -> 6 | T203: =DIMENSIONAMENTO!$D$12 -> 3000 | U203: =VLOOKUP(S203,A196:Q217,HLOOKUP(V203,A196:Q217,22,0),0) -> 32000.08 | V203: =DIMENSIONAMENTO!$E$21 -> 100 | W203: =IF(S203<A199,"NO",IF(S203>A213,"NO",IF(VLOOKUP(S203,A199:Q213,3,0)>T203,"NO",IF(VLOOKUP(S203,A199:Q213,17,0)<T203,"NO",IF(AND(U203>=T203-0.1,U203<T203+0.1)=TRUE,V203,"NO"))))) -> NO | X203: FA-12-AP/ | Y203: 250
A204: =IF(AND(S203>A203,S203<A205)=TRUE,S203,0) -> 0 | C204: =(C205-C203)/(A205-A203)*(A204-A203)+C203 -> 4500 | D204: =(E204-C204)/(E196-C196)*(D196-C196)+C204 -> 2611.111111 | E204: =(E205-E203)/(A205-A203)*(A204-A203)+E203 -> 7333.333333 | F204: =(G204-E204)/(G196-E196)*(F196-E196)+E204 -> 3000 | G204: =(G205-G203)/(A205-A203)*(A204-A203)+G203 -> 11666.66667 | H204: =(I204-G204)/(I196-G196)*(H196-G196)+G204 -> 24999.66667 | I204: =(I205-I203)/(A205-A203)*(A204-A203)+I203 -> 5000.166667 | J204: =(K204-I204)/(K196-I196)*(J196-I196)+I204 -> 4999.866667 | K204: =(K205-K203)/(A205-A203)*(A204-A203)+K203 -> 5000.266667 | L204: =(M204-K204)/(M196-K196)*(L196-K196)+K204 -> 5000.066667 | M204: =(M205-M203)/(A205-A203)*(A204-A203)+M203 -> 5000.366667 | N204: =(O204-M204)/(O196-M196)*(N196-M196)+M204 -> 5000.216667 | O204: =(O205-O203)/(A205-A203)*(A204-A203)+O203 -> 5000.466667 | P204: =(Q204-O204)/(Q196-O196)*(P196-O196)+O204 -> 5000.383333 | Q204: =(Q205-Q203)/(A205-A203)*(A204-A203)+Q203 -> 5000.55
A205: 5 | C205: 9500 | D205: =(E205-C205)/(E196-C196)*(D196-C196)+C205 -> 6500 | E205: 14000 | F205: =(G205-E205)/(G196-E196)*(F196-E196)+E205 -> 8000 | G205: 20000 | H205: =(I205-G205)/(I196-G196)*(H196-G196)+G205 -> 0 | I205: 30000 | J205: =(K205-I205)/(K196-I196)*(J196-I196)+I205 -> 29999.7 | K205: 30000.1 | L205: =(M205-K205)/(M196-K196)*(L196-K196)+K205 -> 29999.9 | M205: 30000.2 | N205: =(O205-M205)/(O196-M196)*(N196-M196)+M205 -> 30000.05 | O205: 30000.3 | P205: =(Q205-O205)/(Q196-O196)*(P196-O196)+O205 -> 30000.2 | Q205: 30000.4
A206: =IF(AND(S203>A205,S203<A207)=TRUE,S203,0) -> 6 | C206: =(C207-C205)/(A207-A205)*(A206-A205)+C205 -> 10200 | D206: =(E206-C206)/(E196-C196)*(D196-C196)+C206 -> 6866.666667 | E206: =(E207-E205)/(A207-A205)*(A206-A205)+E205 -> 15200 | F206: =(G206-E206)/(G196-E196)*(F196-E196)+E206 -> 8400 | G206: =(G207-G205)/(A207-A205)*(A206-A205)+G205 -> 22000 | H206: =(I206-G206)/(I196-G196)*(H196-G196)+G206 -> 3600 | I206: =(I207-I205)/(A207-A205)*(A206-A205)+I205 -> 31200 | J206: =(K206-I206)/(K196-I196)*(J196-I196)+I206 -> 28799.76 | K206: =(K207-K205)/(A207-A205)*(A206-A205)+K205 -> 32000.08 | L206: =(M206-K206)/(M196-K196)*(L196-K196)+K206 -> 29999.92 | M206: =(M207-M205)/(A207-A205)*(A206-A205)+M205 -> 33000.16 | N206: =(O206-M206)/(O196-M196)*(N196-M196)+M206 -> 30000.04 | O206: =(O207-O205)/(A207-A205)*(A206-A205)+O205 -> 35000.24 | P206: =(Q206-O206)/(Q196-O196)*(P196-O196)+O206 -> 35000.14 | Q206: =(Q207-Q205)/(A207-A205)*(A206-A205)+Q205 -> 35000.34
A207: 10 | C207: 13000 | D207: =(E207-C207)/(E196-C196)*(D196-C196)+C207 -> 8333.333333 | E207: 20000 | F207: =(G207-E207)/(G196-E196)*(F196-E196)+E207 -> 10000 | G207: 30000 | H207: =(I207-G207)/(I196-G196)*(H196-G196)+G207 -> 18000 | I207: 36000 | J207: =(K207-I207)/(K196-I196)*(J196-I196)+I207 -> 24000 | K207: 40000 | L207: =(M207-K207)/(M196-K196)*(L196-K196)+K207 -> 30000 | M207: 45000 | N207: =(O207-M207)/(O196-M196)*(N196-M196)+M207 -> 30000 | O207: 55000 | P207: =(Q207-O207)/(Q196-O196)*(P196-O196)+O207 -> 54999.9 | Q207: 55000.1
A208: =IF(AND(S203>A207,S203<A209)=TRUE,S203,0) -> 0 | C208: =(C209-C207)/(A209-A207)*(A208-A207)+C207 -> 8333.333333 | D208: =(E208-C208)/(E196-C196)*(D196-C196)+C208 -> 5000 | E208: =(E209-E207)/(A209-A207)*(A208-A207)+E207 -> 13333.33333 | F208: =(G208-E208)/(G196-E196)*(F196-E196)+E208 -> 6666.666667 | G208: =(G209-G207)/(A209-A207)*(A208-A207)+G207 -> 20000 | H208: =(I208-G208)/(I196-G196)*(H196-G196)+G208 -> 55200 | I208: 2400 | J208: =(K208-I208)/(K196-I196)*(J196-I196)+I208 -> -62400 | K208: =(K209-K207)/(A209-A207)*(A208-A207)+K207 -> 24000 | L208: =(M208-K208)/(M196-K196)*(L196-K196)+K208 -> 23333.33333 | M208: =(M209-M207)/(A209-A207)*(A208-A207)+M207 -> 24333.33333 | N208: =(O208-M208)/(O196-M196)*(N196-M196)+M208 -> 13333.33333 | O208: =(O209-O207)/(A209-A207)*(A208-A207)+O207 -> 31666.66667 | P208: =(Q208-O208)/(Q196-O196)*(P196-O196)+O208 -> 58333.16667 | Q208: =(Q209-Q207)/(A209-A207)*(A208-A207)+Q207 -> 5000.166667
A209: 25 | C209: 20000 | D209: =(E209-C209)/(E196-C196)*(D196-C196)+C209 -> 13333.33333 | E209: 30000 | F209: =(G209-E209)/(G196-E196)*(F196-E196)+E209 -> 15000 | G209: 45000 | H209: =(I209-G209)/(I196-G196)*(H196-G196)+G209 -> 43000 | I209: 46000 | J209: =(K209-I209)/(K196-I196)*(J196-I196)+I209 -> -8000 | K209: 64000 | L209: =(M209-K209)/(M196-K196)*(L196-K196)+K209 -> 40000 | M209: 76000 | N209: =(O209-M209)/(O196-M196)*(N196-M196)+M209 -> 55000 | O209: 90000 | P209: =(Q209-O209)/(Q196-O196)*(P196-O196)+O209 -> 50000 | Q209: 130000
A210: =IF(AND(S205>A209,S205<A211)=TRUE,S205,0) -> 0 | C210: =(C211-C209)/(A211-A209)*(A210-A209)+C209 -> 3333.333333 | D210: =(E210-C210)/(E196-C196)*(D196-C196)+C210 -> -3333.333333 | E210: =(E211-E209)/(A211-A209)*(A210-A209)+E209 -> 13333.33333 | F210: =(G210-E210)/(G196-E196)*(F196-E196)+E210 -> -1666.666667 | G210: =(G211-G209)/(A211-A209)*(A210-A209)+G209 -> 28333.33333 | H210: =(I210-G210)/(I196-G196)*(H196-G196)+G210 -> 80200 | I210: 2400 | J210: =(K210-I210)/(K196-I196)*(J196-I196)+I210 -> -77400 | K210: =(K211-K209)/(A211-A209)*(A210-A209)+K209 -> 29000 | L210: =(M210-K210)/(M196-K196)*(L196-K196)+K210 -> 15000 | M210: =(M211-M209)/(A211-A209)*(A210-A209)+M209 -> 36000 | N210: =(O210-M210)/(O196-M196)*(N196-M196)+M210 -> 30000 | O210: =(O211-O209)/(A211-A209)*(A210-A209)+O209 -> 40000 | P210: =(Q210-O210)/(Q196-O196)*(P196-O196)+O210 -> 25000 | Q210: =(Q211-Q209)/(A211-A209)*(A210-A209)+Q209 -> 55000
A211: 40 | C211: 30000 | D211: =(E211-C211)/(E196-C196)*(D196-C196)+C211 -> 23333.33333 | E211: 40000 | F211: =(G211-E211)/(G196-E196)*(F196-E196)+E211 -> 25000 | G211: 55000 | H211: =(I211-G211)/(I196-G196)*(H196-G196)+G211 -> 25000 | I211: 70000 | J211: =(K211-I211)/(K196-I196)*(J196-I196)+I211 -> 25000 | K211: 85000 | L211: =(M211-K211)/(M196-K196)*(L196-K196)+K211 -> 55000 | M211: 100000 | N211: =(O211-M211)/(O196-M196)*(N196-M196)+M211 -> 70000 | O211: 120000 | P211: =(Q211-O211)/(Q196-O196)*(P196-O196)+O211 -> 65000 | Q211: 175000
A212: =IF(AND(S207>A211,S207<A213)=TRUE,S207,0) -> 0 | C212: =(C213-C211)/(A213-A211)*(A212-A211)+C211 -> 16666.66667 | D212: =(E212-C212)/(E200-C200)*(D200-C200)+C212 -> 18888.88889 | E212: =(E213-E211)/(A213-A211)*(A212-A211)+E211 -> 13333.33333 | F212: =(G212-E212)/(G200-E200)*(F200-E200)+E212 ->  | G212: =(G213-G211)/(A213-A211)*(A212-A211)+G211 -> 21666.66667 | H212: =(I212-G212)/(I200-G200)*(H200-G200)+G212 -> 60200 | I212: 2400 | J212: =(K212-I212)/(K200-I200)*(J200-I200)+I212 -> -105400 | K212: =(K213-K211)/(A213-A211)*(A212-A211)+K211 -> 38333.33333 | L212: =(M212-K212)/(M200-K200)*(L200-K200)+K212 -> 35000 | M212: =(M213-M211)/(A213-A211)*(A212-A211)+M211 -> 40000 | N212: =(O212-M212)/(O200-M200)*(N200-M200)+M212 -> 20000 | O212: =(O213-O211)/(A213-A211)*(A212-A211)+O211 -> 53333.33333 | P212: =(Q212-O212)/(Q200-O200)*(P200-O200)+O212 -> 31666.66667 | Q212: =(Q213-Q211)/(A213-A211)*(A212-A211)+Q211 -> 75000
A213: 70 | C213: 40000 | D213: =(E213-C213)/(E200-C200)*(D200-C200)+C213 -> 26666.66667 | E213: 60000 | F213: =(G213-E213)/(G200-E200)*(F200-E200)+E213 ->  | G213: 80000 | H213: =(I213-G213)/(I200-G200)*(H200-G200)+G213 -> 40000 | I213: 100000 | J213: =(K213-I213)/(K200-I200)*(J200-I200)+I213 -> 40000 | K213: 120000 | L213: =(M213-K213)/(M200-K200)*(L200-K200)+K213 -> 70000 | M213: 145000 | N213: =(O213-M213)/(O200-M200)*(N200-M200)+M213 -> 107500 | O213: 170000 | P213: =(Q213-O213)/(Q200-O200)*(P200-O200)+O213 -> 90000 | Q213: 250000 | U213: VALORI LIMITE
A217: COL | C217: 3 | D217: 4 | E217: 5 | F217: 6 | G217: 7 | H217: 8 | I217: 9 | J217: 10 | K217: 11 | L217: 12 | M217: 13 | N217: 14 | O217: 15 | P217: 16 | Q217: 17
B220: DP | C220: 10 | D220: =IF(AND(V227>C220,V227<E220)=TRUE,V227,0) -> 0 | E220: 25 | F220: =IF(AND(V227>E220,V227<G220)=TRUE,V227,0) -> 0 | G220: 50 | H220: =IF(AND(V227>G220,V227<I220)=TRUE,V227,0) -> 0 | I220: 75 | J220: =IF(AND(V227>I220,V227<K220)=TRUE,V227,0) -> 0 | K220: 100 | L220: =IF(AND(V227>K220,V227<M220)=TRUE,V227,0) -> 0 | M220: 150 | N220: =IF(AND(V227>M220,V227<O220)=TRUE,V227,0) -> 0 | O220: 250 | P220: =IF(AND(V227>O220,V227<Q220)=TRUE,V227,0) -> 0 | Q220: 500
A221: PM
A223: 0.5 | C223: 8000 | D223: =(E223-C223)/(E220-C220)*(D220-C220)+C223 -> 5666.666667 | E223: 11500 | F223: =(G223-E223)/(G220-E220)*(F220-E220)+E223 -> 11499.95 | G223: 11500.05 | H223: =(I223-G223)/(I220-G220)*(H220-G220)+G223 -> 11499.95 | I223: 11500.1 | J223: =(K223-I223)/(K220-I220)*(J220-I220)+I223 -> 11499.8 | K223: 11500.2 | L223: =(M223-K223)/(M220-K220)*(L220-K220)+K223 -> 11500 | M223: 11500.3 | N223: =(O223-M223)/(O220-M220)*(N220-M220)+M223 -> 11500.15 | O223: 11500.4 | P223: =(Q223-O223)/(Q220-O220)*(P220-O220)+O223 -> 11500.31 | Q223: 11500.49 | S223: PM | T223: Q | U223: Qcal | V223: DPcal | W223: DP | X223: TIPO
A224: =IF(AND(S227>A223,S227<A225)=TRUE,S227,0) -> 0 | C224: =(C225-C223)/(A225-A223)*(A224-A223)+C223 -> 7000 | D224: =(E224-C224)/(E220-C220)*(D220-C220)+C224 -> 6333.333333 | E224: =(E225-E223)/(A225-A223)*(A224-A223)+E223 -> 8000 | F224: =(G224-E224)/(G220-E220)*(F220-E220)+E224 -> 7999.95 | G224: =(G225-G223)/(A225-A223)*(A224-A223)+G223 -> 8000.05 | H224: =(I224-G224)/(I220-G220)*(H220-G220)+G224 -> 7999.95 | I224: =(I225-I223)/(A225-A223)*(A224-A223)+I223 -> 8000.1 | J224: =(K224-I224)/(K220-I220)*(J220-I220)+I224 -> 7999.8 | K224: =(K225-K223)/(A225-A223)*(A224-A223)+K223 -> 8000.2 | L224: =(M224-K224)/(M220-K220)*(L220-K220)+K224 -> 8000 | M224: =(M225-M223)/(A225-A223)*(A224-A223)+M223 -> 8000.3 | N224: =(O224-M224)/(O220-M220)*(N220-M220)+M224 -> 8000.15 | O224: =(O225-O223)/(A225-A223)*(A224-A223)+O223 -> 8000.4 | P224: =(Q224-O224)/(Q220-O220)*(P220-O220)+O224 -> 8000.31 | Q224: =(Q225-Q223)/(A225-A223)*(A224-A223)+Q223 -> 8000.49
A225: 1 | C225: 9000 | D225: =(E225-C225)/(E220-C220)*(D220-C220)+C225 -> 5000 | E225: 15000 | F225: =(G225-E225)/(G220-E220)*(F220-E220)+E225 -> 14999.95 | G225: 15000.05 | H225: =(I225-G225)/(I220-G220)*(H220-G220)+G225 -> 14999.95 | I225: 15000.1 | J225: =(K225-I225)/(K220-I220)*(J220-I220)+I225 -> 14999.8 | K225: 15000.2 | L225: =(M225-K225)/(M220-K220)*(L220-K220)+K225 -> 15000 | M225: 15000.3 | N225: =(O225-M225)/(O220-M220)*(N220-M220)+M225 -> 15000.15 | O225: 15000.4 | P225: =(Q225-O225)/(Q220-O220)*(P220-O220)+O225 -> 15000.31 | Q225: 15000.49 | T225: Stmc/h | U225: Stmc/h | V225: Mbar | W225: Mbar
A226: =IF(AND(S227>A225,S227<A227)=TRUE,S227,0) -> 0 | C226: =(C227-C225)/(A227-A225)*(A226-A225)+C225 -> 6000 | D226: =(E226-C226)/(E220-C220)*(D220-C220)+C226 -> 2000 | E226: =(E227-E225)/(A227-A225)*(A226-A225)+E225 -> 12000 | F226: =(G226-E226)/(G220-E220)*(F220-E220)+E226 -> 16999.9 | G226: =(G227-G225)/(A227-A225)*(A226-A225)+G225 -> 7000.1 | H226: =(I226-G226)/(I220-G220)*(H220-G220)+G226 -> 7000.1 | I226: =(I227-I225)/(A227-A225)*(A226-A225)+I225 -> 7000.1 | J226: =(K226-I226)/(K220-I220)*(J220-I220)+I226 -> 6999.8 | K226: =(K227-K225)/(A227-A225)*(A226-A225)+K225 -> 7000.2 | L226: =(M226-K226)/(M220-K220)*(L220-K220)+K226 -> 7000 | M226: =(M227-M225)/(A227-A225)*(A226-A225)+M225 -> 7000.3 | N226: =(O226-M226)/(O220-M220)*(N220-M220)+M226 -> 7000.15 | O226: =(O227-O225)/(A227-A225)*(A226-A225)+O225 -> 7000.4 | P226: =(Q226-O226)/(Q220-O220)*(P220-O220)+O226 -> 7000.31 | Q226: =(Q227-Q225)/(A227-A225)*(A226-A225)+Q225 -> 7000.49
A227: 2 | C227: 12000 | D227: =(E227-C227)/(E220-C220)*(D220-C220)+C227 -> 8000 | E227: 18000 | F227: =(G227-E227)/(G220-E220)*(F220-E220)+E227 -> 13000 | G227: 23000 | H227: =(I227-G227)/(I220-G220)*(H220-G220)+G227 -> 22999.8 | I227: 23000.1 | J227: =(K227-I227)/(K220-I220)*(J220-I220)+I227 -> 22999.8 | K227: 23000.2 | L227: =(M227-K227)/(M220-K220)*(L220-K220)+K227 -> 23000 | M227: 23000.3 | N227: =(O227-M227)/(O220-M220)*(N220-M220)+M227 -> 23000.15 | O227: 23000.4 | P227: =(Q227-O227)/(Q220-O220)*(P220-O220)+O227 -> 23000.31 | Q227: 23000.49 | S227: =Лист1!B17*10 -> 0.1 | T227: =Лист1!B19 -> 3500 | U227: =VLOOKUP(S227,A220:Q241,HLOOKUP(V227,A220:Q241,22,0),0) ->  | V227: =Лист1!B18*10 -> 100 | W227: =IF(S227<A223,"NO",IF(S227>A237,"NO",IF(VLOOKUP(S227,A223:Q237,3,0)>T227,"NO",IF(VLOOKUP(S227,A223:Q237,17,0)<T227,"NO",IF(AND(U227>=T227-0.1,U227<T227+0.1)=TRUE,V227,"NO"))))) -> NO | X227: Фильтр газовый | Y227: =Лист1!F18 -> РЕД-С-5-2-300 DN300
A228: =IF(AND(S227>A227,S227<A229)=TRUE,S227,0) -> 0 | C228: =(C229-C227)/(A229-A227)*(A228-A227)+C227 -> 8666.666667 | D228: =(E228-C228)/(E220-C220)*(D220-C220)+C228 -> 6000 | E228: =(E229-E227)/(A229-A227)*(A228-A227)+E227 -> 12666.66667 | F228: =(G228-E228)/(G220-E220)*(F220-E220)+E228 -> 10333.33333 | G228: =(G229-G227)/(A229-A227)*(A228-A227)+G227 -> 15000 | H228: =(I228-G228)/(I220-G220)*(H220-G220)+G228 -> 28333.13333 | I228: =(I229-I227)/(A229-A227)*(A228-A227)+I227 -> 8333.433333 | J228: =(K228-I228)/(K220-I220)*(J220-I220)+I228 -> 8333.133333 | K228: =(K229-K227)/(A229-A227)*(A228-A227)+K227 -> 8333.533333 | L228: =(M228-K228)/(M220-K220)*(L220-K220)+K228 -> 8333.2 | M228: =(M229-M227)/(A229-A227)*(A228-A227)+M227 -> 8333.7 | N228: =(O228-M228)/(O220-M220)*(N220-M220)+M228 -> 8333.55 | O228: =(O229-O227)/(A229-A227)*(A228-A227)+O227 -> 8333.8 | P228: =(Q228-O228)/(Q220-O220)*(P220-O220)+O228 -> 8333.716667 | Q228: =(Q229-Q227)/(A229-A227)*(A228-A227)+Q227 -> 8333.883333
A229: 5 | C229: 17000 | D229: =(E229-C229)/(E220-C220)*(D220-C220)+C229 -> 11000 | E229: 26000 | F229: =(G229-E229)/(G220-E220)*(F220-E220)+E229 -> 17000 | G229: 35000 | H229: =(I229-G229)/(I220-G220)*(H220-G220)+G229 -> 14999.8 | I229: 45000.1 | J229: =(K229-I229)/(K220-I220)*(J220-I220)+I229 -> 44999.8 | K229: 45000.2 | L229: =(M229-K229)/(M220-K220)*(L220-K220)+K229 -> 45000.2 | M229: 45000.2 | N229: =(O229-M229)/(O220-M220)*(N220-M220)+M229 -> 45000.05 | O229: 45000.3 | P229: =(Q229-O229)/(Q220-O220)*(P220-O220)+O229 -> 45000.2 | Q229: 45000.4
A230: =IF(AND(S227>A229,S227<A231)=TRUE,S227,0) -> 0 | C230: =(C231-C229)/(A231-A229)*(A230-A229)+C229 -> 10000 | D230: =(E230-C230)/(E220-C220)*(D220-C220)+C230 -> 6000 | E230: =(E231-E229)/(A231-A229)*(A230-A229)+E229 -> 16000 | F230: =(G230-E230)/(G220-E220)*(F220-E220)+E230 -> 16000 | G230: =(G231-G229)/(A231-A229)*(A230-A229)+G229 -> 16000 | H230: =(I230-G230)/(I220-G220)*(H220-G220)+G230 -> -4000.4 | I230: =(I231-I229)/(A231-A229)*(A230-A229)+I229 -> 26000.2 | J230: =(K230-I230)/(K220-I220)*(J220-I220)+I230 -> 43999.6 | K230: =(K231-K229)/(A231-A229)*(A230-A229)+K229 -> 20000.4 | L230: =(M230-K230)/(M220-K220)*(L220-K220)+K230 -> 50000.4 | M230: =(M231-M229)/(A231-A229)*(A230-A229)+M229 -> 5000.4 | N230: =(O230-M230)/(O220-M220)*(N220-M220)+M230 -> 5000.25 | O230: =(O231-O229)/(A231-A229)*(A230-A229)+O229 -> 5000.5 | P230: =(Q230-O230)/(Q220-O220)*(P220-O220)+O230 -> 5000.4 | Q230: =(Q231-Q229)/(A231-A229)*(A230-A229)+Q229 -> 5000.6
A231: 10 | C231: 24000 | D231: =(E231-C231)/(E220-C220)*(D220-C220)+C231 -> 16000 | E231: 36000 | F231: =(G231-E231)/(G220-E220)*(F220-E220)+E231 -> 18000 | G231: 54000 | H231: =(I231-G231)/(I220-G220)*(H220-G220)+G231 -> 34000 | I231: 64000 | J231: =(K231-I231)/(K220-I220)*(J220-I220)+I231 -> 46000 | K231: 70000 | L231: =(M231-K231)/(M220-K220)*(L220-K220)+K231 -> 40000 | M231: 85000 | N231: =(O231-M231)/(O220-M220)*(N220-M220)+M231 -> 84999.85 | O231: 85000.1 | P231: =(Q231-O231)/(Q220-O220)*(P220-O220)+O231 -> 85000 | Q231: 85000.2
A232: =IF(AND(S227>A231,S227<A233)=TRUE,S227,0) -> 0 | C232: =(C233-C231)/(A233-A231)*(A232-A231)+C231 -> 16666.66667 | D232: =(E232-C232)/(E220-C220)*(D220-C220)+C232 -> 11777.77778 | E232: =(E233-E231)/(A233-A231)*(A232-A231)+E231 -> 24000 | F232: =(G232-E232)/(G220-E220)*(F220-E220)+E232 -> 11333.33333 | G232: =(G233-G231)/(A233-A231)*(A232-A231)+G231 -> 36666.66667 | H232: =(I232-G232)/(I220-G220)*(H220-G220)+G232 -> 105200 | I232: 2400 | J232: =(K232-I232)/(K220-I220)*(J220-I220)+I232 -> -120400 | K232: =(K233-K231)/(A233-A231)*(A232-A231)+K231 -> 43333.33333 | L232: =(M232-K232)/(M220-K220)*(L220-K220)+K232 -> 33333.33333 | M232: =(M233-M231)/(A233-A231)*(A232-A231)+M231 -> 48333.33333 | N232: =(O232-M232)/(O220-M220)*(N220-M220)+M232 -> 78333.08333 | O232: =(O233-O231)/(A233-A231)*(A232-A231)+O231 -> 28333.5 | P232: =(Q232-O232)/(Q220-O220)*(P220-O220)+O232 -> 48333.33333 | Q232: =(Q233-Q231)/(A233-A231)*(A232-A231)+Q231 -> 8333.666667
A233: 25 | C233: 35000 | D233: =(E233-C233)/(E220-C220)*(D220-C220)+C233 -> 22333.33333 | E233: 54000 | F233: =(G233-E233)/(G220-E220)*(F220-E220)+E233 -> 28000 | G233: 80000 | H233: =(I233-G233)/(I220-G220)*(H220-G220)+G233 -> 40000 | I233: 100000 | J233: =(K233-I233)/(K220-I220)*(J220-I220)+I233 -> 70000 | K233: 110000 | L233: =(M233-K233)/(M220-K220)*(L220-K220)+K233 -> 50000 | M233: 140000 | N233: =(O233-M233)/(O220-M220)*(N220-M220)+M233 -> 95000 | O233: 170000 | P233: =(Q233-O233)/(Q220-O220)*(P220-O220)+O233 -> 140000 | Q233: 200000
A234: =IF(AND(S229>A233,S229<A235)=TRUE,S229,0) -> 0 | C234: =(C235-C233)/(A235-A233)*(A234-A233)+C233 -> 15000 | D234: =(E234-C234)/(E220-C220)*(D220-C220)+C234 -> -4333.333333 | E234: =(E235-E233)/(A235-A233)*(A234-A233)+E233 -> 44000 | F234: =(G234-E234)/(G220-E220)*(F220-E220)+E234 -> -333.3333333 | G234: =(G235-G233)/(A235-A233)*(A234-A233)+G233 -> 88333.33333 | H234: =(I234-G234)/(I220-G220)*(H220-G220)+G234 -> 260200 | I234: 2400 | J234: =(K234-I234)/(K220-I220)*(J220-I220)+I234 -> -220400 | K234: =(K235-K233)/(A235-A233)*(A234-A233)+K233 -> 76666.66667 | L234: =(M234-K234)/(M220-K220)*(L220-K220)+K234 -> 33333.33333 | M234: =(M235-M233)/(A235-A233)*(A234-A233)+M233 -> 98333.33333 | N234: =(O234-M234)/(O220-M220)*(N220-M220)+M234 -> 65833.33333 | O234: =(O235-O233)/(A235-A233)*(A234-A233)+O233 -> 120000 | P234: =(Q234-O234)/(Q220-O220)*(P220-O220)+O234 -> 206666.6667 | Q234: =(Q235-Q233)/(A235-A233)*(A234-A233)+Q233 -> 33333.33333
A235: 40 | C235: 47000 | D235: =(E235-C235)/(E220-C220)*(D220-C220)+C235 -> 38333.33333 | E235: 60000 | F235: =(G235-E235)/(G220-E220)*(F220-E220)+E235 -> 45000 | G235: 75000 | H235: =(I235-G235)/(I220-G220)*(H220-G220)+G235 -> 25000 | I235: 100000 | J235: =(K235-I235)/(K220-I220)*(J220-I220)+I235 -> 10000 | K235: 130000 | L235: =(M235-K235)/(M220-K220)*(L220-K220)+K235 -> 60000 | M235: 165000 | N235: =(O235-M235)/(O220-M220)*(N220-M220)+M235 -> 112500 | O235: 200000 | P235: =(Q235-O235)/(Q220-O220)*(P220-O220)+O235 -> 100000 | Q235: 300000
A236: =IF(AND(S231>A235,S231<A237)=TRUE,S231,0) -> 0 | C236: =(C237-C235)/(A237-A235)*(A236-A235)+C235 -> 36333.33333 | D236: =(E236-C236)/(E224-C224)*(D224-C224)+C236 -> 29444.44444 | E236: =(E237-E235)/(A237-A235)*(A236-A235)+E235 -> 46666.66667 | F236: =(G236-E236)/(G224-E224)*(F224-E224)+E236 -> 38333.33333 | G236: =(G237-G235)/(A237-A235)*(A236-A235)+G235 -> 55000 | H236: =(I236-G236)/(I224-G224)*(H224-G224)+G236 -> 160200 | I236: 2400 | J236: =(K236-I236)/(K224-I224)*(J224-I224)+I236 -> -320400 | K236: =(K237-K235)/(A237-A235)*(A236-A235)+K235 -> 110000 | L236: =(M236-K236)/(M224-K224)*(L224-K224)+K236 -> 93333.33333 | M236: =(M237-M235)/(A237-A235)*(A236-A235)+M235 -> 118333.3333 | N236: =(O236-M236)/(O224-M224)*(N224-M224)+M236 -> 195833.3333 | O236: =(O237-O235)/(A237-A235)*(A236-A235)+O235 -> 66666.66667 | P236: =(Q236-O236)/(Q224-O224)*(P224-O224)+O236 -> -100000 | Q236: =(Q237-Q235)/(A237-A235)*(A236-A235)+Q235 -> 233333.3333
A237: 70 | C237: 55000 | D237: =(E237-C237)/(E224-C224)*(D224-C224)+C237 -> 45000 | E237: 70000 | F237: =(G237-E237)/(G224-E224)*(F224-E224)+E237 -> 50000 | G237: 90000 | H237: =(I237-G237)/(I224-G224)*(H224-G224)+G237 -> 50000 | I237: 110000 | J237: =(K237-I237)/(K224-I224)*(J224-I224)+I237 -> 5000 | K237: 145000 | L237: =(M237-K237)/(M224-K224)*(L224-K224)+K237 -> 35000 | M237: 200000 | N237: =(O237-M237)/(O224-M224)*(N224-M224)+M237 -> 50000 | O237: 300000 | P237: =(Q237-O237)/(Q224-O224)*(P224-O224)+O237 -> 250000 | Q237: 350000 | U237: Скорость
A241: COL | C241: 3 | D241: 4 | E241: 5 | F241: 6 | G241: 7 | H241: 8 | I241: 9 | J241: 10 | K241: 11 | L241: 12 | M241: 13 | N241: 14 | O241: 15 | P241: 16 | Q241: 17
B244: DP | C244: 10 | D244: =IF(AND(V251>C244,V251<E244)=TRUE,V251,0) -> 0 | E244: 25 | F244: =IF(AND(V251>E244,V251<G244)=TRUE,V251,0) -> 0 | G244: 50 | H244: =IF(AND(V251>G244,V251<I244)=TRUE,V251,0) -> 0 | I244: 75 | J244: =IF(AND(V251>I244,V251<K244)=TRUE,V251,0) -> 0 | K244: 100 | L244: =IF(AND(V251>K244,V251<M244)=TRUE,V251,0) -> 0 | M244: 150 | N244: =IF(AND(V251>M244,V251<O244)=TRUE,V251,0) -> 0 | O244: 250 | P244: =IF(AND(V251>O244,V251<Q244)=TRUE,V251,0) -> 0 | Q244: 500
A245: PM
A247: 0.5 | C247: 8000 | D247: =(E247-C247)/(E244-C244)*(D244-C244)+C247 -> 5000 | E247: 12500 | F247: =(G247-E247)/(G244-E244)*(F244-E244)+E247 -> 10000 | G247: 15000 | H247: =(I247-G247)/(I244-G244)*(H244-G244)+G247 -> 14999.8 | I247: 15000.1 | J247: =(K247-I247)/(K244-I244)*(J244-I244)+I247 -> 14999.8 | K247: 15000.2 | L247: =(M247-K247)/(M244-K244)*(L244-K244)+K247 -> 15000 | M247: 15000.3 | N247: =(O247-M247)/(O244-M244)*(N244-M244)+M247 -> 15000.15 | O247: 15000.4 | P247: =(Q247-O247)/(Q244-O244)*(P244-O244)+O247 -> 15000.31 | Q247: 15000.49 | S247: PM | T247: Q | U247: Qcal | V247: DPcal | W247: DP | X247: TIPO
A248: =IF(AND(S251>A247,S251<A249)=TRUE,S251,0) -> 0 | C248: =(C249-C247)/(A249-A247)*(A248-A247)+C247 -> 7000 | D248: =(E248-C248)/(E244-C244)*(D244-C244)+C248 -> 5000 | E248: =(E249-E247)/(A249-A247)*(A248-A247)+E247 -> 10000 | F248: =(G248-E248)/(G244-E244)*(F244-E244)+E248 -> 10000 | G248: =(G249-G247)/(A249-A247)*(A248-A247)+G247 -> 10000 | H248: =(I248-G248)/(I244-G244)*(H244-G244)+G248 -> 9999.8 | I248: =(I249-I247)/(A249-A247)*(A248-A247)+I247 -> 10000.1 | J248: =(K248-I248)/(K244-I244)*(J244-I244)+I248 -> 9999.8 | K248: =(K249-K247)/(A249-A247)*(A248-A247)+K247 -> 10000.2 | L248: =(M248-K248)/(M244-K244)*(L244-K244)+K248 -> 10000 | M248: =(M249-M247)/(A249-A247)*(A248-A247)+M247 -> 10000.3 | N248: =(O248-M248)/(O244-M244)*(N244-M244)+M248 -> 10000.15 | O248: =(O249-O247)/(A249-A247)*(A248-A247)+O247 -> 10000.4 | P248: =(Q248-O248)/(Q244-O244)*(P244-O244)+O248 -> 10000.31 | Q248: =(Q249-Q247)/(A249-A247)*(A248-A247)+Q247 -> 10000.49
A249: 1 | C249: 9000 | D249: =(E249-C249)/(E244-C244)*(D244-C244)+C249 -> 5000 | E249: 15000 | F249: =(G249-E249)/(G244-E244)*(F244-E244)+E249 -> 10000 | G249: 20000 | H249: =(I249-G249)/(I244-G244)*(H244-G244)+G249 -> 19999.8 | I249: 20000.1 | J249: =(K249-I249)/(K244-I244)*(J244-I244)+I249 -> 19999.8 | K249: 20000.2 | L249: =(M249-K249)/(M244-K244)*(L244-K244)+K249 -> 20000 | M249: 20000.3 | N249: =(O249-M249)/(O244-M244)*(N244-M244)+M249 -> 20000.15 | O249: 20000.4 | P249: =(Q249-O249)/(Q244-O244)*(P244-O244)+O249 -> 20000.31 | Q249: 20000.49 | T249: Stmc/h | U249: Stmc/h | V249: Mbar | W249: Mbar
A250: =IF(AND(S251>A249,S251<A251)=TRUE,S251,0) -> 0 | C250: =(C251-C249)/(A251-A249)*(A250-A249)+C249 -> 6000 | D250: =(E250-C250)/(E244-C244)*(D244-C244)+C250 -> 2000 | E250: =(E251-E249)/(A251-A249)*(A250-A249)+E249 -> 12000 | F250: =(G250-E250)/(G244-E244)*(F244-E244)+E250 -> 9000 | G250: =(G251-G249)/(A251-A249)*(A250-A249)+G249 -> 15000 | H250: =(I250-G250)/(I244-G244)*(H244-G244)+G250 -> 14999.8 | I250: =(I251-I249)/(A251-A249)*(A250-A249)+I249 -> 15000.1 | J250: =(K250-I250)/(K244-I244)*(J244-I244)+I250 -> 14999.8 | K250: =(K251-K249)/(A251-A249)*(A250-A249)+K249 -> 15000.2 | L250: =(M250-K250)/(M244-K244)*(L244-K244)+K250 -> 15000 | M250: =(M251-M249)/(A251-A249)*(A250-A249)+M249 -> 15000.3 | N250: =(O250-M250)/(O244-M244)*(N244-M244)+M250 -> 15000.15 | O250: =(O251-O249)/(A251-A249)*(A250-A249)+O249 -> 15000.4 | P250: =(Q250-O250)/(Q244-O244)*(P244-O244)+O250 -> 15000.31 | Q250: =(Q251-Q249)/(A251-A249)*(A250-A249)+Q249 -> 15000.49
A251: 2 | C251: 12000 | D251: =(E251-C251)/(E244-C244)*(D244-C244)+C251 -> 8000 | E251: 18000 | F251: =(G251-E251)/(G244-E244)*(F244-E244)+E251 -> 11000 | G251: 25000 | H251: =(I251-G251)/(I244-G244)*(H244-G244)+G251 -> 24999.8 | I251: 25000.1 | J251: =(K251-I251)/(K244-I244)*(J244-I244)+I251 -> 24999.8 | K251: 25000.2 | L251: =(M251-K251)/(M244-K244)*(L244-K244)+K251 -> 25000 | M251: 25000.3 | N251: =(O251-M251)/(O244-M244)*(N244-M244)+M251 -> 25000.15 | O251: 25000.4 | P251: =(Q251-O251)/(Q244-O244)*(P244-O244)+O251 -> 25000.31 | Q251: 25000.49 | S251: =Лист1!B17*10 -> 0.1 | T251: =Лист1!B19 -> 3500 | U251: =VLOOKUP(S251,A244:Q265,HLOOKUP(V251,A244:Q265,22,0),0) ->  | V251: =Лист1!B18*10 -> 100 | W251: =IF(S251<A247,"NO",IF(S251>A261,"NO",IF(VLOOKUP(S251,A247:Q261,3,0)>T251,"NO",IF(VLOOKUP(S251,A247:Q261,17,0)<T251,"NO",IF(AND(U251>=T251-0.1,U251<T251+0.1)=TRUE,V251,"NO"))))) -> NO | X251: Фильтр газовый | Y251: =Лист1!F19 -> РЕД-С-5-2-350 DN350
A252: =IF(AND(S251>A251,S251<A253)=TRUE,S251,0) -> 0 | C252: =(C253-C251)/(A253-A251)*(A252-A251)+C251 -> 8666.666667 | D252: =(E252-C252)/(E244-C244)*(D244-C244)+C252 -> 6000 | E252: =(E253-E251)/(A253-A251)*(A252-A251)+E251 -> 12666.66667 | F252: =(G252-E252)/(G244-E244)*(F244-E244)+E252 -> 7000 | G252: =(G253-G251)/(A253-A251)*(A252-A251)+G251 -> 18333.33333 | H252: =(I252-G252)/(I244-G244)*(H244-G244)+G252 -> 38333 | I252: =(I253-I251)/(A253-A251)*(A252-A251)+I251 -> 8333.5 | J252: =(K252-I252)/(K244-I244)*(J244-I244)+I252 -> 28333 | K252: =(K253-K251)/(A253-A251)*(A252-A251)+K251 -> 1667 | L252: =(M252-K252)/(M244-K244)*(L244-K244)+K252 -> 1666.8 | M252: =(M253-M251)/(A253-A251)*(A252-A251)+M251 -> 1667.1 | N252: =(O252-M252)/(O244-M244)*(N244-M244)+M252 -> 1666.95 | O252: =(O253-O251)/(A253-A251)*(A252-A251)+O251 -> 1667.2 | P252: =(Q252-O252)/(Q244-O244)*(P244-O244)+O252 -> 1667.116667 | Q252: =(Q253-Q251)/(A253-A251)*(A252-A251)+Q251 -> 1667.283333
A253: 5 | C253: 17000 | D253: =(E253-C253)/(E244-C244)*(D244-C244)+C253 -> 11000 | E253: 26000 | F253: =(G253-E253)/(G244-E244)*(F244-E244)+E253 -> 17000 | G253: 35000 | H253: =(I253-G253)/(I244-G244)*(H244-G244)+G253 -> 5000 | I253: 50000 | J253: =(K253-I253)/(K244-I244)*(J244-I244)+I253 -> 20000 | K253: 60000 | L253: =(M253-K253)/(M244-K244)*(L244-K244)+K253 -> 59999.8 | M253: 60000.1 | N253: =(O253-M253)/(O244-M244)*(N244-M244)+M253 -> 59999.95 | O253: 60000.2 | P253: =(Q253-O253)/(Q244-O244)*(P244-O244)+O253 -> 60000.1 | Q253: 60000.3
A254: =IF(AND(S251>A253,S251<A255)=TRUE,S251,0) -> 0 | C254: =(C255-C253)/(A255-A253)*(A254-A253)+C253 -> 10000 | D254: =(E254-C254)/(E244-C244)*(D244-C244)+C254 -> 6000 | E254: =(E255-E253)/(A255-A253)*(A254-A253)+E253 -> 16000 | F254: =(G254-E254)/(G244-E244)*(F244-E244)+E254 -> 16000 | G254: =(G255-G253)/(A255-A253)*(A254-A253)+G253 -> 16000 | H254: =(I254-G254)/(I244-G244)*(H244-G244)+G254 -> -24000 | I254: =(I255-I253)/(A255-A253)*(A254-A253)+I253 -> 36000 | J254: =(K254-I254)/(K244-I244)*(J244-I244)+I254 -> -6000 | K254: =(K255-K253)/(A255-A253)*(A254-A253)+K253 -> 50000 | L254: =(M254-K254)/(M244-K244)*(L244-K244)+K254 -> 89999.6 | M254: =(M255-M253)/(A255-A253)*(A254-A253)+M253 -> 30000.2 | N254: =(O254-M254)/(O244-M244)*(N244-M244)+M254 -> 59999.9 | O254: =(O255-O253)/(A255-A253)*(A254-A253)+O253 -> 10000.4 | P254: =(Q254-O254)/(Q244-O244)*(P244-O244)+O254 -> 10000.3 | Q254: =(Q255-Q253)/(A255-A253)*(A254-A253)+Q253 -> 10000.5
A255: 10 | C255: 24000 | D255: =(E255-C255)/(E244-C244)*(D244-C244)+C255 -> 16000 | E255: 36000 | F255: =(G255-E255)/(G244-E244)*(F244-E244)+E255 -> 18000 | G255: 54000 | H255: =(I255-G255)/(I244-G244)*(H244-G244)+G255 -> 34000 | I255: 64000 | J255: =(K255-I255)/(K244-I244)*(J244-I244)+I255 -> 46000 | K255: 70000 | L255: =(M255-K255)/(M244-K244)*(L244-K244)+K255 -> 30000 | M255: 90000 | N255: =(O255-M255)/(O244-M244)*(N244-M244)+M255 -> 60000 | O255: 110000 | P255: =(Q255-O255)/(Q244-O244)*(P244-O244)+O255 -> 109999.9 | Q255: 110000.1
A256: =IF(AND(S251>A255,S251<A257)=TRUE,S251,0) -> 0 | C256: =(C257-C255)/(A257-A255)*(A256-A255)+C255 -> 16666.66667 | D256: =(E256-C256)/(E244-C244)*(D244-C244)+C256 -> 11777.77778 | E256: =(E257-E255)/(A257-A255)*(A256-A255)+E255 -> 24000 | F256: =(G256-E256)/(G244-E244)*(F244-E244)+E256 -> 11333.33333 | G256: =(G257-G255)/(A257-A255)*(A256-A255)+G255 -> 36666.66667 | H256: =(I256-G256)/(I244-G244)*(H244-G244)+G256 -> 105200 | I256: 2400 | J256: =(K256-I256)/(K244-I244)*(J244-I244)+I256 -> -120400 | K256: =(K257-K255)/(A257-A255)*(A256-A255)+K255 -> 43333.33333 | L256: =(M256-K256)/(M244-K244)*(L244-K244)+K256 -> 16666.66667 | M256: =(M257-M255)/(A257-A255)*(A256-A255)+M255 -> 56666.66667 | N256: =(O256-M256)/(O244-M244)*(N244-M244)+M256 -> 36666.66667 | O256: =(O257-O255)/(A257-A255)*(A256-A255)+O255 -> 70000 | P256: =(Q256-O256)/(Q244-O244)*(P244-O244)+O256 -> 116666.5 | Q256: =(Q257-Q255)/(A257-A255)*(A256-A255)+Q255 -> 23333.5
A257: 25 | C257: 35000 | D257: =(E257-C257)/(E244-C244)*(D244-C244)+C257 -> 22333.33333 | E257: 54000 | F257: =(G257-E257)/(G244-E244)*(F244-E244)+E257 -> 28000 | G257: 80000 | H257: =(I257-G257)/(I244-G244)*(H244-G244)+G257 -> 40000 | I257: 100000 | J257: =(K257-I257)/(K244-I244)*(J244-I244)+I257 -> 70000 | K257: 110000 | L257: =(M257-K257)/(M244-K244)*(L244-K244)+K257 -> 50000 | M257: 140000 | N257: =(O257-M257)/(O244-M244)*(N244-M244)+M257 -> 95000 | O257: 170000 | P257: =(Q257-O257)/(Q244-O244)*(P244-O244)+O257 -> 100000 | Q257: 240000
A258: =IF(AND(S253>A257,S253<A259)=TRUE,S253,0) -> 0 | C258: =(C259-C257)/(A259-A257)*(A258-A257)+C257 -> 15000 | D258: =(E258-C258)/(E244-C244)*(D244-C244)+C258 -> -4333.333333 | E258: =(E259-E257)/(A259-A257)*(A258-A257)+E257 -> 44000 | F258: =(G258-E258)/(G244-E244)*(F244-E244)+E258 -> -333.3333333 | G258: =(G259-G257)/(A259-A257)*(A258-A257)+G257 -> 88333.33333 | H258: =(I258-G258)/(I244-G244)*(H244-G244)+G258 -> 260200 | I258: 2400 | J258: =(K258-I258)/(K244-I244)*(J244-I244)+I258 -> -220400 | K258: =(K259-K257)/(A259-A257)*(A258-A257)+K257 -> 76666.66667 | L258: =(M258-K258)/(M244-K244)*(L244-K244)+K258 -> 33333.33333 | M258: =(M259-M257)/(A259-A257)*(A258-A257)+M257 -> 98333.33333 | N258: =(O258-M258)/(O244-M244)*(N244-M244)+M258 -> 65833.33333 | O258: =(O259-O257)/(A259-A257)*(A258-A257)+O257 -> 120000 | P258: =(Q258-O258)/(Q244-O244)*(P244-O244)+O258 -> 100000 | Q258: =(Q259-Q257)/(A259-A257)*(A258-A257)+Q257 -> 140000
A259: 40 | C259: 47000 | D259: =(E259-C259)/(E244-C244)*(D244-C244)+C259 -> 38333.33333 | E259: 60000 | F259: =(G259-E259)/(G244-E244)*(F244-E244)+E259 -> 45000 | G259: 75000 | H259: =(I259-G259)/(I244-G244)*(H244-G244)+G259 -> 25000 | I259: 100000 | J259: =(K259-I259)/(K244-I244)*(J244-I244)+I259 -> 10000 | K259: 130000 | L259: =(M259-K259)/(M244-K244)*(L244-K244)+K259 -> 60000 | M259: 165000 | N259: =(O259-M259)/(O244-M244)*(N244-M244)+M259 -> 112500 | O259: 200000 | P259: =(Q259-O259)/(Q244-O244)*(P244-O244)+O259 -> 100000 | Q259: 300000
A260: =IF(AND(S255>A259,S255<A261)=TRUE,S255,0) -> 0 | C260: =(C261-C259)/(A261-A259)*(A260-A259)+C259 -> 36333.33333 | D260: =(E260-C260)/(E248-C248)*(D248-C248)+C260 -> 29444.44444 | E260: =(E261-E259)/(A261-A259)*(A260-A259)+E259 -> 46666.66667 | F260: =(G260-E260)/(G248-E248)*(F248-E248)+E260 ->  | G260: =(G261-G259)/(A261-A259)*(A260-A259)+G259 -> 55000 | H260: =(I260-G260)/(I248-G248)*(H248-G248)+G260 -> 160200 | I260: 2400 | J260: =(K260-I260)/(K248-I248)*(J248-I248)+I260 -> -320400 | K260: =(K261-K259)/(A261-A259)*(A260-A259)+K259 -> 110000 | L260: =(M260-K260)/(M248-K248)*(L248-K248)+K260 -> 93333.33333 | M260: =(M261-M259)/(A261-A259)*(A260-A259)+M259 -> 118333.3333 | N260: =(O260-M260)/(O248-M248)*(N248-M248)+M260 -> 195833.3333 | O260: =(O261-O259)/(A261-A259)*(A260-A259)+O259 -> 66666.66667 | P260: =(Q260-O260)/(Q248-O248)*(P248-O248)+O260 -> -100000 | Q260: =(Q261-Q259)/(A261-A259)*(A260-A259)+Q259 -> 233333.3333
A261: 70 | C261: 55000 | D261: =(E261-C261)/(E248-C248)*(D248-C248)+C261 -> 45000 | E261: 70000 | F261: =(G261-E261)/(G248-E248)*(F248-E248)+E261 ->  | G261: 90000 | H261: =(I261-G261)/(I248-G248)*(H248-G248)+G261 -> 50000 | I261: 110000 | J261: =(K261-I261)/(K248-I248)*(J248-I248)+I261 -> 5000 | K261: 145000 | L261: =(M261-K261)/(M248-K248)*(L248-K248)+K261 -> 35000 | M261: 200000 | N261: =(O261-M261)/(O248-M248)*(N248-M248)+M261 -> 50000 | O261: 300000 | P261: =(Q261-O261)/(Q248-O248)*(P248-O248)+O261 -> 250000 | Q261: 350000 | U261: Скорость
A265: COL | C265: 3 | D265: 4 | E265: 5 | F265: 6 | G265: 7 | H265: 8 | I265: 9 | J265: 10 | K265: 11 | L265: 12 | M265: 13 | N265: 14 | O265: 15 | P265: 16 | Q265: 17
B268: DP | C268: 10 | D268: =IF(AND(V275>C268,V275<E268)=TRUE,V275,0) -> 0 | E268: 25 | F268: =IF(AND(V275>E268,V275<G268)=TRUE,V275,0) -> 0 | G268: 50 | H268: =IF(AND(V275>G268,V275<I268)=TRUE,V275,0) -> 0 | I268: 75 | J268: =IF(AND(V275>I268,V275<K268)=TRUE,V275,0) -> 0 | K268: 100 | L268: =IF(AND(V275>K268,V275<M268)=TRUE,V275,0) -> 0 | M268: 150 | N268: =IF(AND(V275>M268,V275<O268)=TRUE,V275,0) -> 0 | O268: 250 | P268: =IF(AND(V275>O268,V275<Q268)=TRUE,V275,0) -> 0 | Q268: 500
... 35 more rows

Sheet MODULO1 (hidden)

Sheet Modulo5 (hidden)

Sheet Modulo4 (hidden)

Sheet Modulo6 (hidden)

Sheet Modulo2 (hidden)

Sheet Modulo3 (hidden)
